Workbook

Sheet Introduction
C3: Electricity NSP
C4: Financial performance data
C5: This workbook contains financial performance data for the electricity distribution and transmission networks regulated by the AER. A series of explanatory notes are published in the Electricity and gas network performance report on our website. We encourage stakeholders to read these notes, which detail how we calculate and interpret the profitability measures.
C7: Interpretation
C8: The data covers the regulatory years from 2014 to 2024. Victorian Electricity DNSPs commenced reporting on financial year basis in from 2021. Previously they reported on a calendar year basis for the 2014 to 2020 regulatory years. For these Electricity DNSPs a label 2015 refers to the year ending 31 December 2015, up to and including ther regulatory year 2020. All other Electricity DNSPs report on a financial year basis, and for these businesses the label 2015 refers to data collected for the year ending 30 June 2015. Due to Victorian Electricity DNSPs having a six month regulatory period for the 2021 regulatory year to transition from calendar to financial regulatory years, the outturn profitability measures have been annualised to represent a 12 month regulatory period. All profitability metrics relate to standard control services for Electricity DNSPs and prescribed transmission services for Electricity TNSPs. Unless otherwise stated, all financial values are in nominal dollar terms.
C10: Sources
C11: Data sources for the financial and non-financial information used to determine the profitability measures are listed in each of the worksheets.
C13: Notes
C14: Returns from indexation of the RAB
C15: Our regulatory framework is designed to target a real rate of return. Under our framework, NSPs are also compensated for actual inflation outcomes through indexation of the RAB. This is the process of inflating the RAB by CPI each year to preserve its value in real terms. Indexation of the RAB impacts a NSPs future returns via the return on capital and return of capital building blocks. This model allows users to calculate the returns achieved by NSPs both including and excluding indexation of the RAB.
C17: Returns from incentive scheme payments
C18: The AER operates incentive schemes to encourage specific efficient behaviours from NSPs. Under these schemes, NSPs earn rewards and in some cases penalties which can contribute to differences between allowed and actual returns.
C20: Pass-through revenues
C21: An electricity distribution network service provider (DNSP) is required to recover pass-through revenues including revenue earnt on behalf of transmission network service provider (TNSP) and revenue related to jurisdictional schemes. An electricity DNSP may under or over recover revenues for these pass-throughs in any given year, resulting in deviations in its returns against allowances. An electricity DNSP must operate an unders and overs account for both the transmission and jurisdictional scheme revenues. This means that an electricity DNSP can never recover more or less revenue than allowed in net present value terms. This model allows users to calculate the returns achieved by NSPs both including and excluding these pass-through revenues
C23: Impact of inflation on returns
C24: Our regulatory framework targets a real rate of return, with expected inflation used to convert nominal allowed returns into real allowed returns. This involves NSPs bearing the risk from actual inflation differing from expected inflation, creating overperformance for NSPs when inflation is higher than forecast, and underperformance when inflation is lower than forecast. This models allow users to calculate the returns excluding the impact of actual inflation differing from expected inflation.
C26: Version record
C27: Version | D27: Publication date | E27: Data | F27: Profitability measures
C28: 6 | D28: December 2025 | E28: Regulatory years 2014 to 2024 | F28: RoA, EBIT per customer and RoRE
C29: 5 | D29: June 2024 | E29: Regulatory years 2014 to 2023 | F29: RoA, EBIT per customer and RoRE
C30: 4 | D30: July 2023 | E30: Regulatory years 2014 to 2022 | F30: RoA, EBIT per customer and RoRE
C31: 3 | D31: July 2022 | E31: Regulatory years 2014 to 2021 | F31: RoA, EBIT per customer and RoRE
C32: 2 | D32: September 2021 | E32: Regulatory years 2014 to 2020 | F32: RoA, EBIT per customer and RoRE
C33: 1 | D33: September 2020 | E33: Regulatory years 2014 to 2019 | F33: RoA and EBIT per customer

Sheet Summary - DNSP
B2: DNSP Profitability Reporting - Summary results
B4: Returns from indexation of the RAB | C4: Exclusive
B6: Return on assets
B8: =IF($C$4="Inclusive",Inputs!G7,Inputs!G8) -> Real return on assets | C8: 2014 | D8: 2015 | E8: 2016 | F8: 2017 | G8: 2018 | H8: 2019 | I8: 2020 | J8: 2021 | K8: 2022 | L8: 2023 | M8: 2024
B9: Evoenergy | C9: =SUMIFS(Data!$D:$D,Data!$A:$A,$B9,Data!$C:$C,C$8,Data!$B:$B,$B$8) -> 0.08391855614 | D9: =SUMIFS(Data!$D:$D,Data!$A:$A,$B9,Data!$C:$C,D$8,Data!$B:$B,$B$8) -> 0.06944224507 | E9: =SUMIFS(Data!$D:$D,Data!$A:$A,$B9,Data!$C:$C,E$8,Data!$B:$B,$B$8) -> 0.07396765557 | F9: =SUMIFS(Data!$D:$D,Data!$A:$A,$B9,Data!$C:$C,F$8,Data!$B:$B,$B$8) -> 0.07910758473 | G9: =SUMIFS(Data!$D:$D,Data!$A:$A,$B9,Data!$C:$C,G$8,Data!$B:$B,$B$8) -> 0.102281114 | H9: =SUMIFS(Data!$D:$D,Data!$A:$A,$B9,Data!$C:$C,H$8,Data!$B:$B,$B$8) -> 0.1086120111 | I9: =SUMIFS(Data!$D:$D,Data!$A:$A,$B9,Data!$C:$C,I$8,Data!$B:$B,$B$8) -> 0.04132558443 | J9: =SUMIFS(Data!$D:$D,Data!$A:$A,$B9,Data!$C:$C,J$8,Data!$B:$B,$B$8) -> -0.01840379423 | K9: =SUMIFS(Data!$D:$D,Data!$A:$A,$B9,Data!$C:$C,K$8,Data!$B:$B,$B$8) -> 0.1584512173 | L9: =SUMIFS(Data!$D:$D,Data!$A:$A,$B9,Data!$C:$C,L$8,Data!$B:$B,$B$8) -> 0.1232545278 | M9: =SUMIFS(Data!$D:$D,Data!$A:$A,$B9,Data!$C:$C,M$8,Data!$B:$B,$B$8) -> -0.08796744592
B10: Ausgrid | C10: =SUMIFS(Data!$D:$D,Data!$A:$A,$B10,Data!$C:$C,C$8,Data!$B:$B,$B$8) -> 0.1022609621 | D10: =SUMIFS(Data!$D:$D,Data!$A:$A,$B10,Data!$C:$C,D$8,Data!$B:$B,$B$8) -> 0.06189181479 | E10: =SUMIFS(Data!$D:$D,Data!$A:$A,$B10,Data!$C:$C,E$8,Data!$B:$B,$B$8) -> 0.02847321147 | F10: =SUMIFS(Data!$D:$D,Data!$A:$A,$B10,Data!$C:$C,F$8,Data!$B:$B,$B$8) -> 0.03612375337 | G10: =SUMIFS(Data!$D:$D,Data!$A:$A,$B10,Data!$C:$C,G$8,Data!$B:$B,$B$8) -> 0.03882905976 | H10: =SUMIFS(Data!$D:$D,Data!$A:$A,$B10,Data!$C:$C,H$8,Data!$B:$B,$B$8) -> 0.04006696734 | I10: =SUMIFS(Data!$D:$D,Data!$A:$A,$B10,Data!$C:$C,I$8,Data!$B:$B,$B$8) -> 0.03463507331 | J10: =SUMIFS(Data!$D:$D,Data!$A:$A,$B10,Data!$C:$C,J$8,Data!$B:$B,$B$8) -> 0.03392652697 | K10: =SUMIFS(Data!$D:$D,Data!$A:$A,$B10,Data!$C:$C,K$8,Data!$B:$B,$B$8) -> 0.0338175964 | L10: =SUMIFS(Data!$D:$D,Data!$A:$A,$B10,Data!$C:$C,L$8,Data!$B:$B,$B$8) -> 0.0228598795 | M10: =SUMIFS(Data!$D:$D,Data!$A:$A,$B10,Data!$C:$C,M$8,Data!$B:$B,$B$8) -> 0.02246041933
B11: Endeavour Energy | C11: =SUMIFS(Data!$D:$D,Data!$A:$A,$B11,Data!$C:$C,C$8,Data!$B:$B,$B$8) -> 0.08406124369 | D11: =SUMIFS(Data!$D:$D,Data!$A:$A,$B11,Data!$C:$C,D$8,Data!$B:$B,$B$8) -> 0.09058892073 | E11: =SUMIFS(Data!$D:$D,Data!$A:$A,$B11,Data!$C:$C,E$8,Data!$B:$B,$B$8) -> 0.05195084804 | F11: =SUMIFS(Data!$D:$D,Data!$A:$A,$B11,Data!$C:$C,F$8,Data!$B:$B,$B$8) -> 0.05497950475 | G11: =SUMIFS(Data!$D:$D,Data!$A:$A,$B11,Data!$C:$C,G$8,Data!$B:$B,$B$8) -> 0.0564817901 | H11: =SUMIFS(Data!$D:$D,Data!$A:$A,$B11,Data!$C:$C,H$8,Data!$B:$B,$B$8) -> 0.0566501885 | I11: =SUMIFS(Data!$D:$D,Data!$A:$A,$B11,Data!$C:$C,I$8,Data!$B:$B,$B$8) -> 0.04960731867 | J11: =SUMIFS(Data!$D:$D,Data!$A:$A,$B11,Data!$C:$C,J$8,Data!$B:$B,$B$8) -> 0.04894501868 | K11: =SUMIFS(Data!$D:$D,Data!$A:$A,$B11,Data!$C:$C,K$8,Data!$B:$B,$B$8) -> 0.03912076679 | L11: =SUMIFS(Data!$D:$D,Data!$A:$A,$B11,Data!$C:$C,L$8,Data!$B:$B,$B$8) -> 0.04328491012 | M11: =SUMIFS(Data!$D:$D,Data!$A:$A,$B11,Data!$C:$C,M$8,Data!$B:$B,$B$8) -> 0.04594475349
B12: Essential Energy | C12: =SUMIFS(Data!$D:$D,Data!$A:$A,$B12,Data!$C:$C,C$8,Data!$B:$B,$B$8) -> 0.09179167373 | D12: =SUMIFS(Data!$D:$D,Data!$A:$A,$B12,Data!$C:$C,D$8,Data!$B:$B,$B$8) -> 0.1009534837 | E12: =SUMIFS(Data!$D:$D,Data!$A:$A,$B12,Data!$C:$C,E$8,Data!$B:$B,$B$8) -> 0.0367132472 | F12: =SUMIFS(Data!$D:$D,Data!$A:$A,$B12,Data!$C:$C,F$8,Data!$B:$B,$B$8) -> 0.04390788792 | G12: =SUMIFS(Data!$D:$D,Data!$A:$A,$B12,Data!$C:$C,G$8,Data!$B:$B,$B$8) -> 0.03889035673 | H12: =SUMIFS(Data!$D:$D,Data!$A:$A,$B12,Data!$C:$C,H$8,Data!$B:$B,$B$8) -> 0.03239716609 | I12: =SUMIFS(Data!$D:$D,Data!$A:$A,$B12,Data!$C:$C,I$8,Data!$B:$B,$B$8) -> 0.03566660677 | J12: =SUMIFS(Data!$D:$D,Data!$A:$A,$B12,Data!$C:$C,J$8,Data!$B:$B,$B$8) -> 0.03342444138 | K12: =SUMIFS(Data!$D:$D,Data!$A:$A,$B12,Data!$C:$C,K$8,Data!$B:$B,$B$8) -> 0.0348084512 | L12: =SUMIFS(Data!$D:$D,Data!$A:$A,$B12,Data!$C:$C,L$8,Data!$B:$B,$B$8) -> 0.02720345758 | M12: =SUMIFS(Data!$D:$D,Data!$A:$A,$B12,Data!$C:$C,M$8,Data!$B:$B,$B$8) -> 0.02631099349
B13: Energex | C13: =SUMIFS(Data!$D:$D,Data!$A:$A,$B13,Data!$C:$C,C$8,Data!$B:$B,$B$8) -> 0.05816149749 | D13: =SUMIFS(Data!$D:$D,Data!$A:$A,$B13,Data!$C:$C,D$8,Data!$B:$B,$B$8) -> 0.08150177737 | E13: =SUMIFS(Data!$D:$D,Data!$A:$A,$B13,Data!$C:$C,E$8,Data!$B:$B,$B$8) -> 0.07926862835 | F13: =SUMIFS(Data!$D:$D,Data!$A:$A,$B13,Data!$C:$C,F$8,Data!$B:$B,$B$8) -> 0.07273598316 | G13: =SUMIFS(Data!$D:$D,Data!$A:$A,$B13,Data!$C:$C,G$8,Data!$B:$B,$B$8) -> 0.05855595956 | H13: =SUMIFS(Data!$D:$D,Data!$A:$A,$B13,Data!$C:$C,H$8,Data!$B:$B,$B$8) -> 0.0492772129 | I13: =SUMIFS(Data!$D:$D,Data!$A:$A,$B13,Data!$C:$C,I$8,Data!$B:$B,$B$8) -> 0.04662912995 | J13: =SUMIFS(Data!$D:$D,Data!$A:$A,$B13,Data!$C:$C,J$8,Data!$B:$B,$B$8) -> 0.02995056706 | K13: =SUMIFS(Data!$D:$D,Data!$A:$A,$B13,Data!$C:$C,K$8,Data!$B:$B,$B$8) -> 0.03087987269 | L13: =SUMIFS(Data!$D:$D,Data!$A:$A,$B13,Data!$C:$C,L$8,Data!$B:$B,$B$8) -> 0.01656030056 | M13: =SUMIFS(Data!$D:$D,Data!$A:$A,$B13,Data!$C:$C,M$8,Data!$B:$B,$B$8) -> 0.01377669136
B14: Ergon Energy | C14: =SUMIFS(Data!$D:$D,Data!$A:$A,$B14,Data!$C:$C,C$8,Data!$B:$B,$B$8) -> 0.07206789184 | D14: =SUMIFS(Data!$D:$D,Data!$A:$A,$B14,Data!$C:$C,D$8,Data!$B:$B,$B$8) -> 0.08793657672 | E14: =SUMIFS(Data!$D:$D,Data!$A:$A,$B14,Data!$C:$C,E$8,Data!$B:$B,$B$8) -> 0.06415795102 | F14: =SUMIFS(Data!$D:$D,Data!$A:$A,$B14,Data!$C:$C,F$8,Data!$B:$B,$B$8) -> 0.07457735337 | G14: =SUMIFS(Data!$D:$D,Data!$A:$A,$B14,Data!$C:$C,G$8,Data!$B:$B,$B$8) -> 0.05242757001 | H14: =SUMIFS(Data!$D:$D,Data!$A:$A,$B14,Data!$C:$C,H$8,Data!$B:$B,$B$8) -> 0.04590143893 | I14: =SUMIFS(Data!$D:$D,Data!$A:$A,$B14,Data!$C:$C,I$8,Data!$B:$B,$B$8) -> 0.04312094055 | J14: =SUMIFS(Data!$D:$D,Data!$A:$A,$B14,Data!$C:$C,J$8,Data!$B:$B,$B$8) -> 0.02792649655 | K14: =SUMIFS(Data!$D:$D,Data!$A:$A,$B14,Data!$C:$C,K$8,Data!$B:$B,$B$8) -> 0.02368575232 | L14: =SUMIFS(Data!$D:$D,Data!$A:$A,$B14,Data!$C:$C,L$8,Data!$B:$B,$B$8) -> 0.02464335407 | M14: =SUMIFS(Data!$D:$D,Data!$A:$A,$B14,Data!$C:$C,M$8,Data!$B:$B,$B$8) -> 0.01003534813
B15: SA Power Networks | C15: =SUMIFS(Data!$D:$D,Data!$A:$A,$B15,Data!$C:$C,C$8,Data!$B:$B,$B$8) -> 0.1086394986 | D15: =SUMIFS(Data!$D:$D,Data!$A:$A,$B15,Data!$C:$C,D$8,Data!$B:$B,$B$8) -> 0.1169069627 | E15: =SUMIFS(Data!$D:$D,Data!$A:$A,$B15,Data!$C:$C,E$8,Data!$B:$B,$B$8) -> 0.06559473007 | F15: =SUMIFS(Data!$D:$D,Data!$A:$A,$B15,Data!$C:$C,F$8,Data!$B:$B,$B$8) -> 0.05521598377 | G15: =SUMIFS(Data!$D:$D,Data!$A:$A,$B15,Data!$C:$C,G$8,Data!$B:$B,$B$8) -> 0.06041312189 | H15: =SUMIFS(Data!$D:$D,Data!$A:$A,$B15,Data!$C:$C,H$8,Data!$B:$B,$B$8) -> 0.05642891407 | I15: =SUMIFS(Data!$D:$D,Data!$A:$A,$B15,Data!$C:$C,I$8,Data!$B:$B,$B$8) -> 0.06390190069 | J15: =SUMIFS(Data!$D:$D,Data!$A:$A,$B15,Data!$C:$C,J$8,Data!$B:$B,$B$8) -> 0.05418467564 | K15: =SUMIFS(Data!$D:$D,Data!$A:$A,$B15,Data!$C:$C,K$8,Data!$B:$B,$B$8) -> 0.04441181303 | L15: =SUMIFS(Data!$D:$D,Data!$A:$A,$B15,Data!$C:$C,L$8,Data!$B:$B,$B$8) -> 0.02381552489 | M15: =SUMIFS(Data!$D:$D,Data!$A:$A,$B15,Data!$C:$C,M$8,Data!$B:$B,$B$8) -> 0.00571899637
B16: TasNetworks (Distribution) | C16: =SUMIFS(Data!$D:$D,Data!$A:$A,$B16,Data!$C:$C,C$8,Data!$B:$B,$B$8) -> 0.06887470465 | D16: =SUMIFS(Data!$D:$D,Data!$A:$A,$B16,Data!$C:$C,D$8,Data!$B:$B,$B$8) -> 0.09331733119 | E16: =SUMIFS(Data!$D:$D,Data!$A:$A,$B16,Data!$C:$C,E$8,Data!$B:$B,$B$8) -> 0.09937358151 | F16: =SUMIFS(Data!$D:$D,Data!$A:$A,$B16,Data!$C:$C,F$8,Data!$B:$B,$B$8) -> 0.07490984181 | G16: =SUMIFS(Data!$D:$D,Data!$A:$A,$B16,Data!$C:$C,G$8,Data!$B:$B,$B$8) -> 0.04827140082 | H16: =SUMIFS(Data!$D:$D,Data!$A:$A,$B16,Data!$C:$C,H$8,Data!$B:$B,$B$8) -> 0.03226933665 | I16: =SUMIFS(Data!$D:$D,Data!$A:$A,$B16,Data!$C:$C,I$8,Data!$B:$B,$B$8) -> 0.0332681529 | J16: =SUMIFS(Data!$D:$D,Data!$A:$A,$B16,Data!$C:$C,J$8,Data!$B:$B,$B$8) -> 0.02194900003 | K16: =SUMIFS(Data!$D:$D,Data!$A:$A,$B16,Data!$C:$C,K$8,Data!$B:$B,$B$8) -> 0.02660709248 | L16: =SUMIFS(Data!$D:$D,Data!$A:$A,$B16,Data!$C:$C,L$8,Data!$B:$B,$B$8) -> 0.02412143729 | M16: =SUMIFS(Data!$D:$D,Data!$A:$A,$B16,Data!$C:$C,M$8,Data!$B:$B,$B$8) -> 0.01525234234
B17: AusNet Services (Distribution) | C17: =SUMIFS(Data!$D:$D,Data!$A:$A,$B17,Data!$C:$C,C$8,Data!$B:$B,$B$8) -> 0.08112908757 | D17: =SUMIFS(Data!$D:$D,Data!$A:$A,$B17,Data!$C:$C,D$8,Data!$B:$B,$B$8) -> 0.09995570887 | E17: =SUMIFS(Data!$D:$D,Data!$A:$A,$B17,Data!$C:$C,E$8,Data!$B:$B,$B$8) -> 0.04713466652 | F17: =SUMIFS(Data!$D:$D,Data!$A:$A,$B17,Data!$C:$C,F$8,Data!$B:$B,$B$8) -> 0.07117455074 | G17: =SUMIFS(Data!$D:$D,Data!$A:$A,$B17,Data!$C:$C,G$8,Data!$B:$B,$B$8) -> 0.05771044925 | H17: =SUMIFS(Data!$D:$D,Data!$A:$A,$B17,Data!$C:$C,H$8,Data!$B:$B,$B$8) -> 0.05972606064 | I17: =SUMIFS(Data!$D:$D,Data!$A:$A,$B17,Data!$C:$C,I$8,Data!$B:$B,$B$8) -> 0.06005397315 | J17: =SUMIFS(Data!$D:$D,Data!$A:$A,$B17,Data!$C:$C,J$8,Data!$B:$B,$B$8) -> 0.05162633409 | K17: =SUMIFS(Data!$D:$D,Data!$A:$A,$B17,Data!$C:$C,K$8,Data!$B:$B,$B$8) -> 0.02921586719 | L17: =SUMIFS(Data!$D:$D,Data!$A:$A,$B17,Data!$C:$C,L$8,Data!$B:$B,$B$8) -> 0.05392916904 | M17: =SUMIFS(Data!$D:$D,Data!$A:$A,$B17,Data!$C:$C,M$8,Data!$B:$B,$B$8) -> 0.03849660311
B18: CitiPower | C18: =SUMIFS(Data!$D:$D,Data!$A:$A,$B18,Data!$C:$C,C$8,Data!$B:$B,$B$8) -> 0.07055356202 | D18: =SUMIFS(Data!$D:$D,Data!$A:$A,$B18,Data!$C:$C,D$8,Data!$B:$B,$B$8) -> 0.08133457138 | E18: =SUMIFS(Data!$D:$D,Data!$A:$A,$B18,Data!$C:$C,E$8,Data!$B:$B,$B$8) -> 0.0572300726 | F18: =SUMIFS(Data!$D:$D,Data!$A:$A,$B18,Data!$C:$C,F$8,Data!$B:$B,$B$8) -> 0.05651964259 | G18: =SUMIFS(Data!$D:$D,Data!$A:$A,$B18,Data!$C:$C,G$8,Data!$B:$B,$B$8) -> 0.06345614084 | H18: =SUMIFS(Data!$D:$D,Data!$A:$A,$B18,Data!$C:$C,H$8,Data!$B:$B,$B$8) -> 0.054772185 | I18: =SUMIFS(Data!$D:$D,Data!$A:$A,$B18,Data!$C:$C,I$8,Data!$B:$B,$B$8) -> 0.04584832758 | J18: =SUMIFS(Data!$D:$D,Data!$A:$A,$B18,Data!$C:$C,J$8,Data!$B:$B,$B$8) -> 0.0442143537 | K18: =SUMIFS(Data!$D:$D,Data!$A:$A,$B18,Data!$C:$C,K$8,Data!$B:$B,$B$8) -> 0.06004018263 | L18: =SUMIFS(Data!$D:$D,Data!$A:$A,$B18,Data!$C:$C,L$8,Data!$B:$B,$B$8) -> 0.06116228918 | M18: =SUMIFS(Data!$D:$D,Data!$A:$A,$B18,Data!$C:$C,M$8,Data!$B:$B,$B$8) -> 0.04721751449
B19: Jemena | C19: =SUMIFS(Data!$D:$D,Data!$A:$A,$B19,Data!$C:$C,C$8,Data!$B:$B,$B$8) -> 0.09315859951 | D19: =SUMIFS(Data!$D:$D,Data!$A:$A,$B19,Data!$C:$C,D$8,Data!$B:$B,$B$8) -> 0.1037355189 | E19: =SUMIFS(Data!$D:$D,Data!$A:$A,$B19,Data!$C:$C,E$8,Data!$B:$B,$B$8) -> 0.07903550537 | F19: =SUMIFS(Data!$D:$D,Data!$A:$A,$B19,Data!$C:$C,F$8,Data!$B:$B,$B$8) -> 0.09036246934 | G19: =SUMIFS(Data!$D:$D,Data!$A:$A,$B19,Data!$C:$C,G$8,Data!$B:$B,$B$8) -> 0.06809310478 | H19: =SUMIFS(Data!$D:$D,Data!$A:$A,$B19,Data!$C:$C,H$8,Data!$B:$B,$B$8) -> 0.0510713057 | I19: =SUMIFS(Data!$D:$D,Data!$A:$A,$B19,Data!$C:$C,I$8,Data!$B:$B,$B$8) -> 0.06567695962 | J19: =SUMIFS(Data!$D:$D,Data!$A:$A,$B19,Data!$C:$C,J$8,Data!$B:$B,$B$8) -> 0.06702301646 | K19: =SUMIFS(Data!$D:$D,Data!$A:$A,$B19,Data!$C:$C,K$8,Data!$B:$B,$B$8) -> 0.06191341768 | L19: =SUMIFS(Data!$D:$D,Data!$A:$A,$B19,Data!$C:$C,L$8,Data!$B:$B,$B$8) -> 0.05051705315 | M19: =SUMIFS(Data!$D:$D,Data!$A:$A,$B19,Data!$C:$C,M$8,Data!$B:$B,$B$8) -> 0.05396164785
B20: Powercor | C20: =SUMIFS(Data!$D:$D,Data!$A:$A,$B20,Data!$C:$C,C$8,Data!$B:$B,$B$8) -> 0.09049583754 | D20: =SUMIFS(Data!$D:$D,Data!$A:$A,$B20,Data!$C:$C,D$8,Data!$B:$B,$B$8) -> 0.09403922674 | E20: =SUMIFS(Data!$D:$D,Data!$A:$A,$B20,Data!$C:$C,E$8,Data!$B:$B,$B$8) -> 0.07115199003 | F20: =SUMIFS(Data!$D:$D,Data!$A:$A,$B20,Data!$C:$C,F$8,Data!$B:$B,$B$8) -> 0.0691738531 | G20: =SUMIFS(Data!$D:$D,Data!$A:$A,$B20,Data!$C:$C,G$8,Data!$B:$B,$B$8) -> 0.05894291489 | H20: =SUMIFS(Data!$D:$D,Data!$A:$A,$B20,Data!$C:$C,H$8,Data!$B:$B,$B$8) -> 0.0527106767 | I20: =SUMIFS(Data!$D:$D,Data!$A:$A,$B20,Data!$C:$C,I$8,Data!$B:$B,$B$8) -> 0.0588512869 | J20: =SUMIFS(Data!$D:$D,Data!$A:$A,$B20,Data!$C:$C,J$8,Data!$B:$B,$B$8) -> 0.05034744137 | K20: =SUMIFS(Data!$D:$D,Data!$A:$A,$B20,Data!$C:$C,K$8,Data!$B:$B,$B$8) -> 0.05180235296 | L20: =SUMIFS(Data!$D:$D,Data!$A:$A,$B20,Data!$C:$C,L$8,Data!$B:$B,$B$8) -> 0.03783865268 | M20: =SUMIFS(Data!$D:$D,Data!$A:$A,$B20,Data!$C:$C,M$8,Data!$B:$B,$B$8) -> 0.03430286977
B21: United Energy | C21: =SUMIFS(Data!$D:$D,Data!$A:$A,$B21,Data!$C:$C,C$8,Data!$B:$B,$B$8) -> 0.07314591567 | D21: =SUMIFS(Data!$D:$D,Data!$A:$A,$B21,Data!$C:$C,D$8,Data!$B:$B,$B$8) -> 0.07846336412 | E21: =SUMIFS(Data!$D:$D,Data!$A:$A,$B21,Data!$C:$C,E$8,Data!$B:$B,$B$8) -> 0.04676053595 | F21: =SUMIFS(Data!$D:$D,Data!$A:$A,$B21,Data!$C:$C,F$8,Data!$B:$B,$B$8) -> 0.06937820269 | G21: =SUMIFS(Data!$D:$D,Data!$A:$A,$B21,Data!$C:$C,G$8,Data!$B:$B,$B$8) -> 0.07247438035 | H21: =SUMIFS(Data!$D:$D,Data!$A:$A,$B21,Data!$C:$C,H$8,Data!$B:$B,$B$8) -> 0.07208398503 | I21: =SUMIFS(Data!$D:$D,Data!$A:$A,$B21,Data!$C:$C,I$8,Data!$B:$B,$B$8) -> 0.08590021059 | J21: =SUMIFS(Data!$D:$D,Data!$A:$A,$B21,Data!$C:$C,J$8,Data!$B:$B,$B$8) -> 0.06344991554 | K21: =SUMIFS(Data!$D:$D,Data!$A:$A,$B21,Data!$C:$C,K$8,Data!$B:$B,$B$8) -> 0.06619027056 | L21: =SUMIFS(Data!$D:$D,Data!$A:$A,$B21,Data!$C:$C,L$8,Data!$B:$B,$B$8) -> 0.06978623879 | M21: =SUMIFS(Data!$D:$D,Data!$A:$A,$B21,Data!$C:$C,M$8,Data!$B:$B,$B$8) -> 0.05043919419
B22: Power and Water Corporation | I22: =SUMIFS(Data!$D:$D,Data!$A:$A,$B22,Data!$C:$C,I$8,Data!$B:$B,$B$8) -> 0.02818170103 | J22: =SUMIFS(Data!$D:$D,Data!$A:$A,$B22,Data!$C:$C,J$8,Data!$B:$B,$B$8) -> 0.02823414183 | K22: =SUMIFS(Data!$D:$D,Data!$A:$A,$B22,Data!$C:$C,K$8,Data!$B:$B,$B$8) -> 0.03437601836 | L22: =SUMIFS(Data!$D:$D,Data!$A:$A,$B22,Data!$C:$C,L$8,Data!$B:$B,$B$8) -> 0.0122864979 | M22: =SUMIFS(Data!$D:$D,Data!$A:$A,$B22,Data!$C:$C,M$8,Data!$B:$B,$B$8) -> 0.02545428468
B24: =IF(C4 = "Inclusive", Inputs!G3,Inputs!G4) -> Allowed real rate of return | C24: 2014 | D24: 2015 | E24: 2016 | F24: 2017 | G24: 2018 | H24: 2019 | I24: 2020 | J24: 2021 | K24: 2022 | L24: 2023 | M24: 2024
B25: Evoenergy | C25: =SUMIFS(Data!$D:$D,Data!$A:$A,$B25,Data!$C:$C,C$24,Data!$B:$B,$B$24) -> 0.0691044139 | D25: =SUMIFS(Data!$D:$D,Data!$A:$A,$B25,Data!$C:$C,D$24,Data!$B:$B,$B$24) -> 0.04612346638 | E25: =SUMIFS(Data!$D:$D,Data!$A:$A,$B25,Data!$C:$C,E$24,Data!$B:$B,$B$24) -> 0.04514015224 | F25: =SUMIFS(Data!$D:$D,Data!$A:$A,$B25,Data!$C:$C,F$24,Data!$B:$B,$B$24) -> 0.04478036426 | G25: =SUMIFS(Data!$D:$D,Data!$A:$A,$B25,Data!$C:$C,G$24,Data!$B:$B,$B$24) -> 0.04415174181 | H25: =SUMIFS(Data!$D:$D,Data!$A:$A,$B25,Data!$C:$C,H$24,Data!$B:$B,$B$24) -> 0.04323886359 | I25: =SUMIFS(Data!$D:$D,Data!$A:$A,$B25,Data!$C:$C,I$24,Data!$B:$B,$B$24) -> 0.03234711476 | J25: =SUMIFS(Data!$D:$D,Data!$A:$A,$B25,Data!$C:$C,J$24,Data!$B:$B,$B$24) -> 0.0304502901 | K25: =SUMIFS(Data!$D:$D,Data!$A:$A,$B25,Data!$C:$C,K$24,Data!$B:$B,$B$24) -> 0.02808856349 | L25: =SUMIFS(Data!$D:$D,Data!$A:$A,$B25,Data!$C:$C,L$24,Data!$B:$B,$B$24) -> 0.02651088697 | M25: =SUMIFS(Data!$D:$D,Data!$A:$A,$B25,Data!$C:$C,M$24,Data!$B:$B,$B$24) -> 0.02683302171
B26: Ausgrid | C26: =SUMIFS(Data!$D:$D,Data!$A:$A,$B26,Data!$C:$C,C$24,Data!$B:$B,$B$24) -> 0.08132355909 | D26: =SUMIFS(Data!$D:$D,Data!$A:$A,$B26,Data!$C:$C,D$24,Data!$B:$B,$B$24) -> 0.04683312144 | E26: =SUMIFS(Data!$D:$D,Data!$A:$A,$B26,Data!$C:$C,E$24,Data!$B:$B,$B$24) -> 0.04621457962 | F26: =SUMIFS(Data!$D:$D,Data!$A:$A,$B26,Data!$C:$C,F$24,Data!$B:$B,$B$24) -> 0.04534013596 | G26: =SUMIFS(Data!$D:$D,Data!$A:$A,$B26,Data!$C:$C,G$24,Data!$B:$B,$B$24) -> 0.04443933615 | H26: =SUMIFS(Data!$D:$D,Data!$A:$A,$B26,Data!$C:$C,H$24,Data!$B:$B,$B$24) -> 0.04340706872 | I26: =SUMIFS(Data!$D:$D,Data!$A:$A,$B26,Data!$C:$C,I$24,Data!$B:$B,$B$24) -> 0.03458202379 | J26: =SUMIFS(Data!$D:$D,Data!$A:$A,$B26,Data!$C:$C,J$24,Data!$B:$B,$B$24) -> 0.03245238962 | K26: =SUMIFS(Data!$D:$D,Data!$A:$A,$B26,Data!$C:$C,K$24,Data!$B:$B,$B$24) -> 0.02988171485 | L26: =SUMIFS(Data!$D:$D,Data!$A:$A,$B26,Data!$C:$C,L$24,Data!$B:$B,$B$24) -> 0.02805914772 | M26: =SUMIFS(Data!$D:$D,Data!$A:$A,$B26,Data!$C:$C,M$24,Data!$B:$B,$B$24) -> 0.02819666836
B27: Endeavour Energy | C27: =SUMIFS(Data!$D:$D,Data!$A:$A,$B27,Data!$C:$C,C$24,Data!$B:$B,$B$24) -> 0.08149731909 | D27: =SUMIFS(Data!$D:$D,Data!$A:$A,$B27,Data!$C:$C,D$24,Data!$B:$B,$B$24) -> 0.047834099 | E27: =SUMIFS(Data!$D:$D,Data!$A:$A,$B27,Data!$C:$C,E$24,Data!$B:$B,$B$24) -> 0.047215557 | F27: =SUMIFS(Data!$D:$D,Data!$A:$A,$B27,Data!$C:$C,F$24,Data!$B:$B,$B$24) -> 0.046341114 | G27: =SUMIFS(Data!$D:$D,Data!$A:$A,$B27,Data!$C:$C,G$24,Data!$B:$B,$B$24) -> 0.045440314 | H27: =SUMIFS(Data!$D:$D,Data!$A:$A,$B27,Data!$C:$C,H$24,Data!$B:$B,$B$24) -> 0.044408046 | I27: =SUMIFS(Data!$D:$D,Data!$A:$A,$B27,Data!$C:$C,I$24,Data!$B:$B,$B$24) -> 0.03499536302 | J27: =SUMIFS(Data!$D:$D,Data!$A:$A,$B27,Data!$C:$C,J$24,Data!$B:$B,$B$24) -> 0.0326248807 | K27: =SUMIFS(Data!$D:$D,Data!$A:$A,$B27,Data!$C:$C,K$24,Data!$B:$B,$B$24) -> 0.03030439208 | L27: =SUMIFS(Data!$D:$D,Data!$A:$A,$B27,Data!$C:$C,L$24,Data!$B:$B,$B$24) -> 0.02890646447 | M27: =SUMIFS(Data!$D:$D,Data!$A:$A,$B27,Data!$C:$C,M$24,Data!$B:$B,$B$24) -> 0.02885196593
B28: Essential Energy | C28: =SUMIFS(Data!$D:$D,Data!$A:$A,$B28,Data!$C:$C,C$24,Data!$B:$B,$B$24) -> 0.08074707403 | D28: =SUMIFS(Data!$D:$D,Data!$A:$A,$B28,Data!$C:$C,D$24,Data!$B:$B,$B$24) -> 0.04737562275 | E28: =SUMIFS(Data!$D:$D,Data!$A:$A,$B28,Data!$C:$C,E$24,Data!$B:$B,$B$24) -> 0.04675683926 | F28: =SUMIFS(Data!$D:$D,Data!$A:$A,$B28,Data!$C:$C,F$24,Data!$B:$B,$B$24) -> 0.04588205395 | G28: =SUMIFS(Data!$D:$D,Data!$A:$A,$B28,Data!$C:$C,G$24,Data!$B:$B,$B$24) -> 0.0449809022 | H28: =SUMIFS(Data!$D:$D,Data!$A:$A,$B28,Data!$C:$C,H$24,Data!$B:$B,$B$24) -> 0.04394823146 | I28: =SUMIFS(Data!$D:$D,Data!$A:$A,$B28,Data!$C:$C,I$24,Data!$B:$B,$B$24) -> 0.03471220498 | J28: =SUMIFS(Data!$D:$D,Data!$A:$A,$B28,Data!$C:$C,J$24,Data!$B:$B,$B$24) -> 0.03271020474 | K28: =SUMIFS(Data!$D:$D,Data!$A:$A,$B28,Data!$C:$C,K$24,Data!$B:$B,$B$24) -> 0.0303895444 | L28: =SUMIFS(Data!$D:$D,Data!$A:$A,$B28,Data!$C:$C,L$24,Data!$B:$B,$B$24) -> 0.02838149076 | M28: =SUMIFS(Data!$D:$D,Data!$A:$A,$B28,Data!$C:$C,M$24,Data!$B:$B,$B$24) -> 0.02816956318
B29: Energex | C29: =SUMIFS(Data!$D:$D,Data!$A:$A,$B29,Data!$C:$C,C$24,Data!$B:$B,$B$24) -> 0.08017402048 | D29: =SUMIFS(Data!$D:$D,Data!$A:$A,$B29,Data!$C:$C,D$24,Data!$B:$B,$B$24) -> 0.08017402048 | E29: =SUMIFS(Data!$D:$D,Data!$A:$A,$B29,Data!$C:$C,E$24,Data!$B:$B,$B$24) -> 0.03968512952 | F29: =SUMIFS(Data!$D:$D,Data!$A:$A,$B29,Data!$C:$C,F$24,Data!$B:$B,$B$24) -> 0.03998734413 | G29: =SUMIFS(Data!$D:$D,Data!$A:$A,$B29,Data!$C:$C,G$24,Data!$B:$B,$B$24) -> 0.04004488618 | H29: =SUMIFS(Data!$D:$D,Data!$A:$A,$B29,Data!$C:$C,H$24,Data!$B:$B,$B$24) -> 0.03975222351 | I29: =SUMIFS(Data!$D:$D,Data!$A:$A,$B29,Data!$C:$C,I$24,Data!$B:$B,$B$24) -> 0.03943682848 | J29: =SUMIFS(Data!$D:$D,Data!$A:$A,$B29,Data!$C:$C,J$24,Data!$B:$B,$B$24) -> 0.02656189195 | K29: =SUMIFS(Data!$D:$D,Data!$A:$A,$B29,Data!$C:$C,K$24,Data!$B:$B,$B$24) -> 0.02499296194 | L29: =SUMIFS(Data!$D:$D,Data!$A:$A,$B29,Data!$C:$C,L$24,Data!$B:$B,$B$24) -> 0.02436716623 | M29: =SUMIFS(Data!$D:$D,Data!$A:$A,$B29,Data!$C:$C,M$24,Data!$B:$B,$B$24) -> 0.02513677163
B30: Ergon Energy | C30: =SUMIFS(Data!$D:$D,Data!$A:$A,$B30,Data!$C:$C,C$24,Data!$B:$B,$B$24) -> 0.07888744658 | D30: =SUMIFS(Data!$D:$D,Data!$A:$A,$B30,Data!$C:$C,D$24,Data!$B:$B,$B$24) -> 0.07888744658 | E30: =SUMIFS(Data!$D:$D,Data!$A:$A,$B30,Data!$C:$C,E$24,Data!$B:$B,$B$24) -> 0.03944483016 | F30: =SUMIFS(Data!$D:$D,Data!$A:$A,$B30,Data!$C:$C,F$24,Data!$B:$B,$B$24) -> 0.03974704476 | G30: =SUMIFS(Data!$D:$D,Data!$A:$A,$B30,Data!$C:$C,G$24,Data!$B:$B,$B$24) -> 0.03980458681 | H30: =SUMIFS(Data!$D:$D,Data!$A:$A,$B30,Data!$C:$C,H$24,Data!$B:$B,$B$24) -> 0.03951192414 | I30: =SUMIFS(Data!$D:$D,Data!$A:$A,$B30,Data!$C:$C,I$24,Data!$B:$B,$B$24) -> 0.03919652911 | J30: =SUMIFS(Data!$D:$D,Data!$A:$A,$B30,Data!$C:$C,J$24,Data!$B:$B,$B$24) -> 0.02650933384 | K30: =SUMIFS(Data!$D:$D,Data!$A:$A,$B30,Data!$C:$C,K$24,Data!$B:$B,$B$24) -> 0.02494040384 | L30: =SUMIFS(Data!$D:$D,Data!$A:$A,$B30,Data!$C:$C,L$24,Data!$B:$B,$B$24) -> 0.02431460812 | M30: =SUMIFS(Data!$D:$D,Data!$A:$A,$B30,Data!$C:$C,M$24,Data!$B:$B,$B$24) -> 0.02508421352
B31: SA Power Networks | C31: =SUMIFS(Data!$D:$D,Data!$A:$A,$B31,Data!$C:$C,C$24,Data!$B:$B,$B$24) -> 0.08976513455 | D31: =SUMIFS(Data!$D:$D,Data!$A:$A,$B31,Data!$C:$C,D$24,Data!$B:$B,$B$24) -> 0.08976513455 | E31: =SUMIFS(Data!$D:$D,Data!$A:$A,$B31,Data!$C:$C,E$24,Data!$B:$B,$B$24) -> 0.04347632394 | F31: =SUMIFS(Data!$D:$D,Data!$A:$A,$B31,Data!$C:$C,F$24,Data!$B:$B,$B$24) -> 0.04364842321 | G31: =SUMIFS(Data!$D:$D,Data!$A:$A,$B31,Data!$C:$C,G$24,Data!$B:$B,$B$24) -> 0.04354850012 | H31: =SUMIFS(Data!$D:$D,Data!$A:$A,$B31,Data!$C:$C,H$24,Data!$B:$B,$B$24) -> 0.04309605865 | I31: =SUMIFS(Data!$D:$D,Data!$A:$A,$B31,Data!$C:$C,I$24,Data!$B:$B,$B$24) -> 0.04267318517 | J31: =SUMIFS(Data!$D:$D,Data!$A:$A,$B31,Data!$C:$C,J$24,Data!$B:$B,$B$24) -> 0.02579770452 | K31: =SUMIFS(Data!$D:$D,Data!$A:$A,$B31,Data!$C:$C,K$24,Data!$B:$B,$B$24) -> 0.02403673021 | L31: =SUMIFS(Data!$D:$D,Data!$A:$A,$B31,Data!$C:$C,L$24,Data!$B:$B,$B$24) -> 0.02325405739 | M31: =SUMIFS(Data!$D:$D,Data!$A:$A,$B31,Data!$C:$C,M$24,Data!$B:$B,$B$24) -> 0.02385189453
B32: TasNetworks (Distribution) | C32: =SUMIFS(Data!$D:$D,Data!$A:$A,$B32,Data!$C:$C,C$24,Data!$B:$B,$B$24) -> 0.06554159337 | D32: =SUMIFS(Data!$D:$D,Data!$A:$A,$B32,Data!$C:$C,D$24,Data!$B:$B,$B$24) -> 0.06554159337 | E32: =SUMIFS(Data!$D:$D,Data!$A:$A,$B32,Data!$C:$C,E$24,Data!$B:$B,$B$24) -> 0.06554159337 | F32: =SUMIFS(Data!$D:$D,Data!$A:$A,$B32,Data!$C:$C,F$24,Data!$B:$B,$B$24) -> 0.06554159337 | G32: =SUMIFS(Data!$D:$D,Data!$A:$A,$B32,Data!$C:$C,G$24,Data!$B:$B,$B$24) -> 0.04185769055 | H32: =SUMIFS(Data!$D:$D,Data!$A:$A,$B32,Data!$C:$C,H$24,Data!$B:$B,$B$24) -> 0.04153839044 | I32: =SUMIFS(Data!$D:$D,Data!$A:$A,$B32,Data!$C:$C,I$24,Data!$B:$B,$B$24) -> 0.0309789867 | J32: =SUMIFS(Data!$D:$D,Data!$A:$A,$B32,Data!$C:$C,J$24,Data!$B:$B,$B$24) -> 0.02946613752 | K32: =SUMIFS(Data!$D:$D,Data!$A:$A,$B32,Data!$C:$C,K$24,Data!$B:$B,$B$24) -> 0.02788084008 | L32: =SUMIFS(Data!$D:$D,Data!$A:$A,$B32,Data!$C:$C,L$24,Data!$B:$B,$B$24) -> 0.02723862927 | M32: =SUMIFS(Data!$D:$D,Data!$A:$A,$B32,Data!$C:$C,M$24,Data!$B:$B,$B$24) -> 0.02796965653
B33: AusNet Services (Distribution) | C33: =SUMIFS(Data!$D:$D,Data!$A:$A,$B33,Data!$C:$C,C$24,Data!$B:$B,$B$24) -> 0.07803689244 | D33: =SUMIFS(Data!$D:$D,Data!$A:$A,$B33,Data!$C:$C,D$24,Data!$B:$B,$B$24) -> 0.07803689244 | E33: =SUMIFS(Data!$D:$D,Data!$A:$A,$B33,Data!$C:$C,E$24,Data!$B:$B,$B$24) -> 0.04506895806 | F33: =SUMIFS(Data!$D:$D,Data!$A:$A,$B33,Data!$C:$C,F$24,Data!$B:$B,$B$24) -> 0.04461449936 | G33: =SUMIFS(Data!$D:$D,Data!$A:$A,$B33,Data!$C:$C,G$24,Data!$B:$B,$B$24) -> 0.04436544786 | H33: =SUMIFS(Data!$D:$D,Data!$A:$A,$B33,Data!$C:$C,H$24,Data!$B:$B,$B$24) -> 0.04380146158 | I33: =SUMIFS(Data!$D:$D,Data!$A:$A,$B33,Data!$C:$C,I$24,Data!$B:$B,$B$24) -> 0.0426107589 | J33: =SUMIFS(Data!$D:$D,Data!$A:$A,$B33,Data!$C:$C,J$24,Data!$B:$B,$B$24) -> 0.02394511263 | K33: =SUMIFS(Data!$D:$D,Data!$A:$A,$B33,Data!$C:$C,K$24,Data!$B:$B,$B$24) -> 0.02989238903 | L33: =SUMIFS(Data!$D:$D,Data!$A:$A,$B33,Data!$C:$C,L$24,Data!$B:$B,$B$24) -> 0.03057440822 | M33: =SUMIFS(Data!$D:$D,Data!$A:$A,$B33,Data!$C:$C,M$24,Data!$B:$B,$B$24) -> 0.0295941613
B34: CitiPower | C34: =SUMIFS(Data!$D:$D,Data!$A:$A,$B34,Data!$C:$C,C$24,Data!$B:$B,$B$24) -> 0.07864758759 | D34: =SUMIFS(Data!$D:$D,Data!$A:$A,$B34,Data!$C:$C,D$24,Data!$B:$B,$B$24) -> 0.07864758759 | E34: =SUMIFS(Data!$D:$D,Data!$A:$A,$B34,Data!$C:$C,E$24,Data!$B:$B,$B$24) -> 0.04419897899 | F34: =SUMIFS(Data!$D:$D,Data!$A:$A,$B34,Data!$C:$C,F$24,Data!$B:$B,$B$24) -> 0.0436265237 | G34: =SUMIFS(Data!$D:$D,Data!$A:$A,$B34,Data!$C:$C,G$24,Data!$B:$B,$B$24) -> 0.04312943373 | H34: =SUMIFS(Data!$D:$D,Data!$A:$A,$B34,Data!$C:$C,H$24,Data!$B:$B,$B$24) -> 0.04257942963 | I34: =SUMIFS(Data!$D:$D,Data!$A:$A,$B34,Data!$C:$C,I$24,Data!$B:$B,$B$24) -> 0.041119999 | J34: =SUMIFS(Data!$D:$D,Data!$A:$A,$B34,Data!$C:$C,J$24,Data!$B:$B,$B$24) -> 0.02325341496 | K34: =SUMIFS(Data!$D:$D,Data!$A:$A,$B34,Data!$C:$C,K$24,Data!$B:$B,$B$24) -> 0.02947056509 | L34: =SUMIFS(Data!$D:$D,Data!$A:$A,$B34,Data!$C:$C,L$24,Data!$B:$B,$B$24) -> 0.02858252705 | M34: =SUMIFS(Data!$D:$D,Data!$A:$A,$B34,Data!$C:$C,M$24,Data!$B:$B,$B$24) -> 0.02907345551
B35: Jemena | C35: =SUMIFS(Data!$D:$D,Data!$A:$A,$B35,Data!$C:$C,C$24,Data!$B:$B,$B$24) -> 0.08701143531 | D35: =SUMIFS(Data!$D:$D,Data!$A:$A,$B35,Data!$C:$C,D$24,Data!$B:$B,$B$24) -> 0.08701143531 | E35: =SUMIFS(Data!$D:$D,Data!$A:$A,$B35,Data!$C:$C,E$24,Data!$B:$B,$B$24) -> 0.04696344556 | F35: =SUMIFS(Data!$D:$D,Data!$A:$A,$B35,Data!$C:$C,F$24,Data!$B:$B,$B$24) -> 0.04636538831 | G35: =SUMIFS(Data!$D:$D,Data!$A:$A,$B35,Data!$C:$C,G$24,Data!$B:$B,$B$24) -> 0.04584948227 | H35: =SUMIFS(Data!$D:$D,Data!$A:$A,$B35,Data!$C:$C,H$24,Data!$B:$B,$B$24) -> 0.04530393293 | I35: =SUMIFS(Data!$D:$D,Data!$A:$A,$B35,Data!$C:$C,I$24,Data!$B:$B,$B$24) -> 0.04419676788 | J35: =SUMIFS(Data!$D:$D,Data!$A:$A,$B35,Data!$C:$C,J$24,Data!$B:$B,$B$24) -> 0.02415380333 | K35: =SUMIFS(Data!$D:$D,Data!$A:$A,$B35,Data!$C:$C,K$24,Data!$B:$B,$B$24) -> 0.03112139178 | L35: =SUMIFS(Data!$D:$D,Data!$A:$A,$B35,Data!$C:$C,L$24,Data!$B:$B,$B$24) -> 0.0298790879 | M35: =SUMIFS(Data!$D:$D,Data!$A:$A,$B35,Data!$C:$C,M$24,Data!$B:$B,$B$24) -> 0.03051419237
B36: Powercor | C36: =SUMIFS(Data!$D:$D,Data!$A:$A,$B36,Data!$C:$C,C$24,Data!$B:$B,$B$24) -> 0.07757110453 | D36: =SUMIFS(Data!$D:$D,Data!$A:$A,$B36,Data!$C:$C,D$24,Data!$B:$B,$B$24) -> 0.07757110453 | E36: =SUMIFS(Data!$D:$D,Data!$A:$A,$B36,Data!$C:$C,E$24,Data!$B:$B,$B$24) -> 0.04320155799 | F36: =SUMIFS(Data!$D:$D,Data!$A:$A,$B36,Data!$C:$C,F$24,Data!$B:$B,$B$24) -> 0.04262910271 | G36: =SUMIFS(Data!$D:$D,Data!$A:$A,$B36,Data!$C:$C,G$24,Data!$B:$B,$B$24) -> 0.04213201274 | H36: =SUMIFS(Data!$D:$D,Data!$A:$A,$B36,Data!$C:$C,H$24,Data!$B:$B,$B$24) -> 0.04158200864 | I36: =SUMIFS(Data!$D:$D,Data!$A:$A,$B36,Data!$C:$C,I$24,Data!$B:$B,$B$24) -> 0.040122578 | J36: =SUMIFS(Data!$D:$D,Data!$A:$A,$B36,Data!$C:$C,J$24,Data!$B:$B,$B$24) -> 0.02321829589 | K36: =SUMIFS(Data!$D:$D,Data!$A:$A,$B36,Data!$C:$C,K$24,Data!$B:$B,$B$24) -> 0.02841164312 | L36: =SUMIFS(Data!$D:$D,Data!$A:$A,$B36,Data!$C:$C,L$24,Data!$B:$B,$B$24) -> 0.02752360507 | M36: =SUMIFS(Data!$D:$D,Data!$A:$A,$B36,Data!$C:$C,M$24,Data!$B:$B,$B$24) -> 0.02801453353
B37: United Energy | C37: =SUMIFS(Data!$D:$D,Data!$A:$A,$B37,Data!$C:$C,C$24,Data!$B:$B,$B$24) -> 0.07914147022 | D37: =SUMIFS(Data!$D:$D,Data!$A:$A,$B37,Data!$C:$C,D$24,Data!$B:$B,$B$24) -> 0.07914147022 | E37: =SUMIFS(Data!$D:$D,Data!$A:$A,$B37,Data!$C:$C,E$24,Data!$B:$B,$B$24) -> 0.04792126891 | F37: =SUMIFS(Data!$D:$D,Data!$A:$A,$B37,Data!$C:$C,F$24,Data!$B:$B,$B$24) -> 0.0472861102 | G37: =SUMIFS(Data!$D:$D,Data!$A:$A,$B37,Data!$C:$C,G$24,Data!$B:$B,$B$24) -> 0.04671490053 | H37: =SUMIFS(Data!$D:$D,Data!$A:$A,$B37,Data!$C:$C,H$24,Data!$B:$B,$B$24) -> 0.04610722815 | I37: =SUMIFS(Data!$D:$D,Data!$A:$A,$B37,Data!$C:$C,I$24,Data!$B:$B,$B$24) -> 0.0445931323 | J37: =SUMIFS(Data!$D:$D,Data!$A:$A,$B37,Data!$C:$C,J$24,Data!$B:$B,$B$24) -> 0.02359686162 | K37: =SUMIFS(Data!$D:$D,Data!$A:$A,$B37,Data!$C:$C,K$24,Data!$B:$B,$B$24) -> 0.03042686424 | L37: =SUMIFS(Data!$D:$D,Data!$A:$A,$B37,Data!$C:$C,L$24,Data!$B:$B,$B$24) -> 0.02947098638 | M37: =SUMIFS(Data!$D:$D,Data!$A:$A,$B37,Data!$C:$C,M$24,Data!$B:$B,$B$24) -> 0.02989407502
B38: Power and Water Corporation | I38: =SUMIFS(Data!$D:$D,Data!$A:$A,$B38,Data!$C:$C,I$24,Data!$B:$B,$B$24) -> 0.0263 | J38: =SUMIFS(Data!$D:$D,Data!$A:$A,$B38,Data!$C:$C,J$24,Data!$B:$B,$B$24) -> 0.02560152821 | K38: =SUMIFS(Data!$D:$D,Data!$A:$A,$B38,Data!$C:$C,K$24,Data!$B:$B,$B$24) -> 0.02462834992 | L38: =SUMIFS(Data!$D:$D,Data!$A:$A,$B38,Data!$C:$C,L$24,Data!$B:$B,$B$24) -> 0.02396777834 | M38: =SUMIFS(Data!$D:$D,Data!$A:$A,$B38,Data!$C:$C,M$24,Data!$B:$B,$B$24) -> 0.02510333282
B40: Return on regulated equity
B42: =IF($C$4="Inclusive",Inputs!G11,Inputs!G12) -> Real return on regulated equity | C42: 2014 | D42: 2015 | E42: 2016 | F42: 2017 | G42: 2018 | H42: 2019 | I42: 2020 | J42: 2021 | K42: 2022 | L42: 2023 | M42: 2024
B43: Evoenergy | C43: =SUMIFS(Data!$D:$D,Data!$A:$A,$B43,Data!$C:$C,C$42,Data!$B:$B,$B$42) -> 0.06916029045 | D43: =SUMIFS(Data!$D:$D,Data!$A:$A,$B43,Data!$C:$C,D$42,Data!$B:$B,$B$42) -> 0.05444617167 | E43: =SUMIFS(Data!$D:$D,Data!$A:$A,$B43,Data!$C:$C,E$42,Data!$B:$B,$B$42) -> 0.05768545463 | F43: =SUMIFS(Data!$D:$D,Data!$A:$A,$B43,Data!$C:$C,F$42,Data!$B:$B,$B$42) -> 0.06236897401 | G43: =SUMIFS(Data!$D:$D,Data!$A:$A,$B43,Data!$C:$C,G$42,Data!$B:$B,$B$42) -> 0.08102613209 | H43: =SUMIFS(Data!$D:$D,Data!$A:$A,$B43,Data!$C:$C,H$42,Data!$B:$B,$B$42) -> 0.08679715334 | I43: =SUMIFS(Data!$D:$D,Data!$A:$A,$B43,Data!$C:$C,I$42,Data!$B:$B,$B$42) -> 0.03399791198 | J43: =SUMIFS(Data!$D:$D,Data!$A:$A,$B43,Data!$C:$C,J$42,Data!$B:$B,$B$42) -> -0.01881495018 | K43: =SUMIFS(Data!$D:$D,Data!$A:$A,$B43,Data!$C:$C,K$42,Data!$B:$B,$B$42) -> 0.1374388313 | L43: =SUMIFS(Data!$D:$D,Data!$A:$A,$B43,Data!$C:$C,L$42,Data!$B:$B,$B$42) -> 0.1001477099 | M43: =SUMIFS(Data!$D:$D,Data!$A:$A,$B43,Data!$C:$C,M$42,Data!$B:$B,$B$42) -> -0.08872251409
B44: Ausgrid | C44: =SUMIFS(Data!$D:$D,Data!$A:$A,$B44,Data!$C:$C,C$42,Data!$B:$B,$B$42) -> 0.1679827697 | D44: =SUMIFS(Data!$D:$D,Data!$A:$A,$B44,Data!$C:$C,D$42,Data!$B:$B,$B$42) -> 0.07358341158 | E44: =SUMIFS(Data!$D:$D,Data!$A:$A,$B44,Data!$C:$C,E$42,Data!$B:$B,$B$42) -> -0.006233291643 | F44: =SUMIFS(Data!$D:$D,Data!$A:$A,$B44,Data!$C:$C,F$42,Data!$B:$B,$B$42) -> 0.02294824789 | G44: =SUMIFS(Data!$D:$D,Data!$A:$A,$B44,Data!$C:$C,G$42,Data!$B:$B,$B$42) -> 0.06100463812 | H44: =SUMIFS(Data!$D:$D,Data!$A:$A,$B44,Data!$C:$C,H$42,Data!$B:$B,$B$42) -> 0.06499753635 | I44: =SUMIFS(Data!$D:$D,Data!$A:$A,$B44,Data!$C:$C,I$42,Data!$B:$B,$B$42) -> 0.05991687001 | J44: =SUMIFS(Data!$D:$D,Data!$A:$A,$B44,Data!$C:$C,J$42,Data!$B:$B,$B$42) -> 0.05291869146 | K44: =SUMIFS(Data!$D:$D,Data!$A:$A,$B44,Data!$C:$C,K$42,Data!$B:$B,$B$42) -> 0.08768503048 | L44: =SUMIFS(Data!$D:$D,Data!$A:$A,$B44,Data!$C:$C,L$42,Data!$B:$B,$B$42) -> 0.10520586 | M44: =SUMIFS(Data!$D:$D,Data!$A:$A,$B44,Data!$C:$C,M$42,Data!$B:$B,$B$42) -> 0.05063659847
B45: Endeavour Energy | C45: =SUMIFS(Data!$D:$D,Data!$A:$A,$B45,Data!$C:$C,C$42,Data!$B:$B,$B$42) -> 0.117922294 | D45: =SUMIFS(Data!$D:$D,Data!$A:$A,$B45,Data!$C:$C,D$42,Data!$B:$B,$B$42) -> 0.1514321488 | E45: =SUMIFS(Data!$D:$D,Data!$A:$A,$B45,Data!$C:$C,E$42,Data!$B:$B,$B$42) -> 0.03811499043 | F45: =SUMIFS(Data!$D:$D,Data!$A:$A,$B45,Data!$C:$C,F$42,Data!$B:$B,$B$42) -> 0.05337551939 | G45: =SUMIFS(Data!$D:$D,Data!$A:$A,$B45,Data!$C:$C,G$42,Data!$B:$B,$B$42) -> 0.1768558525 | H45: =SUMIFS(Data!$D:$D,Data!$A:$A,$B45,Data!$C:$C,H$42,Data!$B:$B,$B$42) -> 0.1449694341 | I45: =SUMIFS(Data!$D:$D,Data!$A:$A,$B45,Data!$C:$C,I$42,Data!$B:$B,$B$42) -> 0.1178260362 | J45: =SUMIFS(Data!$D:$D,Data!$A:$A,$B45,Data!$C:$C,J$42,Data!$B:$B,$B$42) -> 0.1974303736 | K45: =SUMIFS(Data!$D:$D,Data!$A:$A,$B45,Data!$C:$C,K$42,Data!$B:$B,$B$42) -> 0.2205501131 | L45: =SUMIFS(Data!$D:$D,Data!$A:$A,$B45,Data!$C:$C,L$42,Data!$B:$B,$B$42) -> 0.3418568114 | M45: =SUMIFS(Data!$D:$D,Data!$A:$A,$B45,Data!$C:$C,M$42,Data!$B:$B,$B$42) -> 0.2056104452
B46: Essential Energy | C46: =SUMIFS(Data!$D:$D,Data!$A:$A,$B46,Data!$C:$C,C$42,Data!$B:$B,$B$42) -> 0.1337519315 | D46: =SUMIFS(Data!$D:$D,Data!$A:$A,$B46,Data!$C:$C,D$42,Data!$B:$B,$B$42) -> 0.149119077 | E46: =SUMIFS(Data!$D:$D,Data!$A:$A,$B46,Data!$C:$C,E$42,Data!$B:$B,$B$42) -> 0.002282944911 | F46: =SUMIFS(Data!$D:$D,Data!$A:$A,$B46,Data!$C:$C,F$42,Data!$B:$B,$B$42) -> 0.01615274749 | G46: =SUMIFS(Data!$D:$D,Data!$A:$A,$B46,Data!$C:$C,G$42,Data!$B:$B,$B$42) -> 0.02166955798 | H46: =SUMIFS(Data!$D:$D,Data!$A:$A,$B46,Data!$C:$C,H$42,Data!$B:$B,$B$42) -> 0.008752663389 | I46: =SUMIFS(Data!$D:$D,Data!$A:$A,$B46,Data!$C:$C,I$42,Data!$B:$B,$B$42) -> 0.02498999206 | J46: =SUMIFS(Data!$D:$D,Data!$A:$A,$B46,Data!$C:$C,J$42,Data!$B:$B,$B$42) -> 0.01868723067 | K46: =SUMIFS(Data!$D:$D,Data!$A:$A,$B46,Data!$C:$C,K$42,Data!$B:$B,$B$42) -> 0.05965012348 | L46: =SUMIFS(Data!$D:$D,Data!$A:$A,$B46,Data!$C:$C,L$42,Data!$B:$B,$B$42) -> 0.09304149992 | M46: =SUMIFS(Data!$D:$D,Data!$A:$A,$B46,Data!$C:$C,M$42,Data!$B:$B,$B$42) -> 0.03878741621
B47: Energex | C47: =SUMIFS(Data!$D:$D,Data!$A:$A,$B47,Data!$C:$C,C$42,Data!$B:$B,$B$42) -> 0.06718872008 | D47: =SUMIFS(Data!$D:$D,Data!$A:$A,$B47,Data!$C:$C,D$42,Data!$B:$B,$B$42) -> 0.1032208054 | E47: =SUMIFS(Data!$D:$D,Data!$A:$A,$B47,Data!$C:$C,E$42,Data!$B:$B,$B$42) -> 0.1176293059 | F47: =SUMIFS(Data!$D:$D,Data!$A:$A,$B47,Data!$C:$C,F$42,Data!$B:$B,$B$42) -> 0.1322582584 | G47: =SUMIFS(Data!$D:$D,Data!$A:$A,$B47,Data!$C:$C,G$42,Data!$B:$B,$B$42) -> 0.1010459531 | H47: =SUMIFS(Data!$D:$D,Data!$A:$A,$B47,Data!$C:$C,H$42,Data!$B:$B,$B$42) -> 0.07065966518 | I47: =SUMIFS(Data!$D:$D,Data!$A:$A,$B47,Data!$C:$C,I$42,Data!$B:$B,$B$42) -> 0.07119276336 | J47: =SUMIFS(Data!$D:$D,Data!$A:$A,$B47,Data!$C:$C,J$42,Data!$B:$B,$B$42) -> 0.02379008276 | K47: =SUMIFS(Data!$D:$D,Data!$A:$A,$B47,Data!$C:$C,K$42,Data!$B:$B,$B$42) -> 0.08987128037 | L47: =SUMIFS(Data!$D:$D,Data!$A:$A,$B47,Data!$C:$C,L$42,Data!$B:$B,$B$42) -> 0.1201745899 | M47: =SUMIFS(Data!$D:$D,Data!$A:$A,$B47,Data!$C:$C,M$42,Data!$B:$B,$B$42) -> 0.03982043466
B48: Ergon Energy | C48: =SUMIFS(Data!$D:$D,Data!$A:$A,$B48,Data!$C:$C,C$42,Data!$B:$B,$B$42) -> 0.0823185662 | D48: =SUMIFS(Data!$D:$D,Data!$A:$A,$B48,Data!$C:$C,D$42,Data!$B:$B,$B$42) -> 0.09754693667 | E48: =SUMIFS(Data!$D:$D,Data!$A:$A,$B48,Data!$C:$C,E$42,Data!$B:$B,$B$42) -> 0.06994144755 | F48: =SUMIFS(Data!$D:$D,Data!$A:$A,$B48,Data!$C:$C,F$42,Data!$B:$B,$B$42) -> 0.1467622606 | G48: =SUMIFS(Data!$D:$D,Data!$A:$A,$B48,Data!$C:$C,G$42,Data!$B:$B,$B$42) -> 0.0845490195 | H48: =SUMIFS(Data!$D:$D,Data!$A:$A,$B48,Data!$C:$C,H$42,Data!$B:$B,$B$42) -> 0.0620784176 | I48: =SUMIFS(Data!$D:$D,Data!$A:$A,$B48,Data!$C:$C,I$42,Data!$B:$B,$B$42) -> 0.06170215056 | J48: =SUMIFS(Data!$D:$D,Data!$A:$A,$B48,Data!$C:$C,J$42,Data!$B:$B,$B$42) -> 0.01881920338 | K48: =SUMIFS(Data!$D:$D,Data!$A:$A,$B48,Data!$C:$C,K$42,Data!$B:$B,$B$42) -> 0.06939646625 | L48: =SUMIFS(Data!$D:$D,Data!$A:$A,$B48,Data!$C:$C,L$42,Data!$B:$B,$B$42) -> 0.1434626437 | M48: =SUMIFS(Data!$D:$D,Data!$A:$A,$B48,Data!$C:$C,M$42,Data!$B:$B,$B$42) -> 0.03074599234
B49: SA Power Networks | C49: =SUMIFS(Data!$D:$D,Data!$A:$A,$B49,Data!$C:$C,C$42,Data!$B:$B,$B$42) -> 0.2257972997 | D49: =SUMIFS(Data!$D:$D,Data!$A:$A,$B49,Data!$C:$C,D$42,Data!$B:$B,$B$42) -> 0.1942498566 | E49: =SUMIFS(Data!$D:$D,Data!$A:$A,$B49,Data!$C:$C,E$42,Data!$B:$B,$B$42) -> 0.128702626 | F49: =SUMIFS(Data!$D:$D,Data!$A:$A,$B49,Data!$C:$C,F$42,Data!$B:$B,$B$42) -> 0.07231200181 | G49: =SUMIFS(Data!$D:$D,Data!$A:$A,$B49,Data!$C:$C,G$42,Data!$B:$B,$B$42) -> 0.1066986221 | H49: =SUMIFS(Data!$D:$D,Data!$A:$A,$B49,Data!$C:$C,H$42,Data!$B:$B,$B$42) -> 0.09956289454 | I49: =SUMIFS(Data!$D:$D,Data!$A:$A,$B49,Data!$C:$C,I$42,Data!$B:$B,$B$42) -> 0.131404912 | J49: =SUMIFS(Data!$D:$D,Data!$A:$A,$B49,Data!$C:$C,J$42,Data!$B:$B,$B$42) -> 0.109830214 | K49: =SUMIFS(Data!$D:$D,Data!$A:$A,$B49,Data!$C:$C,K$42,Data!$B:$B,$B$42) -> 0.1497029478 | L49: =SUMIFS(Data!$D:$D,Data!$A:$A,$B49,Data!$C:$C,L$42,Data!$B:$B,$B$42) -> 0.1694190297 | M49: =SUMIFS(Data!$D:$D,Data!$A:$A,$B49,Data!$C:$C,M$42,Data!$B:$B,$B$42) -> 0.008709324821
B50: TasNetworks (Distribution) | C50: =SUMIFS(Data!$D:$D,Data!$A:$A,$B50,Data!$C:$C,C$42,Data!$B:$B,$B$42) -> 0.0796324657 | D50: =SUMIFS(Data!$D:$D,Data!$A:$A,$B50,Data!$C:$C,D$42,Data!$B:$B,$B$42) -> 0.1032064476 | E50: =SUMIFS(Data!$D:$D,Data!$A:$A,$B50,Data!$C:$C,E$42,Data!$B:$B,$B$42) -> 0.1196315272 | F50: =SUMIFS(Data!$D:$D,Data!$A:$A,$B50,Data!$C:$C,F$42,Data!$B:$B,$B$42) -> 0.1027991891 | G50: =SUMIFS(Data!$D:$D,Data!$A:$A,$B50,Data!$C:$C,G$42,Data!$B:$B,$B$42) -> 0.06328748171 | H50: =SUMIFS(Data!$D:$D,Data!$A:$A,$B50,Data!$C:$C,H$42,Data!$B:$B,$B$42) -> 0.03080746119 | I50: =SUMIFS(Data!$D:$D,Data!$A:$A,$B50,Data!$C:$C,I$42,Data!$B:$B,$B$42) -> 0.04057634993 | J50: =SUMIFS(Data!$D:$D,Data!$A:$A,$B50,Data!$C:$C,J$42,Data!$B:$B,$B$42) -> 0.007426454468 | K50: =SUMIFS(Data!$D:$D,Data!$A:$A,$B50,Data!$C:$C,K$42,Data!$B:$B,$B$42) -> 0.05100267478 | L50: =SUMIFS(Data!$D:$D,Data!$A:$A,$B50,Data!$C:$C,L$42,Data!$B:$B,$B$42) -> 0.09241509871 | M50: =SUMIFS(Data!$D:$D,Data!$A:$A,$B50,Data!$C:$C,M$42,Data!$B:$B,$B$42) -> 0.03072644242
B51: AusNet Services (Distribution) | C51: =SUMIFS(Data!$D:$D,Data!$A:$A,$B51,Data!$C:$C,C$42,Data!$B:$B,$B$42) -> 0.177835933 | D51: =SUMIFS(Data!$D:$D,Data!$A:$A,$B51,Data!$C:$C,D$42,Data!$B:$B,$B$42) -> 0.2083572307 | E51: =SUMIFS(Data!$D:$D,Data!$A:$A,$B51,Data!$C:$C,E$42,Data!$B:$B,$B$42) -> 0.04206549046 | F51: =SUMIFS(Data!$D:$D,Data!$A:$A,$B51,Data!$C:$C,F$42,Data!$B:$B,$B$42) -> 0.1072056723 | G51: =SUMIFS(Data!$D:$D,Data!$A:$A,$B51,Data!$C:$C,G$42,Data!$B:$B,$B$42) -> 0.08344615379 | H51: =SUMIFS(Data!$D:$D,Data!$A:$A,$B51,Data!$C:$C,H$42,Data!$B:$B,$B$42) -> 0.08815853866 | I51: =SUMIFS(Data!$D:$D,Data!$A:$A,$B51,Data!$C:$C,I$42,Data!$B:$B,$B$42) -> 0.08826784875 | J51: =SUMIFS(Data!$D:$D,Data!$A:$A,$B51,Data!$C:$C,J$42,Data!$B:$B,$B$42) -> 0.0673282831 | K51: =SUMIFS(Data!$D:$D,Data!$A:$A,$B51,Data!$C:$C,K$42,Data!$B:$B,$B$42) -> 0.02281457344 | L51: =SUMIFS(Data!$D:$D,Data!$A:$A,$B51,Data!$C:$C,L$42,Data!$B:$B,$B$42) -> 0.1387655071 | M51: =SUMIFS(Data!$D:$D,Data!$A:$A,$B51,Data!$C:$C,M$42,Data!$B:$B,$B$42) -> 0.1738179069
B52: CitiPower | C52: =SUMIFS(Data!$D:$D,Data!$A:$A,$B52,Data!$C:$C,C$42,Data!$B:$B,$B$42) -> 0.07837701211 | D52: =SUMIFS(Data!$D:$D,Data!$A:$A,$B52,Data!$C:$C,D$42,Data!$B:$B,$B$42) -> 0.1043005427 | E52: =SUMIFS(Data!$D:$D,Data!$A:$A,$B52,Data!$C:$C,E$42,Data!$B:$B,$B$42) -> 0.06178424552 | F52: =SUMIFS(Data!$D:$D,Data!$A:$A,$B52,Data!$C:$C,F$42,Data!$B:$B,$B$42) -> 0.05697777696 | G52: =SUMIFS(Data!$D:$D,Data!$A:$A,$B52,Data!$C:$C,G$42,Data!$B:$B,$B$42) -> 0.07485119486 | H52: =SUMIFS(Data!$D:$D,Data!$A:$A,$B52,Data!$C:$C,H$42,Data!$B:$B,$B$42) -> 0.06240078646 | I52: =SUMIFS(Data!$D:$D,Data!$A:$A,$B52,Data!$C:$C,I$42,Data!$B:$B,$B$42) -> 0.04042934629 | J52: =SUMIFS(Data!$D:$D,Data!$A:$A,$B52,Data!$C:$C,J$42,Data!$B:$B,$B$42) -> 0.04712815595 | K52: =SUMIFS(Data!$D:$D,Data!$A:$A,$B52,Data!$C:$C,K$42,Data!$B:$B,$B$42) -> 0.09559254404 | L52: =SUMIFS(Data!$D:$D,Data!$A:$A,$B52,Data!$C:$C,L$42,Data!$B:$B,$B$42) -> 0.1503167164 | M52: =SUMIFS(Data!$D:$D,Data!$A:$A,$B52,Data!$C:$C,M$42,Data!$B:$B,$B$42) -> 0.1018720173
B53: Jemena | C53: =SUMIFS(Data!$D:$D,Data!$A:$A,$B53,Data!$C:$C,C$42,Data!$B:$B,$B$42) -> 0.1121937045 | D53: =SUMIFS(Data!$D:$D,Data!$A:$A,$B53,Data!$C:$C,D$42,Data!$B:$B,$B$42) -> 0.1560683779 | E53: =SUMIFS(Data!$D:$D,Data!$A:$A,$B53,Data!$C:$C,E$42,Data!$B:$B,$B$42) -> 0.09646099945 | F53: =SUMIFS(Data!$D:$D,Data!$A:$A,$B53,Data!$C:$C,F$42,Data!$B:$B,$B$42) -> 0.1095741435 | G53: =SUMIFS(Data!$D:$D,Data!$A:$A,$B53,Data!$C:$C,G$42,Data!$B:$B,$B$42) -> 0.08659197893 | H53: =SUMIFS(Data!$D:$D,Data!$A:$A,$B53,Data!$C:$C,H$42,Data!$B:$B,$B$42) -> 0.05364197302 | I53: =SUMIFS(Data!$D:$D,Data!$A:$A,$B53,Data!$C:$C,I$42,Data!$B:$B,$B$42) -> 0.08736728285 | J53: =SUMIFS(Data!$D:$D,Data!$A:$A,$B53,Data!$C:$C,J$42,Data!$B:$B,$B$42) -> 0.1073603951 | K53: =SUMIFS(Data!$D:$D,Data!$A:$A,$B53,Data!$C:$C,K$42,Data!$B:$B,$B$42) -> 0.08952521666 | L53: =SUMIFS(Data!$D:$D,Data!$A:$A,$B53,Data!$C:$C,L$42,Data!$B:$B,$B$42) -> 0.09717323362 | M53: =SUMIFS(Data!$D:$D,Data!$A:$A,$B53,Data!$C:$C,M$42,Data!$B:$B,$B$42) -> 0.1706430302
B54: Powercor | C54: =SUMIFS(Data!$D:$D,Data!$A:$A,$B54,Data!$C:$C,C$42,Data!$B:$B,$B$42) -> 0.1844878354 | D54: =SUMIFS(Data!$D:$D,Data!$A:$A,$B54,Data!$C:$C,D$42,Data!$B:$B,$B$42) -> 0.1900333281 | E54: =SUMIFS(Data!$D:$D,Data!$A:$A,$B54,Data!$C:$C,E$42,Data!$B:$B,$B$42) -> 0.1134667601 | F54: =SUMIFS(Data!$D:$D,Data!$A:$A,$B54,Data!$C:$C,F$42,Data!$B:$B,$B$42) -> 0.09853003605 | G54: =SUMIFS(Data!$D:$D,Data!$A:$A,$B54,Data!$C:$C,G$42,Data!$B:$B,$B$42) -> 0.07619552932 | H54: =SUMIFS(Data!$D:$D,Data!$A:$A,$B54,Data!$C:$C,H$42,Data!$B:$B,$B$42) -> 0.06149879883 | I54: =SUMIFS(Data!$D:$D,Data!$A:$A,$B54,Data!$C:$C,I$42,Data!$B:$B,$B$42) -> 0.07139465122 | J54: =SUMIFS(Data!$D:$D,Data!$A:$A,$B54,Data!$C:$C,J$42,Data!$B:$B,$B$42) -> 0.06259358311 | K54: =SUMIFS(Data!$D:$D,Data!$A:$A,$B54,Data!$C:$C,K$42,Data!$B:$B,$B$42) -> 0.08490949942 | L54: =SUMIFS(Data!$D:$D,Data!$A:$A,$B54,Data!$C:$C,L$42,Data!$B:$B,$B$42) -> 0.08813341334 | M54: =SUMIFS(Data!$D:$D,Data!$A:$A,$B54,Data!$C:$C,M$42,Data!$B:$B,$B$42) -> 0.1366996819
B55: United Energy | C55: =SUMIFS(Data!$D:$D,Data!$A:$A,$B55,Data!$C:$C,C$42,Data!$B:$B,$B$42) -> 0.1705119862 | D55: =SUMIFS(Data!$D:$D,Data!$A:$A,$B55,Data!$C:$C,D$42,Data!$B:$B,$B$42) -> 0.2324921522 | E55: =SUMIFS(Data!$D:$D,Data!$A:$A,$B55,Data!$C:$C,E$42,Data!$B:$B,$B$42) -> 0.04195297876 | F55: =SUMIFS(Data!$D:$D,Data!$A:$A,$B55,Data!$C:$C,F$42,Data!$B:$B,$B$42) -> 0.1205715355 | G55: =SUMIFS(Data!$D:$D,Data!$A:$A,$B55,Data!$C:$C,G$42,Data!$B:$B,$B$42) -> 0.1911921346 | H55: =SUMIFS(Data!$D:$D,Data!$A:$A,$B55,Data!$C:$C,H$42,Data!$B:$B,$B$42) -> 0.1774213676 | I55: =SUMIFS(Data!$D:$D,Data!$A:$A,$B55,Data!$C:$C,I$42,Data!$B:$B,$B$42) -> 0.2339167824 | J55: =SUMIFS(Data!$D:$D,Data!$A:$A,$B55,Data!$C:$C,J$42,Data!$B:$B,$B$42) -> 0.18219671 | K55: =SUMIFS(Data!$D:$D,Data!$A:$A,$B55,Data!$C:$C,K$42,Data!$B:$B,$B$42) -> 0.1738989786 | L55: =SUMIFS(Data!$D:$D,Data!$A:$A,$B55,Data!$C:$C,L$42,Data!$B:$B,$B$42) -> 0.2432012665 | M55: =SUMIFS(Data!$D:$D,Data!$A:$A,$B55,Data!$C:$C,M$42,Data!$B:$B,$B$42) -> 0.2248438835
B56: Power and Water Corporation | I56: =SUMIFS(Data!$D:$D,Data!$A:$A,$B56,Data!$C:$C,I$42,Data!$B:$B,$B$42) -> 0.0224562397 | J56: =SUMIFS(Data!$D:$D,Data!$A:$A,$B56,Data!$C:$C,J$42,Data!$B:$B,$B$42) -> 0.0125670083 | K56: =SUMIFS(Data!$D:$D,Data!$A:$A,$B56,Data!$C:$C,K$42,Data!$B:$B,$B$42) -> 0.03434464694 | L56: =SUMIFS(Data!$D:$D,Data!$A:$A,$B56,Data!$C:$C,L$42,Data!$B:$B,$B$42) -> 0.05129307651 | M56: =SUMIFS(Data!$D:$D,Data!$A:$A,$B56,Data!$C:$C,M$42,Data!$B:$B,$B$42) -> 0.04180902094
B58: =IF(C4="Inclusive",Inputs!$G$5,Inputs!$G$6) -> Allowed real return on equity | C58: 2014 | D58: 2015 | E58: 2016 | F58: 2017 | G58: 2018 | H58: 2019 | I58: 2020 | J58: 2021 | K58: 2022 | L58: 2023 | M58: 2024
B59: Evoenergy | C59: =SUMIFS(Data!$D:$D,Data!$A:$A,$B59,Data!$C:$C,C$58,Data!$B:$B,$B$58) -> 0.07625972882 | D59: =SUMIFS(Data!$D:$D,Data!$A:$A,$B59,Data!$C:$C,D$58,Data!$B:$B,$B$58) -> 0.04569420035 | E59: =SUMIFS(Data!$D:$D,Data!$A:$A,$B59,Data!$C:$C,E$58,Data!$B:$B,$B$58) -> 0.04569420035 | F59: =SUMIFS(Data!$D:$D,Data!$A:$A,$B59,Data!$C:$C,F$58,Data!$B:$B,$B$58) -> 0.04569420035 | G59: =SUMIFS(Data!$D:$D,Data!$A:$A,$B59,Data!$C:$C,G$58,Data!$B:$B,$B$58) -> 0.04569420035 | H59: =SUMIFS(Data!$D:$D,Data!$A:$A,$B59,Data!$C:$C,H$58,Data!$B:$B,$B$58) -> 0.04569420035 | I59: =SUMIFS(Data!$D:$D,Data!$A:$A,$B59,Data!$C:$C,I$58,Data!$B:$B,$B$58) -> 0.03116549821 | J59: =SUMIFS(Data!$D:$D,Data!$A:$A,$B59,Data!$C:$C,J$58,Data!$B:$B,$B$58) -> 0.03116549821 | K59: =SUMIFS(Data!$D:$D,Data!$A:$A,$B59,Data!$C:$C,K$58,Data!$B:$B,$B$58) -> 0.03116549821 | L59: =SUMIFS(Data!$D:$D,Data!$A:$A,$B59,Data!$C:$C,L$58,Data!$B:$B,$B$58) -> 0.03116549821 | M59: =SUMIFS(Data!$D:$D,Data!$A:$A,$B59,Data!$C:$C,M$58,Data!$B:$B,$B$58) -> 0.03116549821
B60: Ausgrid | C60: =SUMIFS(Data!$D:$D,Data!$A:$A,$B60,Data!$C:$C,C$58,Data!$B:$B,$B$58) -> 0.09123617378 | D60: =SUMIFS(Data!$D:$D,Data!$A:$A,$B60,Data!$C:$C,D$58,Data!$B:$B,$B$58) -> 0.04569420035 | E60: =SUMIFS(Data!$D:$D,Data!$A:$A,$B60,Data!$C:$C,E$58,Data!$B:$B,$B$58) -> 0.04569420035 | F60: =SUMIFS(Data!$D:$D,Data!$A:$A,$B60,Data!$C:$C,F$58,Data!$B:$B,$B$58) -> 0.04569420035 | G60: =SUMIFS(Data!$D:$D,Data!$A:$A,$B60,Data!$C:$C,G$58,Data!$B:$B,$B$58) -> 0.04569420035 | H60: =SUMIFS(Data!$D:$D,Data!$A:$A,$B60,Data!$C:$C,H$58,Data!$B:$B,$B$58) -> 0.04569420035 | I60: =SUMIFS(Data!$D:$D,Data!$A:$A,$B60,Data!$C:$C,I$58,Data!$B:$B,$B$58) -> 0.03195932612 | J60: =SUMIFS(Data!$D:$D,Data!$A:$A,$B60,Data!$C:$C,J$58,Data!$B:$B,$B$58) -> 0.03195932612 | K60: =SUMIFS(Data!$D:$D,Data!$A:$A,$B60,Data!$C:$C,K$58,Data!$B:$B,$B$58) -> 0.03195932612 | L60: =SUMIFS(Data!$D:$D,Data!$A:$A,$B60,Data!$C:$C,L$58,Data!$B:$B,$B$58) -> 0.03195932612 | M60: =SUMIFS(Data!$D:$D,Data!$A:$A,$B60,Data!$C:$C,M$58,Data!$B:$B,$B$58) -> 0.03195932612
B61: Endeavour Energy | C61: =SUMIFS(Data!$D:$D,Data!$A:$A,$B61,Data!$C:$C,C$58,Data!$B:$B,$B$58) -> 0.09123617378 | D61: =SUMIFS(Data!$D:$D,Data!$A:$A,$B61,Data!$C:$C,D$58,Data!$B:$B,$B$58) -> 0.04610275444 | E61: =SUMIFS(Data!$D:$D,Data!$A:$A,$B61,Data!$C:$C,E$58,Data!$B:$B,$B$58) -> 0.04610275444 | F61: =SUMIFS(Data!$D:$D,Data!$A:$A,$B61,Data!$C:$C,F$58,Data!$B:$B,$B$58) -> 0.04610275444 | G61: =SUMIFS(Data!$D:$D,Data!$A:$A,$B61,Data!$C:$C,G$58,Data!$B:$B,$B$58) -> 0.04610275444 | H61: =SUMIFS(Data!$D:$D,Data!$A:$A,$B61,Data!$C:$C,H$58,Data!$B:$B,$B$58) -> 0.04610275444 | I61: =SUMIFS(Data!$D:$D,Data!$A:$A,$B61,Data!$C:$C,I$58,Data!$B:$B,$B$58) -> 0.03293366669 | J61: =SUMIFS(Data!$D:$D,Data!$A:$A,$B61,Data!$C:$C,J$58,Data!$B:$B,$B$58) -> 0.03293366669 | K61: =SUMIFS(Data!$D:$D,Data!$A:$A,$B61,Data!$C:$C,K$58,Data!$B:$B,$B$58) -> 0.03293366669 | L61: =SUMIFS(Data!$D:$D,Data!$A:$A,$B61,Data!$C:$C,L$58,Data!$B:$B,$B$58) -> 0.03293366669 | M61: =SUMIFS(Data!$D:$D,Data!$A:$A,$B61,Data!$C:$C,M$58,Data!$B:$B,$B$58) -> 0.03293366669
B62: Essential Energy | C62: =SUMIFS(Data!$D:$D,Data!$A:$A,$B62,Data!$C:$C,C$58,Data!$B:$B,$B$58) -> 0.09123617378 | D62: =SUMIFS(Data!$D:$D,Data!$A:$A,$B62,Data!$C:$C,D$58,Data!$B:$B,$B$58) -> 0.04610275444 | E62: =SUMIFS(Data!$D:$D,Data!$A:$A,$B62,Data!$C:$C,E$58,Data!$B:$B,$B$58) -> 0.04610275444 | F62: =SUMIFS(Data!$D:$D,Data!$A:$A,$B62,Data!$C:$C,F$58,Data!$B:$B,$B$58) -> 0.04610275444 | G62: =SUMIFS(Data!$D:$D,Data!$A:$A,$B62,Data!$C:$C,G$58,Data!$B:$B,$B$58) -> 0.04610275444 | H62: =SUMIFS(Data!$D:$D,Data!$A:$A,$B62,Data!$C:$C,H$58,Data!$B:$B,$B$58) -> 0.04610275444 | I62: =SUMIFS(Data!$D:$D,Data!$A:$A,$B62,Data!$C:$C,I$58,Data!$B:$B,$B$58) -> 0.03293366669 | J62: =SUMIFS(Data!$D:$D,Data!$A:$A,$B62,Data!$C:$C,J$58,Data!$B:$B,$B$58) -> 0.03293366669 | K62: =SUMIFS(Data!$D:$D,Data!$A:$A,$B62,Data!$C:$C,K$58,Data!$B:$B,$B$58) -> 0.03293366669 | L62: =SUMIFS(Data!$D:$D,Data!$A:$A,$B62,Data!$C:$C,L$58,Data!$B:$B,$B$58) -> 0.03293366669 | M62: =SUMIFS(Data!$D:$D,Data!$A:$A,$B62,Data!$C:$C,M$58,Data!$B:$B,$B$58) -> 0.03293366669
B63: Energex | C63: =SUMIFS(Data!$D:$D,Data!$A:$A,$B63,Data!$C:$C,C$58,Data!$B:$B,$B$58) -> 0.08115489661 | D63: =SUMIFS(Data!$D:$D,Data!$A:$A,$B63,Data!$C:$C,D$58,Data!$B:$B,$B$58) -> 0.08115489661 | E63: =SUMIFS(Data!$D:$D,Data!$A:$A,$B63,Data!$C:$C,E$58,Data!$B:$B,$B$58) -> 0.0487804878 | F63: =SUMIFS(Data!$D:$D,Data!$A:$A,$B63,Data!$C:$C,F$58,Data!$B:$B,$B$58) -> 0.0487804878 | G63: =SUMIFS(Data!$D:$D,Data!$A:$A,$B63,Data!$C:$C,G$58,Data!$B:$B,$B$58) -> 0.0487804878 | H63: =SUMIFS(Data!$D:$D,Data!$A:$A,$B63,Data!$C:$C,H$58,Data!$B:$B,$B$58) -> 0.0487804878 | I63: =SUMIFS(Data!$D:$D,Data!$A:$A,$B63,Data!$C:$C,I$58,Data!$B:$B,$B$58) -> 0.0487804878 | J63: =SUMIFS(Data!$D:$D,Data!$A:$A,$B63,Data!$C:$C,J$58,Data!$B:$B,$B$58) -> 0.02357585503 | K63: =SUMIFS(Data!$D:$D,Data!$A:$A,$B63,Data!$C:$C,K$58,Data!$B:$B,$B$58) -> 0.02357585503 | L63: =SUMIFS(Data!$D:$D,Data!$A:$A,$B63,Data!$C:$C,L$58,Data!$B:$B,$B$58) -> 0.02357585503 | M63: =SUMIFS(Data!$D:$D,Data!$A:$A,$B63,Data!$C:$C,M$58,Data!$B:$B,$B$58) -> 0.02357585503
B64: Ergon Energy | C64: =SUMIFS(Data!$D:$D,Data!$A:$A,$B64,Data!$C:$C,C$58,Data!$B:$B,$B$58) -> 0.08115489661 | D64: =SUMIFS(Data!$D:$D,Data!$A:$A,$B64,Data!$C:$C,D$58,Data!$B:$B,$B$58) -> 0.08115489661 | E64: =SUMIFS(Data!$D:$D,Data!$A:$A,$B64,Data!$C:$C,E$58,Data!$B:$B,$B$58) -> 0.0487804878 | F64: =SUMIFS(Data!$D:$D,Data!$A:$A,$B64,Data!$C:$C,F$58,Data!$B:$B,$B$58) -> 0.0487804878 | G64: =SUMIFS(Data!$D:$D,Data!$A:$A,$B64,Data!$C:$C,G$58,Data!$B:$B,$B$58) -> 0.0487804878 | H64: =SUMIFS(Data!$D:$D,Data!$A:$A,$B64,Data!$C:$C,H$58,Data!$B:$B,$B$58) -> 0.0487804878 | I64: =SUMIFS(Data!$D:$D,Data!$A:$A,$B64,Data!$C:$C,I$58,Data!$B:$B,$B$58) -> 0.0487804878 | J64: =SUMIFS(Data!$D:$D,Data!$A:$A,$B64,Data!$C:$C,J$58,Data!$B:$B,$B$58) -> 0.02357585503 | K64: =SUMIFS(Data!$D:$D,Data!$A:$A,$B64,Data!$C:$C,K$58,Data!$B:$B,$B$58) -> 0.02357585503 | L64: =SUMIFS(Data!$D:$D,Data!$A:$A,$B64,Data!$C:$C,L$58,Data!$B:$B,$B$58) -> 0.02357585503 | M64: =SUMIFS(Data!$D:$D,Data!$A:$A,$B64,Data!$C:$C,M$58,Data!$B:$B,$B$58) -> 0.02357585503
B65: SA Power Networks | C65: =SUMIFS(Data!$D:$D,Data!$A:$A,$B65,Data!$C:$C,C$58,Data!$B:$B,$B$58) -> 0.08359344518 | D65: =SUMIFS(Data!$D:$D,Data!$A:$A,$B65,Data!$C:$C,D$58,Data!$B:$B,$B$58) -> 0.08359344518 | E65: =SUMIFS(Data!$D:$D,Data!$A:$A,$B65,Data!$C:$C,E$58,Data!$B:$B,$B$58) -> 0.0487804878 | F65: =SUMIFS(Data!$D:$D,Data!$A:$A,$B65,Data!$C:$C,F$58,Data!$B:$B,$B$58) -> 0.0487804878 | G65: =SUMIFS(Data!$D:$D,Data!$A:$A,$B65,Data!$C:$C,G$58,Data!$B:$B,$B$58) -> 0.0487804878 | H65: =SUMIFS(Data!$D:$D,Data!$A:$A,$B65,Data!$C:$C,H$58,Data!$B:$B,$B$58) -> 0.0487804878 | I65: =SUMIFS(Data!$D:$D,Data!$A:$A,$B65,Data!$C:$C,I$58,Data!$B:$B,$B$58) -> 0.0487804878 | J65: =SUMIFS(Data!$D:$D,Data!$A:$A,$B65,Data!$C:$C,J$58,Data!$B:$B,$B$58) -> 0.02234858112 | K65: =SUMIFS(Data!$D:$D,Data!$A:$A,$B65,Data!$C:$C,K$58,Data!$B:$B,$B$58) -> 0.02234858112 | L65: =SUMIFS(Data!$D:$D,Data!$A:$A,$B65,Data!$C:$C,L$58,Data!$B:$B,$B$58) -> 0.02234858112 | M65: =SUMIFS(Data!$D:$D,Data!$A:$A,$B65,Data!$C:$C,M$58,Data!$B:$B,$B$58) -> 0.02234858112
B66: TasNetworks (Distribution) | C66: =SUMIFS(Data!$D:$D,Data!$A:$A,$B66,Data!$C:$C,C$58,Data!$B:$B,$B$58) -> 0.05935672515 | D66: =SUMIFS(Data!$D:$D,Data!$A:$A,$B66,Data!$C:$C,D$58,Data!$B:$B,$B$58) -> 0.05935672515 | E66: =SUMIFS(Data!$D:$D,Data!$A:$A,$B66,Data!$C:$C,E$58,Data!$B:$B,$B$58) -> 0.05935672515 | F66: =SUMIFS(Data!$D:$D,Data!$A:$A,$B66,Data!$C:$C,F$58,Data!$B:$B,$B$58) -> 0.05935672515 | G66: =SUMIFS(Data!$D:$D,Data!$A:$A,$B66,Data!$C:$C,G$58,Data!$B:$B,$B$58) -> 0.04831737839 | H66: =SUMIFS(Data!$D:$D,Data!$A:$A,$B66,Data!$C:$C,H$58,Data!$B:$B,$B$58) -> 0.04831737839 | I66: =SUMIFS(Data!$D:$D,Data!$A:$A,$B66,Data!$C:$C,I$58,Data!$B:$B,$B$58) -> 0.03293366669 | J66: =SUMIFS(Data!$D:$D,Data!$A:$A,$B66,Data!$C:$C,J$58,Data!$B:$B,$B$58) -> 0.03293366669 | K66: =SUMIFS(Data!$D:$D,Data!$A:$A,$B66,Data!$C:$C,K$58,Data!$B:$B,$B$58) -> 0.03293366669 | L66: =SUMIFS(Data!$D:$D,Data!$A:$A,$B66,Data!$C:$C,L$58,Data!$B:$B,$B$58) -> 0.03293366669 | M66: =SUMIFS(Data!$D:$D,Data!$A:$A,$B66,Data!$C:$C,M$58,Data!$B:$B,$B$58) -> 0.03293366669
B67: AusNet Services (Distribution) | C67: =SUMIFS(Data!$D:$D,Data!$A:$A,$B67,Data!$C:$C,C$58,Data!$B:$B,$B$58) -> 0.0756797549 | D67: =SUMIFS(Data!$D:$D,Data!$A:$A,$B67,Data!$C:$C,D$58,Data!$B:$B,$B$58) -> 0.0756797549 | E67: =SUMIFS(Data!$D:$D,Data!$A:$A,$B67,Data!$C:$C,E$58,Data!$B:$B,$B$58) -> 0.0503226971 | F67: =SUMIFS(Data!$D:$D,Data!$A:$A,$B67,Data!$C:$C,F$58,Data!$B:$B,$B$58) -> 0.0503226971 | G67: =SUMIFS(Data!$D:$D,Data!$A:$A,$B67,Data!$C:$C,G$58,Data!$B:$B,$B$58) -> 0.0503226971 | H67: =SUMIFS(Data!$D:$D,Data!$A:$A,$B67,Data!$C:$C,H$58,Data!$B:$B,$B$58) -> 0.0503226971 | I67: =SUMIFS(Data!$D:$D,Data!$A:$A,$B67,Data!$C:$C,I$58,Data!$B:$B,$B$58) -> 0.0503226971 | J67: =SUMIFS(Data!$D:$D,Data!$A:$A,$B67,Data!$C:$C,J$58,Data!$B:$B,$B$58) -> 0.02247382509 | K67: =SUMIFS(Data!$D:$D,Data!$A:$A,$B67,Data!$C:$C,K$58,Data!$B:$B,$B$58) -> 0.03057440822 | L67: =SUMIFS(Data!$D:$D,Data!$A:$A,$B67,Data!$C:$C,L$58,Data!$B:$B,$B$58) -> 0.03057440822 | M67: =SUMIFS(Data!$D:$D,Data!$A:$A,$B67,Data!$C:$C,M$58,Data!$B:$B,$B$58) -> 0.03057440822
B68: CitiPower | C68: =SUMIFS(Data!$D:$D,Data!$A:$A,$B68,Data!$C:$C,C$58,Data!$B:$B,$B$58) -> 0.07507586547 | D68: =SUMIFS(Data!$D:$D,Data!$A:$A,$B68,Data!$C:$C,D$58,Data!$B:$B,$B$58) -> 0.07507586547 | E68: =SUMIFS(Data!$D:$D,Data!$A:$A,$B68,Data!$C:$C,E$58,Data!$B:$B,$B$58) -> 0.04543747526 | F68: =SUMIFS(Data!$D:$D,Data!$A:$A,$B68,Data!$C:$C,F$58,Data!$B:$B,$B$58) -> 0.04543747526 | G68: =SUMIFS(Data!$D:$D,Data!$A:$A,$B68,Data!$C:$C,G$58,Data!$B:$B,$B$58) -> 0.04543747526 | H68: =SUMIFS(Data!$D:$D,Data!$A:$A,$B68,Data!$C:$C,H$58,Data!$B:$B,$B$58) -> 0.04543747526 | I68: =SUMIFS(Data!$D:$D,Data!$A:$A,$B68,Data!$C:$C,I$58,Data!$B:$B,$B$58) -> 0.04543747526 | J68: =SUMIFS(Data!$D:$D,Data!$A:$A,$B68,Data!$C:$C,J$58,Data!$B:$B,$B$58) -> 0.02243080446 | K68: =SUMIFS(Data!$D:$D,Data!$A:$A,$B68,Data!$C:$C,K$58,Data!$B:$B,$B$58) -> 0.02980539954 | L68: =SUMIFS(Data!$D:$D,Data!$A:$A,$B68,Data!$C:$C,L$58,Data!$B:$B,$B$58) -> 0.02980539954 | M68: =SUMIFS(Data!$D:$D,Data!$A:$A,$B68,Data!$C:$C,M$58,Data!$B:$B,$B$58) -> 0.02980539954
B69: Jemena | C69: =SUMIFS(Data!$D:$D,Data!$A:$A,$B69,Data!$C:$C,C$58,Data!$B:$B,$B$58) -> 0.08064071352 | D69: =SUMIFS(Data!$D:$D,Data!$A:$A,$B69,Data!$C:$C,D$58,Data!$B:$B,$B$58) -> 0.08064071352 | E69: =SUMIFS(Data!$D:$D,Data!$A:$A,$B69,Data!$C:$C,E$58,Data!$B:$B,$B$58) -> 0.0503226971 | F69: =SUMIFS(Data!$D:$D,Data!$A:$A,$B69,Data!$C:$C,F$58,Data!$B:$B,$B$58) -> 0.0503226971 | G69: =SUMIFS(Data!$D:$D,Data!$A:$A,$B69,Data!$C:$C,G$58,Data!$B:$B,$B$58) -> 0.0503226971 | H69: =SUMIFS(Data!$D:$D,Data!$A:$A,$B69,Data!$C:$C,H$58,Data!$B:$B,$B$58) -> 0.0503226971 | I69: =SUMIFS(Data!$D:$D,Data!$A:$A,$B69,Data!$C:$C,I$58,Data!$B:$B,$B$58) -> 0.0503226971 | J69: =SUMIFS(Data!$D:$D,Data!$A:$A,$B69,Data!$C:$C,J$58,Data!$B:$B,$B$58) -> 0.02247237674 | K69: =SUMIFS(Data!$D:$D,Data!$A:$A,$B69,Data!$C:$C,K$58,Data!$B:$B,$B$58) -> 0.03248583363 | L69: =SUMIFS(Data!$D:$D,Data!$A:$A,$B69,Data!$C:$C,L$58,Data!$B:$B,$B$58) -> 0.03248583363 | M69: =SUMIFS(Data!$D:$D,Data!$A:$A,$B69,Data!$C:$C,M$58,Data!$B:$B,$B$58) -> 0.03248583363
B70: Powercor | C70: =SUMIFS(Data!$D:$D,Data!$A:$A,$B70,Data!$C:$C,C$58,Data!$B:$B,$B$58) -> 0.07507586547 | D70: =SUMIFS(Data!$D:$D,Data!$A:$A,$B70,Data!$C:$C,D$58,Data!$B:$B,$B$58) -> 0.07507586547 | E70: =SUMIFS(Data!$D:$D,Data!$A:$A,$B70,Data!$C:$C,E$58,Data!$B:$B,$B$58) -> 0.04543747526 | F70: =SUMIFS(Data!$D:$D,Data!$A:$A,$B70,Data!$C:$C,F$58,Data!$B:$B,$B$58) -> 0.04543747526 | G70: =SUMIFS(Data!$D:$D,Data!$A:$A,$B70,Data!$C:$C,G$58,Data!$B:$B,$B$58) -> 0.04543747526 | H70: =SUMIFS(Data!$D:$D,Data!$A:$A,$B70,Data!$C:$C,H$58,Data!$B:$B,$B$58) -> 0.04543747526 | I70: =SUMIFS(Data!$D:$D,Data!$A:$A,$B70,Data!$C:$C,I$58,Data!$B:$B,$B$58) -> 0.04543747526 | J70: =SUMIFS(Data!$D:$D,Data!$A:$A,$B70,Data!$C:$C,J$58,Data!$B:$B,$B$58) -> 0.02243080446 | K70: =SUMIFS(Data!$D:$D,Data!$A:$A,$B70,Data!$C:$C,K$58,Data!$B:$B,$B$58) -> 0.02980539954 | L70: =SUMIFS(Data!$D:$D,Data!$A:$A,$B70,Data!$C:$C,L$58,Data!$B:$B,$B$58) -> 0.02980539954 | M70: =SUMIFS(Data!$D:$D,Data!$A:$A,$B70,Data!$C:$C,M$58,Data!$B:$B,$B$58) -> 0.02980539954
B71: United Energy | C71: =SUMIFS(Data!$D:$D,Data!$A:$A,$B71,Data!$C:$C,C$58,Data!$B:$B,$B$58) -> 0.07507586547 | D71: =SUMIFS(Data!$D:$D,Data!$A:$A,$B71,Data!$C:$C,D$58,Data!$B:$B,$B$58) -> 0.07507586547 | E71: =SUMIFS(Data!$D:$D,Data!$A:$A,$B71,Data!$C:$C,E$58,Data!$B:$B,$B$58) -> 0.0503226971 | F71: =SUMIFS(Data!$D:$D,Data!$A:$A,$B71,Data!$C:$C,F$58,Data!$B:$B,$B$58) -> 0.0503226971 | G71: =SUMIFS(Data!$D:$D,Data!$A:$A,$B71,Data!$C:$C,G$58,Data!$B:$B,$B$58) -> 0.0503226971 | H71: =SUMIFS(Data!$D:$D,Data!$A:$A,$B71,Data!$C:$C,H$58,Data!$B:$B,$B$58) -> 0.0503226971 | I71: =SUMIFS(Data!$D:$D,Data!$A:$A,$B71,Data!$C:$C,I$58,Data!$B:$B,$B$58) -> 0.0503226971 | J71: =SUMIFS(Data!$D:$D,Data!$A:$A,$B71,Data!$C:$C,J$58,Data!$B:$B,$B$58) -> 0.02243090436 | K71: =SUMIFS(Data!$D:$D,Data!$A:$A,$B71,Data!$C:$C,K$58,Data!$B:$B,$B$58) -> 0.02980539954 | L71: =SUMIFS(Data!$D:$D,Data!$A:$A,$B71,Data!$C:$C,L$58,Data!$B:$B,$B$58) -> 0.02980539954 | M71: =SUMIFS(Data!$D:$D,Data!$A:$A,$B71,Data!$C:$C,M$58,Data!$B:$B,$B$58) -> 0.02980539954
B72: Power and Water Corporation | I72: =SUMIFS(Data!$D:$D,Data!$A:$A,$B72,Data!$C:$C,I$58,Data!$B:$B,$B$58) -> 0.03367946947 | J72: =SUMIFS(Data!$D:$D,Data!$A:$A,$B72,Data!$C:$C,J$58,Data!$B:$B,$B$58) -> 0.03367946947 | K72: =SUMIFS(Data!$D:$D,Data!$A:$A,$B72,Data!$C:$C,K$58,Data!$B:$B,$B$58) -> 0.03367946947 | L72: =SUMIFS(Data!$D:$D,Data!$A:$A,$B72,Data!$C:$C,L$58,Data!$B:$B,$B$58) -> 0.03367946947 | M72: =SUMIFS(Data!$D:$D,Data!$A:$A,$B72,Data!$C:$C,M$58,Data!$B:$B,$B$58) -> 0.03367946947
B74: EBIT per customer
B76: =IF($C$4="Inclusive",Inputs!G9,Inputs!G10) -> EBIT per customer - excluding returns from capital base indexation | C76: 2014 | D76: 2015 | E76: 2016 | F76: 2017 | G76: 2018 | H76: 2019 | I76: 2020 | J76: 2021 | K76: 2022 | L76: 2023 | M76: 2024
B77: Evoenergy | C77: =SUMIFS(Data!$D:$D,Data!$A:$A,$B77,Data!$C:$C,C$76,Data!$B:$B,$B$76) -> 383.9936754 | D77: =SUMIFS(Data!$D:$D,Data!$A:$A,$B77,Data!$C:$C,D$76,Data!$B:$B,$B$76) -> 331.4617946 | E77: =SUMIFS(Data!$D:$D,Data!$A:$A,$B77,Data!$C:$C,E$76,Data!$B:$B,$B$76) -> 361.1601946 | F77: =SUMIFS(Data!$D:$D,Data!$A:$A,$B77,Data!$C:$C,F$76,Data!$B:$B,$B$76) -> 381.6163349 | G77: =SUMIFS(Data!$D:$D,Data!$A:$A,$B77,Data!$C:$C,G$76,Data!$B:$B,$B$76) -> 482.7909288 | H77: =SUMIFS(Data!$D:$D,Data!$A:$A,$B77,Data!$C:$C,H$76,Data!$B:$B,$B$76) -> 526.15955 | I77: =SUMIFS(Data!$D:$D,Data!$A:$A,$B77,Data!$C:$C,I$76,Data!$B:$B,$B$76) -> 197.6626771 | J77: =SUMIFS(Data!$D:$D,Data!$A:$A,$B77,Data!$C:$C,J$76,Data!$B:$B,$B$76) -> -86.54855152 | K77: =SUMIFS(Data!$D:$D,Data!$A:$A,$B77,Data!$C:$C,K$76,Data!$B:$B,$B$76) -> 741.7965921 | L77: =SUMIFS(Data!$D:$D,Data!$A:$A,$B77,Data!$C:$C,L$76,Data!$B:$B,$B$76) -> 608.4066444 | M77: =SUMIFS(Data!$D:$D,Data!$A:$A,$B77,Data!$C:$C,M$76,Data!$B:$B,$B$76) -> -450.6359102
B78: Ausgrid | C78: =SUMIFS(Data!$D:$D,Data!$A:$A,$B78,Data!$C:$C,C$76,Data!$B:$B,$B$76) -> 877.2293397 | D78: =SUMIFS(Data!$D:$D,Data!$A:$A,$B78,Data!$C:$C,D$76,Data!$B:$B,$B$76) -> 544.4584194 | E78: =SUMIFS(Data!$D:$D,Data!$A:$A,$B78,Data!$C:$C,E$76,Data!$B:$B,$B$76) -> 251.5063587 | F78: =SUMIFS(Data!$D:$D,Data!$A:$A,$B78,Data!$C:$C,F$76,Data!$B:$B,$B$76) -> 315.0077733 | G78: =SUMIFS(Data!$D:$D,Data!$A:$A,$B78,Data!$C:$C,G$76,Data!$B:$B,$B$76) -> 338.8215885 | H78: =SUMIFS(Data!$D:$D,Data!$A:$A,$B78,Data!$C:$C,H$76,Data!$B:$B,$B$76) -> 353.8454497 | I78: =SUMIFS(Data!$D:$D,Data!$A:$A,$B78,Data!$C:$C,I$76,Data!$B:$B,$B$76) -> 313.9936761 | J78: =SUMIFS(Data!$D:$D,Data!$A:$A,$B78,Data!$C:$C,J$76,Data!$B:$B,$B$76) -> 309.5054888 | K78: =SUMIFS(Data!$D:$D,Data!$A:$A,$B78,Data!$C:$C,K$76,Data!$B:$B,$B$76) -> 314.7781002 | L78: =SUMIFS(Data!$D:$D,Data!$A:$A,$B78,Data!$C:$C,L$76,Data!$B:$B,$B$76) -> 223.3552027 | M78: =SUMIFS(Data!$D:$D,Data!$A:$A,$B78,Data!$C:$C,M$76,Data!$B:$B,$B$76) -> 228.2294841
B79: Endeavour Energy | C79: =SUMIFS(Data!$D:$D,Data!$A:$A,$B79,Data!$C:$C,C$76,Data!$B:$B,$B$76) -> 495.4346332 | D79: =SUMIFS(Data!$D:$D,Data!$A:$A,$B79,Data!$C:$C,D$76,Data!$B:$B,$B$76) -> 537.6506161 | E79: =SUMIFS(Data!$D:$D,Data!$A:$A,$B79,Data!$C:$C,E$76,Data!$B:$B,$B$76) -> 316.4665681 | F79: =SUMIFS(Data!$D:$D,Data!$A:$A,$B79,Data!$C:$C,F$76,Data!$B:$B,$B$76) -> 333.7589949 | G79: =SUMIFS(Data!$D:$D,Data!$A:$A,$B79,Data!$C:$C,G$76,Data!$B:$B,$B$76) -> 341.112013 | H79: =SUMIFS(Data!$D:$D,Data!$A:$A,$B79,Data!$C:$C,H$76,Data!$B:$B,$B$76) -> 349.2005879 | I79: =SUMIFS(Data!$D:$D,Data!$A:$A,$B79,Data!$C:$C,I$76,Data!$B:$B,$B$76) -> 312.9038232 | J79: =SUMIFS(Data!$D:$D,Data!$A:$A,$B79,Data!$C:$C,J$76,Data!$B:$B,$B$76) -> 311.5968664 | K79: =SUMIFS(Data!$D:$D,Data!$A:$A,$B79,Data!$C:$C,K$76,Data!$B:$B,$B$76) -> 251.4072538 | L79: =SUMIFS(Data!$D:$D,Data!$A:$A,$B79,Data!$C:$C,L$76,Data!$B:$B,$B$76) -> 296.3696648 | M79: =SUMIFS(Data!$D:$D,Data!$A:$A,$B79,Data!$C:$C,M$76,Data!$B:$B,$B$76) -> 335.6460846
B80: Essential Energy | C80: =SUMIFS(Data!$D:$D,Data!$A:$A,$B80,Data!$C:$C,C$76,Data!$B:$B,$B$76) -> 720.5945767 | D80: =SUMIFS(Data!$D:$D,Data!$A:$A,$B80,Data!$C:$C,D$76,Data!$B:$B,$B$76) -> 813.3472596 | E80: =SUMIFS(Data!$D:$D,Data!$A:$A,$B80,Data!$C:$C,E$76,Data!$B:$B,$B$76) -> 305.2630332 | F80: =SUMIFS(Data!$D:$D,Data!$A:$A,$B80,Data!$C:$C,F$76,Data!$B:$B,$B$76) -> 370.8921215 | G80: =SUMIFS(Data!$D:$D,Data!$A:$A,$B80,Data!$C:$C,G$76,Data!$B:$B,$B$76) -> 334.9854621 | H80: =SUMIFS(Data!$D:$D,Data!$A:$A,$B80,Data!$C:$C,H$76,Data!$B:$B,$B$76) -> 283.9459332 | I80: =SUMIFS(Data!$D:$D,Data!$A:$A,$B80,Data!$C:$C,I$76,Data!$B:$B,$B$76) -> 321.4435596 | J80: =SUMIFS(Data!$D:$D,Data!$A:$A,$B80,Data!$C:$C,J$76,Data!$B:$B,$B$76) -> 307.7671842 | K80: =SUMIFS(Data!$D:$D,Data!$A:$A,$B80,Data!$C:$C,K$76,Data!$B:$B,$B$76) -> 330.9113381 | L80: =SUMIFS(Data!$D:$D,Data!$A:$A,$B80,Data!$C:$C,L$76,Data!$B:$B,$B$76) -> 278.5558054 | M80: =SUMIFS(Data!$D:$D,Data!$A:$A,$B80,Data!$C:$C,M$76,Data!$B:$B,$B$76) -> 281.6548928
B81: Energex | C81: =SUMIFS(Data!$D:$D,Data!$A:$A,$B81,Data!$C:$C,C$76,Data!$B:$B,$B$76) -> 462.1327781 | D81: =SUMIFS(Data!$D:$D,Data!$A:$A,$B81,Data!$C:$C,D$76,Data!$B:$B,$B$76) -> 662.6891392 | E81: =SUMIFS(Data!$D:$D,Data!$A:$A,$B81,Data!$C:$C,E$76,Data!$B:$B,$B$76) -> 642.6003267 | F81: =SUMIFS(Data!$D:$D,Data!$A:$A,$B81,Data!$C:$C,F$76,Data!$B:$B,$B$76) -> 598.1168402 | G81: =SUMIFS(Data!$D:$D,Data!$A:$A,$B81,Data!$C:$C,G$76,Data!$B:$B,$B$76) -> 487.6507616 | H81: =SUMIFS(Data!$D:$D,Data!$A:$A,$B81,Data!$C:$C,H$76,Data!$B:$B,$B$76) -> 412.6780368 | I81: =SUMIFS(Data!$D:$D,Data!$A:$A,$B81,Data!$C:$C,I$76,Data!$B:$B,$B$76) -> 392.9649042 | J81: =SUMIFS(Data!$D:$D,Data!$A:$A,$B81,Data!$C:$C,J$76,Data!$B:$B,$B$76) -> 254.1390677 | K81: =SUMIFS(Data!$D:$D,Data!$A:$A,$B81,Data!$C:$C,K$76,Data!$B:$B,$B$76) -> 266.5323378 | L81: =SUMIFS(Data!$D:$D,Data!$A:$A,$B81,Data!$C:$C,L$76,Data!$B:$B,$B$76) -> 151.9173659 | M81: =SUMIFS(Data!$D:$D,Data!$A:$A,$B81,Data!$C:$C,M$76,Data!$B:$B,$B$76) -> 129.8713843
B82: Ergon Energy | C82: =SUMIFS(Data!$D:$D,Data!$A:$A,$B82,Data!$C:$C,C$76,Data!$B:$B,$B$76) -> 983.0991711 | D82: =SUMIFS(Data!$D:$D,Data!$A:$A,$B82,Data!$C:$C,D$76,Data!$B:$B,$B$76) -> 1247.872161 | E82: =SUMIFS(Data!$D:$D,Data!$A:$A,$B82,Data!$C:$C,E$76,Data!$B:$B,$B$76) -> 928.1962779 | F82: =SUMIFS(Data!$D:$D,Data!$A:$A,$B82,Data!$C:$C,F$76,Data!$B:$B,$B$76) -> 1108.720376 | G82: =SUMIFS(Data!$D:$D,Data!$A:$A,$B82,Data!$C:$C,G$76,Data!$B:$B,$B$76) -> 793.8408385 | H82: =SUMIFS(Data!$D:$D,Data!$A:$A,$B82,Data!$C:$C,H$76,Data!$B:$B,$B$76) -> 707.6050297 | I82: =SUMIFS(Data!$D:$D,Data!$A:$A,$B82,Data!$C:$C,I$76,Data!$B:$B,$B$76) -> 677.225197 | J82: =SUMIFS(Data!$D:$D,Data!$A:$A,$B82,Data!$C:$C,J$76,Data!$B:$B,$B$76) -> 446.9458831 | K82: =SUMIFS(Data!$D:$D,Data!$A:$A,$B82,Data!$C:$C,K$76,Data!$B:$B,$B$76) -> 392.3226361 | L82: =SUMIFS(Data!$D:$D,Data!$A:$A,$B82,Data!$C:$C,L$76,Data!$B:$B,$B$76) -> 442.0295168 | M82: =SUMIFS(Data!$D:$D,Data!$A:$A,$B82,Data!$C:$C,M$76,Data!$B:$B,$B$76) -> 190.5136468
B83: SA Power Networks | C83: =SUMIFS(Data!$D:$D,Data!$A:$A,$B83,Data!$C:$C,C$76,Data!$B:$B,$B$76) -> 459.757238 | D83: =SUMIFS(Data!$D:$D,Data!$A:$A,$B83,Data!$C:$C,D$76,Data!$B:$B,$B$76) -> 509.7325938 | E83: =SUMIFS(Data!$D:$D,Data!$A:$A,$B83,Data!$C:$C,E$76,Data!$B:$B,$B$76) -> 293.5145316 | F83: =SUMIFS(Data!$D:$D,Data!$A:$A,$B83,Data!$C:$C,F$76,Data!$B:$B,$B$76) -> 247.8393855 | G83: =SUMIFS(Data!$D:$D,Data!$A:$A,$B83,Data!$C:$C,G$76,Data!$B:$B,$B$76) -> 270.6493415 | H83: =SUMIFS(Data!$D:$D,Data!$A:$A,$B83,Data!$C:$C,H$76,Data!$B:$B,$B$76) -> 260.3866451 | I83: =SUMIFS(Data!$D:$D,Data!$A:$A,$B83,Data!$C:$C,I$76,Data!$B:$B,$B$76) -> 303.0035356 | J83: =SUMIFS(Data!$D:$D,Data!$A:$A,$B83,Data!$C:$C,J$76,Data!$B:$B,$B$76) -> 260.6762563 | K83: =SUMIFS(Data!$D:$D,Data!$A:$A,$B83,Data!$C:$C,K$76,Data!$B:$B,$B$76) -> 219.6470935 | L83: =SUMIFS(Data!$D:$D,Data!$A:$A,$B83,Data!$C:$C,L$76,Data!$B:$B,$B$76) -> 125.9000259 | M83: =SUMIFS(Data!$D:$D,Data!$A:$A,$B83,Data!$C:$C,M$76,Data!$B:$B,$B$76) -> 31.41673366
B84: TasNetworks (Distribution) | C84: =SUMIFS(Data!$D:$D,Data!$A:$A,$B84,Data!$C:$C,C$76,Data!$B:$B,$B$76) -> 375.4536766 | D84: =SUMIFS(Data!$D:$D,Data!$A:$A,$B84,Data!$C:$C,D$76,Data!$B:$B,$B$76) -> 514.2142669 | E84: =SUMIFS(Data!$D:$D,Data!$A:$A,$B84,Data!$C:$C,E$76,Data!$B:$B,$B$76) -> 549.3970938 | F84: =SUMIFS(Data!$D:$D,Data!$A:$A,$B84,Data!$C:$C,F$76,Data!$B:$B,$B$76) -> 424.7224241 | G84: =SUMIFS(Data!$D:$D,Data!$A:$A,$B84,Data!$C:$C,G$76,Data!$B:$B,$B$76) -> 277.8521718 | H84: =SUMIFS(Data!$D:$D,Data!$A:$A,$B84,Data!$C:$C,H$76,Data!$B:$B,$B$76) -> 196.4006402 | I84: =SUMIFS(Data!$D:$D,Data!$A:$A,$B84,Data!$C:$C,I$76,Data!$B:$B,$B$76) -> 205.804199 | J84: =SUMIFS(Data!$D:$D,Data!$A:$A,$B84,Data!$C:$C,J$76,Data!$B:$B,$B$76) -> 136.7505757 | K84: =SUMIFS(Data!$D:$D,Data!$A:$A,$B84,Data!$C:$C,K$76,Data!$B:$B,$B$76) -> 172.4269022 | L84: =SUMIFS(Data!$D:$D,Data!$A:$A,$B84,Data!$C:$C,L$76,Data!$B:$B,$B$76) -> 167.4038662 | M84: =SUMIFS(Data!$D:$D,Data!$A:$A,$B84,Data!$C:$C,M$76,Data!$B:$B,$B$76) -> 109.8694893
B85: AusNet Services (Distribution) | C85: =SUMIFS(Data!$D:$D,Data!$A:$A,$B85,Data!$C:$C,C$76,Data!$B:$B,$B$76) -> 353.366092 | D85: =SUMIFS(Data!$D:$D,Data!$A:$A,$B85,Data!$C:$C,D$76,Data!$B:$B,$B$76) -> 476.7042808 | E85: =SUMIFS(Data!$D:$D,Data!$A:$A,$B85,Data!$C:$C,E$76,Data!$B:$B,$B$76) -> 236.9305343 | F85: =SUMIFS(Data!$D:$D,Data!$A:$A,$B85,Data!$C:$C,F$76,Data!$B:$B,$B$76) -> 366.3518462 | G85: =SUMIFS(Data!$D:$D,Data!$A:$A,$B85,Data!$C:$C,G$76,Data!$B:$B,$B$76) -> 309.9200904 | H85: =SUMIFS(Data!$D:$D,Data!$A:$A,$B85,Data!$C:$C,H$76,Data!$B:$B,$B$76) -> 335.9839233 | I85: =SUMIFS(Data!$D:$D,Data!$A:$A,$B85,Data!$C:$C,I$76,Data!$B:$B,$B$76) -> 349.1934764 | J85: =SUMIFS(Data!$D:$D,Data!$A:$A,$B85,Data!$C:$C,J$76,Data!$B:$B,$B$76) -> 310.5949116 | K85: =SUMIFS(Data!$D:$D,Data!$A:$A,$B85,Data!$C:$C,K$76,Data!$B:$B,$B$76) -> 176.3109019 | L85: =SUMIFS(Data!$D:$D,Data!$A:$A,$B85,Data!$C:$C,L$76,Data!$B:$B,$B$76) -> 334.0628594 | M85: =SUMIFS(Data!$D:$D,Data!$A:$A,$B85,Data!$C:$C,M$76,Data!$B:$B,$B$76) -> 256.5356485
B86: CitiPower | C86: =SUMIFS(Data!$D:$D,Data!$A:$A,$B86,Data!$C:$C,C$76,Data!$B:$B,$B$76) -> 353.2838923 | D86: =SUMIFS(Data!$D:$D,Data!$A:$A,$B86,Data!$C:$C,D$76,Data!$B:$B,$B$76) -> 431.8230047 | E86: =SUMIFS(Data!$D:$D,Data!$A:$A,$B86,Data!$C:$C,E$76,Data!$B:$B,$B$76) -> 312.8344281 | F86: =SUMIFS(Data!$D:$D,Data!$A:$A,$B86,Data!$C:$C,F$76,Data!$B:$B,$B$76) -> 314.5749378 | G86: =SUMIFS(Data!$D:$D,Data!$A:$A,$B86,Data!$C:$C,G$76,Data!$B:$B,$B$76) -> 355.854053 | H86: =SUMIFS(Data!$D:$D,Data!$A:$A,$B86,Data!$C:$C,H$76,Data!$B:$B,$B$76) -> 310.6920116 | I86: =SUMIFS(Data!$D:$D,Data!$A:$A,$B86,Data!$C:$C,I$76,Data!$B:$B,$B$76) -> 264.301346 | J86: =SUMIFS(Data!$D:$D,Data!$A:$A,$B86,Data!$C:$C,J$76,Data!$B:$B,$B$76) -> 260.2648501 | K86: =SUMIFS(Data!$D:$D,Data!$A:$A,$B86,Data!$C:$C,K$76,Data!$B:$B,$B$76) -> 358.2922846 | L86: =SUMIFS(Data!$D:$D,Data!$A:$A,$B86,Data!$C:$C,L$76,Data!$B:$B,$B$76) -> 368.1778772 | M86: =SUMIFS(Data!$D:$D,Data!$A:$A,$B86,Data!$C:$C,M$76,Data!$B:$B,$B$76) -> 300.7441822
B87: Jemena | C87: =SUMIFS(Data!$D:$D,Data!$A:$A,$B87,Data!$C:$C,C$76,Data!$B:$B,$B$76) -> 308.8135253 | D87: =SUMIFS(Data!$D:$D,Data!$A:$A,$B87,Data!$C:$C,D$76,Data!$B:$B,$B$76) -> 368.3521813 | E87: =SUMIFS(Data!$D:$D,Data!$A:$A,$B87,Data!$C:$C,E$76,Data!$B:$B,$B$76) -> 290.8385143 | F87: =SUMIFS(Data!$D:$D,Data!$A:$A,$B87,Data!$C:$C,F$76,Data!$B:$B,$B$76) -> 337.5680058 | G87: =SUMIFS(Data!$D:$D,Data!$A:$A,$B87,Data!$C:$C,G$76,Data!$B:$B,$B$76) -> 265.0982053 | H87: =SUMIFS(Data!$D:$D,Data!$A:$A,$B87,Data!$C:$C,H$76,Data!$B:$B,$B$76) -> 205.2104434 | I87: =SUMIFS(Data!$D:$D,Data!$A:$A,$B87,Data!$C:$C,I$76,Data!$B:$B,$B$76) -> 265.2476313 | J87: =SUMIFS(Data!$D:$D,Data!$A:$A,$B87,Data!$C:$C,J$76,Data!$B:$B,$B$76) -> 274.9068513 | K87: =SUMIFS(Data!$D:$D,Data!$A:$A,$B87,Data!$C:$C,K$76,Data!$B:$B,$B$76) -> 257.7597786 | L87: =SUMIFS(Data!$D:$D,Data!$A:$A,$B87,Data!$C:$C,L$76,Data!$B:$B,$B$76) -> 222.5818688 | M87: =SUMIFS(Data!$D:$D,Data!$A:$A,$B87,Data!$C:$C,M$76,Data!$B:$B,$B$76) -> 263.6748708
B88: Powercor | C88: =SUMIFS(Data!$D:$D,Data!$A:$A,$B88,Data!$C:$C,C$76,Data!$B:$B,$B$76) -> 346.5102691 | D88: =SUMIFS(Data!$D:$D,Data!$A:$A,$B88,Data!$C:$C,D$76,Data!$B:$B,$B$76) -> 387.2081344 | E88: =SUMIFS(Data!$D:$D,Data!$A:$A,$B88,Data!$C:$C,E$76,Data!$B:$B,$B$76) -> 306.718959 | F88: =SUMIFS(Data!$D:$D,Data!$A:$A,$B88,Data!$C:$C,F$76,Data!$B:$B,$B$76) -> 303.9485359 | G88: =SUMIFS(Data!$D:$D,Data!$A:$A,$B88,Data!$C:$C,G$76,Data!$B:$B,$B$76) -> 269.9322274 | H88: =SUMIFS(Data!$D:$D,Data!$A:$A,$B88,Data!$C:$C,H$76,Data!$B:$B,$B$76) -> 251.2225772 | I88: =SUMIFS(Data!$D:$D,Data!$A:$A,$B88,Data!$C:$C,I$76,Data!$B:$B,$B$76) -> 288.1967238 | J88: =SUMIFS(Data!$D:$D,Data!$A:$A,$B88,Data!$C:$C,J$76,Data!$B:$B,$B$76) -> 257.0064896 | K88: =SUMIFS(Data!$D:$D,Data!$A:$A,$B88,Data!$C:$C,K$76,Data!$B:$B,$B$76) -> 268.0192747 | L88: =SUMIFS(Data!$D:$D,Data!$A:$A,$B88,Data!$C:$C,L$76,Data!$B:$B,$B$76) -> 206.1138242 | M88: =SUMIFS(Data!$D:$D,Data!$A:$A,$B88,Data!$C:$C,M$76,Data!$B:$B,$B$76) -> 204.946044
B89: United Energy | C89: =SUMIFS(Data!$D:$D,Data!$A:$A,$B89,Data!$C:$C,C$76,Data!$B:$B,$B$76) -> 204.2862826 | D89: =SUMIFS(Data!$D:$D,Data!$A:$A,$B89,Data!$C:$C,D$76,Data!$B:$B,$B$76) -> 233.5838979 | E89: =SUMIFS(Data!$D:$D,Data!$A:$A,$B89,Data!$C:$C,E$76,Data!$B:$B,$B$76) -> 148.1959008 | F89: =SUMIFS(Data!$D:$D,Data!$A:$A,$B89,Data!$C:$C,F$76,Data!$B:$B,$B$76) -> 224.121081 | G89: =SUMIFS(Data!$D:$D,Data!$A:$A,$B89,Data!$C:$C,G$76,Data!$B:$B,$B$76) -> 239.4779847 | H89: =SUMIFS(Data!$D:$D,Data!$A:$A,$B89,Data!$C:$C,H$76,Data!$B:$B,$B$76) -> 239.1220054 | I89: =SUMIFS(Data!$D:$D,Data!$A:$A,$B89,Data!$C:$C,I$76,Data!$B:$B,$B$76) -> 285.6552407 | J89: =SUMIFS(Data!$D:$D,Data!$A:$A,$B89,Data!$C:$C,J$76,Data!$B:$B,$B$76) -> 214.4765806 | K89: =SUMIFS(Data!$D:$D,Data!$A:$A,$B89,Data!$C:$C,K$76,Data!$B:$B,$B$76) -> 225.9702368 | L89: =SUMIFS(Data!$D:$D,Data!$A:$A,$B89,Data!$C:$C,L$76,Data!$B:$B,$B$76) -> 247.5985066 | M89: =SUMIFS(Data!$D:$D,Data!$A:$A,$B89,Data!$C:$C,M$76,Data!$B:$B,$B$76) -> 194.9356134
B90: Power and Water Corporation | I90: =SUMIFS(Data!$D:$D,Data!$A:$A,$B90,Data!$C:$C,I$76,Data!$B:$B,$B$76) -> 321.0168422 | J90: =SUMIFS(Data!$D:$D,Data!$A:$A,$B90,Data!$C:$C,J$76,Data!$B:$B,$B$76) -> 336.5637887 | K90: =SUMIFS(Data!$D:$D,Data!$A:$A,$B90,Data!$C:$C,K$76,Data!$B:$B,$B$76) -> 427.6338728 | L90: =SUMIFS(Data!$D:$D,Data!$A:$A,$B90,Data!$C:$C,L$76,Data!$B:$B,$B$76) -> 165.0134961 | M90: =SUMIFS(Data!$D:$D,Data!$A:$A,$B90,Data!$C:$C,M$76,Data!$B:$B,$B$76) -> 367.4049584

Sheet Summary - TNSP
B2: TNSP Profitability Reporting - Summary results
B4: Returns from indexation of the RAB | C4: Exclusive
B6: Return on assets
B8: =IF($C$4="Inclusive",Inputs!G7,Inputs!G8) -> Real return on assets | C8: 2014 | D8: 2015 | E8: 2016 | F8: 2017 | G8: 2018 | H8: 2019 | I8: 2020 | J8: 2021 | K8: 2022 | L8: 2023 | M8: 2024
B9: TransGrid | C9: =SUMIFS(Data!$D:$D,Data!$A:$A,$B9,Data!$C:$C,C$8,Data!$B:$B,$B$8) -> 0.08318772045 | D9: =SUMIFS(Data!$D:$D,Data!$A:$A,$B9,Data!$C:$C,D$8,Data!$B:$B,$B$8) -> 0.0714825524 | E9: =SUMIFS(Data!$D:$D,Data!$A:$A,$B9,Data!$C:$C,E$8,Data!$B:$B,$B$8) -> 0.05030039041 | F9: =SUMIFS(Data!$D:$D,Data!$A:$A,$B9,Data!$C:$C,F$8,Data!$B:$B,$B$8) -> 0.043590043 | G9: =SUMIFS(Data!$D:$D,Data!$A:$A,$B9,Data!$C:$C,G$8,Data!$B:$B,$B$8) -> 0.04602621335 | H9: =SUMIFS(Data!$D:$D,Data!$A:$A,$B9,Data!$C:$C,H$8,Data!$B:$B,$B$8) -> 0.05243156653 | I9: =SUMIFS(Data!$D:$D,Data!$A:$A,$B9,Data!$C:$C,I$8,Data!$B:$B,$B$8) -> 0.04927097702 | J9: =SUMIFS(Data!$D:$D,Data!$A:$A,$B9,Data!$C:$C,J$8,Data!$B:$B,$B$8) -> 0.0485849727 | K9: =SUMIFS(Data!$D:$D,Data!$A:$A,$B9,Data!$C:$C,K$8,Data!$B:$B,$B$8) -> 0.04269892792 | L9: =SUMIFS(Data!$D:$D,Data!$A:$A,$B9,Data!$C:$C,L$8,Data!$B:$B,$B$8) -> 0.04560707287 | M9: =SUMIFS(Data!$D:$D,Data!$A:$A,$B9,Data!$C:$C,M$8,Data!$B:$B,$B$8) -> 0.03843118366
B10: Powerlink | C10: =SUMIFS(Data!$D:$D,Data!$A:$A,$B10,Data!$C:$C,C$8,Data!$B:$B,$B$8) -> 0.06990218996 | D10: =SUMIFS(Data!$D:$D,Data!$A:$A,$B10,Data!$C:$C,D$8,Data!$B:$B,$B$8) -> 0.05543915979 | E10: =SUMIFS(Data!$D:$D,Data!$A:$A,$B10,Data!$C:$C,E$8,Data!$B:$B,$B$8) -> 0.06850579283 | F10: =SUMIFS(Data!$D:$D,Data!$A:$A,$B10,Data!$C:$C,F$8,Data!$B:$B,$B$8) -> 0.09325036784 | G10: =SUMIFS(Data!$D:$D,Data!$A:$A,$B10,Data!$C:$C,G$8,Data!$B:$B,$B$8) -> 0.05025480403 | H10: =SUMIFS(Data!$D:$D,Data!$A:$A,$B10,Data!$C:$C,H$8,Data!$B:$B,$B$8) -> 0.04019230495 | I10: =SUMIFS(Data!$D:$D,Data!$A:$A,$B10,Data!$C:$C,I$8,Data!$B:$B,$B$8) -> 0.03179112362 | J10: =SUMIFS(Data!$D:$D,Data!$A:$A,$B10,Data!$C:$C,J$8,Data!$B:$B,$B$8) -> 0.03026884168 | K10: =SUMIFS(Data!$D:$D,Data!$A:$A,$B10,Data!$C:$C,K$8,Data!$B:$B,$B$8) -> 0.04646802332 | L10: =SUMIFS(Data!$D:$D,Data!$A:$A,$B10,Data!$C:$C,L$8,Data!$B:$B,$B$8) -> 0.02470563001 | M10: =SUMIFS(Data!$D:$D,Data!$A:$A,$B10,Data!$C:$C,M$8,Data!$B:$B,$B$8) -> 0.01015964058
B11: ElectraNet | C11: =SUMIFS(Data!$D:$D,Data!$A:$A,$B11,Data!$C:$C,C$8,Data!$B:$B,$B$8) -> 0.06072106303 | D11: =SUMIFS(Data!$D:$D,Data!$A:$A,$B11,Data!$C:$C,D$8,Data!$B:$B,$B$8) -> 0.05913515198 | E11: =SUMIFS(Data!$D:$D,Data!$A:$A,$B11,Data!$C:$C,E$8,Data!$B:$B,$B$8) -> 0.06103169425 | F11: =SUMIFS(Data!$D:$D,Data!$A:$A,$B11,Data!$C:$C,F$8,Data!$B:$B,$B$8) -> 0.05805647314 | G11: =SUMIFS(Data!$D:$D,Data!$A:$A,$B11,Data!$C:$C,G$8,Data!$B:$B,$B$8) -> 0.06152110951 | H11: =SUMIFS(Data!$D:$D,Data!$A:$A,$B11,Data!$C:$C,H$8,Data!$B:$B,$B$8) -> 0.04238520959 | I11: =SUMIFS(Data!$D:$D,Data!$A:$A,$B11,Data!$C:$C,I$8,Data!$B:$B,$B$8) -> 0.03332346736 | J11: =SUMIFS(Data!$D:$D,Data!$A:$A,$B11,Data!$C:$C,J$8,Data!$B:$B,$B$8) -> 0.03211083077 | K11: =SUMIFS(Data!$D:$D,Data!$A:$A,$B11,Data!$C:$C,K$8,Data!$B:$B,$B$8) -> 0.03099943875 | L11: =SUMIFS(Data!$D:$D,Data!$A:$A,$B11,Data!$C:$C,L$8,Data!$B:$B,$B$8) -> 0.03231571034 | M11: =SUMIFS(Data!$D:$D,Data!$A:$A,$B11,Data!$C:$C,M$8,Data!$B:$B,$B$8) -> 0.02984557977
B12: TasNetworks (Transmission) | C12: =SUMIFS(Data!$D:$D,Data!$A:$A,$B12,Data!$C:$C,C$8,Data!$B:$B,$B$8) -> 0.07769561428 | D12: =SUMIFS(Data!$D:$D,Data!$A:$A,$B12,Data!$C:$C,D$8,Data!$B:$B,$B$8) -> 0.07307124837 | E12: =SUMIFS(Data!$D:$D,Data!$A:$A,$B12,Data!$C:$C,E$8,Data!$B:$B,$B$8) -> 0.06808526757 | F12: =SUMIFS(Data!$D:$D,Data!$A:$A,$B12,Data!$C:$C,F$8,Data!$B:$B,$B$8) -> 0.05809294302 | G12: =SUMIFS(Data!$D:$D,Data!$A:$A,$B12,Data!$C:$C,G$8,Data!$B:$B,$B$8) -> 0.06192186308 | H12: =SUMIFS(Data!$D:$D,Data!$A:$A,$B12,Data!$C:$C,H$8,Data!$B:$B,$B$8) -> 0.05011415626 | I12: =SUMIFS(Data!$D:$D,Data!$A:$A,$B12,Data!$C:$C,I$8,Data!$B:$B,$B$8) -> 0.05010581059 | J12: =SUMIFS(Data!$D:$D,Data!$A:$A,$B12,Data!$C:$C,J$8,Data!$B:$B,$B$8) -> 0.0355423018 | K12: =SUMIFS(Data!$D:$D,Data!$A:$A,$B12,Data!$C:$C,K$8,Data!$B:$B,$B$8) -> 0.03990735251 | L12: =SUMIFS(Data!$D:$D,Data!$A:$A,$B12,Data!$C:$C,L$8,Data!$B:$B,$B$8) -> 0.04002121317 | M12: =SUMIFS(Data!$D:$D,Data!$A:$A,$B12,Data!$C:$C,M$8,Data!$B:$B,$B$8) -> 0.02266555888
B13: AusNet Services (Transmission) | C13: =SUMIFS(Data!$D:$D,Data!$A:$A,$B13,Data!$C:$C,C$8,Data!$B:$B,$B$8) -> 0.1015475718 | D13: =SUMIFS(Data!$D:$D,Data!$A:$A,$B13,Data!$C:$C,D$8,Data!$B:$B,$B$8) -> 0.08025376395 | E13: =SUMIFS(Data!$D:$D,Data!$A:$A,$B13,Data!$C:$C,E$8,Data!$B:$B,$B$8) -> 0.07274251447 | F13: =SUMIFS(Data!$D:$D,Data!$A:$A,$B13,Data!$C:$C,F$8,Data!$B:$B,$B$8) -> 0.06902775697 | G13: =SUMIFS(Data!$D:$D,Data!$A:$A,$B13,Data!$C:$C,G$8,Data!$B:$B,$B$8) -> 0.059844063 | H13: =SUMIFS(Data!$D:$D,Data!$A:$A,$B13,Data!$C:$C,H$8,Data!$B:$B,$B$8) -> 0.06297892726 | I13: =SUMIFS(Data!$D:$D,Data!$A:$A,$B13,Data!$C:$C,I$8,Data!$B:$B,$B$8) -> 0.06261643753 | J13: =SUMIFS(Data!$D:$D,Data!$A:$A,$B13,Data!$C:$C,J$8,Data!$B:$B,$B$8) -> 0.06164643072 | K13: =SUMIFS(Data!$D:$D,Data!$A:$A,$B13,Data!$C:$C,K$8,Data!$B:$B,$B$8) -> 0.06017278638 | L13: =SUMIFS(Data!$D:$D,Data!$A:$A,$B13,Data!$C:$C,L$8,Data!$B:$B,$B$8) -> 0.04333823358 | M13: =SUMIFS(Data!$D:$D,Data!$A:$A,$B13,Data!$C:$C,M$8,Data!$B:$B,$B$8) -> 0.04323550506
B15: =IF(C4 = "Inclusive", Inputs!G3,Inputs!G4) -> Allowed real rate of return | C15: 2014 | D15: 2015 | E15: 2016 | F15: 2017 | G15: 2018 | H15: 2019 | I15: 2020 | J15: 2021 | K15: 2022 | L15: 2023 | M15: 2024
B16: TransGrid | C16: =SUMIFS(Data!$D:$D,Data!$A:$A,$B16,Data!$C:$C,C$15,Data!$B:$B,$B$15) -> 0.08035370901 | D16: =SUMIFS(Data!$D:$D,Data!$A:$A,$B16,Data!$C:$C,D$15,Data!$B:$B,$B$15) -> 0.04883262119 | E16: =SUMIFS(Data!$D:$D,Data!$A:$A,$B16,Data!$C:$C,E$15,Data!$B:$B,$B$15) -> 0.04791867987 | F16: =SUMIFS(Data!$D:$D,Data!$A:$A,$B16,Data!$C:$C,F$15,Data!$B:$B,$B$15) -> 0.0471209552 | G16: =SUMIFS(Data!$D:$D,Data!$A:$A,$B16,Data!$C:$C,G$15,Data!$B:$B,$B$15) -> 0.04607472846 | H16: =SUMIFS(Data!$D:$D,Data!$A:$A,$B16,Data!$C:$C,H$15,Data!$B:$B,$B$15) -> 0.04594881632 | I16: =SUMIFS(Data!$D:$D,Data!$A:$A,$B16,Data!$C:$C,I$15,Data!$B:$B,$B$15) -> 0.04478073855 | J16: =SUMIFS(Data!$D:$D,Data!$A:$A,$B16,Data!$C:$C,J$15,Data!$B:$B,$B$15) -> 0.04268879212 | K16: =SUMIFS(Data!$D:$D,Data!$A:$A,$B16,Data!$C:$C,K$15,Data!$B:$B,$B$15) -> 0.04003699804 | L16: =SUMIFS(Data!$D:$D,Data!$A:$A,$B16,Data!$C:$C,L$15,Data!$B:$B,$B$15) -> 0.03826961151 | M16: =SUMIFS(Data!$D:$D,Data!$A:$A,$B16,Data!$C:$C,M$15,Data!$B:$B,$B$15) -> 0.03030545572
B17: Powerlink | C17: =SUMIFS(Data!$D:$D,Data!$A:$A,$B17,Data!$C:$C,C$15,Data!$B:$B,$B$15) -> 0.06127106378 | D17: =SUMIFS(Data!$D:$D,Data!$A:$A,$B17,Data!$C:$C,D$15,Data!$B:$B,$B$15) -> 0.06127106378 | E17: =SUMIFS(Data!$D:$D,Data!$A:$A,$B17,Data!$C:$C,E$15,Data!$B:$B,$B$15) -> 0.06127106378 | F17: =SUMIFS(Data!$D:$D,Data!$A:$A,$B17,Data!$C:$C,F$15,Data!$B:$B,$B$15) -> 0.06127106378 | G17: =SUMIFS(Data!$D:$D,Data!$A:$A,$B17,Data!$C:$C,G$15,Data!$B:$B,$B$15) -> 0.03966828267 | H17: =SUMIFS(Data!$D:$D,Data!$A:$A,$B17,Data!$C:$C,H$15,Data!$B:$B,$B$15) -> 0.03932050664 | I17: =SUMIFS(Data!$D:$D,Data!$A:$A,$B17,Data!$C:$C,I$15,Data!$B:$B,$B$15) -> 0.03909835522 | J17: =SUMIFS(Data!$D:$D,Data!$A:$A,$B17,Data!$C:$C,J$15,Data!$B:$B,$B$15) -> 0.03795675923 | K17: =SUMIFS(Data!$D:$D,Data!$A:$A,$B17,Data!$C:$C,K$15,Data!$B:$B,$B$15) -> 0.03627206695 | L17: =SUMIFS(Data!$D:$D,Data!$A:$A,$B17,Data!$C:$C,L$15,Data!$B:$B,$B$15) -> 0.02619772836 | M17: =SUMIFS(Data!$D:$D,Data!$A:$A,$B17,Data!$C:$C,M$15,Data!$B:$B,$B$15) -> 0.02718224509
B18: ElectraNet | C18: =SUMIFS(Data!$D:$D,Data!$A:$A,$B18,Data!$C:$C,C$15,Data!$B:$B,$B$15) -> 0.05179963023 | D18: =SUMIFS(Data!$D:$D,Data!$A:$A,$B18,Data!$C:$C,D$15,Data!$B:$B,$B$15) -> 0.05179963023 | E18: =SUMIFS(Data!$D:$D,Data!$A:$A,$B18,Data!$C:$C,E$15,Data!$B:$B,$B$15) -> 0.05179963023 | F18: =SUMIFS(Data!$D:$D,Data!$A:$A,$B18,Data!$C:$C,F$15,Data!$B:$B,$B$15) -> 0.05179963023 | G18: =SUMIFS(Data!$D:$D,Data!$A:$A,$B18,Data!$C:$C,G$15,Data!$B:$B,$B$15) -> 0.05179963023 | H18: =SUMIFS(Data!$D:$D,Data!$A:$A,$B18,Data!$C:$C,H$15,Data!$B:$B,$B$15) -> 0.03622994217 | I18: =SUMIFS(Data!$D:$D,Data!$A:$A,$B18,Data!$C:$C,I$15,Data!$B:$B,$B$15) -> 0.03613246158 | J18: =SUMIFS(Data!$D:$D,Data!$A:$A,$B18,Data!$C:$C,J$15,Data!$B:$B,$B$15) -> 0.03509207917 | K18: =SUMIFS(Data!$D:$D,Data!$A:$A,$B18,Data!$C:$C,K$15,Data!$B:$B,$B$15) -> 0.03383843748 | L18: =SUMIFS(Data!$D:$D,Data!$A:$A,$B18,Data!$C:$C,L$15,Data!$B:$B,$B$15) -> 0.03363136767 | M18: =SUMIFS(Data!$D:$D,Data!$A:$A,$B18,Data!$C:$C,M$15,Data!$B:$B,$B$15) -> 0.02779592906
B19: TasNetworks (Transmission) | C19: =SUMIFS(Data!$D:$D,Data!$A:$A,$B19,Data!$C:$C,C$15,Data!$B:$B,$B$15) -> 0.0793437726 | D19: =SUMIFS(Data!$D:$D,Data!$A:$A,$B19,Data!$C:$C,D$15,Data!$B:$B,$B$15) -> 0.04394307268 | E19: =SUMIFS(Data!$D:$D,Data!$A:$A,$B19,Data!$C:$C,E$15,Data!$B:$B,$B$15) -> 0.04285790147 | F19: =SUMIFS(Data!$D:$D,Data!$A:$A,$B19,Data!$C:$C,F$15,Data!$B:$B,$B$15) -> 0.04250573926 | G19: =SUMIFS(Data!$D:$D,Data!$A:$A,$B19,Data!$C:$C,G$15,Data!$B:$B,$B$15) -> 0.04193558222 | H19: =SUMIFS(Data!$D:$D,Data!$A:$A,$B19,Data!$C:$C,H$15,Data!$B:$B,$B$15) -> 0.04104590711 | I19: =SUMIFS(Data!$D:$D,Data!$A:$A,$B19,Data!$C:$C,I$15,Data!$B:$B,$B$15) -> 0.03242708106 | J19: =SUMIFS(Data!$D:$D,Data!$A:$A,$B19,Data!$C:$C,J$15,Data!$B:$B,$B$15) -> 0.03034432464 | K19: =SUMIFS(Data!$D:$D,Data!$A:$A,$B19,Data!$C:$C,K$15,Data!$B:$B,$B$15) -> 0.02818911996 | L19: =SUMIFS(Data!$D:$D,Data!$A:$A,$B19,Data!$C:$C,L$15,Data!$B:$B,$B$15) -> 0.0269770019 | M19: =SUMIFS(Data!$D:$D,Data!$A:$A,$B19,Data!$C:$C,M$15,Data!$B:$B,$B$15) -> 0.02713812192
B20: AusNet Services (Transmission) | C20: =SUMIFS(Data!$D:$D,Data!$A:$A,$B20,Data!$C:$C,C$15,Data!$B:$B,$B$15) -> 0.07663226368 | D20: =SUMIFS(Data!$D:$D,Data!$A:$A,$B20,Data!$C:$C,D$15,Data!$B:$B,$B$15) -> 0.05615186803 | E20: =SUMIFS(Data!$D:$D,Data!$A:$A,$B20,Data!$C:$C,E$15,Data!$B:$B,$B$15) -> 0.05615186803 | F20: =SUMIFS(Data!$D:$D,Data!$A:$A,$B20,Data!$C:$C,F$15,Data!$B:$B,$B$15) -> 0.05615186803 | G20: =SUMIFS(Data!$D:$D,Data!$A:$A,$B20,Data!$C:$C,G$15,Data!$B:$B,$B$15) -> 0.03720211243 | H20: =SUMIFS(Data!$D:$D,Data!$A:$A,$B20,Data!$C:$C,H$15,Data!$B:$B,$B$15) -> 0.03726127945 | I20: =SUMIFS(Data!$D:$D,Data!$A:$A,$B20,Data!$C:$C,I$15,Data!$B:$B,$B$15) -> 0.03715729306 | J20: =SUMIFS(Data!$D:$D,Data!$A:$A,$B20,Data!$C:$C,J$15,Data!$B:$B,$B$15) -> 0.03630949232 | K20: =SUMIFS(Data!$D:$D,Data!$A:$A,$B20,Data!$C:$C,K$15,Data!$B:$B,$B$15) -> 0.03503025499 | L20: =SUMIFS(Data!$D:$D,Data!$A:$A,$B20,Data!$C:$C,L$15,Data!$B:$B,$B$15) -> 0.023539099 | M20: =SUMIFS(Data!$D:$D,Data!$A:$A,$B20,Data!$C:$C,M$15,Data!$B:$B,$B$15) -> 0.02305754358
B22: Return on regulated equity
B24: =IF($C$4="Inclusive",Inputs!G11,Inputs!G12) -> Real return on regulated equity | C24: 2014 | D24: 2015 | E24: 2016 | F24: 2017 | G24: 2018 | H24: 2019 | I24: 2020 | J24: 2021 | K24: 2022 | L24: 2023 | M24: 2024
B25: TransGrid | C25: =SUMIFS(Data!$D:$D,Data!$A:$A,$B25,Data!$C:$C,C$24,Data!$B:$B,$B$24) -> 0.0982958764 | D25: =SUMIFS(Data!$D:$D,Data!$A:$A,$B25,Data!$C:$C,D$24,Data!$B:$B,$B$24) -> 0.07499518909 | E25: =SUMIFS(Data!$D:$D,Data!$A:$A,$B25,Data!$C:$C,E$24,Data!$B:$B,$B$24) -> 0.06222594231 | F25: =SUMIFS(Data!$D:$D,Data!$A:$A,$B25,Data!$C:$C,F$24,Data!$B:$B,$B$24) -> 0.06216569974 | G25: =SUMIFS(Data!$D:$D,Data!$A:$A,$B25,Data!$C:$C,G$24,Data!$B:$B,$B$24) -> 0.06588040162 | H25: =SUMIFS(Data!$D:$D,Data!$A:$A,$B25,Data!$C:$C,H$24,Data!$B:$B,$B$24) -> 0.08763100025 | I25: =SUMIFS(Data!$D:$D,Data!$A:$A,$B25,Data!$C:$C,I$24,Data!$B:$B,$B$24) -> 0.0826231832 | J25: =SUMIFS(Data!$D:$D,Data!$A:$A,$B25,Data!$C:$C,J$24,Data!$B:$B,$B$24) -> 0.06655941799 | K25: =SUMIFS(Data!$D:$D,Data!$A:$A,$B25,Data!$C:$C,K$24,Data!$B:$B,$B$24) -> 0.09111782932 | L25: =SUMIFS(Data!$D:$D,Data!$A:$A,$B25,Data!$C:$C,L$24,Data!$B:$B,$B$24) -> 0.158871996 | M25: =SUMIFS(Data!$D:$D,Data!$A:$A,$B25,Data!$C:$C,M$24,Data!$B:$B,$B$24) -> 0.07150754785
B26: Powerlink | C26: =SUMIFS(Data!$D:$D,Data!$A:$A,$B26,Data!$C:$C,C$24,Data!$B:$B,$B$24) -> 0.107518825 | D26: =SUMIFS(Data!$D:$D,Data!$A:$A,$B26,Data!$C:$C,D$24,Data!$B:$B,$B$24) -> 0.05898246442 | E26: =SUMIFS(Data!$D:$D,Data!$A:$A,$B26,Data!$C:$C,E$24,Data!$B:$B,$B$24) -> 0.07701903217 | F26: =SUMIFS(Data!$D:$D,Data!$A:$A,$B26,Data!$C:$C,F$24,Data!$B:$B,$B$24) -> 0.1747149813 | G26: =SUMIFS(Data!$D:$D,Data!$A:$A,$B26,Data!$C:$C,G$24,Data!$B:$B,$B$24) -> 0.08499219114 | H26: =SUMIFS(Data!$D:$D,Data!$A:$A,$B26,Data!$C:$C,H$24,Data!$B:$B,$B$24) -> 0.05773158531 | I26: =SUMIFS(Data!$D:$D,Data!$A:$A,$B26,Data!$C:$C,I$24,Data!$B:$B,$B$24) -> 0.04043897145 | J26: =SUMIFS(Data!$D:$D,Data!$A:$A,$B26,Data!$C:$C,J$24,Data!$B:$B,$B$24) -> 0.021781257 | K26: =SUMIFS(Data!$D:$D,Data!$A:$A,$B26,Data!$C:$C,K$24,Data!$B:$B,$B$24) -> 0.1085131464 | L26: =SUMIFS(Data!$D:$D,Data!$A:$A,$B26,Data!$C:$C,L$24,Data!$B:$B,$B$24) -> 0.1273978041 | M26: =SUMIFS(Data!$D:$D,Data!$A:$A,$B26,Data!$C:$C,M$24,Data!$B:$B,$B$24) -> 0.02581090798
B27: ElectraNet | C27: =SUMIFS(Data!$D:$D,Data!$A:$A,$B27,Data!$C:$C,C$24,Data!$B:$B,$B$24) -> 0.1008850533 | D27: =SUMIFS(Data!$D:$D,Data!$A:$A,$B27,Data!$C:$C,D$24,Data!$B:$B,$B$24) -> 0.07036821488 | E27: =SUMIFS(Data!$D:$D,Data!$A:$A,$B27,Data!$C:$C,E$24,Data!$B:$B,$B$24) -> 0.07725960638 | F27: =SUMIFS(Data!$D:$D,Data!$A:$A,$B27,Data!$C:$C,F$24,Data!$B:$B,$B$24) -> 0.08019697098 | G27: =SUMIFS(Data!$D:$D,Data!$A:$A,$B27,Data!$C:$C,G$24,Data!$B:$B,$B$24) -> 0.08588596116 | H27: =SUMIFS(Data!$D:$D,Data!$A:$A,$B27,Data!$C:$C,H$24,Data!$B:$B,$B$24) -> 0.0572459696 | I27: =SUMIFS(Data!$D:$D,Data!$A:$A,$B27,Data!$C:$C,I$24,Data!$B:$B,$B$24) -> 0.03772447396 | J27: =SUMIFS(Data!$D:$D,Data!$A:$A,$B27,Data!$C:$C,J$24,Data!$B:$B,$B$24) -> 0.02306479454 | K27: =SUMIFS(Data!$D:$D,Data!$A:$A,$B27,Data!$C:$C,K$24,Data!$B:$B,$B$24) -> 0.06431088633 | L27: =SUMIFS(Data!$D:$D,Data!$A:$A,$B27,Data!$C:$C,L$24,Data!$B:$B,$B$24) -> 0.1547535906 | M27: =SUMIFS(Data!$D:$D,Data!$A:$A,$B27,Data!$C:$C,M$24,Data!$B:$B,$B$24) -> 0.06611351041
B28: TasNetworks (Transmission) | C28: =SUMIFS(Data!$D:$D,Data!$A:$A,$B28,Data!$C:$C,C$24,Data!$B:$B,$B$24) -> 0.09475748678 | D28: =SUMIFS(Data!$D:$D,Data!$A:$A,$B28,Data!$C:$C,D$24,Data!$B:$B,$B$24) -> 0.08200128578 | E28: =SUMIFS(Data!$D:$D,Data!$A:$A,$B28,Data!$C:$C,E$24,Data!$B:$B,$B$24) -> 0.0769985119 | F28: =SUMIFS(Data!$D:$D,Data!$A:$A,$B28,Data!$C:$C,F$24,Data!$B:$B,$B$24) -> 0.0781270408 | G28: =SUMIFS(Data!$D:$D,Data!$A:$A,$B28,Data!$C:$C,G$24,Data!$B:$B,$B$24) -> 0.09662200309 | H28: =SUMIFS(Data!$D:$D,Data!$A:$A,$B28,Data!$C:$C,H$24,Data!$B:$B,$B$24) -> 0.07241979567 | I28: =SUMIFS(Data!$D:$D,Data!$A:$A,$B28,Data!$C:$C,I$24,Data!$B:$B,$B$24) -> 0.08475998491 | J28: =SUMIFS(Data!$D:$D,Data!$A:$A,$B28,Data!$C:$C,J$24,Data!$B:$B,$B$24) -> 0.03947207318 | K28: =SUMIFS(Data!$D:$D,Data!$A:$A,$B28,Data!$C:$C,K$24,Data!$B:$B,$B$24) -> 0.09141248601 | L28: =SUMIFS(Data!$D:$D,Data!$A:$A,$B28,Data!$C:$C,L$24,Data!$B:$B,$B$24) -> 0.1489720369 | M28: =SUMIFS(Data!$D:$D,Data!$A:$A,$B28,Data!$C:$C,M$24,Data!$B:$B,$B$24) -> 0.05268029656
B29: AusNet Services (Transmission) | C29: =SUMIFS(Data!$D:$D,Data!$A:$A,$B29,Data!$C:$C,C$24,Data!$B:$B,$B$24) -> 0.2820462566 | D29: =SUMIFS(Data!$D:$D,Data!$A:$A,$B29,Data!$C:$C,D$24,Data!$B:$B,$B$24) -> 0.1944065883 | E29: =SUMIFS(Data!$D:$D,Data!$A:$A,$B29,Data!$C:$C,E$24,Data!$B:$B,$B$24) -> 0.1789292585 | F29: =SUMIFS(Data!$D:$D,Data!$A:$A,$B29,Data!$C:$C,F$24,Data!$B:$B,$B$24) -> 0.1613757131 | G29: =SUMIFS(Data!$D:$D,Data!$A:$A,$B29,Data!$C:$C,G$24,Data!$B:$B,$B$24) -> 0.09808750073 | H29: =SUMIFS(Data!$D:$D,Data!$A:$A,$B29,Data!$C:$C,H$24,Data!$B:$B,$B$24) -> 0.1048900929 | I29: =SUMIFS(Data!$D:$D,Data!$A:$A,$B29,Data!$C:$C,I$24,Data!$B:$B,$B$24) -> 0.09844787976 | J29: =SUMIFS(Data!$D:$D,Data!$A:$A,$B29,Data!$C:$C,J$24,Data!$B:$B,$B$24) -> 0.08481133859 | K29: =SUMIFS(Data!$D:$D,Data!$A:$A,$B29,Data!$C:$C,K$24,Data!$B:$B,$B$24) -> 0.1464331194 | L29: =SUMIFS(Data!$D:$D,Data!$A:$A,$B29,Data!$C:$C,L$24,Data!$B:$B,$B$24) -> 0.1834897448 | M29: =SUMIFS(Data!$D:$D,Data!$A:$A,$B29,Data!$C:$C,M$24,Data!$B:$B,$B$24) -> 0.1543548669
B31: =IF(C4="Inclusive",Inputs!$G$6,Inputs!$G$5) -> Allowed nominal return on equity | C31: 2014 | D31: 2015 | E31: 2016 | F31: 2017 | G31: 2018 | H31: 2019 | I31: 2020 | J31: 2021 | K31: 2022 | L31: 2023 | M31: 2024
B32: TransGrid | C32: =SUMIFS(Data!$D:$D,Data!$A:$A,$B32,Data!$C:$C,C$31,Data!$B:$B,$B$31) -> 0.1185576237 | D32: =SUMIFS(Data!$D:$D,Data!$A:$A,$B32,Data!$C:$C,D$31,Data!$B:$B,$B$31) -> 0.071 | E32: =SUMIFS(Data!$D:$D,Data!$A:$A,$B32,Data!$C:$C,E$31,Data!$B:$B,$B$31) -> 0.071 | F32: =SUMIFS(Data!$D:$D,Data!$A:$A,$B32,Data!$C:$C,F$31,Data!$B:$B,$B$31) -> 0.071 | G32: =SUMIFS(Data!$D:$D,Data!$A:$A,$B32,Data!$C:$C,G$31,Data!$B:$B,$B$31) -> 0.071 | H32: =SUMIFS(Data!$D:$D,Data!$A:$A,$B32,Data!$C:$C,H$31,Data!$B:$B,$B$31) -> 0.074 | I32: =SUMIFS(Data!$D:$D,Data!$A:$A,$B32,Data!$C:$C,I$31,Data!$B:$B,$B$31) -> 0.074 | J32: =SUMIFS(Data!$D:$D,Data!$A:$A,$B32,Data!$C:$C,J$31,Data!$B:$B,$B$31) -> 0.074 | K32: =SUMIFS(Data!$D:$D,Data!$A:$A,$B32,Data!$C:$C,K$31,Data!$B:$B,$B$31) -> 0.074 | L32: =SUMIFS(Data!$D:$D,Data!$A:$A,$B32,Data!$C:$C,L$31,Data!$B:$B,$B$31) -> 0.074 | M32: =SUMIFS(Data!$D:$D,Data!$A:$A,$B32,Data!$C:$C,M$31,Data!$B:$B,$B$31) -> 0.07480583578
B33: Powerlink | C33: =SUMIFS(Data!$D:$D,Data!$A:$A,$B33,Data!$C:$C,C$31,Data!$B:$B,$B$31) -> 0.093688 | D33: =SUMIFS(Data!$D:$D,Data!$A:$A,$B33,Data!$C:$C,D$31,Data!$B:$B,$B$31) -> 0.093688 | E33: =SUMIFS(Data!$D:$D,Data!$A:$A,$B33,Data!$C:$C,E$31,Data!$B:$B,$B$31) -> 0.093688 | F33: =SUMIFS(Data!$D:$D,Data!$A:$A,$B33,Data!$C:$C,F$31,Data!$B:$B,$B$31) -> 0.093688 | G33: =SUMIFS(Data!$D:$D,Data!$A:$A,$B33,Data!$C:$C,G$31,Data!$B:$B,$B$31) -> 0.074 | H33: =SUMIFS(Data!$D:$D,Data!$A:$A,$B33,Data!$C:$C,H$31,Data!$B:$B,$B$31) -> 0.074 | I33: =SUMIFS(Data!$D:$D,Data!$A:$A,$B33,Data!$C:$C,I$31,Data!$B:$B,$B$31) -> 0.074 | J33: =SUMIFS(Data!$D:$D,Data!$A:$A,$B33,Data!$C:$C,J$31,Data!$B:$B,$B$31) -> 0.074 | K33: =SUMIFS(Data!$D:$D,Data!$A:$A,$B33,Data!$C:$C,K$31,Data!$B:$B,$B$31) -> 0.074 | L33: =SUMIFS(Data!$D:$D,Data!$A:$A,$B33,Data!$C:$C,L$31,Data!$B:$B,$B$31) -> 0.06160047913 | M33: =SUMIFS(Data!$D:$D,Data!$A:$A,$B33,Data!$C:$C,M$31,Data!$B:$B,$B$31) -> 0.06160047913
B34: ElectraNet | C34: =SUMIFS(Data!$D:$D,Data!$A:$A,$B34,Data!$C:$C,C$31,Data!$B:$B,$B$31) -> 0.0871 | D34: =SUMIFS(Data!$D:$D,Data!$A:$A,$B34,Data!$C:$C,D$31,Data!$B:$B,$B$31) -> 0.0871 | E34: =SUMIFS(Data!$D:$D,Data!$A:$A,$B34,Data!$C:$C,E$31,Data!$B:$B,$B$31) -> 0.0871 | F34: =SUMIFS(Data!$D:$D,Data!$A:$A,$B34,Data!$C:$C,F$31,Data!$B:$B,$B$31) -> 0.0871 | G34: =SUMIFS(Data!$D:$D,Data!$A:$A,$B34,Data!$C:$C,G$31,Data!$B:$B,$B$31) -> 0.0871 | H34: =SUMIFS(Data!$D:$D,Data!$A:$A,$B34,Data!$C:$C,H$31,Data!$B:$B,$B$31) -> 0.074 | I34: =SUMIFS(Data!$D:$D,Data!$A:$A,$B34,Data!$C:$C,I$31,Data!$B:$B,$B$31) -> 0.074 | J34: =SUMIFS(Data!$D:$D,Data!$A:$A,$B34,Data!$C:$C,J$31,Data!$B:$B,$B$31) -> 0.074 | K34: =SUMIFS(Data!$D:$D,Data!$A:$A,$B34,Data!$C:$C,K$31,Data!$B:$B,$B$31) -> 0.074 | L34: =SUMIFS(Data!$D:$D,Data!$A:$A,$B34,Data!$C:$C,L$31,Data!$B:$B,$B$31) -> 0.074 | M34: =SUMIFS(Data!$D:$D,Data!$A:$A,$B34,Data!$C:$C,M$31,Data!$B:$B,$B$31) -> 0.07468256431
B35: TasNetworks (Transmission) | C35: =SUMIFS(Data!$D:$D,Data!$A:$A,$B35,Data!$C:$C,C$31,Data!$B:$B,$B$31) -> 0.1179930993 | D35: =SUMIFS(Data!$D:$D,Data!$A:$A,$B35,Data!$C:$C,D$31,Data!$B:$B,$B$31) -> 0.071 | E35: =SUMIFS(Data!$D:$D,Data!$A:$A,$B35,Data!$C:$C,E$31,Data!$B:$B,$B$31) -> 0.071 | F35: =SUMIFS(Data!$D:$D,Data!$A:$A,$B35,Data!$C:$C,F$31,Data!$B:$B,$B$31) -> 0.071 | G35: =SUMIFS(Data!$D:$D,Data!$A:$A,$B35,Data!$C:$C,G$31,Data!$B:$B,$B$31) -> 0.071 | H35: =SUMIFS(Data!$D:$D,Data!$A:$A,$B35,Data!$C:$C,H$31,Data!$B:$B,$B$31) -> 0.071 | I35: =SUMIFS(Data!$D:$D,Data!$A:$A,$B35,Data!$C:$C,I$31,Data!$B:$B,$B$31) -> 0.0579810134 | J35: =SUMIFS(Data!$D:$D,Data!$A:$A,$B35,Data!$C:$C,J$31,Data!$B:$B,$B$31) -> 0.0579810134 | K35: =SUMIFS(Data!$D:$D,Data!$A:$A,$B35,Data!$C:$C,K$31,Data!$B:$B,$B$31) -> 0.0579810134 | L35: =SUMIFS(Data!$D:$D,Data!$A:$A,$B35,Data!$C:$C,L$31,Data!$B:$B,$B$31) -> 0.0579810134 | M35: =SUMIFS(Data!$D:$D,Data!$A:$A,$B35,Data!$C:$C,M$31,Data!$B:$B,$B$31) -> 0.0579810134
B36: AusNet Services (Transmission) | C36: =SUMIFS(Data!$D:$D,Data!$A:$A,$B36,Data!$C:$C,C$31,Data!$B:$B,$B$31) -> 0.1209438259 | D36: =SUMIFS(Data!$D:$D,Data!$A:$A,$B36,Data!$C:$C,D$31,Data!$B:$B,$B$31) -> 0.09505944416 | E36: =SUMIFS(Data!$D:$D,Data!$A:$A,$B36,Data!$C:$C,E$31,Data!$B:$B,$B$31) -> 0.09505944416 | F36: =SUMIFS(Data!$D:$D,Data!$A:$A,$B36,Data!$C:$C,F$31,Data!$B:$B,$B$31) -> 0.09505944416 | G36: =SUMIFS(Data!$D:$D,Data!$A:$A,$B36,Data!$C:$C,G$31,Data!$B:$B,$B$31) -> 0.071 | H36: =SUMIFS(Data!$D:$D,Data!$A:$A,$B36,Data!$C:$C,H$31,Data!$B:$B,$B$31) -> 0.071 | I36: =SUMIFS(Data!$D:$D,Data!$A:$A,$B36,Data!$C:$C,I$31,Data!$B:$B,$B$31) -> 0.071 | J36: =SUMIFS(Data!$D:$D,Data!$A:$A,$B36,Data!$C:$C,J$31,Data!$B:$B,$B$31) -> 0.071 | K36: =SUMIFS(Data!$D:$D,Data!$A:$A,$B36,Data!$C:$C,K$31,Data!$B:$B,$B$31) -> 0.071 | L36: =SUMIFS(Data!$D:$D,Data!$A:$A,$B36,Data!$C:$C,L$31,Data!$B:$B,$B$31) -> 0.05252481243 | M36: =SUMIFS(Data!$D:$D,Data!$A:$A,$B36,Data!$C:$C,M$31,Data!$B:$B,$B$31) -> 0.05252481243
B38: EBIT per customer
B40: =IF($C$4="Inclusive",Inputs!G9,Inputs!G10) -> EBIT per customer - excluding returns from capital base indexation | C40: 2014 | D40: 2015 | E40: 2016 | F40: 2017 | G40: 2018 | H40: 2019 | I40: 2020 | J40: 2021 | K40: 2022 | L40: 2023 | M40: 2024
B41: TransGrid | C41: =SUMIFS(Data!$D:$D,Data!$A:$A,$B41,Data!$C:$C,C$40,Data!$B:$B,$B$40) -> 133.359242 | D41: =SUMIFS(Data!$D:$D,Data!$A:$A,$B41,Data!$C:$C,D$40,Data!$B:$B,$B$40) -> 120.3699822 | E41: =SUMIFS(Data!$D:$D,Data!$A:$A,$B41,Data!$C:$C,E$40,Data!$B:$B,$B$40) -> 84.91438587 | F41: =SUMIFS(Data!$D:$D,Data!$A:$A,$B41,Data!$C:$C,F$40,Data!$B:$B,$B$40) -> 73.54853301 | G41: =SUMIFS(Data!$D:$D,Data!$A:$A,$B41,Data!$C:$C,G$40,Data!$B:$B,$B$40) -> 76.87551167 | H41: =SUMIFS(Data!$D:$D,Data!$A:$A,$B41,Data!$C:$C,H$40,Data!$B:$B,$B$40) -> 87.52728991 | I41: =SUMIFS(Data!$D:$D,Data!$A:$A,$B41,Data!$C:$C,I$40,Data!$B:$B,$B$40) -> 82.35371331 | J41: =SUMIFS(Data!$D:$D,Data!$A:$A,$B41,Data!$C:$C,J$40,Data!$B:$B,$B$40) -> 81.79688211 | K41: =SUMIFS(Data!$D:$D,Data!$A:$A,$B41,Data!$C:$C,K$40,Data!$B:$B,$B$40) -> 78.75163311 | L41: =SUMIFS(Data!$D:$D,Data!$A:$A,$B41,Data!$C:$C,L$40,Data!$B:$B,$B$40) -> 92.96708897 | M41: =SUMIFS(Data!$D:$D,Data!$A:$A,$B41,Data!$C:$C,M$40,Data!$B:$B,$B$40) -> 87.86547972
B42: Powerlink | C42: =SUMIFS(Data!$D:$D,Data!$A:$A,$B42,Data!$C:$C,C$40,Data!$B:$B,$B$40) -> 241.832395 | D42: =SUMIFS(Data!$D:$D,Data!$A:$A,$B42,Data!$C:$C,D$40,Data!$B:$B,$B$40) -> 192.9207197 | E42: =SUMIFS(Data!$D:$D,Data!$A:$A,$B42,Data!$C:$C,E$40,Data!$B:$B,$B$40) -> 236.8863169 | F42: =SUMIFS(Data!$D:$D,Data!$A:$A,$B42,Data!$C:$C,F$40,Data!$B:$B,$B$40) -> 318.9844083 | G42: =SUMIFS(Data!$D:$D,Data!$A:$A,$B42,Data!$C:$C,G$40,Data!$B:$B,$B$40) -> 167.7058673 | H42: =SUMIFS(Data!$D:$D,Data!$A:$A,$B42,Data!$C:$C,H$40,Data!$B:$B,$B$40) -> 132.1732189 | I42: =SUMIFS(Data!$D:$D,Data!$A:$A,$B42,Data!$C:$C,I$40,Data!$B:$B,$B$40) -> 103.111422 | J42: =SUMIFS(Data!$D:$D,Data!$A:$A,$B42,Data!$C:$C,J$40,Data!$B:$B,$B$40) -> 96.06626189 | K42: =SUMIFS(Data!$D:$D,Data!$A:$A,$B42,Data!$C:$C,K$40,Data!$B:$B,$B$40) -> 148.0633289 | L42: =SUMIFS(Data!$D:$D,Data!$A:$A,$B42,Data!$C:$C,L$40,Data!$B:$B,$B$40) -> 82.73296192 | M42: =SUMIFS(Data!$D:$D,Data!$A:$A,$B42,Data!$C:$C,M$40,Data!$B:$B,$B$40) -> 34.70806072
B43: ElectraNet | C43: =SUMIFS(Data!$D:$D,Data!$A:$A,$B43,Data!$C:$C,C$40,Data!$B:$B,$B$40) -> 151.8379979 | D43: =SUMIFS(Data!$D:$D,Data!$A:$A,$B43,Data!$C:$C,D$40,Data!$B:$B,$B$40) -> 153.5029372 | E43: =SUMIFS(Data!$D:$D,Data!$A:$A,$B43,Data!$C:$C,E$40,Data!$B:$B,$B$40) -> 161.4560868 | F43: =SUMIFS(Data!$D:$D,Data!$A:$A,$B43,Data!$C:$C,F$40,Data!$B:$B,$B$40) -> 157.7763311 | G43: =SUMIFS(Data!$D:$D,Data!$A:$A,$B43,Data!$C:$C,G$40,Data!$B:$B,$B$40) -> 170.9027379 | H43: =SUMIFS(Data!$D:$D,Data!$A:$A,$B43,Data!$C:$C,H$40,Data!$B:$B,$B$40) -> 122.4462151 | I43: =SUMIFS(Data!$D:$D,Data!$A:$A,$B43,Data!$C:$C,I$40,Data!$B:$B,$B$40) -> 99.21454706 | J43: =SUMIFS(Data!$D:$D,Data!$A:$A,$B43,Data!$C:$C,J$40,Data!$B:$B,$B$40) -> 97.88472808 | K43: =SUMIFS(Data!$D:$D,Data!$A:$A,$B43,Data!$C:$C,K$40,Data!$B:$B,$B$40) -> 100.2414892 | L43: =SUMIFS(Data!$D:$D,Data!$A:$A,$B43,Data!$C:$C,L$40,Data!$B:$B,$B$40) -> 120.6643171 | M43: =SUMIFS(Data!$D:$D,Data!$A:$A,$B43,Data!$C:$C,M$40,Data!$B:$B,$B$40) -> 127.1656932
B44: TasNetworks (Transmission) | C44: =SUMIFS(Data!$D:$D,Data!$A:$A,$B44,Data!$C:$C,C$40,Data!$B:$B,$B$40) -> 380.1754095 | D44: =SUMIFS(Data!$D:$D,Data!$A:$A,$B44,Data!$C:$C,D$40,Data!$B:$B,$B$40) -> 370.2113055 | E44: =SUMIFS(Data!$D:$D,Data!$A:$A,$B44,Data!$C:$C,E$40,Data!$B:$B,$B$40) -> 341.3741069 | F44: =SUMIFS(Data!$D:$D,Data!$A:$A,$B44,Data!$C:$C,F$40,Data!$B:$B,$B$40) -> 286.6772116 | G44: =SUMIFS(Data!$D:$D,Data!$A:$A,$B44,Data!$C:$C,G$40,Data!$B:$B,$B$40) -> 311.2628054 | H44: =SUMIFS(Data!$D:$D,Data!$A:$A,$B44,Data!$C:$C,H$40,Data!$B:$B,$B$40) -> 252.7672963 | I44: =SUMIFS(Data!$D:$D,Data!$A:$A,$B44,Data!$C:$C,I$40,Data!$B:$B,$B$40) -> 252.8725828 | J44: =SUMIFS(Data!$D:$D,Data!$A:$A,$B44,Data!$C:$C,J$40,Data!$B:$B,$B$40) -> 178.9427643 | K44: =SUMIFS(Data!$D:$D,Data!$A:$A,$B44,Data!$C:$C,K$40,Data!$B:$B,$B$40) -> 203.8832665 | L44: =SUMIFS(Data!$D:$D,Data!$A:$A,$B44,Data!$C:$C,L$40,Data!$B:$B,$B$40) -> 216.1146924 | M44: =SUMIFS(Data!$D:$D,Data!$A:$A,$B44,Data!$C:$C,M$40,Data!$B:$B,$B$40) -> 125.8948725
B45: AusNet Services (Transmission) | C45: =SUMIFS(Data!$D:$D,Data!$A:$A,$B45,Data!$C:$C,C$40,Data!$B:$B,$B$40) -> 97.88973571 | D45: =SUMIFS(Data!$D:$D,Data!$A:$A,$B45,Data!$C:$C,D$40,Data!$B:$B,$B$40) -> 85.65493441 | E45: =SUMIFS(Data!$D:$D,Data!$A:$A,$B45,Data!$C:$C,E$40,Data!$B:$B,$B$40) -> 77.8558298 | F45: =SUMIFS(Data!$D:$D,Data!$A:$A,$B45,Data!$C:$C,F$40,Data!$B:$B,$B$40) -> 73.49566968 | G45: =SUMIFS(Data!$D:$D,Data!$A:$A,$B45,Data!$C:$C,G$40,Data!$B:$B,$B$40) -> 66.8397222 | H45: =SUMIFS(Data!$D:$D,Data!$A:$A,$B45,Data!$C:$C,H$40,Data!$B:$B,$B$40) -> 69.47077597 | I45: =SUMIFS(Data!$D:$D,Data!$A:$A,$B45,Data!$C:$C,I$40,Data!$B:$B,$B$40) -> 68.50367343 | J45: =SUMIFS(Data!$D:$D,Data!$A:$A,$B45,Data!$C:$C,J$40,Data!$B:$B,$B$40) -> 66.81514231 | K45: =SUMIFS(Data!$D:$D,Data!$A:$A,$B45,Data!$C:$C,K$40,Data!$B:$B,$B$40) -> 65.30006873 | L45: =SUMIFS(Data!$D:$D,Data!$A:$A,$B45,Data!$C:$C,L$40,Data!$B:$B,$B$40) -> 53.39785081 | M45: =SUMIFS(Data!$D:$D,Data!$A:$A,$B45,Data!$C:$C,M$40,Data!$B:$B,$B$40) -> 54.38450598

Sheet Inputs (hidden)
A2: DNSP | B2: TNSP | C2: Returns from indexation of the RAB | D2: Incentive Schemes | E2: Revenue pass-throughs | F2: Impact of inflation on returns | G2: Summary headings
A3: Evoenergy | B3: TransGrid | C3: Inclusive | D3: Inclusive | E3: Inclusive | F3: Inclusive | G3: Allowed nominal rate of return
A4: Ausgrid | B4: Powerlink | C4: Exclusive | D4: Exclusive | E4: Exclusive | F4: Exclusive | G4: Allowed real rate of return
A5: Endeavour Energy | B5: ElectraNet | G5: Allowed nominal return on equity
A6: Essential Energy | B6: TasNetworks (Transmission) | G6: Allowed real return on equity
A7: Energex | B7: AusNet Services (Transmission) | G7: Nominal return on assets
A8: Ergon Energy | G8: Real return on assets
A9: SA Power Networks | G9: EBIT per customer - including returns from capital base indexation
A10: TasNetworks (Distribution) | G10: EBIT per customer - excluding returns from capital base indexation
A11: AusNet Services (Distribution) | G11: Nominal return on regulated equity
A12: CitiPower | G12: Real return on regulated equity
A13: Jemena | G13: Nominal return on regulated equity - excluding incentive schemes
A14: Powercor | G14: Real return on regulated equity - excluding incentive schemes
A15: United Energy | G15: Nominal return on regulated equity - excluding incentive schemes and pass through revenues
A16: Power and Water Corporation | G16: Real return on regulated equity - excluding incentive schemes and pass through revenues
G17: Nominal return on regulated equity - excluding incentive schemes, pass through revenues and impact of inflation
G18: Real return on regulated equity - excluding incentive schemes, pass through revenues and impact of inflation
G19: Nominal return on regulated equity - excluding pass through revenues and impact of inflation
G20: Real return on regulated equity - excluding pass through revenues and impact of inflation
G21: Nominal return on regulated equity - excluding pass through revenues
G22: Real return on regulated equity - excluding pass through revenues
G23: Nominal return on regulated equity - excluding impact of inflation
G24: Real return on regulated equity - excluding impact of inflation
G25: Nominal return on regulated equity - excluding incentive schemes and impact of inflation
G26: Real return on regulated equity - excluding incentive schemes and impact of inflation

Sheet Data
A1: NSP | B1: Row Description | C1: Year | D1: Value
A2: Ausgrid | B2: Allowed nominal rate of return | C2: 2014 | D2: 0.1080846984
A3: Ausgrid | B3: Allowed nominal rate of return | C3: 2015 | D3: 0.07216648298
A4: Ausgrid | B4: Allowed nominal rate of return | C4: 2016 | D4: 0.07153297245
A5: Ausgrid | B5: Allowed nominal rate of return | C5: 2017 | D5: 0.07063736725
A6: Ausgrid | B6: Allowed nominal rate of return | C6: 2018 | D6: 0.06971476809
A7: Ausgrid | B7: Allowed nominal rate of return | C7: 2019 | D7: 0.06865751978
A8: Ausgrid | B8: Allowed nominal rate of return | C8: 2020 | D8: 0.0596693411
A9: Ausgrid | B9: Allowed nominal rate of return | C9: 2021 | D9: 0.05748806596
A10: Ausgrid | B10: Allowed nominal rate of return | C10: 2022 | D10: 0.05485505556
A11: Ausgrid | B11: Allowed nominal rate of return | C11: 2023 | D11: 0.05298829345
A12: Ausgrid | B12: Allowed nominal rate of return | C12: 2024 | D12: 0.0531291488
A13: Ausgrid | B13: allowed nominal return on equity | C13: 2014 | D13: 0.1182426355
A14: Ausgrid | B14: allowed nominal return on equity | C14: 2015 | D14: 0.071
A15: Ausgrid | B15: allowed nominal return on equity | C15: 2016 | D15: 0.071
A16: Ausgrid | B16: allowed nominal return on equity | C16: 2017 | D16: 0.071
A17: Ausgrid | B17: allowed nominal return on equity | C17: 2018 | D17: 0.071
A18: Ausgrid | B18: allowed nominal return on equity | C18: 2019 | D18: 0.071
A19: Ausgrid | B19: allowed nominal return on equity | C19: 2020 | D19: 0.05698304629
A20: Ausgrid | B20: allowed nominal return on equity | C20: 2021 | D20: 0.05698304629
A21: Ausgrid | B21: allowed nominal return on equity | C21: 2022 | D21: 0.05698304629
A22: Ausgrid | B22: allowed nominal return on equity | C22: 2023 | D22: 0.05698304629
A23: Ausgrid | B23: allowed nominal return on equity | C23: 2024 | D23: 0.05698304629
A24: Ausgrid | B24: Allowed real rate of return | C24: 2014 | D24: 0.08132355909
A25: Ausgrid | B25: Allowed real rate of return | C25: 2015 | D25: 0.04683312144
A26: Ausgrid | B26: Allowed real rate of return | C26: 2016 | D26: 0.04621457962
A27: Ausgrid | B27: Allowed real rate of return | C27: 2017 | D27: 0.04534013596
A28: Ausgrid | B28: Allowed real rate of return | C28: 2018 | D28: 0.04443933615
A29: Ausgrid | B29: Allowed real rate of return | C29: 2019 | D29: 0.04340706872
A30: Ausgrid | B30: Allowed real rate of return | C30: 2020 | D30: 0.03458202379
A31: Ausgrid | B31: Allowed real rate of return | C31: 2021 | D31: 0.03245238962
A32: Ausgrid | B32: Allowed real rate of return | C32: 2022 | D32: 0.02988171485
A33: Ausgrid | B33: Allowed real rate of return | C33: 2023 | D33: 0.02805914772
A34: Ausgrid | B34: Allowed real rate of return | C34: 2024 | D34: 0.02819666836
A35: Ausgrid | B35: allowed real return on equity | C35: 2014 | D35: 0.09123617378
A36: Ausgrid | B36: allowed real return on equity | C36: 2015 | D36: 0.04569420035
A37: Ausgrid | B37: allowed real return on equity | C37: 2016 | D37: 0.04569420035
A38: Ausgrid | B38: allowed real return on equity | C38: 2017 | D38: 0.04569420035
A39: Ausgrid | B39: allowed real return on equity | C39: 2018 | D39: 0.04569420035
A40: Ausgrid | B40: allowed real return on equity | C40: 2019 | D40: 0.04569420035
A41: Ausgrid | B41: allowed real return on equity | C41: 2020 | D41: 0.03195932612
A42: Ausgrid | B42: allowed real return on equity | C42: 2021 | D42: 0.03195932612
A43: Ausgrid | B43: allowed real return on equity | C43: 2022 | D43: 0.03195932612
A44: Ausgrid | B44: allowed real return on equity | C44: 2023 | D44: 0.03195932612
A45: Ausgrid | B45: allowed real return on equity | C45: 2024 | D45: 0.03195932612
A46: Ausgrid | B46: Avoided TUOS expense | C46: 2014 | D46: 0
A47: Ausgrid | B47: Avoided TUOS expense | C47: 2015 | D47: 472295.23
A48: Ausgrid | B48: Avoided TUOS expense | C48: 2016 | D48: 294174.08
A49: Ausgrid | B49: Avoided TUOS expense | C49: 2017 | D49: 815541.3039
A50: Ausgrid | B50: Avoided TUOS expense | C50: 2018 | D50: 506893
A51: Ausgrid | B51: Avoided TUOS expense | C51: 2019 | D51: -363985
A52: Ausgrid | B52: Avoided TUOS expense | C52: 2020 | D52: 293702.51
A53: Ausgrid | B53: Avoided TUOS expense | C53: 2021 | D53: 354713.38
A54: Ausgrid | B54: Avoided TUOS expense | C54: 2022 | D54: 400730
A55: Ausgrid | B55: Avoided TUOS expense | C55: 2023 | D55: 421753.9
A56: Ausgrid | B56: Avoided TUOS expense | C56: 2024 | D56: 412119.09
A57: Ausgrid | B57: cess | C57: 2020 | D57: 17850000
A58: Ausgrid | B58: cess | C58: 2021 | D58: 18180000
A59: Ausgrid | B59: cess | C59: 2022 | D59: 18340000
A60: Ausgrid | B60: cess | C60: 2023 | D60: 18980000
A61: Ausgrid | B61: cess | C61: 2024 | D61: 20470000
A62: Ausgrid | B62: Cross boundary charges (expense) | C62: 2014 | D62: 0
A63: Ausgrid | B63: Cross boundary charges (expense) | C63: 2015 | D63: 0
A64: Ausgrid | B64: Cross boundary charges (expense) | C64: 2016 | D64: 0
A65: Ausgrid | B65: Cross boundary charges (expense) | C65: 2017 | D65: 0
A66: Ausgrid | B66: Cross boundary charges (expense) | C66: 2018 | D66: 0
A67: Ausgrid | B67: Cross boundary charges (expense) | C67: 2019 | D67: 0
A68: Ausgrid | B68: Cross boundary charges (expense) | C68: 2020 | D68: 0
A69: Ausgrid | B69: Cross boundary charges (expense) | C69: 2021 | D69: 0
A70: Ausgrid | B70: Cross boundary charges (expense) | C70: 2022 | D70: 0
A71: Ausgrid | B71: Cross boundary charges (expense) | C71: 2023 | D71: 0
A72: Ausgrid | B72: Cross boundary charges (expense) | C72: 2024 | D72: 0
A73: Ausgrid | B73: Cross boundary revenue | C73: 2014 | D73: 0
A74: Ausgrid | B74: Cross boundary revenue | C74: 2015 | D74: 0
A75: Ausgrid | B75: Cross boundary revenue | C75: 2016 | D75: 0
A76: Ausgrid | B76: Cross boundary revenue | C76: 2017 | D76: 0
A77: Ausgrid | B77: Cross boundary revenue | C77: 2018 | D77: 0
A78: Ausgrid | B78: Cross boundary revenue | C78: 2019 | D78: 0
A79: Ausgrid | B79: Cross boundary revenue | C79: 2020 | D79: 0
A80: Ausgrid | B80: Cross boundary revenue | C80: 2021 | D80: 0
A81: Ausgrid | B81: Cross boundary revenue | C81: 2022 | D81: 0
A82: Ausgrid | B82: Cross boundary revenue | C82: 2023 | D82: 0
A83: Ausgrid | B83: Cross boundary revenue | C83: 2024 | D83: 0
A84: Ausgrid | B84: customer numbers at the end of the period | C84: 2014 | D84: 1647370
A85: Ausgrid | B85: customer numbers at the end of the period | C85: 2015 | D85: 1678147
A86: Ausgrid | B86: customer numbers at the end of the period | C86: 2016 | D86: 1697536
A87: Ausgrid | B87: customer numbers at the end of the period | C87: 2017 | D87: 1714321
A88: Ausgrid | B88: customer numbers at the end of the period | C88: 2018 | D88: 1736529
A89: Ausgrid | B89: customer numbers at the end of the period | C89: 2019 | D89: 1754076
A90: Ausgrid | B90: Customer numbers at the end of the period | C90: 2020 | D90: 1768874
A91: Ausgrid | B91: Customer numbers at the end of the period | C91: 2021 | D91: 1779577
A92: Ausgrid | B92: Customer numbers at the end of the period | C92: 2022 | D92: 1787877
A93: Ausgrid | B93: customer numbers at the end of the period | C93: 2023 | D93: 1794874
A94: Ausgrid | B94: Customer numbers at the end of the period | C94: 2024 | D94: 1803455
A95: Ausgrid | B95: customer numbers at the start of the period | C95: 2014 | D95: 1638801
A96: Ausgrid | B96: customer numbers at the start of the period | C96: 2015 | D96: 1647370
A97: Ausgrid | B97: customer numbers at the start of the period | C97: 2016 | D97: 1678083
A98: Ausgrid | B98: customer numbers at the start of the period | C98: 2017 | D98: 1697396
A99: Ausgrid | B99: customer numbers at the start of the period | C99: 2018 | D99: 1714321
A100: Ausgrid | B100: customer numbers at the start of the period | C100: 2019 | D100: 1736122
A101: Ausgrid | B101: Customer numbers at the start of the period | C101: 2020 | D101: 1754186
A102: Ausgrid | B102: Customer numbers at the start of the period | C102: 2021 | D102: 1769173
A103: Ausgrid | B103: Customer numbers at the start of the period | C103: 2022 | D103: 1779657
A104: Ausgrid | B104: customer numbers at the start of the period | C104: 2023 | D104: 1785814
A105: Ausgrid | B105: Customer numbers at the start of the period | C105: 2024 | D105: 1793613
A106: Ausgrid | B106: Distribution Revenue | C106: 2014 | D106: 2388579326
A107: Ausgrid | B107: Distribution Revenue | C107: 2015 | D107: 2004793594
A108: Ausgrid | B108: Distribution Revenue | C108: 2016 | D108: 1505329035
A109: Ausgrid | B109: Distribution Revenue | C109: 2017 | D109: 1548992701
A110: Ausgrid | B110: Distribution Revenue | C110: 2018 | D110: 1503002942
A111: Ausgrid | B111: Distribution Revenue | C111: 2019 | D111: 1495856942
A112: Ausgrid | B112: Distribution Revenue | C112: 2020 | D112: 1435406386
A113: Ausgrid | B113: Distribution Revenue | C113: 2021 | D113: 1493567442
A114: Ausgrid | B114: Distribution Revenue | C114: 2022 | D114: 1527748277
A115: Ausgrid | B115: Distribution Revenue | C115: 2023 | D115: 1469863390
A116: Ausgrid | B116: Distribution Revenue | C116: 2024 | D116: 1587995404
A117: Ausgrid | B117: EBIT per customer - Excluding returns from capital base indexation | C117: 2014 | D117: 877.2293397
A118: Ausgrid | B118: EBIT per customer - Excluding returns from capital base indexation | C118: 2015 | D118: 544.4584194
A119: Ausgrid | B119: EBIT per customer - Excluding returns from capital base indexation | C119: 2016 | D119: 251.5063587
A120: Ausgrid | B120: EBIT per customer - Excluding returns from capital base indexation | C120: 2017 | D120: 315.0077733
A121: Ausgrid | B121: EBIT per customer - Excluding returns from capital base indexation | C121: 2018 | D121: 338.8215885
A122: Ausgrid | B122: EBIT per customer - Excluding returns from capital base indexation | C122: 2019 | D122: 353.8454497
A123: Ausgrid | B123: EBIT per customer - Excluding returns from capital base indexation | C123: 2020 | D123: 313.9936761
A124: Ausgrid | B124: EBIT per customer - Excluding returns from capital base indexation | C124: 2021 | D124: 309.5054888
A125: Ausgrid | B125: EBIT per customer - Excluding returns from capital base indexation | C125: 2022 | D125: 314.7781002
A126: Ausgrid | B126: EBIT per customer - Excluding returns from capital base indexation | C126: 2023 | D126: 223.3552027
A127: Ausgrid | B127: EBIT per customer - Excluding returns from capital base indexation | C127: 2024 | D127: 228.2294841
A128: Ausgrid | B128: EBIT per customer - Including returns from capital base indexation | C128: 2014 | D128: 1088.253888
A129: Ausgrid | B129: EBIT per customer - Including returns from capital base indexation | C129: 2015 | D129: 748.803853
A130: Ausgrid | B130: EBIT per customer - Including returns from capital base indexation | C130: 2016 | D130: 384.9362544
A131: Ausgrid | B131: EBIT per customer - Including returns from capital base indexation | C131: 2017 | D131: 427.2964026
A132: Ausgrid | B132: EBIT per customer - Including returns from capital base indexation | C132: 2018 | D132: 505.1397921
A133: Ausgrid | B133: EBIT per customer - Including returns from capital base indexation | C133: 2019 | D133: 517.955035
A134: Ausgrid | B134: EBIT per customer - Including returns from capital base indexation | C134: 2020 | D134: 477.8329282
A135: Ausgrid | B135: EBIT per customer - Including returns from capital base indexation | C135: 2021 | D135: 387.3452223
A136: Ausgrid | B136: EBIT per customer - Including returns from capital base indexation | C136: 2022 | D136: 629.3970152
A137: Ausgrid | B137: EBIT per customer - Including returns from capital base indexation | C137: 2023 | D137: 933.005183
A138: Ausgrid | B138: EBIT per customer - Including returns from capital base indexation | C138: 2024 | D138: 623.9345706
A139: Ausgrid | B139: ebss | C139: 2014 | D139: 0
A140: Ausgrid | B140: ebss | C140: 2015 | D140: 85917306.65
A141: Ausgrid | B141: ebss | C141: 2016 | D141: 78740427.82
A142: Ausgrid | B142: ebss | C142: 2017 | D142: 62685872.39
A143: Ausgrid | B143: ebss | C143: 2018 | D143: 44229195.53
A144: Ausgrid | B144: ebss | C144: 2019 | D144: 0
A145: Ausgrid | B145: ebss | C145: 2020 | D145: 0
A146: Ausgrid | B146: ebss | C146: 2021 | D146: 0
A147: Ausgrid | B147: ebss | C147: 2022 | D147: 0
A148: Ausgrid | B148: ebss | C148: 2023 | D148: 0
A149: Ausgrid | B149: ebss | C149: 2024 | D149: 0
A150: Ausgrid | B150: f-factor | C150: 2014 | D150: 0
A151: Ausgrid | B151: f-factor | C151: 2015 | D151: 0
A152: Ausgrid | B152: f-factor | C152: 2016 | D152: 0
A153: Ausgrid | B153: f-factor | C153: 2017 | D153: 0
A154: Ausgrid | B154: f-factor | C154: 2018 | D154: 0
A155: Ausgrid | B155: f-factor | C155: 2019 | D155: 0
A156: Ausgrid | B156: f-factor | C156: 2020 | D156: 0
A157: Ausgrid | B157: f-factor | C157: 2021 | D157: 0
A158: Ausgrid | B158: f-factor | C158: 2022 | D158: 0
A159: Ausgrid | B159: f-factor | C159: 2023 | D159: 0
A160: Ausgrid | B160: f-factor | C160: 2024 | D160: 0
A161: Ausgrid | B161: Forecast expenditure | C161: 2014 | D161: 601036305.4
A162: Ausgrid | B162: Forecast expenditure | C162: 2015 | D162: 436597827.8
A163: Ausgrid | B163: Forecast expenditure | C163: 2016 | D163: 417706435.1
A164: Ausgrid | B164: Forecast expenditure | C164: 2017 | D164: 431116532.9
A165: Ausgrid | B165: Forecast expenditure | C165: 2018 | D165: 430919071.9
A166: Ausgrid | B166: Forecast expenditure | C166: 2019 | D166: 445924452.7
A167: Ausgrid | B167: Forecast expenditure | C167: 2020 | D167: 480594258.4
A168: Ausgrid | B168: Forecast expenditure | C168: 2021 | D168: 473300596.8
A169: Ausgrid | B169: Forecast expenditure | C169: 2022 | D169: 485411580
A170: Ausgrid | B170: Forecast Expenditure | C170: 2023 | D170: 514740998.7
A171: Ausgrid | B171: Forecast expenditure | C171: 2024 | D171: 547183649.6
A172: Ausgrid | B172: Forecast inflation | C172: 2014 | D172: 0.02474850298
A173: Ausgrid | B173: Forecast inflation | C173: 2015 | D173: 0.0242
A174: Ausgrid | B174: Forecast inflation | C174: 2016 | D174: 0.0242
A175: Ausgrid | B175: Forecast inflation | C175: 2017 | D175: 0.0242
A176: Ausgrid | B176: Forecast inflation | C176: 2018 | D176: 0.0242
A177: Ausgrid | B177: Forecast inflation | C177: 2019 | D177: 0.0242
A178: Ausgrid | B178: Forecast inflation | C178: 2020 | D178: 0.02424874658
A179: Ausgrid | B179: Forecast inflation | C179: 2021 | D179: 0.02424874658
A180: Ausgrid | B180: Forecast inflation | C180: 2022 | D180: 0.02424874658
A181: Ausgrid | B181: Forecast inflation | C181: 2023 | D181: 0.02424874658
A182: Ausgrid | B182: Forecast inflation | C182: 2024 | D182: 0.02424874658
A183: Ausgrid | B183: Forecast RAB | C183: 2014 | D183: 1.461984211e+10
A184: Ausgrid | B184: Forecast RAB | C184: 2015 | D184: 1.634525347e+10
A185: Ausgrid | B185: Forecast RAB | C185: 2016 | D185: 1.477319918e+10
A186: Ausgrid | B186: Forecast RAB | C186: 2017 | D186: 1.514684886e+10
A187: Ausgrid | B187: Forecast RAB | C187: 2018 | D187: 1.54772229e+10
A188: Ausgrid | B188: Forecast RAB | C188: 2019 | D188: 1.588685604e+10
A189: Ausgrid | B189: Forecast RAB | C189: 2020 | D189: 1.621637678e+10
A190: Ausgrid | B190: Forecast RAB | C190: 2021 | D190: 1.615361963e+10
A191: Ausgrid | B191: Forecast RAB | C191: 2022 | D191: 1.635616003e+10
A192: Ausgrid | B192: Forecast RAB | C192: 2023 | D192: 1.688719659e+10
A193: Ausgrid | B193: Forecast RAB | C193: 2024 | D193: 1.814833712e+10
A194: Ausgrid | B194: Inflation Rate | C194: 2014 | D194: 0.02522010081
A195: Ausgrid | B195: Inflation Rate | C195: 2015 | D195: 0.02378158241
A196: Ausgrid | B196: Inflation Rate | C196: 2016 | D196: 0.01533737382
A197: Ausgrid | B197: Inflation Rate | C197: 2017 | D197: 0.01304475754
A198: Ausgrid | B198: Inflation Rate | C198: 2018 | D198: 0.01943046497
A199: Ausgrid | B199: Inflation Rate | C199: 2019 | D199: 0.01893446583
A200: Ausgrid | B200: Inflation Rate | C200: 2020 | D200: 0.01840490798
... 9012 more rows

Sheet Detailed - DNSP
B2: Electricity DNSP Profitability Reporting - Detailed calculations
B4: Network Service Provider | C4: Evoenergy
B6: Returns from indexation of the RAB | C6: Exclusive
B8: Returns from incentive scheme payments | C8: Inclusive
B10: Returns from pass-through revenues | C10: Inclusive
B12: Impact of inflation on returns | C12: Inclusive
B14: Users can select options from the drop-down lists above to view detailed calculations for individual NSPs, to view returns calculated including or excluding returns from RAB indexation, incentive scheme payments, pass through revenues and impact of inflation on returns.
B16: Summary
B18: Returns on assets | C18: 2014 | D18: 2015 | E18: 2016 | F18: 2017 | G18: 2018 | H18: 2019 | I18: 2020 | J18: 2021 | K18: 2022 | L18: 2023 | M18: 2024
B19: Return on assets | C19: =IFERROR(IF($C$6="Inclusive",C80/C105,C80/C106), 0) -> 0.08391855614 | D19: 0.06944224507 | E19: 0.07396765557 | F19: 0.07910758473 | G19: 0.102281114 | H19: 0.1086120111 | I19: 0.04132558443 | J19: -0.01840379423 | K19: 0.1584512173 | L19: 0.1232545278 | M19: -0.08796744592
B20: Allowed rate of return | C20: =IF($C$6="Exclusive",SUMIFS(Data!$D:$D,Data!$A:$A,'Detailed - DNSP'!$C$4,Data!$B:$B,"Allowed real rate of return",Data!$C:$C,'Detailed - DNSP'!C$18),SUMIFS(Data!$D:$D,Data!$A:$A,'Detailed - DNSP'!$C$4,Data!$B:$B,"Allowed nominal rate of return",Data!$C:$C,'Detailed - DNSP'!C$18)) -> 0.0691044139 | D20: =IF($C$6="Exclusive",SUMIFS(Data!$D:$D,Data!$A:$A,'Detailed - DNSP'!$C$4,Data!$B:$B,"Allowed real rate of return",Data!$C:$C,'Detailed - DNSP'!D$18),SUMIFS(Data!$D:$D,Data!$A:$A,'Detailed - DNSP'!$C$4,Data!$B:$B,"Allowed nominal rate of return",Data!$C:$C,'Detailed - DNSP'!D$18)) -> 0.04612346638 | E20: =IF($C$6="Exclusive",SUMIFS(Data!$D:$D,Data!$A:$A,'Detailed - DNSP'!$C$4,Data!$B:$B,"Allowed real rate of return",Data!$C:$C,'Detailed - DNSP'!E$18),SUMIFS(Data!$D:$D,Data!$A:$A,'Detailed - DNSP'!$C$4,Data!$B:$B,"Allowed nominal rate of return",Data!$C:$C,'Detailed - DNSP'!E$18)) -> 0.04514015224 | F20: =IF($C$6="Exclusive",SUMIFS(Data!$D:$D,Data!$A:$A,'Detailed - DNSP'!$C$4,Data!$B:$B,"Allowed real rate of return",Data!$C:$C,'Detailed - DNSP'!F$18),SUMIFS(Data!$D:$D,Data!$A:$A,'Detailed - DNSP'!$C$4,Data!$B:$B,"Allowed nominal rate of return",Data!$C:$C,'Detailed - DNSP'!F$18)) -> 0.04478036426 | G20: =IF($C$6="Exclusive",SUMIFS(Data!$D:$D,Data!$A:$A,'Detailed - DNSP'!$C$4,Data!$B:$B,"Allowed real rate of return",Data!$C:$C,'Detailed - DNSP'!G$18),SUMIFS(Data!$D:$D,Data!$A:$A,'Detailed - DNSP'!$C$4,Data!$B:$B,"Allowed nominal rate of return",Data!$C:$C,'Detailed - DNSP'!G$18)) -> 0.04415174181 | H20: =IF($C$6="Exclusive",SUMIFS(Data!$D:$D,Data!$A:$A,'Detailed - DNSP'!$C$4,Data!$B:$B,"Allowed real rate of return",Data!$C:$C,'Detailed - DNSP'!H$18),SUMIFS(Data!$D:$D,Data!$A:$A,'Detailed - DNSP'!$C$4,Data!$B:$B,"Allowed nominal rate of return",Data!$C:$C,'Detailed - DNSP'!H$18)) -> 0.04323886359 | I20: =IF($C$6="Exclusive",SUMIFS(Data!$D:$D,Data!$A:$A,'Detailed - DNSP'!$C$4,Data!$B:$B,"Allowed real rate of return",Data!$C:$C,'Detailed - DNSP'!I$18),SUMIFS(Data!$D:$D,Data!$A:$A,'Detailed - DNSP'!$C$4,Data!$B:$B,"Allowed nominal rate of return",Data!$C:$C,'Detailed - DNSP'!I$18)) -> 0.03234711476 | J20: =IF($C$6="Exclusive",SUMIFS(Data!$D:$D,Data!$A:$A,'Detailed - DNSP'!$C$4,Data!$B:$B,"Allowed real rate of return",Data!$C:$C,'Detailed - DNSP'!J$18),SUMIFS(Data!$D:$D,Data!$A:$A,'Detailed - DNSP'!$C$4,Data!$B:$B,"Allowed nominal rate of return",Data!$C:$C,'Detailed - DNSP'!J$18)) -> 0.0304502901 | K20: =IF($C$6="Exclusive",SUMIFS(Data!$D:$D,Data!$A:$A,'Detailed - DNSP'!$C$4,Data!$B:$B,"Allowed real rate of return",Data!$C:$C,'Detailed - DNSP'!K$18),SUMIFS(Data!$D:$D,Data!$A:$A,'Detailed - DNSP'!$C$4,Data!$B:$B,"Allowed nominal rate of return",Data!$C:$C,'Detailed - DNSP'!K$18)) -> 0.02808856349 | L20: =IF($C$6="Exclusive",SUMIFS(Data!$D:$D,Data!$A:$A,'Detailed - DNSP'!$C$4,Data!$B:$B,"Allowed real rate of return",Data!$C:$C,'Detailed - DNSP'!L$18),SUMIFS(Data!$D:$D,Data!$A:$A,'Detailed - DNSP'!$C$4,Data!$B:$B,"Allowed nominal rate of return",Data!$C:$C,'Detailed - DNSP'!L$18)) -> 0.02651088697 | M20: =IF($C$6="Exclusive",SUMIFS(Data!$D:$D,Data!$A:$A,'Detailed - DNSP'!$C$4,Data!$B:$B,"Allowed real rate of return",Data!$C:$C,'Detailed - DNSP'!M$18),SUMIFS(Data!$D:$D,Data!$A:$A,'Detailed - DNSP'!$C$4,Data!$B:$B,"Allowed nominal rate of return",Data!$C:$C,'Detailed - DNSP'!M$18)) -> 0.02683302171
B21: Difference | C21: =C19-C20 -> 0.01481414223 | D21: =D19-D20 -> 0.02331877869 | E21: 0.02882750333 | F21: 0.03432722046 | G21: 0.05812937222 | H21: 0.06537314749 | I21: 0.00897846967 | J21: -0.04885408433 | K21: =K19-K20 -> 0.1303626538 | L21: =L19-L20 -> 0.09674364083 | M21: =M19-M20 -> -0.1148004676
B23: Source: Post Tax Revenue Model - Pre-tax real WACC - 2014 to 2024
C26: 2014 | D26: 2015 | E26: 2016 | F26: 2017 | G26: 2018 | H26: 2019 | I26: 2020 | J26: 2021 | K26: 2022 | L26: 2023 | M26: 2024
B27: EBIT per Customer ($) | C27: =IFERROR(C80/C99,0) -> 383.9936754 | D27: 331.4617946 | E27: 361.1601946 | F27: 381.6163349 | G27: 482.7909288 | H27: 526.15955 | I27: 197.6626771 | J27: -86.54855152 | K27: 741.7965921 | L27: 608.4066444 | M27: -450.6359102
B29: Return on regulated equity | C29: 2014 | D29: 2015 | E29: 2016 | F29: 2017 | G29: 2018 | H29: 2019 | I29: 2020 | J29: 2021 | K29: 2022 | L29: 2023 | M29: 2024
B30: Return on regulated equity | C30: =IF(AND($C$6="Inclusive",$C$8="Inclusive",$C$10="Inclusive",$C$12="Inclusive"),SUMIFS(Data!$D:$D,Data!$A:$A,'Detailed - DNSP'!$C$4,Data!$B:$B,Inputs!$G$11,Data!$C:$C,'Detailed - DNSP'!C$29),IF(AND($C$6="Exclusive",$C$8="Inclusive",$C$10="Inclusive",$C$12="Inclusive"),SUMIFS(Data!$D:$D,Data!$A:$A,'Detailed - DNSP'!$C$4,Data!$B:$B,Inputs!$G$12,Data!$C:$C,'Detailed - DNSP'!C$29),IF(AND($C$6="Inclusive",$C$8="Exclusive",$C$10="Inclusive",$C$12="Inclusive"),SUMIFS(Data!$D:$D,Data!$A:$A,'Detailed - DNSP'!$C$4,Data!$B:$B,Inputs!$G$13,Data!$C:$C,'Detailed - DNSP'!C$29),IF(AND($C$6="Exclusive",$C$8="Exclusive",$C$10="Inclusive",$C$12="Inclusive"),SUMIFS(Data!$D:$D,Data!$A:$A,'Detailed - DNSP'!$C$4,Data!$B:$B,Inputs!$G$14,Data!$C:$C,'Detailed - DNSP'!C$29),IF(AND($C$6="Inclusive",$C$8="Exclusive",$C$10="Exclusive",$C$12="Inclusive"),SUMIFS(Data!$D:$D,Data!$A:$A,'Detailed - DNSP'!$C$4,Data!$B:$B,Inputs!$G$15,Data!$C:$C,'Detailed - DNSP'!C$29),IF(AND($C$6="Exclusive",$C$8="Exclusive",$C$10="Exclusive",$C$12="Inclusive"),SUMIFS(Data!$D:$D,Data!$A:$A,'Detailed - DNSP'!$C$4,Data!$B:$B,Inputs!$G$16,Data!$C:$C,'Detailed - DNSP'!C$29),IF(AND($C$6="Inclusive",$C$8="Exclusive",$C$10="Exclusive",$C$12="Exclusive"),SUMIFS(Data!$D:$D,Data!$A:$A,'Detailed - DNSP'!$C$4,Data!$B:$B,Inputs!$G$17,Data!$C:$C,'Detailed - DNSP'!C$29),IF(AND($C$6="Exclusive",$C$8="Exclusive",$C$10="Exclusive",$C$12="Exclusive"),SUMIFS(Data!$D:$D,Data!$A:$A,'Detailed - DNSP'!$C$4,Data!$B:$B,Inputs!$G$18,Data!$C:$C,'Detailed - DNSP'!C$29),IF(AND($C$6="Inclusive",$C$8="Inclusive",$C$10="Exclusive",$C$12="Exclusive"),SUMIFS(Data!$D:$D,Data!$A:$A,'Detailed - DNSP'!$C$4,Data!$B:$B,Inputs!$G$19,Data!$C:$C,'Detailed - DNSP'!C$29),IF(AND($C$6="Exclusive",$C$8="Inclusive",$C$10="Exclusive",$C$12="Exclusive"),SUMIFS(Data!$D:$D,Data!$A:$A,'Detailed - DNSP'!$C$4,Data!$B:$B,Inputs!$G$20,Data!$C:$C,'Detailed - DNSP'!C$29),IF(AND($C$6="Inclusive",$C$8="Inclusive",$C$10="Exclusive",$C$12="Inclusive"),SUMIFS(Data!$D:$D,Data!$A:$A,'Detailed - DNSP'!$C$4,Data!$B:$B,Inputs!$G$21,Data!$C:$C,'Detailed - DNSP'!C$29),IF(AND($C$6="Exclusive",$C$8="Inclusive",$C$10="Exclusive",$C$12="Inclusive"),SUMIFS(Data!$D:$D,Data!$A:$A,'Detailed - DNSP'!$C$4,Data!$B:$B,Inputs!$G$22,Data!$C:$C,'Detailed - DNSP'!C$29),IF(AND($C$6="Inclusive",$C$8="Inclusive",$C$10="Inclusive",$C$12="Exclusive"),SUMIFS(Data!$D:$D,Data!$A:$A,'Detailed - DNSP'!$C$4,Data!$B:$B,Inputs!$G$23,Data!$C:$C,'Detailed - DNSP'!C$29),IF(AND($C$6="Exclusive",$C$8="Inclusive",$C$10="Inclusive",$C$12="Exclusive"),SUMIFS(Data!$D:$D,Data!$A:$A,'Detailed - DNSP'!$C$4,Data!$B:$B,Inputs!$G$24,Data!$C:$C,'Detailed - DNSP'!C$29),IF(AND($C$6="Inclusive",$C$8="Exclusive",$C$10="Inclusive",$C$12="Exclusive"),SUMIFS(Data!$D:$D,Data!$A:$A,'Detailed - DNSP'!$C$4,Data!$B:$B,Inputs!$G$25,Data!$C:$C,'Detailed - DNSP'!C$29),IF(AND($C$6="Exclusive",$C$8="Exclusive",$C$10="Inclusive",$C$12="Exclusive"),SUMIFS(Data!$D:$D,Data!$A:$A,'Detailed - DNSP'!$C$4,Data!$B:$B,Inputs!$G$26,Data!$C:$C,'Detailed - DNSP'!C$29))))))))))))))))) -> 0.06916029045 | D30: =IF(AND($C$6="Inclusive",$C$8="Inclusive",$C$10="Inclusive",$C$12="Inclusive"),SUMIFS(Data!$D:$D,Data!$A:$A,'Detailed - DNSP'!$C$4,Data!$B:$B,Inputs!$G$11,Data!$C:$C,'Detailed - DNSP'!D$29),IF(AND($C$6="Exclusive",$C$8="Inclusive",$C$10="Inclusive",$C$12="Inclusive"),SUMIFS(Data!$D:$D,Data!$A:$A,'Detailed - DNSP'!$C$4,Data!$B:$B,Inputs!$G$12,Data!$C:$C,'Detailed - DNSP'!D$29),IF(AND($C$6="Inclusive",$C$8="Exclusive",$C$10="Inclusive",$C$12="Inclusive"),SUMIFS(Data!$D:$D,Data!$A:$A,'Detailed - DNSP'!$C$4,Data!$B:$B,Inputs!$G$13,Data!$C:$C,'Detailed - DNSP'!D$29),IF(AND($C$6="Exclusive",$C$8="Exclusive",$C$10="Inclusive",$C$12="Inclusive"),SUMIFS(Data!$D:$D,Data!$A:$A,'Detailed - DNSP'!$C$4,Data!$B:$B,Inputs!$G$14,Data!$C:$C,'Detailed - DNSP'!D$29),IF(AND($C$6="Inclusive",$C$8="Exclusive",$C$10="Exclusive",$C$12="Inclusive"),SUMIFS(Data!$D:$D,Data!$A:$A,'Detailed - DNSP'!$C$4,Data!$B:$B,Inputs!$G$15,Data!$C:$C,'Detailed - DNSP'!D$29),IF(AND($C$6="Exclusive",$C$8="Exclusive",$C$10="Exclusive",$C$12="Inclusive"),SUMIFS(Data!$D:$D,Data!$A:$A,'Detailed - DNSP'!$C$4,Data!$B:$B,Inputs!$G$16,Data!$C:$C,'Detailed - DNSP'!D$29),IF(AND($C$6="Inclusive",$C$8="Exclusive",$C$10="Exclusive",$C$12="Exclusive"),SUMIFS(Data!$D:$D,Data!$A:$A,'Detailed - DNSP'!$C$4,Data!$B:$B,Inputs!$G$17,Data!$C:$C,'Detailed - DNSP'!D$29),IF(AND($C$6="Exclusive",$C$8="Exclusive",$C$10="Exclusive",$C$12="Exclusive"),SUMIFS(Data!$D:$D,Data!$A:$A,'Detailed - DNSP'!$C$4,Data!$B:$B,Inputs!$G$18,Data!$C:$C,'Detailed - DNSP'!D$29),IF(AND($C$6="Inclusive",$C$8="Inclusive",$C$10="Exclusive",$C$12="Exclusive"),SUMIFS(Data!$D:$D,Data!$A:$A,'Detailed - DNSP'!$C$4,Data!$B:$B,Inputs!$G$19,Data!$C:$C,'Detailed - DNSP'!D$29),IF(AND($C$6="Exclusive",$C$8="Inclusive",$C$10="Exclusive",$C$12="Exclusive"),SUMIFS(Data!$D:$D,Data!$A:$A,'Detailed - DNSP'!$C$4,Data!$B:$B,Inputs!$G$20,Data!$C:$C,'Detailed - DNSP'!D$29),IF(AND($C$6="Inclusive",$C$8="Inclusive",$C$10="Exclusive",$C$12="Inclusive"),SUMIFS(Data!$D:$D,Data!$A:$A,'Detailed - DNSP'!$C$4,Data!$B:$B,Inputs!$G$21,Data!$C:$C,'Detailed - DNSP'!D$29),IF(AND($C$6="Exclusive",$C$8="Inclusive",$C$10="Exclusive",$C$12="Inclusive"),SUMIFS(Data!$D:$D,Data!$A:$A,'Detailed - DNSP'!$C$4,Data!$B:$B,Inputs!$G$22,Data!$C:$C,'Detailed - DNSP'!D$29),IF(AND($C$6="Inclusive",$C$8="Inclusive",$C$10="Inclusive",$C$12="Exclusive"),SUMIFS(Data!$D:$D,Data!$A:$A,'Detailed - DNSP'!$C$4,Data!$B:$B,Inputs!$G$23,Data!$C:$C,'Detailed - DNSP'!D$29),IF(AND($C$6="Exclusive",$C$8="Inclusive",$C$10="Inclusive",$C$12="Exclusive"),SUMIFS(Data!$D:$D,Data!$A:$A,'Detailed - DNSP'!$C$4,Data!$B:$B,Inputs!$G$24,Data!$C:$C,'Detailed - DNSP'!D$29),IF(AND($C$6="Inclusive",$C$8="Exclusive",$C$10="Inclusive",$C$12="Exclusive"),SUMIFS(Data!$D:$D,Data!$A:$A,'Detailed - DNSP'!$C$4,Data!$B:$B,Inputs!$G$25,Data!$C:$C,'Detailed - DNSP'!D$29),IF(AND($C$6="Exclusive",$C$8="Exclusive",$C$10="Inclusive",$C$12="Exclusive"),SUMIFS(Data!$D:$D,Data!$A:$A,'Detailed - DNSP'!$C$4,Data!$B:$B,Inputs!$G$26,Data!$C:$C,'Detailed - DNSP'!D$29))))))))))))))))) -> 0.05444617167 | E30: =IF(AND($C$6="Inclusive",$C$8="Inclusive",$C$10="Inclusive",$C$12="Inclusive"),SUMIFS(Data!$D:$D,Data!$A:$A,'Detailed - DNSP'!$C$4,Data!$B:$B,Inputs!$G$11,Data!$C:$C,'Detailed - DNSP'!E$29),IF(AND($C$6="Exclusive",$C$8="Inclusive",$C$10="Inclusive",$C$12="Inclusive"),SUMIFS(Data!$D:$D,Data!$A:$A,'Detailed - DNSP'!$C$4,Data!$B:$B,Inputs!$G$12,Data!$C:$C,'Detailed - DNSP'!E$29),IF(AND($C$6="Inclusive",$C$8="Exclusive",$C$10="Inclusive",$C$12="Inclusive"),SUMIFS(Data!$D:$D,Data!$A:$A,'Detailed - DNSP'!$C$4,Data!$B:$B,Inputs!$G$13,Data!$C:$C,'Detailed - DNSP'!E$29),IF(AND($C$6="Exclusive",$C$8="Exclusive",$C$10="Inclusive",$C$12="Inclusive"),SUMIFS(Data!$D:$D,Data!$A:$A,'Detailed - DNSP'!$C$4,Data!$B:$B,Inputs!$G$14,Data!$C:$C,'Detailed - DNSP'!E$29),IF(AND($C$6="Inclusive",$C$8="Exclusive",$C$10="Exclusive",$C$12="Inclusive"),SUMIFS(Data!$D:$D,Data!$A:$A,'Detailed - DNSP'!$C$4,Data!$B:$B,Inputs!$G$15,Data!$C:$C,'Detailed - DNSP'!E$29),IF(AND($C$6="Exclusive",$C$8="Exclusive",$C$10="Exclusive",$C$12="Inclusive"),SUMIFS(Data!$D:$D,Data!$A:$A,'Detailed - DNSP'!$C$4,Data!$B:$B,Inputs!$G$16,Data!$C:$C,'Detailed - DNSP'!E$29),IF(AND($C$6="Inclusive",$C$8="Exclusive",$C$10="Exclusive",$C$12="Exclusive"),SUMIFS(Data!$D:$D,Data!$A:$A,'Detailed - DNSP'!$C$4,Data!$B:$B,Inputs!$G$17,Data!$C:$C,'Detailed - DNSP'!E$29),IF(AND($C$6="Exclusive",$C$8="Exclusive",$C$10="Exclusive",$C$12="Exclusive"),SUMIFS(Data!$D:$D,Data!$A:$A,'Detailed - DNSP'!$C$4,Data!$B:$B,Inputs!$G$18,Data!$C:$C,'Detailed - DNSP'!E$29),IF(AND($C$6="Inclusive",$C$8="Inclusive",$C$10="Exclusive",$C$12="Exclusive"),SUMIFS(Data!$D:$D,Data!$A:$A,'Detailed - DNSP'!$C$4,Data!$B:$B,Inputs!$G$19,Data!$C:$C,'Detailed - DNSP'!E$29),IF(AND($C$6="Exclusive",$C$8="Inclusive",$C$10="Exclusive",$C$12="Exclusive"),SUMIFS(Data!$D:$D,Data!$A:$A,'Detailed - DNSP'!$C$4,Data!$B:$B,Inputs!$G$20,Data!$C:$C,'Detailed - DNSP'!E$29),IF(AND($C$6="Inclusive",$C$8="Inclusive",$C$10="Exclusive",$C$12="Inclusive"),SUMIFS(Data!$D:$D,Data!$A:$A,'Detailed - DNSP'!$C$4,Data!$B:$B,Inputs!$G$21,Data!$C:$C,'Detailed - DNSP'!E$29),IF(AND($C$6="Exclusive",$C$8="Inclusive",$C$10="Exclusive",$C$12="Inclusive"),SUMIFS(Data!$D:$D,Data!$A:$A,'Detailed - DNSP'!$C$4,Data!$B:$B,Inputs!$G$22,Data!$C:$C,'Detailed - DNSP'!E$29),IF(AND($C$6="Inclusive",$C$8="Inclusive",$C$10="Inclusive",$C$12="Exclusive"),SUMIFS(Data!$D:$D,Data!$A:$A,'Detailed - DNSP'!$C$4,Data!$B:$B,Inputs!$G$23,Data!$C:$C,'Detailed - DNSP'!E$29),IF(AND($C$6="Exclusive",$C$8="Inclusive",$C$10="Inclusive",$C$12="Exclusive"),SUMIFS(Data!$D:$D,Data!$A:$A,'Detailed - DNSP'!$C$4,Data!$B:$B,Inputs!$G$24,Data!$C:$C,'Detailed - DNSP'!E$29),IF(AND($C$6="Inclusive",$C$8="Exclusive",$C$10="Inclusive",$C$12="Exclusive"),SUMIFS(Data!$D:$D,Data!$A:$A,'Detailed - DNSP'!$C$4,Data!$B:$B,Inputs!$G$25,Data!$C:$C,'Detailed - DNSP'!E$29),IF(AND($C$6="Exclusive",$C$8="Exclusive",$C$10="Inclusive",$C$12="Exclusive"),SUMIFS(Data!$D:$D,Data!$A:$A,'Detailed - DNSP'!$C$4,Data!$B:$B,Inputs!$G$26,Data!$C:$C,'Detailed - DNSP'!E$29))))))))))))))))) -> 0.05768545463 | F30: =IF(AND($C$6="Inclusive",$C$8="Inclusive",$C$10="Inclusive",$C$12="Inclusive"),SUMIFS(Data!$D:$D,Data!$A:$A,'Detailed - DNSP'!$C$4,Data!$B:$B,Inputs!$G$11,Data!$C:$C,'Detailed - DNSP'!F$29),IF(AND($C$6="Exclusive",$C$8="Inclusive",$C$10="Inclusive",$C$12="Inclusive"),SUMIFS(Data!$D:$D,Data!$A:$A,'Detailed - DNSP'!$C$4,Data!$B:$B,Inputs!$G$12,Data!$C:$C,'Detailed - DNSP'!F$29),IF(AND($C$6="Inclusive",$C$8="Exclusive",$C$10="Inclusive",$C$12="Inclusive"),SUMIFS(Data!$D:$D,Data!$A:$A,'Detailed - DNSP'!$C$4,Data!$B:$B,Inputs!$G$13,Data!$C:$C,'Detailed - DNSP'!F$29),IF(AND($C$6="Exclusive",$C$8="Exclusive",$C$10="Inclusive",$C$12="Inclusive"),SUMIFS(Data!$D:$D,Data!$A:$A,'Detailed - DNSP'!$C$4,Data!$B:$B,Inputs!$G$14,Data!$C:$C,'Detailed - DNSP'!F$29),IF(AND($C$6="Inclusive",$C$8="Exclusive",$C$10="Exclusive",$C$12="Inclusive"),SUMIFS(Data!$D:$D,Data!$A:$A,'Detailed - DNSP'!$C$4,Data!$B:$B,Inputs!$G$15,Data!$C:$C,'Detailed - DNSP'!F$29),IF(AND($C$6="Exclusive",$C$8="Exclusive",$C$10="Exclusive",$C$12="Inclusive"),SUMIFS(Data!$D:$D,Data!$A:$A,'Detailed - DNSP'!$C$4,Data!$B:$B,Inputs!$G$16,Data!$C:$C,'Detailed - DNSP'!F$29),IF(AND($C$6="Inclusive",$C$8="Exclusive",$C$10="Exclusive",$C$12="Exclusive"),SUMIFS(Data!$D:$D,Data!$A:$A,'Detailed - DNSP'!$C$4,Data!$B:$B,Inputs!$G$17,Data!$C:$C,'Detailed - DNSP'!F$29),IF(AND($C$6="Exclusive",$C$8="Exclusive",$C$10="Exclusive",$C$12="Exclusive"),SUMIFS(Data!$D:$D,Data!$A:$A,'Detailed - DNSP'!$C$4,Data!$B:$B,Inputs!$G$18,Data!$C:$C,'Detailed - DNSP'!F$29),IF(AND($C$6="Inclusive",$C$8="Inclusive",$C$10="Exclusive",$C$12="Exclusive"),SUMIFS(Data!$D:$D,Data!$A:$A,'Detailed - DNSP'!$C$4,Data!$B:$B,Inputs!$G$19,Data!$C:$C,'Detailed - DNSP'!F$29),IF(AND($C$6="Exclusive",$C$8="Inclusive",$C$10="Exclusive",$C$12="Exclusive"),SUMIFS(Data!$D:$D,Data!$A:$A,'Detailed - DNSP'!$C$4,Data!$B:$B,Inputs!$G$20,Data!$C:$C,'Detailed - DNSP'!F$29),IF(AND($C$6="Inclusive",$C$8="Inclusive",$C$10="Exclusive",$C$12="Inclusive"),SUMIFS(Data!$D:$D,Data!$A:$A,'Detailed - DNSP'!$C$4,Data!$B:$B,Inputs!$G$21,Data!$C:$C,'Detailed - DNSP'!F$29),IF(AND($C$6="Exclusive",$C$8="Inclusive",$C$10="Exclusive",$C$12="Inclusive"),SUMIFS(Data!$D:$D,Data!$A:$A,'Detailed - DNSP'!$C$4,Data!$B:$B,Inputs!$G$22,Data!$C:$C,'Detailed - DNSP'!F$29),IF(AND($C$6="Inclusive",$C$8="Inclusive",$C$10="Inclusive",$C$12="Exclusive"),SUMIFS(Data!$D:$D,Data!$A:$A,'Detailed - DNSP'!$C$4,Data!$B:$B,Inputs!$G$23,Data!$C:$C,'Detailed - DNSP'!F$29),IF(AND($C$6="Exclusive",$C$8="Inclusive",$C$10="Inclusive",$C$12="Exclusive"),SUMIFS(Data!$D:$D,Data!$A:$A,'Detailed - DNSP'!$C$4,Data!$B:$B,Inputs!$G$24,Data!$C:$C,'Detailed - DNSP'!F$29),IF(AND($C$6="Inclusive",$C$8="Exclusive",$C$10="Inclusive",$C$12="Exclusive"),SUMIFS(Data!$D:$D,Data!$A:$A,'Detailed - DNSP'!$C$4,Data!$B:$B,Inputs!$G$25,Data!$C:$C,'Detailed - DNSP'!F$29),IF(AND($C$6="Exclusive",$C$8="Exclusive",$C$10="Inclusive",$C$12="Exclusive"),SUMIFS(Data!$D:$D,Data!$A:$A,'Detailed - DNSP'!$C$4,Data!$B:$B,Inputs!$G$26,Data!$C:$C,'Detailed - DNSP'!F$29))))))))))))))))) -> 0.06236897401 | G30: =IF(AND($C$6="Inclusive",$C$8="Inclusive",$C$10="Inclusive",$C$12="Inclusive"),SUMIFS(Data!$D:$D,Data!$A:$A,'Detailed - DNSP'!$C$4,Data!$B:$B,Inputs!$G$11,Data!$C:$C,'Detailed - DNSP'!G$29),IF(AND($C$6="Exclusive",$C$8="Inclusive",$C$10="Inclusive",$C$12="Inclusive"),SUMIFS(Data!$D:$D,Data!$A:$A,'Detailed - DNSP'!$C$4,Data!$B:$B,Inputs!$G$12,Data!$C:$C,'Detailed - DNSP'!G$29),IF(AND($C$6="Inclusive",$C$8="Exclusive",$C$10="Inclusive",$C$12="Inclusive"),SUMIFS(Data!$D:$D,Data!$A:$A,'Detailed - DNSP'!$C$4,Data!$B:$B,Inputs!$G$13,Data!$C:$C,'Detailed - DNSP'!G$29),IF(AND($C$6="Exclusive",$C$8="Exclusive",$C$10="Inclusive",$C$12="Inclusive"),SUMIFS(Data!$D:$D,Data!$A:$A,'Detailed - DNSP'!$C$4,Data!$B:$B,Inputs!$G$14,Data!$C:$C,'Detailed - DNSP'!G$29),IF(AND($C$6="Inclusive",$C$8="Exclusive",$C$10="Exclusive",$C$12="Inclusive"),SUMIFS(Data!$D:$D,Data!$A:$A,'Detailed - DNSP'!$C$4,Data!$B:$B,Inputs!$G$15,Data!$C:$C,'Detailed - DNSP'!G$29),IF(AND($C$6="Exclusive",$C$8="Exclusive",$C$10="Exclusive",$C$12="Inclusive"),SUMIFS(Data!$D:$D,Data!$A:$A,'Detailed - DNSP'!$C$4,Data!$B:$B,Inputs!$G$16,Data!$C:$C,'Detailed - DNSP'!G$29),IF(AND($C$6="Inclusive",$C$8="Exclusive",$C$10="Exclusive",$C$12="Exclusive"),SUMIFS(Data!$D:$D,Data!$A:$A,'Detailed - DNSP'!$C$4,Data!$B:$B,Inputs!$G$17,Data!$C:$C,'Detailed - DNSP'!G$29),IF(AND($C$6="Exclusive",$C$8="Exclusive",$C$10="Exclusive",$C$12="Exclusive"),SUMIFS(Data!$D:$D,Data!$A:$A,'Detailed - DNSP'!$C$4,Data!$B:$B,Inputs!$G$18,Data!$C:$C,'Detailed - DNSP'!G$29),IF(AND($C$6="Inclusive",$C$8="Inclusive",$C$10="Exclusive",$C$12="Exclusive"),SUMIFS(Data!$D:$D,Data!$A:$A,'Detailed - DNSP'!$C$4,Data!$B:$B,Inputs!$G$19,Data!$C:$C,'Detailed - DNSP'!G$29),IF(AND($C$6="Exclusive",$C$8="Inclusive",$C$10="Exclusive",$C$12="Exclusive"),SUMIFS(Data!$D:$D,Data!$A:$A,'Detailed - DNSP'!$C$4,Data!$B:$B,Inputs!$G$20,Data!$C:$C,'Detailed - DNSP'!G$29),IF(AND($C$6="Inclusive",$C$8="Inclusive",$C$10="Exclusive",$C$12="Inclusive"),SUMIFS(Data!$D:$D,Data!$A:$A,'Detailed - DNSP'!$C$4,Data!$B:$B,Inputs!$G$21,Data!$C:$C,'Detailed - DNSP'!G$29),IF(AND($C$6="Exclusive",$C$8="Inclusive",$C$10="Exclusive",$C$12="Inclusive"),SUMIFS(Data!$D:$D,Data!$A:$A,'Detailed - DNSP'!$C$4,Data!$B:$B,Inputs!$G$22,Data!$C:$C,'Detailed - DNSP'!G$29),IF(AND($C$6="Inclusive",$C$8="Inclusive",$C$10="Inclusive",$C$12="Exclusive"),SUMIFS(Data!$D:$D,Data!$A:$A,'Detailed - DNSP'!$C$4,Data!$B:$B,Inputs!$G$23,Data!$C:$C,'Detailed - DNSP'!G$29),IF(AND($C$6="Exclusive",$C$8="Inclusive",$C$10="Inclusive",$C$12="Exclusive"),SUMIFS(Data!$D:$D,Data!$A:$A,'Detailed - DNSP'!$C$4,Data!$B:$B,Inputs!$G$24,Data!$C:$C,'Detailed - DNSP'!G$29),IF(AND($C$6="Inclusive",$C$8="Exclusive",$C$10="Inclusive",$C$12="Exclusive"),SUMIFS(Data!$D:$D,Data!$A:$A,'Detailed - DNSP'!$C$4,Data!$B:$B,Inputs!$G$25,Data!$C:$C,'Detailed - DNSP'!G$29),IF(AND($C$6="Exclusive",$C$8="Exclusive",$C$10="Inclusive",$C$12="Exclusive"),SUMIFS(Data!$D:$D,Data!$A:$A,'Detailed - DNSP'!$C$4,Data!$B:$B,Inputs!$G$26,Data!$C:$C,'Detailed - DNSP'!G$29))))))))))))))))) -> 0.08102613209 | H30: =IF(AND($C$6="Inclusive",$C$8="Inclusive",$C$10="Inclusive",$C$12="Inclusive"),SUMIFS(Data!$D:$D,Data!$A:$A,'Detailed - DNSP'!$C$4,Data!$B:$B,Inputs!$G$11,Data!$C:$C,'Detailed - DNSP'!H$29),IF(AND($C$6="Exclusive",$C$8="Inclusive",$C$10="Inclusive",$C$12="Inclusive"),SUMIFS(Data!$D:$D,Data!$A:$A,'Detailed - DNSP'!$C$4,Data!$B:$B,Inputs!$G$12,Data!$C:$C,'Detailed - DNSP'!H$29),IF(AND($C$6="Inclusive",$C$8="Exclusive",$C$10="Inclusive",$C$12="Inclusive"),SUMIFS(Data!$D:$D,Data!$A:$A,'Detailed - DNSP'!$C$4,Data!$B:$B,Inputs!$G$13,Data!$C:$C,'Detailed - DNSP'!H$29),IF(AND($C$6="Exclusive",$C$8="Exclusive",$C$10="Inclusive",$C$12="Inclusive"),SUMIFS(Data!$D:$D,Data!$A:$A,'Detailed - DNSP'!$C$4,Data!$B:$B,Inputs!$G$14,Data!$C:$C,'Detailed - DNSP'!H$29),IF(AND($C$6="Inclusive",$C$8="Exclusive",$C$10="Exclusive",$C$12="Inclusive"),SUMIFS(Data!$D:$D,Data!$A:$A,'Detailed - DNSP'!$C$4,Data!$B:$B,Inputs!$G$15,Data!$C:$C,'Detailed - DNSP'!H$29),IF(AND($C$6="Exclusive",$C$8="Exclusive",$C$10="Exclusive",$C$12="Inclusive"),SUMIFS(Data!$D:$D,Data!$A:$A,'Detailed - DNSP'!$C$4,Data!$B:$B,Inputs!$G$16,Data!$C:$C,'Detailed - DNSP'!H$29),IF(AND($C$6="Inclusive",$C$8="Exclusive",$C$10="Exclusive",$C$12="Exclusive"),SUMIFS(Data!$D:$D,Data!$A:$A,'Detailed - DNSP'!$C$4,Data!$B:$B,Inputs!$G$17,Data!$C:$C,'Detailed - DNSP'!H$29),IF(AND($C$6="Exclusive",$C$8="Exclusive",$C$10="Exclusive",$C$12="Exclusive"),SUMIFS(Data!$D:$D,Data!$A:$A,'Detailed - DNSP'!$C$4,Data!$B:$B,Inputs!$G$18,Data!$C:$C,'Detailed - DNSP'!H$29),IF(AND($C$6="Inclusive",$C$8="Inclusive",$C$10="Exclusive",$C$12="Exclusive"),SUMIFS(Data!$D:$D,Data!$A:$A,'Detailed - DNSP'!$C$4,Data!$B:$B,Inputs!$G$19,Data!$C:$C,'Detailed - DNSP'!H$29),IF(AND($C$6="Exclusive",$C$8="Inclusive",$C$10="Exclusive",$C$12="Exclusive"),SUMIFS(Data!$D:$D,Data!$A:$A,'Detailed - DNSP'!$C$4,Data!$B:$B,Inputs!$G$20,Data!$C:$C,'Detailed - DNSP'!H$29),IF(AND($C$6="Inclusive",$C$8="Inclusive",$C$10="Exclusive",$C$12="Inclusive"),SUMIFS(Data!$D:$D,Data!$A:$A,'Detailed - DNSP'!$C$4,Data!$B:$B,Inputs!$G$21,Data!$C:$C,'Detailed - DNSP'!H$29),IF(AND($C$6="Exclusive",$C$8="Inclusive",$C$10="Exclusive",$C$12="Inclusive"),SUMIFS(Data!$D:$D,Data!$A:$A,'Detailed - DNSP'!$C$4,Data!$B:$B,Inputs!$G$22,Data!$C:$C,'Detailed - DNSP'!H$29),IF(AND($C$6="Inclusive",$C$8="Inclusive",$C$10="Inclusive",$C$12="Exclusive"),SUMIFS(Data!$D:$D,Data!$A:$A,'Detailed - DNSP'!$C$4,Data!$B:$B,Inputs!$G$23,Data!$C:$C,'Detailed - DNSP'!H$29),IF(AND($C$6="Exclusive",$C$8="Inclusive",$C$10="Inclusive",$C$12="Exclusive"),SUMIFS(Data!$D:$D,Data!$A:$A,'Detailed - DNSP'!$C$4,Data!$B:$B,Inputs!$G$24,Data!$C:$C,'Detailed - DNSP'!H$29),IF(AND($C$6="Inclusive",$C$8="Exclusive",$C$10="Inclusive",$C$12="Exclusive"),SUMIFS(Data!$D:$D,Data!$A:$A,'Detailed - DNSP'!$C$4,Data!$B:$B,Inputs!$G$25,Data!$C:$C,'Detailed - DNSP'!H$29),IF(AND($C$6="Exclusive",$C$8="Exclusive",$C$10="Inclusive",$C$12="Exclusive"),SUMIFS(Data!$D:$D,Data!$A:$A,'Detailed - DNSP'!$C$4,Data!$B:$B,Inputs!$G$26,Data!$C:$C,'Detailed - DNSP'!H$29))))))))))))))))) -> 0.08679715334 | I30: =IF(AND($C$6="Inclusive",$C$8="Inclusive",$C$10="Inclusive",$C$12="Inclusive"),SUMIFS(Data!$D:$D,Data!$A:$A,'Detailed - DNSP'!$C$4,Data!$B:$B,Inputs!$G$11,Data!$C:$C,'Detailed - DNSP'!I$29),IF(AND($C$6="Exclusive",$C$8="Inclusive",$C$10="Inclusive",$C$12="Inclusive"),SUMIFS(Data!$D:$D,Data!$A:$A,'Detailed - DNSP'!$C$4,Data!$B:$B,Inputs!$G$12,Data!$C:$C,'Detailed - DNSP'!I$29),IF(AND($C$6="Inclusive",$C$8="Exclusive",$C$10="Inclusive",$C$12="Inclusive"),SUMIFS(Data!$D:$D,Data!$A:$A,'Detailed - DNSP'!$C$4,Data!$B:$B,Inputs!$G$13,Data!$C:$C,'Detailed - DNSP'!I$29),IF(AND($C$6="Exclusive",$C$8="Exclusive",$C$10="Inclusive",$C$12="Inclusive"),SUMIFS(Data!$D:$D,Data!$A:$A,'Detailed - DNSP'!$C$4,Data!$B:$B,Inputs!$G$14,Data!$C:$C,'Detailed - DNSP'!I$29),IF(AND($C$6="Inclusive",$C$8="Exclusive",$C$10="Exclusive",$C$12="Inclusive"),SUMIFS(Data!$D:$D,Data!$A:$A,'Detailed - DNSP'!$C$4,Data!$B:$B,Inputs!$G$15,Data!$C:$C,'Detailed - DNSP'!I$29),IF(AND($C$6="Exclusive",$C$8="Exclusive",$C$10="Exclusive",$C$12="Inclusive"),SUMIFS(Data!$D:$D,Data!$A:$A,'Detailed - DNSP'!$C$4,Data!$B:$B,Inputs!$G$16,Data!$C:$C,'Detailed - DNSP'!I$29),IF(AND($C$6="Inclusive",$C$8="Exclusive",$C$10="Exclusive",$C$12="Exclusive"),SUMIFS(Data!$D:$D,Data!$A:$A,'Detailed - DNSP'!$C$4,Data!$B:$B,Inputs!$G$17,Data!$C:$C,'Detailed - DNSP'!I$29),IF(AND($C$6="Exclusive",$C$8="Exclusive",$C$10="Exclusive",$C$12="Exclusive"),SUMIFS(Data!$D:$D,Data!$A:$A,'Detailed - DNSP'!$C$4,Data!$B:$B,Inputs!$G$18,Data!$C:$C,'Detailed - DNSP'!I$29),IF(AND($C$6="Inclusive",$C$8="Inclusive",$C$10="Exclusive",$C$12="Exclusive"),SUMIFS(Data!$D:$D,Data!$A:$A,'Detailed - DNSP'!$C$4,Data!$B:$B,Inputs!$G$19,Data!$C:$C,'Detailed - DNSP'!I$29),IF(AND($C$6="Exclusive",$C$8="Inclusive",$C$10="Exclusive",$C$12="Exclusive"),SUMIFS(Data!$D:$D,Data!$A:$A,'Detailed - DNSP'!$C$4,Data!$B:$B,Inputs!$G$20,Data!$C:$C,'Detailed - DNSP'!I$29),IF(AND($C$6="Inclusive",$C$8="Inclusive",$C$10="Exclusive",$C$12="Inclusive"),SUMIFS(Data!$D:$D,Data!$A:$A,'Detailed - DNSP'!$C$4,Data!$B:$B,Inputs!$G$21,Data!$C:$C,'Detailed - DNSP'!I$29),IF(AND($C$6="Exclusive",$C$8="Inclusive",$C$10="Exclusive",$C$12="Inclusive"),SUMIFS(Data!$D:$D,Data!$A:$A,'Detailed - DNSP'!$C$4,Data!$B:$B,Inputs!$G$22,Data!$C:$C,'Detailed - DNSP'!I$29),IF(AND($C$6="Inclusive",$C$8="Inclusive",$C$10="Inclusive",$C$12="Exclusive"),SUMIFS(Data!$D:$D,Data!$A:$A,'Detailed - DNSP'!$C$4,Data!$B:$B,Inputs!$G$23,Data!$C:$C,'Detailed - DNSP'!I$29),IF(AND($C$6="Exclusive",$C$8="Inclusive",$C$10="Inclusive",$C$12="Exclusive"),SUMIFS(Data!$D:$D,Data!$A:$A,'Detailed - DNSP'!$C$4,Data!$B:$B,Inputs!$G$24,Data!$C:$C,'Detailed - DNSP'!I$29),IF(AND($C$6="Inclusive",$C$8="Exclusive",$C$10="Inclusive",$C$12="Exclusive"),SUMIFS(Data!$D:$D,Data!$A:$A,'Detailed - DNSP'!$C$4,Data!$B:$B,Inputs!$G$25,Data!$C:$C,'Detailed - DNSP'!I$29),IF(AND($C$6="Exclusive",$C$8="Exclusive",$C$10="Inclusive",$C$12="Exclusive"),SUMIFS(Data!$D:$D,Data!$A:$A,'Detailed - DNSP'!$C$4,Data!$B:$B,Inputs!$G$26,Data!$C:$C,'Detailed - DNSP'!I$29))))))))))))))))) -> 0.03399791198 | J30: =IF(AND($C$6="Inclusive",$C$8="Inclusive",$C$10="Inclusive",$C$12="Inclusive"),SUMIFS(Data!$D:$D,Data!$A:$A,'Detailed - DNSP'!$C$4,Data!$B:$B,Inputs!$G$11,Data!$C:$C,'Detailed - DNSP'!J$29),IF(AND($C$6="Exclusive",$C$8="Inclusive",$C$10="Inclusive",$C$12="Inclusive"),SUMIFS(Data!$D:$D,Data!$A:$A,'Detailed - DNSP'!$C$4,Data!$B:$B,Inputs!$G$12,Data!$C:$C,'Detailed - DNSP'!J$29),IF(AND($C$6="Inclusive",$C$8="Exclusive",$C$10="Inclusive",$C$12="Inclusive"),SUMIFS(Data!$D:$D,Data!$A:$A,'Detailed - DNSP'!$C$4,Data!$B:$B,Inputs!$G$13,Data!$C:$C,'Detailed - DNSP'!J$29),IF(AND($C$6="Exclusive",$C$8="Exclusive",$C$10="Inclusive",$C$12="Inclusive"),SUMIFS(Data!$D:$D,Data!$A:$A,'Detailed - DNSP'!$C$4,Data!$B:$B,Inputs!$G$14,Data!$C:$C,'Detailed - DNSP'!J$29),IF(AND($C$6="Inclusive",$C$8="Exclusive",$C$10="Exclusive",$C$12="Inclusive"),SUMIFS(Data!$D:$D,Data!$A:$A,'Detailed - DNSP'!$C$4,Data!$B:$B,Inputs!$G$15,Data!$C:$C,'Detailed - DNSP'!J$29),IF(AND($C$6="Exclusive",$C$8="Exclusive",$C$10="Exclusive",$C$12="Inclusive"),SUMIFS(Data!$D:$D,Data!$A:$A,'Detailed - DNSP'!$C$4,Data!$B:$B,Inputs!$G$16,Data!$C:$C,'Detailed - DNSP'!J$29),IF(AND($C$6="Inclusive",$C$8="Exclusive",$C$10="Exclusive",$C$12="Exclusive"),SUMIFS(Data!$D:$D,Data!$A:$A,'Detailed - DNSP'!$C$4,Data!$B:$B,Inputs!$G$17,Data!$C:$C,'Detailed - DNSP'!J$29),IF(AND($C$6="Exclusive",$C$8="Exclusive",$C$10="Exclusive",$C$12="Exclusive"),SUMIFS(Data!$D:$D,Data!$A:$A,'Detailed - DNSP'!$C$4,Data!$B:$B,Inputs!$G$18,Data!$C:$C,'Detailed - DNSP'!J$29),IF(AND($C$6="Inclusive",$C$8="Inclusive",$C$10="Exclusive",$C$12="Exclusive"),SUMIFS(Data!$D:$D,Data!$A:$A,'Detailed - DNSP'!$C$4,Data!$B:$B,Inputs!$G$19,Data!$C:$C,'Detailed - DNSP'!J$29),IF(AND($C$6="Exclusive",$C$8="Inclusive",$C$10="Exclusive",$C$12="Exclusive"),SUMIFS(Data!$D:$D,Data!$A:$A,'Detailed - DNSP'!$C$4,Data!$B:$B,Inputs!$G$20,Data!$C:$C,'Detailed - DNSP'!J$29),IF(AND($C$6="Inclusive",$C$8="Inclusive",$C$10="Exclusive",$C$12="Inclusive"),SUMIFS(Data!$D:$D,Data!$A:$A,'Detailed - DNSP'!$C$4,Data!$B:$B,Inputs!$G$21,Data!$C:$C,'Detailed - DNSP'!J$29),IF(AND($C$6="Exclusive",$C$8="Inclusive",$C$10="Exclusive",$C$12="Inclusive"),SUMIFS(Data!$D:$D,Data!$A:$A,'Detailed - DNSP'!$C$4,Data!$B:$B,Inputs!$G$22,Data!$C:$C,'Detailed - DNSP'!J$29),IF(AND($C$6="Inclusive",$C$8="Inclusive",$C$10="Inclusive",$C$12="Exclusive"),SUMIFS(Data!$D:$D,Data!$A:$A,'Detailed - DNSP'!$C$4,Data!$B:$B,Inputs!$G$23,Data!$C:$C,'Detailed - DNSP'!J$29),IF(AND($C$6="Exclusive",$C$8="Inclusive",$C$10="Inclusive",$C$12="Exclusive"),SUMIFS(Data!$D:$D,Data!$A:$A,'Detailed - DNSP'!$C$4,Data!$B:$B,Inputs!$G$24,Data!$C:$C,'Detailed - DNSP'!J$29),IF(AND($C$6="Inclusive",$C$8="Exclusive",$C$10="Inclusive",$C$12="Exclusive"),SUMIFS(Data!$D:$D,Data!$A:$A,'Detailed - DNSP'!$C$4,Data!$B:$B,Inputs!$G$25,Data!$C:$C,'Detailed - DNSP'!J$29),IF(AND($C$6="Exclusive",$C$8="Exclusive",$C$10="Inclusive",$C$12="Exclusive"),SUMIFS(Data!$D:$D,Data!$A:$A,'Detailed - DNSP'!$C$4,Data!$B:$B,Inputs!$G$26,Data!$C:$C,'Detailed - DNSP'!J$29))))))))))))))))) -> -0.01881495018 | K30: =IF(AND($C$6="Inclusive",$C$8="Inclusive",$C$10="Inclusive",$C$12="Inclusive"),SUMIFS(Data!$D:$D,Data!$A:$A,'Detailed - DNSP'!$C$4,Data!$B:$B,Inputs!$G$11,Data!$C:$C,'Detailed - DNSP'!K$29),IF(AND($C$6="Exclusive",$C$8="Inclusive",$C$10="Inclusive",$C$12="Inclusive"),SUMIFS(Data!$D:$D,Data!$A:$A,'Detailed - DNSP'!$C$4,Data!$B:$B,Inputs!$G$12,Data!$C:$C,'Detailed - DNSP'!K$29),IF(AND($C$6="Inclusive",$C$8="Exclusive",$C$10="Inclusive",$C$12="Inclusive"),SUMIFS(Data!$D:$D,Data!$A:$A,'Detailed - DNSP'!$C$4,Data!$B:$B,Inputs!$G$13,Data!$C:$C,'Detailed - DNSP'!K$29),IF(AND($C$6="Exclusive",$C$8="Exclusive",$C$10="Inclusive",$C$12="Inclusive"),SUMIFS(Data!$D:$D,Data!$A:$A,'Detailed - DNSP'!$C$4,Data!$B:$B,Inputs!$G$14,Data!$C:$C,'Detailed - DNSP'!K$29),IF(AND($C$6="Inclusive",$C$8="Exclusive",$C$10="Exclusive",$C$12="Inclusive"),SUMIFS(Data!$D:$D,Data!$A:$A,'Detailed - DNSP'!$C$4,Data!$B:$B,Inputs!$G$15,Data!$C:$C,'Detailed - DNSP'!K$29),IF(AND($C$6="Exclusive",$C$8="Exclusive",$C$10="Exclusive",$C$12="Inclusive"),SUMIFS(Data!$D:$D,Data!$A:$A,'Detailed - DNSP'!$C$4,Data!$B:$B,Inputs!$G$16,Data!$C:$C,'Detailed - DNSP'!K$29),IF(AND($C$6="Inclusive",$C$8="Exclusive",$C$10="Exclusive",$C$12="Exclusive"),SUMIFS(Data!$D:$D,Data!$A:$A,'Detailed - DNSP'!$C$4,Data!$B:$B,Inputs!$G$17,Data!$C:$C,'Detailed - DNSP'!K$29),IF(AND($C$6="Exclusive",$C$8="Exclusive",$C$10="Exclusive",$C$12="Exclusive"),SUMIFS(Data!$D:$D,Data!$A:$A,'Detailed - DNSP'!$C$4,Data!$B:$B,Inputs!$G$18,Data!$C:$C,'Detailed - DNSP'!K$29),IF(AND($C$6="Inclusive",$C$8="Inclusive",$C$10="Exclusive",$C$12="Exclusive"),SUMIFS(Data!$D:$D,Data!$A:$A,'Detailed - DNSP'!$C$4,Data!$B:$B,Inputs!$G$19,Data!$C:$C,'Detailed - DNSP'!K$29),IF(AND($C$6="Exclusive",$C$8="Inclusive",$C$10="Exclusive",$C$12="Exclusive"),SUMIFS(Data!$D:$D,Data!$A:$A,'Detailed - DNSP'!$C$4,Data!$B:$B,Inputs!$G$20,Data!$C:$C,'Detailed - DNSP'!K$29),IF(AND($C$6="Inclusive",$C$8="Inclusive",$C$10="Exclusive",$C$12="Inclusive"),SUMIFS(Data!$D:$D,Data!$A:$A,'Detailed - DNSP'!$C$4,Data!$B:$B,Inputs!$G$21,Data!$C:$C,'Detailed - DNSP'!K$29),IF(AND($C$6="Exclusive",$C$8="Inclusive",$C$10="Exclusive",$C$12="Inclusive"),SUMIFS(Data!$D:$D,Data!$A:$A,'Detailed - DNSP'!$C$4,Data!$B:$B,Inputs!$G$22,Data!$C:$C,'Detailed - DNSP'!K$29),IF(AND($C$6="Inclusive",$C$8="Inclusive",$C$10="Inclusive",$C$12="Exclusive"),SUMIFS(Data!$D:$D,Data!$A:$A,'Detailed - DNSP'!$C$4,Data!$B:$B,Inputs!$G$23,Data!$C:$C,'Detailed - DNSP'!K$29),IF(AND($C$6="Exclusive",$C$8="Inclusive",$C$10="Inclusive",$C$12="Exclusive"),SUMIFS(Data!$D:$D,Data!$A:$A,'Detailed - DNSP'!$C$4,Data!$B:$B,Inputs!$G$24,Data!$C:$C,'Detailed - DNSP'!K$29),IF(AND($C$6="Inclusive",$C$8="Exclusive",$C$10="Inclusive",$C$12="Exclusive"),SUMIFS(Data!$D:$D,Data!$A:$A,'Detailed - DNSP'!$C$4,Data!$B:$B,Inputs!$G$25,Data!$C:$C,'Detailed - DNSP'!K$29),IF(AND($C$6="Exclusive",$C$8="Exclusive",$C$10="Inclusive",$C$12="Exclusive"),SUMIFS(Data!$D:$D,Data!$A:$A,'Detailed - DNSP'!$C$4,Data!$B:$B,Inputs!$G$26,Data!$C:$C,'Detailed - DNSP'!K$29))))))))))))))))) -> 0.1374388313 | L30: =IF(AND($C$6="Inclusive",$C$8="Inclusive",$C$10="Inclusive",$C$12="Inclusive"),SUMIFS(Data!$D:$D,Data!$A:$A,'Detailed - DNSP'!$C$4,Data!$B:$B,Inputs!$G$11,Data!$C:$C,'Detailed - DNSP'!L$29),IF(AND($C$6="Exclusive",$C$8="Inclusive",$C$10="Inclusive",$C$12="Inclusive"),SUMIFS(Data!$D:$D,Data!$A:$A,'Detailed - DNSP'!$C$4,Data!$B:$B,Inputs!$G$12,Data!$C:$C,'Detailed - DNSP'!L$29),IF(AND($C$6="Inclusive",$C$8="Exclusive",$C$10="Inclusive",$C$12="Inclusive"),SUMIFS(Data!$D:$D,Data!$A:$A,'Detailed - DNSP'!$C$4,Data!$B:$B,Inputs!$G$13,Data!$C:$C,'Detailed - DNSP'!L$29),IF(AND($C$6="Exclusive",$C$8="Exclusive",$C$10="Inclusive",$C$12="Inclusive"),SUMIFS(Data!$D:$D,Data!$A:$A,'Detailed - DNSP'!$C$4,Data!$B:$B,Inputs!$G$14,Data!$C:$C,'Detailed - DNSP'!L$29),IF(AND($C$6="Inclusive",$C$8="Exclusive",$C$10="Exclusive",$C$12="Inclusive"),SUMIFS(Data!$D:$D,Data!$A:$A,'Detailed - DNSP'!$C$4,Data!$B:$B,Inputs!$G$15,Data!$C:$C,'Detailed - DNSP'!L$29),IF(AND($C$6="Exclusive",$C$8="Exclusive",$C$10="Exclusive",$C$12="Inclusive"),SUMIFS(Data!$D:$D,Data!$A:$A,'Detailed - DNSP'!$C$4,Data!$B:$B,Inputs!$G$16,Data!$C:$C,'Detailed - DNSP'!L$29),IF(AND($C$6="Inclusive",$C$8="Exclusive",$C$10="Exclusive",$C$12="Exclusive"),SUMIFS(Data!$D:$D,Data!$A:$A,'Detailed - DNSP'!$C$4,Data!$B:$B,Inputs!$G$17,Data!$C:$C,'Detailed - DNSP'!L$29),IF(AND($C$6="Exclusive",$C$8="Exclusive",$C$10="Exclusive",$C$12="Exclusive"),SUMIFS(Data!$D:$D,Data!$A:$A,'Detailed - DNSP'!$C$4,Data!$B:$B,Inputs!$G$18,Data!$C:$C,'Detailed - DNSP'!L$29),IF(AND($C$6="Inclusive",$C$8="Inclusive",$C$10="Exclusive",$C$12="Exclusive"),SUMIFS(Data!$D:$D,Data!$A:$A,'Detailed - DNSP'!$C$4,Data!$B:$B,Inputs!$G$19,Data!$C:$C,'Detailed - DNSP'!L$29),IF(AND($C$6="Exclusive",$C$8="Inclusive",$C$10="Exclusive",$C$12="Exclusive"),SUMIFS(Data!$D:$D,Data!$A:$A,'Detailed - DNSP'!$C$4,Data!$B:$B,Inputs!$G$20,Data!$C:$C,'Detailed - DNSP'!L$29),IF(AND($C$6="Inclusive",$C$8="Inclusive",$C$10="Exclusive",$C$12="Inclusive"),SUMIFS(Data!$D:$D,Data!$A:$A,'Detailed - DNSP'!$C$4,Data!$B:$B,Inputs!$G$21,Data!$C:$C,'Detailed - DNSP'!L$29),IF(AND($C$6="Exclusive",$C$8="Inclusive",$C$10="Exclusive",$C$12="Inclusive"),SUMIFS(Data!$D:$D,Data!$A:$A,'Detailed - DNSP'!$C$4,Data!$B:$B,Inputs!$G$22,Data!$C:$C,'Detailed - DNSP'!L$29),IF(AND($C$6="Inclusive",$C$8="Inclusive",$C$10="Inclusive",$C$12="Exclusive"),SUMIFS(Data!$D:$D,Data!$A:$A,'Detailed - DNSP'!$C$4,Data!$B:$B,Inputs!$G$23,Data!$C:$C,'Detailed - DNSP'!L$29),IF(AND($C$6="Exclusive",$C$8="Inclusive",$C$10="Inclusive",$C$12="Exclusive"),SUMIFS(Data!$D:$D,Data!$A:$A,'Detailed - DNSP'!$C$4,Data!$B:$B,Inputs!$G$24,Data!$C:$C,'Detailed - DNSP'!L$29),IF(AND($C$6="Inclusive",$C$8="Exclusive",$C$10="Inclusive",$C$12="Exclusive"),SUMIFS(Data!$D:$D,Data!$A:$A,'Detailed - DNSP'!$C$4,Data!$B:$B,Inputs!$G$25,Data!$C:$C,'Detailed - DNSP'!L$29),IF(AND($C$6="Exclusive",$C$8="Exclusive",$C$10="Inclusive",$C$12="Exclusive"),SUMIFS(Data!$D:$D,Data!$A:$A,'Detailed - DNSP'!$C$4,Data!$B:$B,Inputs!$G$26,Data!$C:$C,'Detailed - DNSP'!L$29))))))))))))))))) -> 0.1001477099 | M30: =IF(AND($C$6="Inclusive",$C$8="Inclusive",$C$10="Inclusive",$C$12="Inclusive"),SUMIFS(Data!$D:$D,Data!$A:$A,'Detailed - DNSP'!$C$4,Data!$B:$B,Inputs!$G$11,Data!$C:$C,'Detailed - DNSP'!M$29),IF(AND($C$6="Exclusive",$C$8="Inclusive",$C$10="Inclusive",$C$12="Inclusive"),SUMIFS(Data!$D:$D,Data!$A:$A,'Detailed - DNSP'!$C$4,Data!$B:$B,Inputs!$G$12,Data!$C:$C,'Detailed - DNSP'!M$29),IF(AND($C$6="Inclusive",$C$8="Exclusive",$C$10="Inclusive",$C$12="Inclusive"),SUMIFS(Data!$D:$D,Data!$A:$A,'Detailed - DNSP'!$C$4,Data!$B:$B,Inputs!$G$13,Data!$C:$C,'Detailed - DNSP'!M$29),IF(AND($C$6="Exclusive",$C$8="Exclusive",$C$10="Inclusive",$C$12="Inclusive"),SUMIFS(Data!$D:$D,Data!$A:$A,'Detailed - DNSP'!$C$4,Data!$B:$B,Inputs!$G$14,Data!$C:$C,'Detailed - DNSP'!M$29),IF(AND($C$6="Inclusive",$C$8="Exclusive",$C$10="Exclusive",$C$12="Inclusive"),SUMIFS(Data!$D:$D,Data!$A:$A,'Detailed - DNSP'!$C$4,Data!$B:$B,Inputs!$G$15,Data!$C:$C,'Detailed - DNSP'!M$29),IF(AND($C$6="Exclusive",$C$8="Exclusive",$C$10="Exclusive",$C$12="Inclusive"),SUMIFS(Data!$D:$D,Data!$A:$A,'Detailed - DNSP'!$C$4,Data!$B:$B,Inputs!$G$16,Data!$C:$C,'Detailed - DNSP'!M$29),IF(AND($C$6="Inclusive",$C$8="Exclusive",$C$10="Exclusive",$C$12="Exclusive"),SUMIFS(Data!$D:$D,Data!$A:$A,'Detailed - DNSP'!$C$4,Data!$B:$B,Inputs!$G$17,Data!$C:$C,'Detailed - DNSP'!M$29),IF(AND($C$6="Exclusive",$C$8="Exclusive",$C$10="Exclusive",$C$12="Exclusive"),SUMIFS(Data!$D:$D,Data!$A:$A,'Detailed - DNSP'!$C$4,Data!$B:$B,Inputs!$G$18,Data!$C:$C,'Detailed - DNSP'!M$29),IF(AND($C$6="Inclusive",$C$8="Inclusive",$C$10="Exclusive",$C$12="Exclusive"),SUMIFS(Data!$D:$D,Data!$A:$A,'Detailed - DNSP'!$C$4,Data!$B:$B,Inputs!$G$19,Data!$C:$C,'Detailed - DNSP'!M$29),IF(AND($C$6="Exclusive",$C$8="Inclusive",$C$10="Exclusive",$C$12="Exclusive"),SUMIFS(Data!$D:$D,Data!$A:$A,'Detailed - DNSP'!$C$4,Data!$B:$B,Inputs!$G$20,Data!$C:$C,'Detailed - DNSP'!M$29),IF(AND($C$6="Inclusive",$C$8="Inclusive",$C$10="Exclusive",$C$12="Inclusive"),SUMIFS(Data!$D:$D,Data!$A:$A,'Detailed - DNSP'!$C$4,Data!$B:$B,Inputs!$G$21,Data!$C:$C,'Detailed - DNSP'!M$29),IF(AND($C$6="Exclusive",$C$8="Inclusive",$C$10="Exclusive",$C$12="Inclusive"),SUMIFS(Data!$D:$D,Data!$A:$A,'Detailed - DNSP'!$C$4,Data!$B:$B,Inputs!$G$22,Data!$C:$C,'Detailed - DNSP'!M$29),IF(AND($C$6="Inclusive",$C$8="Inclusive",$C$10="Inclusive",$C$12="Exclusive"),SUMIFS(Data!$D:$D,Data!$A:$A,'Detailed - DNSP'!$C$4,Data!$B:$B,Inputs!$G$23,Data!$C:$C,'Detailed - DNSP'!M$29),IF(AND($C$6="Exclusive",$C$8="Inclusive",$C$10="Inclusive",$C$12="Exclusive"),SUMIFS(Data!$D:$D,Data!$A:$A,'Detailed - DNSP'!$C$4,Data!$B:$B,Inputs!$G$24,Data!$C:$C,'Detailed - DNSP'!M$29),IF(AND($C$6="Inclusive",$C$8="Exclusive",$C$10="Inclusive",$C$12="Exclusive"),SUMIFS(Data!$D:$D,Data!$A:$A,'Detailed - DNSP'!$C$4,Data!$B:$B,Inputs!$G$25,Data!$C:$C,'Detailed - DNSP'!M$29),IF(AND($C$6="Exclusive",$C$8="Exclusive",$C$10="Inclusive",$C$12="Exclusive"),SUMIFS(Data!$D:$D,Data!$A:$A,'Detailed - DNSP'!$C$4,Data!$B:$B,Inputs!$G$26,Data!$C:$C,'Detailed - DNSP'!M$29))))))))))))))))) -> -0.08872251409
B31: Allowed return on equity | C31: =IF($C$6="Exclusive",SUMIFS(Data!$D:$D,Data!$A:$A,'Detailed - DNSP'!$C$4,Data!$B:$B,"allowed real return on equity",Data!$C:$C,'Detailed - DNSP'!C$29),SUMIFS(Data!$D:$D,Data!$A:$A,'Detailed - DNSP'!$C$4,Data!$B:$B,"allowed nominal return on equity",Data!$C:$C,'Detailed - DNSP'!C$29)) -> 0.07625972882 | D31: =IF($C$6="Exclusive",SUMIFS(Data!$D:$D,Data!$A:$A,'Detailed - DNSP'!$C$4,Data!$B:$B,"allowed real return on equity",Data!$C:$C,'Detailed - DNSP'!D$29),SUMIFS(Data!$D:$D,Data!$A:$A,'Detailed - DNSP'!$C$4,Data!$B:$B,"allowed nominal return on equity",Data!$C:$C,'Detailed - DNSP'!D$29)) -> 0.04569420035 | E31: =IF($C$6="Exclusive",SUMIFS(Data!$D:$D,Data!$A:$A,'Detailed - DNSP'!$C$4,Data!$B:$B,"allowed real return on equity",Data!$C:$C,'Detailed - DNSP'!E$29),SUMIFS(Data!$D:$D,Data!$A:$A,'Detailed - DNSP'!$C$4,Data!$B:$B,"allowed nominal return on equity",Data!$C:$C,'Detailed - DNSP'!E$29)) -> 0.04569420035 | F31: =IF($C$6="Exclusive",SUMIFS(Data!$D:$D,Data!$A:$A,'Detailed - DNSP'!$C$4,Data!$B:$B,"allowed real return on equity",Data!$C:$C,'Detailed - DNSP'!F$29),SUMIFS(Data!$D:$D,Data!$A:$A,'Detailed - DNSP'!$C$4,Data!$B:$B,"allowed nominal return on equity",Data!$C:$C,'Detailed - DNSP'!F$29)) -> 0.04569420035 | G31: =IF($C$6="Exclusive",SUMIFS(Data!$D:$D,Data!$A:$A,'Detailed - DNSP'!$C$4,Data!$B:$B,"allowed real return on equity",Data!$C:$C,'Detailed - DNSP'!G$29),SUMIFS(Data!$D:$D,Data!$A:$A,'Detailed - DNSP'!$C$4,Data!$B:$B,"allowed nominal return on equity",Data!$C:$C,'Detailed - DNSP'!G$29)) -> 0.04569420035 | H31: =IF($C$6="Exclusive",SUMIFS(Data!$D:$D,Data!$A:$A,'Detailed - DNSP'!$C$4,Data!$B:$B,"allowed real return on equity",Data!$C:$C,'Detailed - DNSP'!H$29),SUMIFS(Data!$D:$D,Data!$A:$A,'Detailed - DNSP'!$C$4,Data!$B:$B,"allowed nominal return on equity",Data!$C:$C,'Detailed - DNSP'!H$29)) -> 0.04569420035 | I31: =IF($C$6="Exclusive",SUMIFS(Data!$D:$D,Data!$A:$A,'Detailed - DNSP'!$C$4,Data!$B:$B,"allowed real return on equity",Data!$C:$C,'Detailed - DNSP'!I$29),SUMIFS(Data!$D:$D,Data!$A:$A,'Detailed - DNSP'!$C$4,Data!$B:$B,"allowed nominal return on equity",Data!$C:$C,'Detailed - DNSP'!I$29)) -> 0.03116549821 | J31: =IF($C$6="Exclusive",SUMIFS(Data!$D:$D,Data!$A:$A,'Detailed - DNSP'!$C$4,Data!$B:$B,"allowed real return on equity",Data!$C:$C,'Detailed - DNSP'!J$29),SUMIFS(Data!$D:$D,Data!$A:$A,'Detailed - DNSP'!$C$4,Data!$B:$B,"allowed nominal return on equity",Data!$C:$C,'Detailed - DNSP'!J$29)) -> 0.03116549821 | K31: =IF($C$6="Exclusive",SUMIFS(Data!$D:$D,Data!$A:$A,'Detailed - DNSP'!$C$4,Data!$B:$B,"allowed real return on equity",Data!$C:$C,'Detailed - DNSP'!K$29),SUMIFS(Data!$D:$D,Data!$A:$A,'Detailed - DNSP'!$C$4,Data!$B:$B,"allowed nominal return on equity",Data!$C:$C,'Detailed - DNSP'!K$29)) -> 0.03116549821 | L31: =IF($C$6="Exclusive",SUMIFS(Data!$D:$D,Data!$A:$A,'Detailed - DNSP'!$C$4,Data!$B:$B,"allowed real return on equity",Data!$C:$C,'Detailed - DNSP'!L$29),SUMIFS(Data!$D:$D,Data!$A:$A,'Detailed - DNSP'!$C$4,Data!$B:$B,"allowed nominal return on equity",Data!$C:$C,'Detailed - DNSP'!L$29)) -> 0.03116549821 | M31: =IF($C$6="Exclusive",SUMIFS(Data!$D:$D,Data!$A:$A,'Detailed - DNSP'!$C$4,Data!$B:$B,"allowed real return on equity",Data!$C:$C,'Detailed - DNSP'!M$29),SUMIFS(Data!$D:$D,Data!$A:$A,'Detailed - DNSP'!$C$4,Data!$B:$B,"allowed nominal return on equity",Data!$C:$C,'Detailed - DNSP'!M$29)) -> 0.03116549821
B32: Difference | C32: =C30-C31 -> -0.007099438374 | D32: 0.008751971319 | E32: 0.01199125428 | F32: 0.01667477366 | G32: 0.03533193174 | H32: 0.04110295299 | I32: 0.002832413779 | J32: -0.04998044838 | K32: =K30-K31 -> 0.1062733331 | L32: =L30-L31 -> 0.06898221174 | M32: =M30-M31 -> -0.1198880123
B34: Source: Post Tax Revenue Model - Post tax real return on equity - 2014 to 2024
B37: Detailed calculations
B39: Revenue | C39: 2014 | D39: 2015 | E39: 2016 | F39: 2017 | G39: 2018 | H39: 2019 | I39: 2020 | J39: 2021 | K39: 2022 | L39: 2023 | M39: 2024
B40: Distribution Revenue | C40: =SUMIFS(Data!$D:$D,Data!$A:$A,'Detailed - DNSP'!$C$4,Data!$B:$B,'Detailed - DNSP'!$B40,Data!$C:$C,'Detailed - DNSP'!C$39)-IF($C$8="Exclusive",C$91,0) -> 188933000 | D40: =SUMIFS(Data!$D:$D,Data!$A:$A,'Detailed - DNSP'!$C$4,Data!$B:$B,'Detailed - DNSP'!$B40,Data!$C:$C,'Detailed - DNSP'!D$39)-IF($C$8="Exclusive",D$91,0) -> 186033481.3 | E40: =SUMIFS(Data!$D:$D,Data!$A:$A,'Detailed - DNSP'!$C$4,Data!$B:$B,'Detailed - DNSP'!$B40,Data!$C:$C,'Detailed - DNSP'!E$39)-IF($C$8="Exclusive",E$91,0) -> 160131305.9 | F40: =SUMIFS(Data!$D:$D,Data!$A:$A,'Detailed - DNSP'!$C$4,Data!$B:$B,'Detailed - DNSP'!$B40,Data!$C:$C,'Detailed - DNSP'!F$39)-IF($C$8="Exclusive",F$91,0) -> 168320973.3 | G40: =SUMIFS(Data!$D:$D,Data!$A:$A,'Detailed - DNSP'!$C$4,Data!$B:$B,'Detailed - DNSP'!$B40,Data!$C:$C,'Detailed - DNSP'!G$39)-IF($C$8="Exclusive",G$91,0) -> 181412097.2 | H40: =SUMIFS(Data!$D:$D,Data!$A:$A,'Detailed - DNSP'!$C$4,Data!$B:$B,'Detailed - DNSP'!$B40,Data!$C:$C,'Detailed - DNSP'!H$39)-IF($C$8="Exclusive",H$91,0) -> 185173304 | I40: =SUMIFS(Data!$D:$D,Data!$A:$A,'Detailed - DNSP'!$C$4,Data!$B:$B,'Detailed - DNSP'!$B40,Data!$C:$C,'Detailed - DNSP'!I$39)-IF($C$8="Exclusive",I$91,0) -> 186218916.8 | J40: =SUMIFS(Data!$D:$D,Data!$A:$A,'Detailed - DNSP'!$C$4,Data!$B:$B,'Detailed - DNSP'!$B40,Data!$C:$C,'Detailed - DNSP'!J$39)-IF($C$8="Exclusive",J$91,0) -> 167432991.3 | K40: =SUMIFS(Data!$D:$D,Data!$A:$A,'Detailed - DNSP'!$C$4,Data!$B:$B,'Detailed - DNSP'!$B40,Data!$C:$C,'Detailed - DNSP'!K$39)-IF($C$8="Exclusive",K$91,0) -> 175575801.8 | L40: =SUMIFS(Data!$D:$D,Data!$A:$A,'Detailed - DNSP'!$C$4,Data!$B:$B,'Detailed - DNSP'!$B40,Data!$C:$C,'Detailed - DNSP'!L$39)-IF($C$8="Exclusive",L$91,0) -> 171145482 | M40: =SUMIFS(Data!$D:$D,Data!$A:$A,'Detailed - DNSP'!$C$4,Data!$B:$B,'Detailed - DNSP'!$B40,Data!$C:$C,'Detailed - DNSP'!M$39)-IF($C$8="Exclusive",M$91,0) -> 142584834
B41: TUOS Revenue | C41: =IF($C$10 = "Inclusive", SUMIFS(Data!$D:$D,Data!$A:$A,'Detailed - DNSP'!$C$4,Data!$B:$B,'Detailed - DNSP'!$B41,Data!$C:$C,'Detailed - DNSP'!C$39), 0) -> 37525000 | D41: =IF($C$10 = "Inclusive", SUMIFS(Data!$D:$D,Data!$A:$A,'Detailed - DNSP'!$C$4,Data!$B:$B,'Detailed - DNSP'!$B41,Data!$C:$C,'Detailed - DNSP'!D$39), 0) -> 60136594.44 | E41: =IF($C$10 = "Inclusive", SUMIFS(Data!$D:$D,Data!$A:$A,'Detailed - DNSP'!$C$4,Data!$B:$B,'Detailed - DNSP'!$B41,Data!$C:$C,'Detailed - DNSP'!E$39), 0) -> 64791435.24 | F41: =IF($C$10 = "Inclusive", SUMIFS(Data!$D:$D,Data!$A:$A,'Detailed - DNSP'!$C$4,Data!$B:$B,'Detailed - DNSP'!$B41,Data!$C:$C,'Detailed - DNSP'!F$39), 0) -> 61787564.13 | G41: =IF($C$10 = "Inclusive", SUMIFS(Data!$D:$D,Data!$A:$A,'Detailed - DNSP'!$C$4,Data!$B:$B,'Detailed - DNSP'!$B41,Data!$C:$C,'Detailed - DNSP'!G$39), 0) -> 33782647.43 | H41: =IF($C$10 = "Inclusive", SUMIFS(Data!$D:$D,Data!$A:$A,'Detailed - DNSP'!$C$4,Data!$B:$B,'Detailed - DNSP'!$B41,Data!$C:$C,'Detailed - DNSP'!H$39), 0) -> 20553610 | I41: =IF($C$10 = "Inclusive", SUMIFS(Data!$D:$D,Data!$A:$A,'Detailed - DNSP'!$C$4,Data!$B:$B,'Detailed - DNSP'!$B41,Data!$C:$C,'Detailed - DNSP'!I$39), 0) -> 12078188.12 | J41: =IF($C$10 = "Inclusive", SUMIFS(Data!$D:$D,Data!$A:$A,'Detailed - DNSP'!$C$4,Data!$B:$B,'Detailed - DNSP'!$B41,Data!$C:$C,'Detailed - DNSP'!J$39), 0) -> 17440849.09 | K41: =IF($C$10 = "Inclusive", SUMIFS(Data!$D:$D,Data!$A:$A,'Detailed - DNSP'!$C$4,Data!$B:$B,'Detailed - DNSP'!$B41,Data!$C:$C,'Detailed - DNSP'!K$39), 0) -> 24826772.99 | L41: =IF($C$10 = "Inclusive", SUMIFS(Data!$D:$D,Data!$A:$A,'Detailed - DNSP'!$C$4,Data!$B:$B,'Detailed - DNSP'!$B41,Data!$C:$C,'Detailed - DNSP'!L$39), 0) -> 28409218 | M41: =IF($C$10 = "Inclusive", SUMIFS(Data!$D:$D,Data!$A:$A,'Detailed - DNSP'!$C$4,Data!$B:$B,'Detailed - DNSP'!$B41,Data!$C:$C,'Detailed - DNSP'!M$39), 0) -> 46572997
B42: Cross boundary revenue | C42: =IF($C$10 = "Inclusive", SUMIFS(Data!$D:$D,Data!$A:$A,'Detailed - DNSP'!$C$4,Data!$B:$B,'Detailed - DNSP'!$B42,Data!$C:$C,'Detailed - DNSP'!C$39), 0) -> 0 | D42: =IF($C$10 = "Inclusive", SUMIFS(Data!$D:$D,Data!$A:$A,'Detailed - DNSP'!$C$4,Data!$B:$B,'Detailed - DNSP'!$B42,Data!$C:$C,'Detailed - DNSP'!D$39), 0) -> 0 | E42: =IF($C$10 = "Inclusive", SUMIFS(Data!$D:$D,Data!$A:$A,'Detailed - DNSP'!$C$4,Data!$B:$B,'Detailed - DNSP'!$B42,Data!$C:$C,'Detailed - DNSP'!E$39), 0) -> 0 | F42: =IF($C$10 = "Inclusive", SUMIFS(Data!$D:$D,Data!$A:$A,'Detailed - DNSP'!$C$4,Data!$B:$B,'Detailed - DNSP'!$B42,Data!$C:$C,'Detailed - DNSP'!F$39), 0) -> 0 | G42: =IF($C$10 = "Inclusive", SUMIFS(Data!$D:$D,Data!$A:$A,'Detailed - DNSP'!$C$4,Data!$B:$B,'Detailed - DNSP'!$B42,Data!$C:$C,'Detailed - DNSP'!G$39), 0) -> 0 | H42: =IF($C$10 = "Inclusive", SUMIFS(Data!$D:$D,Data!$A:$A,'Detailed - DNSP'!$C$4,Data!$B:$B,'Detailed - DNSP'!$B42,Data!$C:$C,'Detailed - DNSP'!H$39), 0) -> 0 | I42: =IF($C$10 = "Inclusive", SUMIFS(Data!$D:$D,Data!$A:$A,'Detailed - DNSP'!$C$4,Data!$B:$B,'Detailed - DNSP'!$B42,Data!$C:$C,'Detailed - DNSP'!I$39), 0) -> 0 | J42: =IF($C$10 = "Inclusive", SUMIFS(Data!$D:$D,Data!$A:$A,'Detailed - DNSP'!$C$4,Data!$B:$B,'Detailed - DNSP'!$B42,Data!$C:$C,'Detailed - DNSP'!J$39), 0) -> 0 | K42: =IF($C$10 = "Inclusive", SUMIFS(Data!$D:$D,Data!$A:$A,'Detailed - DNSP'!$C$4,Data!$B:$B,'Detailed - DNSP'!$B42,Data!$C:$C,'Detailed - DNSP'!K$39), 0) -> 0 | L42: =IF($C$10 = "Inclusive", SUMIFS(Data!$D:$D,Data!$A:$A,'Detailed - DNSP'!$C$4,Data!$B:$B,'Detailed - DNSP'!$B42,Data!$C:$C,'Detailed - DNSP'!L$39), 0) -> 0 | M42: =IF($C$10 = "Inclusive", SUMIFS(Data!$D:$D,Data!$A:$A,'Detailed - DNSP'!$C$4,Data!$B:$B,'Detailed - DNSP'!$B42,Data!$C:$C,'Detailed - DNSP'!M$39), 0) -> 0
B43: Jurisdictional Scheme Revenue | C43: =IF($C$10 = "Inclusive", SUMIFS(Data!$D:$D,Data!$A:$A,'Detailed - DNSP'!$C$4,Data!$B:$B,'Detailed - DNSP'!$B43,Data!$C:$C,'Detailed - DNSP'!C$39), 0) -> 23121000 | D43: =IF($C$10 = "Inclusive", SUMIFS(Data!$D:$D,Data!$A:$A,'Detailed - DNSP'!$C$4,Data!$B:$B,'Detailed - DNSP'!$B43,Data!$C:$C,'Detailed - DNSP'!D$39), 0) -> 26267878.1 | E43: =IF($C$10 = "Inclusive", SUMIFS(Data!$D:$D,Data!$A:$A,'Detailed - DNSP'!$C$4,Data!$B:$B,'Detailed - DNSP'!$B43,Data!$C:$C,'Detailed - DNSP'!E$39), 0) -> 30303507.67 | F43: =IF($C$10 = "Inclusive", SUMIFS(Data!$D:$D,Data!$A:$A,'Detailed - DNSP'!$C$4,Data!$B:$B,'Detailed - DNSP'!$B43,Data!$C:$C,'Detailed - DNSP'!F$39), 0) -> 29362825.59 | G43: =IF($C$10 = "Inclusive", SUMIFS(Data!$D:$D,Data!$A:$A,'Detailed - DNSP'!$C$4,Data!$B:$B,'Detailed - DNSP'!$B43,Data!$C:$C,'Detailed - DNSP'!G$39), 0) -> 65856734 | H43: =IF($C$10 = "Inclusive", SUMIFS(Data!$D:$D,Data!$A:$A,'Detailed - DNSP'!$C$4,Data!$B:$B,'Detailed - DNSP'!$B43,Data!$C:$C,'Detailed - DNSP'!H$39), 0) -> 58897950 | I43: =IF($C$10 = "Inclusive", SUMIFS(Data!$D:$D,Data!$A:$A,'Detailed - DNSP'!$C$4,Data!$B:$B,'Detailed - DNSP'!$B43,Data!$C:$C,'Detailed - DNSP'!I$39), 0) -> 77520403.43 | J43: =IF($C$10 = "Inclusive", SUMIFS(Data!$D:$D,Data!$A:$A,'Detailed - DNSP'!$C$4,Data!$B:$B,'Detailed - DNSP'!$B43,Data!$C:$C,'Detailed - DNSP'!J$39), 0) -> 66936333.36 | K43: =IF($C$10 = "Inclusive", SUMIFS(Data!$D:$D,Data!$A:$A,'Detailed - DNSP'!$C$4,Data!$B:$B,'Detailed - DNSP'!$B43,Data!$C:$C,'Detailed - DNSP'!K$39), 0) -> 150441750.7 | L43: =IF($C$10 = "Inclusive", SUMIFS(Data!$D:$D,Data!$A:$A,'Detailed - DNSP'!$C$4,Data!$B:$B,'Detailed - DNSP'!$B43,Data!$C:$C,'Detailed - DNSP'!L$39), 0) -> 129894931 | M43: =IF($C$10 = "Inclusive", SUMIFS(Data!$D:$D,Data!$A:$A,'Detailed - DNSP'!$C$4,Data!$B:$B,'Detailed - DNSP'!$B43,Data!$C:$C,'Detailed - DNSP'!M$39), 0) -> -35352752
B44: Other Revenue | C44: =SUMIFS(Data!$D:$D,Data!$A:$A,'Detailed - DNSP'!$C$4,Data!$B:$B,'Detailed - DNSP'!$B44,Data!$C:$C,'Detailed - DNSP'!C$39) -> 1440544.92 | D44: =SUMIFS(Data!$D:$D,Data!$A:$A,'Detailed - DNSP'!$C$4,Data!$B:$B,'Detailed - DNSP'!$B44,Data!$C:$C,'Detailed - DNSP'!D$39) -> 0 | E44: =SUMIFS(Data!$D:$D,Data!$A:$A,'Detailed - DNSP'!$C$4,Data!$B:$B,'Detailed - DNSP'!$B44,Data!$C:$C,'Detailed - DNSP'!E$39) -> 0 | F44: =SUMIFS(Data!$D:$D,Data!$A:$A,'Detailed - DNSP'!$C$4,Data!$B:$B,'Detailed - DNSP'!$B44,Data!$C:$C,'Detailed - DNSP'!F$39) -> 1462252.74 | G44: =SUMIFS(Data!$D:$D,Data!$A:$A,'Detailed - DNSP'!$C$4,Data!$B:$B,'Detailed - DNSP'!$B44,Data!$C:$C,'Detailed - DNSP'!G$39) -> 1000625 | H44: =SUMIFS(Data!$D:$D,Data!$A:$A,'Detailed - DNSP'!$C$4,Data!$B:$B,'Detailed - DNSP'!$B44,Data!$C:$C,'Detailed - DNSP'!H$39) -> 18143576 | I44: =SUMIFS(Data!$D:$D,Data!$A:$A,'Detailed - DNSP'!$C$4,Data!$B:$B,'Detailed - DNSP'!$B44,Data!$C:$C,'Detailed - DNSP'!I$39) -> 513993.43 | J44: =SUMIFS(Data!$D:$D,Data!$A:$A,'Detailed - DNSP'!$C$4,Data!$B:$B,'Detailed - DNSP'!$B44,Data!$C:$C,'Detailed - DNSP'!J$39) -> 2332048.2 | K44: =SUMIFS(Data!$D:$D,Data!$A:$A,'Detailed - DNSP'!$C$4,Data!$B:$B,'Detailed - DNSP'!$B44,Data!$C:$C,'Detailed - DNSP'!K$39) -> 4309603.49 | L44: =SUMIFS(Data!$D:$D,Data!$A:$A,'Detailed - DNSP'!$C$4,Data!$B:$B,'Detailed - DNSP'!$B44,Data!$C:$C,'Detailed - DNSP'!L$39) -> 5243401 | M44: =SUMIFS(Data!$D:$D,Data!$A:$A,'Detailed - DNSP'!$C$4,Data!$B:$B,'Detailed - DNSP'!$B44,Data!$C:$C,'Detailed - DNSP'!M$39) -> -4433518
B45: Total revenue | C45: =SUM(C40:C44) -> 251019544.9 | D45: 272437953.8 | E45: 255226248.8 | F45: 260933615.8 | G45: 282052103.6 | H45: 282768440 | I45: 276331501.8 | J45: 254142222 | K45: =SUM(K40:K44) -> 355153929.1 | L45: =SUM(L40:L44) -> 334693032 | M45: =SUM(M40:M44) -> 149371561
B47: Source: Annual RIN Financial - Income Statement - 2014 to 2024
B50: Cost of Goods Sold expenditure | C50: 2014 | D50: 2015 | E50: 2016 | F50: 2017 | G50: 2018 | H50: 2019 | I50: 2020 | J50: 2021 | K50: 2022 | L50: 2023 | M50: 2024
B51: TUOS (costs) expense | C51: =IF( $C$10 = "Inclusive", SUMIFS(Data!$D:$D,Data!$A:$A,'Detailed - DNSP'!$C$4,Data!$B:$B,'Detailed - DNSP'!$B51,Data!$C:$C,'Detailed - DNSP'!C$50), 0) -> 42112609.35 | D51: =IF( $C$10 = "Inclusive", SUMIFS(Data!$D:$D,Data!$A:$A,'Detailed - DNSP'!$C$4,Data!$B:$B,'Detailed - DNSP'!$B51,Data!$C:$C,'Detailed - DNSP'!D$50), 0) -> 59678062.05 | E51: =IF( $C$10 = "Inclusive", SUMIFS(Data!$D:$D,Data!$A:$A,'Detailed - DNSP'!$C$4,Data!$B:$B,'Detailed - DNSP'!$B51,Data!$C:$C,'Detailed - DNSP'!E$50), 0) -> 59155870.05 | F51: =IF( $C$10 = "Inclusive", SUMIFS(Data!$D:$D,Data!$A:$A,'Detailed - DNSP'!$C$4,Data!$B:$B,'Detailed - DNSP'!$B51,Data!$C:$C,'Detailed - DNSP'!F$50), 0) -> 46940357.03 | G51: =IF( $C$10 = "Inclusive", SUMIFS(Data!$D:$D,Data!$A:$A,'Detailed - DNSP'!$C$4,Data!$B:$B,'Detailed - DNSP'!$B51,Data!$C:$C,'Detailed - DNSP'!G$50), 0) -> 26934666.96 | H51: =IF( $C$10 = "Inclusive", SUMIFS(Data!$D:$D,Data!$A:$A,'Detailed - DNSP'!$C$4,Data!$B:$B,'Detailed - DNSP'!$B51,Data!$C:$C,'Detailed - DNSP'!H$50), 0) -> 21017709 | I51: =IF( $C$10 = "Inclusive", SUMIFS(Data!$D:$D,Data!$A:$A,'Detailed - DNSP'!$C$4,Data!$B:$B,'Detailed - DNSP'!$B51,Data!$C:$C,'Detailed - DNSP'!I$50), 0) -> 14975156.6 | J51: =IF( $C$10 = "Inclusive", SUMIFS(Data!$D:$D,Data!$A:$A,'Detailed - DNSP'!$C$4,Data!$B:$B,'Detailed - DNSP'!$B51,Data!$C:$C,'Detailed - DNSP'!J$50), 0) -> 16067634.14 | K51: =IF( $C$10 = "Inclusive", SUMIFS(Data!$D:$D,Data!$A:$A,'Detailed - DNSP'!$C$4,Data!$B:$B,'Detailed - DNSP'!$B51,Data!$C:$C,'Detailed - DNSP'!K$50), 0) -> 23023594.21 | L51: =IF( $C$10 = "Inclusive", SUMIFS(Data!$D:$D,Data!$A:$A,'Detailed - DNSP'!$C$4,Data!$B:$B,'Detailed - DNSP'!$B51,Data!$C:$C,'Detailed - DNSP'!L$50), 0) -> 27159562 | M51: =IF( $C$10 = "Inclusive", SUMIFS(Data!$D:$D,Data!$A:$A,'Detailed - DNSP'!$C$4,Data!$B:$B,'Detailed - DNSP'!$B51,Data!$C:$C,'Detailed - DNSP'!M$50), 0) -> 17370096
B52: Avoided TUOS expense | C52: =IF( $C$10 = "Inclusive", SUMIFS(Data!$D:$D,Data!$A:$A,'Detailed - DNSP'!$C$4,Data!$B:$B,'Detailed - DNSP'!$B52,Data!$C:$C,'Detailed - DNSP'!C$50), 0) -> 0 | D52: =IF( $C$10 = "Inclusive", SUMIFS(Data!$D:$D,Data!$A:$A,'Detailed - DNSP'!$C$4,Data!$B:$B,'Detailed - DNSP'!$B52,Data!$C:$C,'Detailed - DNSP'!D$50), 0) -> 22215.18 | E52: =IF( $C$10 = "Inclusive", SUMIFS(Data!$D:$D,Data!$A:$A,'Detailed - DNSP'!$C$4,Data!$B:$B,'Detailed - DNSP'!$B52,Data!$C:$C,'Detailed - DNSP'!E$50), 0) -> 41170.56 | F52: =IF( $C$10 = "Inclusive", SUMIFS(Data!$D:$D,Data!$A:$A,'Detailed - DNSP'!$C$4,Data!$B:$B,'Detailed - DNSP'!$B52,Data!$C:$C,'Detailed - DNSP'!F$50), 0) -> 60499.98 | G52: =IF( $C$10 = "Inclusive", SUMIFS(Data!$D:$D,Data!$A:$A,'Detailed - DNSP'!$C$4,Data!$B:$B,'Detailed - DNSP'!$B52,Data!$C:$C,'Detailed - DNSP'!G$50), 0) -> 258789.17 | H52: =IF( $C$10 = "Inclusive", SUMIFS(Data!$D:$D,Data!$A:$A,'Detailed - DNSP'!$C$4,Data!$B:$B,'Detailed - DNSP'!$B52,Data!$C:$C,'Detailed - DNSP'!H$50), 0) -> 271612 | I52: =IF( $C$10 = "Inclusive", SUMIFS(Data!$D:$D,Data!$A:$A,'Detailed - DNSP'!$C$4,Data!$B:$B,'Detailed - DNSP'!$B52,Data!$C:$C,'Detailed - DNSP'!I$50), 0) -> 407513.44 | J52: =IF( $C$10 = "Inclusive", SUMIFS(Data!$D:$D,Data!$A:$A,'Detailed - DNSP'!$C$4,Data!$B:$B,'Detailed - DNSP'!$B52,Data!$C:$C,'Detailed - DNSP'!J$50), 0) -> 106602.56 | K52: =IF( $C$10 = "Inclusive", SUMIFS(Data!$D:$D,Data!$A:$A,'Detailed - DNSP'!$C$4,Data!$B:$B,'Detailed - DNSP'!$B52,Data!$C:$C,'Detailed - DNSP'!K$50), 0) -> 61612.99 | L52: =IF( $C$10 = "Inclusive", SUMIFS(Data!$D:$D,Data!$A:$A,'Detailed - DNSP'!$C$4,Data!$B:$B,'Detailed - DNSP'!$B52,Data!$C:$C,'Detailed - DNSP'!L$50), 0) -> 273650 | M52: =IF( $C$10 = "Inclusive", SUMIFS(Data!$D:$D,Data!$A:$A,'Detailed - DNSP'!$C$4,Data!$B:$B,'Detailed - DNSP'!$B52,Data!$C:$C,'Detailed - DNSP'!M$50), 0) -> 197958
B53: Cross boundary charges (expense) | C53: =IF( $C$10 = "Inclusive", SUMIFS(Data!$D:$D,Data!$A:$A,'Detailed - DNSP'!$C$4,Data!$B:$B,'Detailed - DNSP'!$B53,Data!$C:$C,'Detailed - DNSP'!C$50), 0) -> 0 | D53: =IF( $C$10 = "Inclusive", SUMIFS(Data!$D:$D,Data!$A:$A,'Detailed - DNSP'!$C$4,Data!$B:$B,'Detailed - DNSP'!$B53,Data!$C:$C,'Detailed - DNSP'!D$50), 0) -> 0 | E53: =IF( $C$10 = "Inclusive", SUMIFS(Data!$D:$D,Data!$A:$A,'Detailed - DNSP'!$C$4,Data!$B:$B,'Detailed - DNSP'!$B53,Data!$C:$C,'Detailed - DNSP'!E$50), 0) -> 0 | F53: =IF( $C$10 = "Inclusive", SUMIFS(Data!$D:$D,Data!$A:$A,'Detailed - DNSP'!$C$4,Data!$B:$B,'Detailed - DNSP'!$B53,Data!$C:$C,'Detailed - DNSP'!F$50), 0) -> 0 | G53: =IF( $C$10 = "Inclusive", SUMIFS(Data!$D:$D,Data!$A:$A,'Detailed - DNSP'!$C$4,Data!$B:$B,'Detailed - DNSP'!$B53,Data!$C:$C,'Detailed - DNSP'!G$50), 0) -> 0 | H53: =IF( $C$10 = "Inclusive", SUMIFS(Data!$D:$D,Data!$A:$A,'Detailed - DNSP'!$C$4,Data!$B:$B,'Detailed - DNSP'!$B53,Data!$C:$C,'Detailed - DNSP'!H$50), 0) -> 0 | I53: =IF( $C$10 = "Inclusive", SUMIFS(Data!$D:$D,Data!$A:$A,'Detailed - DNSP'!$C$4,Data!$B:$B,'Detailed - DNSP'!$B53,Data!$C:$C,'Detailed - DNSP'!I$50), 0) -> 0 | J53: =IF( $C$10 = "Inclusive", SUMIFS(Data!$D:$D,Data!$A:$A,'Detailed - DNSP'!$C$4,Data!$B:$B,'Detailed - DNSP'!$B53,Data!$C:$C,'Detailed - DNSP'!J$50), 0) -> 0 | K53: =IF( $C$10 = "Inclusive", SUMIFS(Data!$D:$D,Data!$A:$A,'Detailed - DNSP'!$C$4,Data!$B:$B,'Detailed - DNSP'!$B53,Data!$C:$C,'Detailed - DNSP'!K$50), 0) -> 0 | L53: =IF( $C$10 = "Inclusive", SUMIFS(Data!$D:$D,Data!$A:$A,'Detailed - DNSP'!$C$4,Data!$B:$B,'Detailed - DNSP'!$B53,Data!$C:$C,'Detailed - DNSP'!L$50), 0) -> 0 | M53: =IF( $C$10 = "Inclusive", SUMIFS(Data!$D:$D,Data!$A:$A,'Detailed - DNSP'!$C$4,Data!$B:$B,'Detailed - DNSP'!$B53,Data!$C:$C,'Detailed - DNSP'!M$50), 0) -> 0
B54: Jurisdictional Scheme expense | C54: =IF( $C$10 = "Inclusive", SUMIFS(Data!$D:$D,Data!$A:$A,'Detailed - DNSP'!$C$4,Data!$B:$B,'Detailed - DNSP'!$B54,Data!$C:$C,'Detailed - DNSP'!C$50), 0) -> 19438000 | D54: =IF( $C$10 = "Inclusive", SUMIFS(Data!$D:$D,Data!$A:$A,'Detailed - DNSP'!$C$4,Data!$B:$B,'Detailed - DNSP'!$B54,Data!$C:$C,'Detailed - DNSP'!D$50), 0) -> 25367304.44 | E54: =IF( $C$10 = "Inclusive", SUMIFS(Data!$D:$D,Data!$A:$A,'Detailed - DNSP'!$C$4,Data!$B:$B,'Detailed - DNSP'!$B54,Data!$C:$C,'Detailed - DNSP'!E$50), 0) -> 27931234.87 | F54: =IF( $C$10 = "Inclusive", SUMIFS(Data!$D:$D,Data!$A:$A,'Detailed - DNSP'!$C$4,Data!$B:$B,'Detailed - DNSP'!$B54,Data!$C:$C,'Detailed - DNSP'!F$50), 0) -> 30159642.14 | G54: =IF( $C$10 = "Inclusive", SUMIFS(Data!$D:$D,Data!$A:$A,'Detailed - DNSP'!$C$4,Data!$B:$B,'Detailed - DNSP'!$B54,Data!$C:$C,'Detailed - DNSP'!G$50), 0) -> 40037499 | H54: =IF( $C$10 = "Inclusive", SUMIFS(Data!$D:$D,Data!$A:$A,'Detailed - DNSP'!$C$4,Data!$B:$B,'Detailed - DNSP'!$B54,Data!$C:$C,'Detailed - DNSP'!H$50), 0) -> 36593213 | I54: =IF( $C$10 = "Inclusive", SUMIFS(Data!$D:$D,Data!$A:$A,'Detailed - DNSP'!$C$4,Data!$B:$B,'Detailed - DNSP'!$B54,Data!$C:$C,'Detailed - DNSP'!I$50), 0) -> 97428794.12 | J54: =IF( $C$10 = "Inclusive", SUMIFS(Data!$D:$D,Data!$A:$A,'Detailed - DNSP'!$C$4,Data!$B:$B,'Detailed - DNSP'!$B54,Data!$C:$C,'Detailed - DNSP'!J$50), 0) -> 127238714.2 | K54: =IF( $C$10 = "Inclusive", SUMIFS(Data!$D:$D,Data!$A:$A,'Detailed - DNSP'!$C$4,Data!$B:$B,'Detailed - DNSP'!$B54,Data!$C:$C,'Detailed - DNSP'!K$50), 0) -> 35061407.6 | L54: =IF( $C$10 = "Inclusive", SUMIFS(Data!$D:$D,Data!$A:$A,'Detailed - DNSP'!$C$4,Data!$B:$B,'Detailed - DNSP'!$B54,Data!$C:$C,'Detailed - DNSP'!L$50), 0) -> 28205030 | M54: =IF( $C$10 = "Inclusive", SUMIFS(Data!$D:$D,Data!$A:$A,'Detailed - DNSP'!$C$4,Data!$B:$B,'Detailed - DNSP'!$B54,Data!$C:$C,'Detailed - DNSP'!M$50), 0) -> 86935207
B55: Total costs of goods sold expenditure | C55: =SUM(C51:C54) -> 61550609.35 | D55: 85067581.67 | E55: 87128275.48 | F55: 77160499.15 | G55: 67230955.13 | H55: 57882534 | I55: 112811464.2 | J55: 143412950.9 | K55: 58146614.8 | L55: 55638242 | M55: 104503261
B57: Source: Annual RIN Financial - Income Statement - 2014 to 2024
B60: Total Gross Profit | C60: =C45-C55 -> 189468935.6 | D60: 187370372.2 | E60: 168097973.3 | F60: 183773116.6 | G60: 214821148.5 | H60: 224885906 | I60: 163520037.6 | J60: 110729271.1 | K60: 297007314.2 | L60: 279054790 | M60: 44868300
B62: Expenditure | C62: 2014 | D62: 2015 | E62: 2016 | F62: 2017 | G62: 2018 | H62: 2019 | I62: 2020 | J62: 2021 | K62: 2022 | L62: 2023 | M62: 2024
B63: Operating expenditure | C63: =SUMIFS(Data!$D:$D,Data!$A:$A,'Detailed - DNSP'!$C$4,Data!$B:$B,'Detailed - DNSP'!$B63,Data!$C:$C,'Detailed - DNSP'!C$62) -> 64533080.28 | D63: =SUMIFS(Data!$D:$D,Data!$A:$A,'Detailed - DNSP'!$C$4,Data!$B:$B,'Detailed - DNSP'!$B63,Data!$C:$C,'Detailed - DNSP'!D$62) -> 60018345.93 | E63: =SUMIFS(Data!$D:$D,Data!$A:$A,'Detailed - DNSP'!$C$4,Data!$B:$B,'Detailed - DNSP'!$B63,Data!$C:$C,'Detailed - DNSP'!E$62) -> 27764048.18 | F63: =SUMIFS(Data!$D:$D,Data!$A:$A,'Detailed - DNSP'!$C$4,Data!$B:$B,'Detailed - DNSP'!$B63,Data!$C:$C,'Detailed - DNSP'!F$62) -> 34908480 | G63: =SUMIFS(Data!$D:$D,Data!$A:$A,'Detailed - DNSP'!$C$4,Data!$B:$B,'Detailed - DNSP'!$B63,Data!$C:$C,'Detailed - DNSP'!G$62) -> 42864127 | H63: =SUMIFS(Data!$D:$D,Data!$A:$A,'Detailed - DNSP'!$C$4,Data!$B:$B,'Detailed - DNSP'!$B63,Data!$C:$C,'Detailed - DNSP'!H$62) -> 40700721 | I63: =SUMIFS(Data!$D:$D,Data!$A:$A,'Detailed - DNSP'!$C$4,Data!$B:$B,'Detailed - DNSP'!$B63,Data!$C:$C,'Detailed - DNSP'!I$62) -> 38513468.1 | J63: =SUMIFS(Data!$D:$D,Data!$A:$A,'Detailed - DNSP'!$C$4,Data!$B:$B,'Detailed - DNSP'!$B63,Data!$C:$C,'Detailed - DNSP'!J$62) -> 42094353.32 | K63: =SUMIFS(Data!$D:$D,Data!$A:$A,'Detailed - DNSP'!$C$4,Data!$B:$B,'Detailed - DNSP'!$B63,Data!$C:$C,'Detailed - DNSP'!K$62) -> 47214325 | L63: =SUMIFS(Data!$D:$D,Data!$A:$A,'Detailed - DNSP'!$C$4,Data!$B:$B,'Detailed - DNSP'!$B63,Data!$C:$C,'Detailed - DNSP'!L$62) -> 46247960 | M63: =SUMIFS(Data!$D:$D,Data!$A:$A,'Detailed - DNSP'!$C$4,Data!$B:$B,'Detailed - DNSP'!$B63,Data!$C:$C,'Detailed - DNSP'!M$62) -> 40333365
B64: Maintenance expenditure | C64: =SUMIFS(Data!$D:$D,Data!$A:$A,'Detailed - DNSP'!$C$4,Data!$B:$B,'Detailed - DNSP'!$B64,Data!$C:$C,'Detailed - DNSP'!C$62) -> 22199727.55 | D64: =SUMIFS(Data!$D:$D,Data!$A:$A,'Detailed - DNSP'!$C$4,Data!$B:$B,'Detailed - DNSP'!$B64,Data!$C:$C,'Detailed - DNSP'!D$62) -> 13542148.94 | E64: =SUMIFS(Data!$D:$D,Data!$A:$A,'Detailed - DNSP'!$C$4,Data!$B:$B,'Detailed - DNSP'!$B64,Data!$C:$C,'Detailed - DNSP'!E$62) -> 12806426.7 | F64: =SUMIFS(Data!$D:$D,Data!$A:$A,'Detailed - DNSP'!$C$4,Data!$B:$B,'Detailed - DNSP'!$B64,Data!$C:$C,'Detailed - DNSP'!F$62) -> 13463368.39 | G64: =SUMIFS(Data!$D:$D,Data!$A:$A,'Detailed - DNSP'!$C$4,Data!$B:$B,'Detailed - DNSP'!$B64,Data!$C:$C,'Detailed - DNSP'!G$62) -> 13985835 | H64: =SUMIFS(Data!$D:$D,Data!$A:$A,'Detailed - DNSP'!$C$4,Data!$B:$B,'Detailed - DNSP'!$B64,Data!$C:$C,'Detailed - DNSP'!H$62) -> 15727128 | I64: =SUMIFS(Data!$D:$D,Data!$A:$A,'Detailed - DNSP'!$C$4,Data!$B:$B,'Detailed - DNSP'!$B64,Data!$C:$C,'Detailed - DNSP'!I$62) -> 16797927.95 | J64: =SUMIFS(Data!$D:$D,Data!$A:$A,'Detailed - DNSP'!$C$4,Data!$B:$B,'Detailed - DNSP'!$B64,Data!$C:$C,'Detailed - DNSP'!J$62) -> 15177903.9 | K64: =SUMIFS(Data!$D:$D,Data!$A:$A,'Detailed - DNSP'!$C$4,Data!$B:$B,'Detailed - DNSP'!$B64,Data!$C:$C,'Detailed - DNSP'!K$62) -> 15366538 | L64: =SUMIFS(Data!$D:$D,Data!$A:$A,'Detailed - DNSP'!$C$4,Data!$B:$B,'Detailed - DNSP'!$B64,Data!$C:$C,'Detailed - DNSP'!L$62) -> 16723162 | M64: =SUMIFS(Data!$D:$D,Data!$A:$A,'Detailed - DNSP'!$C$4,Data!$B:$B,'Detailed - DNSP'!$B64,Data!$C:$C,'Detailed - DNSP'!M$62) -> 12672639
B65: Other Expenditure | C65: =SUMIFS(Data!$D:$D,Data!$A:$A,'Detailed - DNSP'!$C$4,Data!$B:$B,'Detailed - DNSP'!$B65,Data!$C:$C,'Detailed - DNSP'!C$62) -> -11237446.92 | D65: =SUMIFS(Data!$D:$D,Data!$A:$A,'Detailed - DNSP'!$C$4,Data!$B:$B,'Detailed - DNSP'!$B65,Data!$C:$C,'Detailed - DNSP'!D$62) -> 1437894.07 | E65: =SUMIFS(Data!$D:$D,Data!$A:$A,'Detailed - DNSP'!$C$4,Data!$B:$B,'Detailed - DNSP'!$B65,Data!$C:$C,'Detailed - DNSP'!E$62) -> 2878772.76 | F65: =SUMIFS(Data!$D:$D,Data!$A:$A,'Detailed - DNSP'!$C$4,Data!$B:$B,'Detailed - DNSP'!$B65,Data!$C:$C,'Detailed - DNSP'!F$62) -> 3903205.6 | G65: =SUMIFS(Data!$D:$D,Data!$A:$A,'Detailed - DNSP'!$C$4,Data!$B:$B,'Detailed - DNSP'!$B65,Data!$C:$C,'Detailed - DNSP'!G$62) -> 1686005 | H65: =SUMIFS(Data!$D:$D,Data!$A:$A,'Detailed - DNSP'!$C$4,Data!$B:$B,'Detailed - DNSP'!$B65,Data!$C:$C,'Detailed - DNSP'!H$62) -> 2507503 | I65: =SUMIFS(Data!$D:$D,Data!$A:$A,'Detailed - DNSP'!$C$4,Data!$B:$B,'Detailed - DNSP'!$B65,Data!$C:$C,'Detailed - DNSP'!I$62) -> 1566526.16 | J65: =SUMIFS(Data!$D:$D,Data!$A:$A,'Detailed - DNSP'!$C$4,Data!$B:$B,'Detailed - DNSP'!$B65,Data!$C:$C,'Detailed - DNSP'!J$62) -> 2676640.05 | K65: =SUMIFS(Data!$D:$D,Data!$A:$A,'Detailed - DNSP'!$C$4,Data!$B:$B,'Detailed - DNSP'!$B65,Data!$C:$C,'Detailed - DNSP'!K$62) -> 1134023.55 | L65: =SUMIFS(Data!$D:$D,Data!$A:$A,'Detailed - DNSP'!$C$4,Data!$B:$B,'Detailed - DNSP'!$B65,Data!$C:$C,'Detailed - DNSP'!L$62) -> 2935575 | M65: =SUMIFS(Data!$D:$D,Data!$A:$A,'Detailed - DNSP'!$C$4,Data!$B:$B,'Detailed - DNSP'!$B65,Data!$C:$C,'Detailed - DNSP'!M$62) -> 6800682
B66: Total Expenditure | C66: =SUM(C63:C65) -> 75495360.91 | D66: 74998388.94 | E66: 43449247.64 | F66: 52275053.99 | G66: 58535967 | H66: 58935352 | I66: 56877922.21 | J66: 59948897.27 | K66: 63714886.55 | L66: 65906697 | M66: 59806686
B68: Source: Annual RIN Financial - Income Statement - 2014 to 2024 Annual RIN Financial - Opex - 2014 to 2024
B71: Total Earnings before Interest, Tax, Depreciation & Amortisation (EBITDA) | C71: =C60-C66 -> 113973574.7 | D71: 112371983.2 | E71: 124648725.7 | F71: 131498062.6 | G71: 156285181.5 | H71: 165950554 | I71: 106642115.4 | J71: 50780373.8 | K71: 233292427.7 | L71: 213148093 | M71: -14938386
B73: Depreciation | C73: 2014 | D73: 2015 | E73: 2016 | F73: 2017 | G73: 2018 | H73: 2019 | I73: 2020 | J73: 2021 | K73: 2022 | L73: 2023 | M73: 2024
B74: Nominal Straight Line Depreciation | C74: =SUMIFS(Data!$D:$D,Data!$A:$A,'Detailed - DNSP'!$C$4,Data!$B:$B,'Detailed - DNSP'!$B74,Data!$C:$C,'Detailed - DNSP'!C$73) -> 45342769.05 | D74: =SUMIFS(Data!$D:$D,Data!$A:$A,'Detailed - DNSP'!$C$4,Data!$B:$B,'Detailed - DNSP'!$B74,Data!$C:$C,'Detailed - DNSP'!D$73) -> 52136757.13 | E74: =SUMIFS(Data!$D:$D,Data!$A:$A,'Detailed - DNSP'!$C$4,Data!$B:$B,'Detailed - DNSP'!$B74,Data!$C:$C,'Detailed - DNSP'!E$73) -> 57847994.37 | F74: =SUMIFS(Data!$D:$D,Data!$A:$A,'Detailed - DNSP'!$C$4,Data!$B:$B,'Detailed - DNSP'!$B74,Data!$C:$C,'Detailed - DNSP'!F$73) -> 58837740.03 | G74: =SUMIFS(Data!$D:$D,Data!$A:$A,'Detailed - DNSP'!$C$4,Data!$B:$B,'Detailed - DNSP'!$B74,Data!$C:$C,'Detailed - DNSP'!G$73) -> 60917075.37 | H74: =SUMIFS(Data!$D:$D,Data!$A:$A,'Detailed - DNSP'!$C$4,Data!$B:$B,'Detailed - DNSP'!$B74,Data!$C:$C,'Detailed - DNSP'!H$73) -> 61544188.33 | I74: =SUMIFS(Data!$D:$D,Data!$A:$A,'Detailed - DNSP'!$C$4,Data!$B:$B,'Detailed - DNSP'!$B74,Data!$C:$C,'Detailed - DNSP'!I$73) -> 65679095.17 | J74: =SUMIFS(Data!$D:$D,Data!$A:$A,'Detailed - DNSP'!$C$4,Data!$B:$B,'Detailed - DNSP'!$B74,Data!$C:$C,'Detailed - DNSP'!J$73) -> 69172243.92 | K74: =SUMIFS(Data!$D:$D,Data!$A:$A,'Detailed - DNSP'!$C$4,Data!$B:$B,'Detailed - DNSP'!$B74,Data!$C:$C,'Detailed - DNSP'!K$73) -> 72361882.44 | L74: =SUMIFS(Data!$D:$D,Data!$A:$A,'Detailed - DNSP'!$C$4,Data!$B:$B,'Detailed - DNSP'!$B74,Data!$C:$C,'Detailed - DNSP'!L$73) -> 78428913.94 | M74: =SUMIFS(Data!$D:$D,Data!$A:$A,'Detailed - DNSP'!$C$4,Data!$B:$B,'Detailed - DNSP'!$B74,Data!$C:$C,'Detailed - DNSP'!M$73) -> 86669196.49
B75: Indexation of opening Regulatory Asset Base | C75: =IF(AND($C$12="exclusive",$C$6="Inclusive"),C105*C113,IF($C$6="Inclusive",C105*C112,"n/a")) -> n/a | D75: =IF(AND($C$12="exclusive",$C$6="Inclusive"),D105*D113,IF($C$6="Inclusive",D105*D112,"n/a")) -> n/a | E75: n/a | F75: n/a | G75: n/a | H75: n/a | I75: n/a | J75: n/a | K75: n/a | L75: n/a | M75: n/a
B77: Source: Roll Forward Model - Nominal straight line depreciation - 2014 to 2024 Where not available - Post Tax Revenue Model - Nominal straight line depreciation - 2014 to 2024 (updated for actual inflation)
B80: Total Earnings before Interest & Tax (EBIT) | C80: =IF($C$6="Inclusive",C71-C74+C75,C71-C74) -> 68630805.61 | D80: =IF($C$6="Inclusive",D71-D74+D75,D71-D74) -> 60235226.09 | E80: 66800731.33 | F80: 72660322.6 | G80: 95368106.13 | H80: 104406365.7 | I80: 40963020.22 | J80: -18391870.12 | K80: 160930545.3 | L80: 134719179.1 | M80: -101607582.5
B82: Supplementary Information
B84: Incentive Schemes | C84: 2014 | D84: 2015 | E84: 2016 | F84: 2017 | G84: 2018 | H84: 2019 | I84: 2020 | J84: 2021 | K84: 2022 | L84: 2023 | M84: 2024
B85: ebss | C85: =SUMIFS(Data!$D:$D,Data!$A:$A,'Detailed - DNSP'!$C$4,Data!$B:$B,'Detailed - DNSP'!$B85,Data!$C:$C,'Detailed - DNSP'!C$84) -> 0 | D85: =SUMIFS(Data!$D:$D,Data!$A:$A,'Detailed - DNSP'!$C$4,Data!$B:$B,'Detailed - DNSP'!$B85,Data!$C:$C,'Detailed - DNSP'!D$84) -> 0 | E85: =SUMIFS(Data!$D:$D,Data!$A:$A,'Detailed - DNSP'!$C$4,Data!$B:$B,'Detailed - DNSP'!$B85,Data!$C:$C,'Detailed - DNSP'!E$84) -> 0 | F85: =SUMIFS(Data!$D:$D,Data!$A:$A,'Detailed - DNSP'!$C$4,Data!$B:$B,'Detailed - DNSP'!$B85,Data!$C:$C,'Detailed - DNSP'!F$84) -> 0 | G85: =SUMIFS(Data!$D:$D,Data!$A:$A,'Detailed - DNSP'!$C$4,Data!$B:$B,'Detailed - DNSP'!$B85,Data!$C:$C,'Detailed - DNSP'!G$84) -> 0 | H85: =SUMIFS(Data!$D:$D,Data!$A:$A,'Detailed - DNSP'!$C$4,Data!$B:$B,'Detailed - DNSP'!$B85,Data!$C:$C,'Detailed - DNSP'!H$84) -> 0 | I85: =SUMIFS(Data!$D:$D,Data!$A:$A,'Detailed - DNSP'!$C$4,Data!$B:$B,'Detailed - DNSP'!$B85,Data!$C:$C,'Detailed - DNSP'!I$84) -> 0 | J85: =SUMIFS(Data!$D:$D,Data!$A:$A,'Detailed - DNSP'!$C$4,Data!$B:$B,'Detailed - DNSP'!$B85,Data!$C:$C,'Detailed - DNSP'!J$84) -> 0 | K85: =SUMIFS(Data!$D:$D,Data!$A:$A,'Detailed - DNSP'!$C$4,Data!$B:$B,'Detailed - DNSP'!$B85,Data!$C:$C,'Detailed - DNSP'!K$84) -> 0 | L85: =SUMIFS(Data!$D:$D,Data!$A:$A,'Detailed - DNSP'!$C$4,Data!$B:$B,'Detailed - DNSP'!$B85,Data!$C:$C,'Detailed - DNSP'!L$84) -> 0 | M85: =SUMIFS(Data!$D:$D,Data!$A:$A,'Detailed - DNSP'!$C$4,Data!$B:$B,'Detailed - DNSP'!$B85,Data!$C:$C,'Detailed - DNSP'!M$84) -> 0
B86: stpis | C86: =SUMIFS(Data!$D:$D,Data!$A:$A,'Detailed - DNSP'!$C$4,Data!$B:$B,'Detailed - DNSP'!$B86,Data!$C:$C,'Detailed - DNSP'!C$84) -> 0 | D86: =SUMIFS(Data!$D:$D,Data!$A:$A,'Detailed - DNSP'!$C$4,Data!$B:$B,'Detailed - DNSP'!$B86,Data!$C:$C,'Detailed - DNSP'!D$84) -> 0 | E86: =SUMIFS(Data!$D:$D,Data!$A:$A,'Detailed - DNSP'!$C$4,Data!$B:$B,'Detailed - DNSP'!$B86,Data!$C:$C,'Detailed - DNSP'!E$84) -> 0 | F86: =SUMIFS(Data!$D:$D,Data!$A:$A,'Detailed - DNSP'!$C$4,Data!$B:$B,'Detailed - DNSP'!$B86,Data!$C:$C,'Detailed - DNSP'!F$84) -> 0 | G86: =SUMIFS(Data!$D:$D,Data!$A:$A,'Detailed - DNSP'!$C$4,Data!$B:$B,'Detailed - DNSP'!$B86,Data!$C:$C,'Detailed - DNSP'!G$84) -> -291486.3861 | H86: =SUMIFS(Data!$D:$D,Data!$A:$A,'Detailed - DNSP'!$C$4,Data!$B:$B,'Detailed - DNSP'!$B86,Data!$C:$C,'Detailed - DNSP'!H$84) -> -913257 | I86: =SUMIFS(Data!$D:$D,Data!$A:$A,'Detailed - DNSP'!$C$4,Data!$B:$B,'Detailed - DNSP'!$B86,Data!$C:$C,'Detailed - DNSP'!I$84) -> 1301666 | J86: =SUMIFS(Data!$D:$D,Data!$A:$A,'Detailed - DNSP'!$C$4,Data!$B:$B,'Detailed - DNSP'!$B86,Data!$C:$C,'Detailed - DNSP'!J$84) -> -1338666.14 | K86: =SUMIFS(Data!$D:$D,Data!$A:$A,'Detailed - DNSP'!$C$4,Data!$B:$B,'Detailed - DNSP'!$B86,Data!$C:$C,'Detailed - DNSP'!K$84) -> 0 | L86: =SUMIFS(Data!$D:$D,Data!$A:$A,'Detailed - DNSP'!$C$4,Data!$B:$B,'Detailed - DNSP'!$B86,Data!$C:$C,'Detailed - DNSP'!L$84) -> -1249854.46 | M86: =SUMIFS(Data!$D:$D,Data!$A:$A,'Detailed - DNSP'!$C$4,Data!$B:$B,'Detailed - DNSP'!$B86,Data!$C:$C,'Detailed - DNSP'!M$84) -> -4756482
B87: f-factor | C87: =SUMIFS(Data!$D:$D,Data!$A:$A,'Detailed - DNSP'!$C$4,Data!$B:$B,'Detailed - DNSP'!$B87,Data!$C:$C,'Detailed - DNSP'!C$84) -> 0 | D87: =SUMIFS(Data!$D:$D,Data!$A:$A,'Detailed - DNSP'!$C$4,Data!$B:$B,'Detailed - DNSP'!$B87,Data!$C:$C,'Detailed - DNSP'!D$84) -> 0 | E87: =SUMIFS(Data!$D:$D,Data!$A:$A,'Detailed - DNSP'!$C$4,Data!$B:$B,'Detailed - DNSP'!$B87,Data!$C:$C,'Detailed - DNSP'!E$84) -> 0 | F87: =SUMIFS(Data!$D:$D,Data!$A:$A,'Detailed - DNSP'!$C$4,Data!$B:$B,'Detailed - DNSP'!$B87,Data!$C:$C,'Detailed - DNSP'!F$84) -> 0 | G87: =SUMIFS(Data!$D:$D,Data!$A:$A,'Detailed - DNSP'!$C$4,Data!$B:$B,'Detailed - DNSP'!$B87,Data!$C:$C,'Detailed - DNSP'!G$84) -> 0 | H87: =SUMIFS(Data!$D:$D,Data!$A:$A,'Detailed - DNSP'!$C$4,Data!$B:$B,'Detailed - DNSP'!$B87,Data!$C:$C,'Detailed - DNSP'!H$84) -> 0 | I87: =SUMIFS(Data!$D:$D,Data!$A:$A,'Detailed - DNSP'!$C$4,Data!$B:$B,'Detailed - DNSP'!$B87,Data!$C:$C,'Detailed - DNSP'!I$84) -> 0 | J87: =SUMIFS(Data!$D:$D,Data!$A:$A,'Detailed - DNSP'!$C$4,Data!$B:$B,'Detailed - DNSP'!$B87,Data!$C:$C,'Detailed - DNSP'!J$84) -> 0 | K87: =SUMIFS(Data!$D:$D,Data!$A:$A,'Detailed - DNSP'!$C$4,Data!$B:$B,'Detailed - DNSP'!$B87,Data!$C:$C,'Detailed - DNSP'!K$84) -> 0 | L87: =SUMIFS(Data!$D:$D,Data!$A:$A,'Detailed - DNSP'!$C$4,Data!$B:$B,'Detailed - DNSP'!$B87,Data!$C:$C,'Detailed - DNSP'!L$84) -> 0 | M87: =SUMIFS(Data!$D:$D,Data!$A:$A,'Detailed - DNSP'!$C$4,Data!$B:$B,'Detailed - DNSP'!$B87,Data!$C:$C,'Detailed - DNSP'!M$84) -> 0
B88: s-factor true up | C88: =SUMIFS(Data!$D:$D,Data!$A:$A,'Detailed - DNSP'!$C$4,Data!$B:$B,'Detailed - DNSP'!$B88,Data!$C:$C,'Detailed - DNSP'!C$84) -> 0 | D88: =SUMIFS(Data!$D:$D,Data!$A:$A,'Detailed - DNSP'!$C$4,Data!$B:$B,'Detailed - DNSP'!$B88,Data!$C:$C,'Detailed - DNSP'!D$84) -> 0 | E88: =SUMIFS(Data!$D:$D,Data!$A:$A,'Detailed - DNSP'!$C$4,Data!$B:$B,'Detailed - DNSP'!$B88,Data!$C:$C,'Detailed - DNSP'!E$84) -> 0 | F88: =SUMIFS(Data!$D:$D,Data!$A:$A,'Detailed - DNSP'!$C$4,Data!$B:$B,'Detailed - DNSP'!$B88,Data!$C:$C,'Detailed - DNSP'!F$84) -> 0 | G88: =SUMIFS(Data!$D:$D,Data!$A:$A,'Detailed - DNSP'!$C$4,Data!$B:$B,'Detailed - DNSP'!$B88,Data!$C:$C,'Detailed - DNSP'!G$84) -> 0 | H88: =SUMIFS(Data!$D:$D,Data!$A:$A,'Detailed - DNSP'!$C$4,Data!$B:$B,'Detailed - DNSP'!$B88,Data!$C:$C,'Detailed - DNSP'!H$84) -> 0 | I88: =SUMIFS(Data!$D:$D,Data!$A:$A,'Detailed - DNSP'!$C$4,Data!$B:$B,'Detailed - DNSP'!$B88,Data!$C:$C,'Detailed - DNSP'!I$84) -> 0 | J88: =SUMIFS(Data!$D:$D,Data!$A:$A,'Detailed - DNSP'!$C$4,Data!$B:$B,'Detailed - DNSP'!$B88,Data!$C:$C,'Detailed - DNSP'!J$84) -> 0 | K88: =SUMIFS(Data!$D:$D,Data!$A:$A,'Detailed - DNSP'!$C$4,Data!$B:$B,'Detailed - DNSP'!$B88,Data!$C:$C,'Detailed - DNSP'!K$84) -> 0 | L88: =SUMIFS(Data!$D:$D,Data!$A:$A,'Detailed - DNSP'!$C$4,Data!$B:$B,'Detailed - DNSP'!$B88,Data!$C:$C,'Detailed - DNSP'!L$84) -> 0 | M88: =SUMIFS(Data!$D:$D,Data!$A:$A,'Detailed - DNSP'!$C$4,Data!$B:$B,'Detailed - DNSP'!$B88,Data!$C:$C,'Detailed - DNSP'!M$84) -> 0
B89: cess | C89: =SUMIFS(Data!$D:$D,Data!$A:$A,'Detailed - DNSP'!$C$4,Data!$B:$B,'Detailed - DNSP'!$B89,Data!$C:$C,'Detailed - DNSP'!C$84) -> 0 | D89: =SUMIFS(Data!$D:$D,Data!$A:$A,'Detailed - DNSP'!$C$4,Data!$B:$B,'Detailed - DNSP'!$B89,Data!$C:$C,'Detailed - DNSP'!D$84) -> 0 | E89: =SUMIFS(Data!$D:$D,Data!$A:$A,'Detailed - DNSP'!$C$4,Data!$B:$B,'Detailed - DNSP'!$B89,Data!$C:$C,'Detailed - DNSP'!E$84) -> 0 | F89: =SUMIFS(Data!$D:$D,Data!$A:$A,'Detailed - DNSP'!$C$4,Data!$B:$B,'Detailed - DNSP'!$B89,Data!$C:$C,'Detailed - DNSP'!F$84) -> 0 | G89: =SUMIFS(Data!$D:$D,Data!$A:$A,'Detailed - DNSP'!$C$4,Data!$B:$B,'Detailed - DNSP'!$B89,Data!$C:$C,'Detailed - DNSP'!G$84) -> 0 | H89: =SUMIFS(Data!$D:$D,Data!$A:$A,'Detailed - DNSP'!$C$4,Data!$B:$B,'Detailed - DNSP'!$B89,Data!$C:$C,'Detailed - DNSP'!H$84) -> 0 | I89: =SUMIFS(Data!$D:$D,Data!$A:$A,'Detailed - DNSP'!$C$4,Data!$B:$B,'Detailed - DNSP'!$B89,Data!$C:$C,'Detailed - DNSP'!I$84) -> -227292 | J89: =SUMIFS(Data!$D:$D,Data!$A:$A,'Detailed - DNSP'!$C$4,Data!$B:$B,'Detailed - DNSP'!$B89,Data!$C:$C,'Detailed - DNSP'!J$84) -> -768050.51 | K89: =SUMIFS(Data!$D:$D,Data!$A:$A,'Detailed - DNSP'!$C$4,Data!$B:$B,'Detailed - DNSP'!$B89,Data!$C:$C,'Detailed - DNSP'!K$84) -> 0 | L89: =SUMIFS(Data!$D:$D,Data!$A:$A,'Detailed - DNSP'!$C$4,Data!$B:$B,'Detailed - DNSP'!$B89,Data!$C:$C,'Detailed - DNSP'!L$84) -> -248640.767 | M89: =SUMIFS(Data!$D:$D,Data!$A:$A,'Detailed - DNSP'!$C$4,Data!$B:$B,'Detailed - DNSP'!$B89,Data!$C:$C,'Detailed - DNSP'!M$84) -> -263372.8474
B90: other | C90: =SUMIFS(Data!$D:$D,Data!$A:$A,'Detailed - DNSP'!$C$4,Data!$B:$B,'Detailed - DNSP'!$B90,Data!$C:$C,'Detailed - DNSP'!C$84) -> 0 | D90: =SUMIFS(Data!$D:$D,Data!$A:$A,'Detailed - DNSP'!$C$4,Data!$B:$B,'Detailed - DNSP'!$B90,Data!$C:$C,'Detailed - DNSP'!D$84) -> 0 | E90: =SUMIFS(Data!$D:$D,Data!$A:$A,'Detailed - DNSP'!$C$4,Data!$B:$B,'Detailed - DNSP'!$B90,Data!$C:$C,'Detailed - DNSP'!E$84) -> 0 | F90: =SUMIFS(Data!$D:$D,Data!$A:$A,'Detailed - DNSP'!$C$4,Data!$B:$B,'Detailed - DNSP'!$B90,Data!$C:$C,'Detailed - DNSP'!F$84) -> 0 | G90: =SUMIFS(Data!$D:$D,Data!$A:$A,'Detailed - DNSP'!$C$4,Data!$B:$B,'Detailed - DNSP'!$B90,Data!$C:$C,'Detailed - DNSP'!G$84) -> 0 | H90: =SUMIFS(Data!$D:$D,Data!$A:$A,'Detailed - DNSP'!$C$4,Data!$B:$B,'Detailed - DNSP'!$B90,Data!$C:$C,'Detailed - DNSP'!H$84) -> 0 | I90: =SUMIFS(Data!$D:$D,Data!$A:$A,'Detailed - DNSP'!$C$4,Data!$B:$B,'Detailed - DNSP'!$B90,Data!$C:$C,'Detailed - DNSP'!I$84) -> 0 | J90: =SUMIFS(Data!$D:$D,Data!$A:$A,'Detailed - DNSP'!$C$4,Data!$B:$B,'Detailed - DNSP'!$B90,Data!$C:$C,'Detailed - DNSP'!J$84) -> 0 | K90: =SUMIFS(Data!$D:$D,Data!$A:$A,'Detailed - DNSP'!$C$4,Data!$B:$B,'Detailed - DNSP'!$B90,Data!$C:$C,'Detailed - DNSP'!K$84) -> 0 | L90: =SUMIFS(Data!$D:$D,Data!$A:$A,'Detailed - DNSP'!$C$4,Data!$B:$B,'Detailed - DNSP'!$B90,Data!$C:$C,'Detailed - DNSP'!L$84) -> 362039.1157 | M90: =SUMIFS(Data!$D:$D,Data!$A:$A,'Detailed - DNSP'!$C$4,Data!$B:$B,'Detailed - DNSP'!$B90,Data!$C:$C,'Detailed - DNSP'!M$84) -> 384582.0715
B91: Total Revenue (penalties) allowed (deducted) through incentive schemes | C91: =SUM(C85:C90) -> 0 | D91: 0 | E91: 0 | F91: 0 | G91: -291486.3861 | H91: -913257 | I91: 1074374 | J91: -2106716.65 | K91: =SUM(K85:K90) -> 0 | L91: =SUM(L85:L90) -> -1136456.111 | M91: =SUM(M85:M90) -> -4635272.776
B93: Source: Economic Benchmarking RIN - Revenue - 2014 to 2024
B96: Customer Numbers | C96: 2014 | D96: 2015 | E96: 2016 | F96: 2017 | G96: 2018 | H96: 2019 | I96: 2020 | J96: 2021 | K96: 2022 | L96: 2023 | M96: 2024
B97: Customer numbers at the start of the period | C97: =SUMIFS(Data!$D:$D,Data!$A:$A,'Detailed - DNSP'!$C$4,Data!$B:$B,'Detailed - DNSP'!$B97,Data!$C:$C,'Detailed - DNSP'!C$96) -> 177256 | D97: =SUMIFS(Data!$D:$D,Data!$A:$A,'Detailed - DNSP'!$C$4,Data!$B:$B,'Detailed - DNSP'!$B97,Data!$C:$C,'Detailed - DNSP'!D$96) -> 180202 | E97: =SUMIFS(Data!$D:$D,Data!$A:$A,'Detailed - DNSP'!$C$4,Data!$B:$B,'Detailed - DNSP'!$B97,Data!$C:$C,'Detailed - DNSP'!E$96) -> 183547 | F97: =SUMIFS(Data!$D:$D,Data!$A:$A,'Detailed - DNSP'!$C$4,Data!$B:$B,'Detailed - DNSP'!$B97,Data!$C:$C,'Detailed - DNSP'!F$96) -> 186379 | G97: =SUMIFS(Data!$D:$D,Data!$A:$A,'Detailed - DNSP'!$C$4,Data!$B:$B,'Detailed - DNSP'!$B97,Data!$C:$C,'Detailed - DNSP'!G$96) -> 194605 | H97: =SUMIFS(Data!$D:$D,Data!$A:$A,'Detailed - DNSP'!$C$4,Data!$B:$B,'Detailed - DNSP'!$B97,Data!$C:$C,'Detailed - DNSP'!H$96) -> 196541 | I97: =SUMIFS(Data!$D:$D,Data!$A:$A,'Detailed - DNSP'!$C$4,Data!$B:$B,'Detailed - DNSP'!$B97,Data!$C:$C,'Detailed - DNSP'!I$96) -> 205038 | J97: =SUMIFS(Data!$D:$D,Data!$A:$A,'Detailed - DNSP'!$C$4,Data!$B:$B,'Detailed - DNSP'!$B97,Data!$C:$C,'Detailed - DNSP'!J$96) -> 209974 | K97: =SUMIFS(Data!$D:$D,Data!$A:$A,'Detailed - DNSP'!$C$4,Data!$B:$B,'Detailed - DNSP'!$B97,Data!$C:$C,'Detailed - DNSP'!K$96) -> 215376 | L97: =SUMIFS(Data!$D:$D,Data!$A:$A,'Detailed - DNSP'!$C$4,Data!$B:$B,'Detailed - DNSP'!$B97,Data!$C:$C,'Detailed - DNSP'!L$96) -> 219178 | M97: =SUMIFS(Data!$D:$D,Data!$A:$A,'Detailed - DNSP'!$C$4,Data!$B:$B,'Detailed - DNSP'!$B97,Data!$C:$C,'Detailed - DNSP'!M$96) -> 224018
B98: Customer numbers at the end of the period | C98: =SUMIFS(Data!$D:$D,Data!$A:$A,'Detailed - DNSP'!$C$4,Data!$B:$B,'Detailed - DNSP'!$B98,Data!$C:$C,'Detailed - DNSP'!C$96) -> 180202 | D98: =SUMIFS(Data!$D:$D,Data!$A:$A,'Detailed - DNSP'!$C$4,Data!$B:$B,'Detailed - DNSP'!$B98,Data!$C:$C,'Detailed - DNSP'!D$96) -> 183250 | E98: =SUMIFS(Data!$D:$D,Data!$A:$A,'Detailed - DNSP'!$C$4,Data!$B:$B,'Detailed - DNSP'!$B98,Data!$C:$C,'Detailed - DNSP'!E$96) -> 186376 | F98: =SUMIFS(Data!$D:$D,Data!$A:$A,'Detailed - DNSP'!$C$4,Data!$B:$B,'Detailed - DNSP'!$B98,Data!$C:$C,'Detailed - DNSP'!F$96) -> 194424 | G98: =SUMIFS(Data!$D:$D,Data!$A:$A,'Detailed - DNSP'!$C$4,Data!$B:$B,'Detailed - DNSP'!$B98,Data!$C:$C,'Detailed - DNSP'!G$96) -> 200465 | H98: =SUMIFS(Data!$D:$D,Data!$A:$A,'Detailed - DNSP'!$C$4,Data!$B:$B,'Detailed - DNSP'!$B98,Data!$C:$C,'Detailed - DNSP'!H$96) -> 200321 | I98: =SUMIFS(Data!$D:$D,Data!$A:$A,'Detailed - DNSP'!$C$4,Data!$B:$B,'Detailed - DNSP'!$B98,Data!$C:$C,'Detailed - DNSP'!I$96) -> 209436 | J98: =SUMIFS(Data!$D:$D,Data!$A:$A,'Detailed - DNSP'!$C$4,Data!$B:$B,'Detailed - DNSP'!$B98,Data!$C:$C,'Detailed - DNSP'!J$96) -> 215033 | K98: =SUMIFS(Data!$D:$D,Data!$A:$A,'Detailed - DNSP'!$C$4,Data!$B:$B,'Detailed - DNSP'!$B98,Data!$C:$C,'Detailed - DNSP'!K$96) -> 218518 | L98: =SUMIFS(Data!$D:$D,Data!$A:$A,'Detailed - DNSP'!$C$4,Data!$B:$B,'Detailed - DNSP'!$B98,Data!$C:$C,'Detailed - DNSP'!L$96) -> 223681 | M98: =SUMIFS(Data!$D:$D,Data!$A:$A,'Detailed - DNSP'!$C$4,Data!$B:$B,'Detailed - DNSP'!$B98,Data!$C:$C,'Detailed - DNSP'!M$96) -> 226934
B99: Average Customer Numbers for regulatory year | C99: =AVERAGE(C97:C98) -> 178729 | D99: 181726 | E99: 184961.5 | F99: 190401.5 | G99: 197535 | H99: 198431 | I99: 207237 | J99: 212503.5 | K99: =AVERAGE(K97:K98) -> 216947 | L99: =AVERAGE(L97:L98) -> 221429.5 | M99: =AVERAGE(M97:M98) -> 225476
B101: Source: Annual RIN Non - Financial - STPIS - 2014 to 2024
C104: 2014 | D104: 2015 | E104: 2016 | F104: 2017 | G104: 2018 | H104: 2019 | I104: 2020 | J104: 2021 | K104: 2022 | L104: 2023 | M104: 2024
B105: Opening Regulatory Asset Base (Nominal) | C105: =IF($F$6="Yes",#REF!,SUMIFS(Data!$D:$D,Data!$A:$A,'Detailed - DNSP'!$C$4,Data!$B:$B,'Detailed - DNSP'!$B105,Data!$C:$C,'Detailed - DNSP'!C$104)) -> 798269623 | D105: =IF($F$6="Yes",#REF!,SUMIFS(Data!$D:$D,Data!$A:$A,'Detailed - DNSP'!$C$4,Data!$B:$B,'Detailed - DNSP'!$B105,Data!$C:$C,'Detailed - DNSP'!D$104)) -> 847515634 | E105: =IF($F$6="Yes",#REF!,SUMIFS(Data!$D:$D,Data!$A:$A,'Detailed - DNSP'!$C$4,Data!$B:$B,'Detailed - DNSP'!$B105,Data!$C:$C,'Detailed - DNSP'!E$104)) -> 889404008 | F105: =IF($F$6="Yes",#REF!,SUMIFS(Data!$D:$D,Data!$A:$A,'Detailed - DNSP'!$C$4,Data!$B:$B,'Detailed - DNSP'!$B105,Data!$C:$C,'Detailed - DNSP'!F$104)) -> 906597953 | G105: =IF($F$6="Yes",#REF!,SUMIFS(Data!$D:$D,Data!$A:$A,'Detailed - DNSP'!$C$4,Data!$B:$B,'Detailed - DNSP'!$B105,Data!$C:$C,'Detailed - DNSP'!G$104)) -> 914653766 | H105: =IF($F$6="Yes",#REF!,SUMIFS(Data!$D:$D,Data!$A:$A,'Detailed - DNSP'!$C$4,Data!$B:$B,'Detailed - DNSP'!$B105,Data!$C:$C,'Detailed - DNSP'!H$104)) -> 943459747 | I105: =IF($F$6="Yes",#REF!,SUMIFS(Data!$D:$D,Data!$A:$A,'Detailed - DNSP'!$C$4,Data!$B:$B,'Detailed - DNSP'!$B105,Data!$C:$C,'Detailed - DNSP'!I$104)) -> 973312905.9 | J105: =IF($F$6="Yes",#REF!,SUMIFS(Data!$D:$D,Data!$A:$A,'Detailed - DNSP'!$C$4,Data!$B:$B,'Detailed - DNSP'!$B105,Data!$C:$C,'Detailed - DNSP'!J$104)) -> 990825189.2 | K105: =IF($F$6="Yes",#REF!,SUMIFS(Data!$D:$D,Data!$A:$A,'Detailed - DNSP'!$C$4,Data!$B:$B,'Detailed - DNSP'!$B105,Data!$C:$C,'Detailed - DNSP'!K$104)) -> 981317883.6 | L105: =IF($F$6="Yes",#REF!,SUMIFS(Data!$D:$D,Data!$A:$A,'Detailed - DNSP'!$C$4,Data!$B:$B,'Detailed - DNSP'!$B105,Data!$C:$C,'Detailed - DNSP'!L$104)) -> 1013630342 | M105: =IF($F$6="Yes",#REF!,SUMIFS(Data!$D:$D,Data!$A:$A,'Detailed - DNSP'!$C$4,Data!$B:$B,'Detailed - DNSP'!$B105,Data!$C:$C,'Detailed - DNSP'!M$104)) -> 1110078662
B106: Opening RAB in common real dollar terms (for calculating real returns on assets) | C106: =C105*(1+C112) -> 817826339.9 | D106: 867414727.5 | E106: 903107321.9 | F106: 918500076.2 | G106: 932411687.5 | H106: 961278266 | I106: 991226640.3 | J106: 999352084.1 | K106: 1015647263 | L106: 1093016066 | M106: 1155058913
B108: Source: Roll Forward Model - Opening Regulatory Asset Base - 2014 to 2024 Where not available - Annual RIN - Assets - 2021 to 2024
C111: 2014 | D111: 2015 | E111: 2016 | F111: 2017 | G111: 2018 | H111: 2019 | I111: 2020 | J111: 2021 | K111: 2022 | L111: 2023 | M111: 2024
B112: Inflation rate | C112: =SUMIFS(Data!$D:$D,Data!$A:$A,'Detailed - DNSP'!$C$4,Data!$B:$B,'Detailed - DNSP'!$B112,Data!$C:$C,'Detailed - DNSP'!C$111) -> 0.02449888647 | D112: =SUMIFS(Data!$D:$D,Data!$A:$A,'Detailed - DNSP'!$C$4,Data!$B:$B,'Detailed - DNSP'!$B112,Data!$C:$C,'Detailed - DNSP'!D$111) -> 0.0234793232 | E112: =SUMIFS(Data!$D:$D,Data!$A:$A,'Detailed - DNSP'!$C$4,Data!$B:$B,'Detailed - DNSP'!$B112,Data!$C:$C,'Detailed - DNSP'!E$111) -> 0.01540729945 | F112: =SUMIFS(Data!$D:$D,Data!$A:$A,'Detailed - DNSP'!$C$4,Data!$B:$B,'Detailed - DNSP'!$B112,Data!$C:$C,'Detailed - DNSP'!F$111) -> 0.01312833669 | G112: =SUMIFS(Data!$D:$D,Data!$A:$A,'Detailed - DNSP'!$C$4,Data!$B:$B,'Detailed - DNSP'!$B112,Data!$C:$C,'Detailed - DNSP'!G$111) -> 0.019414911 | H112: =SUMIFS(Data!$D:$D,Data!$A:$A,'Detailed - DNSP'!$C$4,Data!$B:$B,'Detailed - DNSP'!$B112,Data!$C:$C,'Detailed - DNSP'!H$111) -> 0.01888635852 | I112: =SUMIFS(Data!$D:$D,Data!$A:$A,'Detailed - DNSP'!$C$4,Data!$B:$B,'Detailed - DNSP'!$B112,Data!$C:$C,'Detailed - DNSP'!I$111) -> 0.01840490798 | J112: =SUMIFS(Data!$D:$D,Data!$A:$A,'Detailed - DNSP'!$C$4,Data!$B:$B,'Detailed - DNSP'!$B112,Data!$C:$C,'Detailed - DNSP'!J$111) -> 0.008605851979 | K112: =SUMIFS(Data!$D:$D,Data!$A:$A,'Detailed - DNSP'!$C$4,Data!$B:$B,'Detailed - DNSP'!$B112,Data!$C:$C,'Detailed - DNSP'!K$111) -> 0.03498293515 | L112: =SUMIFS(Data!$D:$D,Data!$A:$A,'Detailed - DNSP'!$C$4,Data!$B:$B,'Detailed - DNSP'!$B112,Data!$C:$C,'Detailed - DNSP'!L$111) -> 0.07831821929 | M112: =SUMIFS(Data!$D:$D,Data!$A:$A,'Detailed - DNSP'!$C$4,Data!$B:$B,'Detailed - DNSP'!$B112,Data!$C:$C,'Detailed - DNSP'!M$111) -> 0.04051987768
B113: Forecast inflation | C113: =SUMIFS(Data!$D:$D,Data!$A:$A,'Detailed - DNSP'!$C$4,Data!$B:$B,"Forecast inflation",Data!$C:$C,'Detailed - DNSP'!C$111) -> 0.02474850298 | D113: =SUMIFS(Data!$D:$D,Data!$A:$A,'Detailed - DNSP'!$C$4,Data!$B:$B,"Forecast inflation",Data!$C:$C,'Detailed - DNSP'!D$111) -> 0.0242 | E113: =SUMIFS(Data!$D:$D,Data!$A:$A,'Detailed - DNSP'!$C$4,Data!$B:$B,"Forecast inflation",Data!$C:$C,'Detailed - DNSP'!E$111) -> 0.0242 | F113: =SUMIFS(Data!$D:$D,Data!$A:$A,'Detailed - DNSP'!$C$4,Data!$B:$B,"Forecast inflation",Data!$C:$C,'Detailed - DNSP'!F$111) -> 0.0242 | G113: =SUMIFS(Data!$D:$D,Data!$A:$A,'Detailed - DNSP'!$C$4,Data!$B:$B,"Forecast inflation",Data!$C:$C,'Detailed - DNSP'!G$111) -> 0.0242 | H113: =SUMIFS(Data!$D:$D,Data!$A:$A,'Detailed - DNSP'!$C$4,Data!$B:$B,"Forecast inflation",Data!$C:$C,'Detailed - DNSP'!H$111) -> 0.0242 | I113: =SUMIFS(Data!$D:$D,Data!$A:$A,'Detailed - DNSP'!$C$4,Data!$B:$B,"Forecast inflation",Data!$C:$C,'Detailed - DNSP'!I$111) -> 0.02424874658 | J113: =SUMIFS(Data!$D:$D,Data!$A:$A,'Detailed - DNSP'!$C$4,Data!$B:$B,"Forecast inflation",Data!$C:$C,'Detailed - DNSP'!J$111) -> 0.02424874658 | K113: =SUMIFS(Data!$D:$D,Data!$A:$A,'Detailed - DNSP'!$C$4,Data!$B:$B,"Forecast inflation",Data!$C:$C,'Detailed - DNSP'!K$111) -> 0.02424874658 | L113: =SUMIFS(Data!$D:$D,Data!$A:$A,'Detailed - DNSP'!$C$4,Data!$B:$B,"Forecast inflation",Data!$C:$C,'Detailed - DNSP'!L$111) -> 0.02424874658 | M113: =SUMIFS(Data!$D:$D,Data!$A:$A,'Detailed - DNSP'!$C$4,Data!$B:$B,"Forecast inflation",Data!$C:$C,'Detailed - DNSP'!M$111) -> 0.02424874658
B115: Source: Roll Forward Model - Inflation Rate - 2014 to 2024 Where not available - Australian Bureau of Statistics - Inflation Rate 2024 Post Tax Revenue Model - Forecast inflation rate - 2014 to 2024

Sheet Detailed - TNSP
B2: Electricity TNSP Profitability Reporting - Detailed calculations
B4: Network Service Provider | C4: TransGrid
B6: Returns from indexation of the RAB | C6: Exclusive
B8: Returns from incentive scheme payments | C8: Inclusive
B10: Impact of inflation on returns | C10: Inclusive
B12: Users can select options from the drop-down lists above to view detailed calculations for individual NSPs, to view returns calculated including or excluding returns from RAB indexation, incentive scheme payments and impact of inflation on returns.
B14: Summary
B16: Returns on assets | C16: 2014 | D16: 2015 | E16: 2016 | F16: 2017 | G16: 2018 | H16: 2019 | I16: 2020 | J16: 2021 | K16: 2022 | L16: 2023 | M16: 2024
B17: Return on assets | C17: =IF($C$6="Inclusive",C71/C99,C71/C100) -> 0.08318772045 | D17: 0.0714825524 | E17: 0.05030039041 | F17: 0.043590043 | G17: 0.04602621335 | H17: 0.05243156653 | I17: 0.04927097702 | J17: 0.0485849727 | K17: 0.04269892792 | L17: 0.04560707287 | M17: 0.03843118366
B18: Allowed rate of return | C18: =IF($C$6="Exclusive",SUMIFS(Data!$D:$D,Data!$A:$A,'Detailed - TNSP'!$C$4,Data!$B:$B,"Allowed real rate of return",Data!$C:$C,'Detailed - TNSP'!C$16),SUMIFS(Data!$D:$D,Data!$A:$A,'Detailed - TNSP'!$C$4,Data!$B:$B,"Allowed nominal rate of return",Data!$C:$C,'Detailed - TNSP'!C$16)) -> 0.08035370901 | D18: =IF($C$6="Exclusive",SUMIFS(Data!$D:$D,Data!$A:$A,'Detailed - TNSP'!$C$4,Data!$B:$B,"Allowed real rate of return",Data!$C:$C,'Detailed - TNSP'!D$16),SUMIFS(Data!$D:$D,Data!$A:$A,'Detailed - TNSP'!$C$4,Data!$B:$B,"Allowed nominal rate of return",Data!$C:$C,'Detailed - TNSP'!D$16)) -> 0.04883262119 | E18: =IF($C$6="Exclusive",SUMIFS(Data!$D:$D,Data!$A:$A,'Detailed - TNSP'!$C$4,Data!$B:$B,"Allowed real rate of return",Data!$C:$C,'Detailed - TNSP'!E$16),SUMIFS(Data!$D:$D,Data!$A:$A,'Detailed - TNSP'!$C$4,Data!$B:$B,"Allowed nominal rate of return",Data!$C:$C,'Detailed - TNSP'!E$16)) -> 0.04791867987 | F18: =IF($C$6="Exclusive",SUMIFS(Data!$D:$D,Data!$A:$A,'Detailed - TNSP'!$C$4,Data!$B:$B,"Allowed real rate of return",Data!$C:$C,'Detailed - TNSP'!F$16),SUMIFS(Data!$D:$D,Data!$A:$A,'Detailed - TNSP'!$C$4,Data!$B:$B,"Allowed nominal rate of return",Data!$C:$C,'Detailed - TNSP'!F$16)) -> 0.0471209552 | G18: =IF($C$6="Exclusive",SUMIFS(Data!$D:$D,Data!$A:$A,'Detailed - TNSP'!$C$4,Data!$B:$B,"Allowed real rate of return",Data!$C:$C,'Detailed - TNSP'!G$16),SUMIFS(Data!$D:$D,Data!$A:$A,'Detailed - TNSP'!$C$4,Data!$B:$B,"Allowed nominal rate of return",Data!$C:$C,'Detailed - TNSP'!G$16)) -> 0.04607472846 | H18: =IF($C$6="Exclusive",SUMIFS(Data!$D:$D,Data!$A:$A,'Detailed - TNSP'!$C$4,Data!$B:$B,"Allowed real rate of return",Data!$C:$C,'Detailed - TNSP'!H$16),SUMIFS(Data!$D:$D,Data!$A:$A,'Detailed - TNSP'!$C$4,Data!$B:$B,"Allowed nominal rate of return",Data!$C:$C,'Detailed - TNSP'!H$16)) -> 0.04594881632 | I18: =IF($C$6="Exclusive",SUMIFS(Data!$D:$D,Data!$A:$A,'Detailed - TNSP'!$C$4,Data!$B:$B,"Allowed real rate of return",Data!$C:$C,'Detailed - TNSP'!I$16),SUMIFS(Data!$D:$D,Data!$A:$A,'Detailed - TNSP'!$C$4,Data!$B:$B,"Allowed nominal rate of return",Data!$C:$C,'Detailed - TNSP'!I$16)) -> 0.04478073855 | J18: =IF($C$6="Exclusive",SUMIFS(Data!$D:$D,Data!$A:$A,'Detailed - TNSP'!$C$4,Data!$B:$B,"Allowed real rate of return",Data!$C:$C,'Detailed - TNSP'!J$16),SUMIFS(Data!$D:$D,Data!$A:$A,'Detailed - TNSP'!$C$4,Data!$B:$B,"Allowed nominal rate of return",Data!$C:$C,'Detailed - TNSP'!J$16)) -> 0.04268879212 | K18: =IF($C$6="Exclusive",SUMIFS(Data!$D:$D,Data!$A:$A,'Detailed - TNSP'!$C$4,Data!$B:$B,"Allowed real rate of return",Data!$C:$C,'Detailed - TNSP'!K$16),SUMIFS(Data!$D:$D,Data!$A:$A,'Detailed - TNSP'!$C$4,Data!$B:$B,"Allowed nominal rate of return",Data!$C:$C,'Detailed - TNSP'!K$16)) -> 0.04003699804 | L18: =IF($C$6="Exclusive",SUMIFS(Data!$D:$D,Data!$A:$A,'Detailed - TNSP'!$C$4,Data!$B:$B,"Allowed real rate of return",Data!$C:$C,'Detailed - TNSP'!L$16),SUMIFS(Data!$D:$D,Data!$A:$A,'Detailed - TNSP'!$C$4,Data!$B:$B,"Allowed nominal rate of return",Data!$C:$C,'Detailed - TNSP'!L$16)) -> 0.03826961151 | M18: =IF($C$6="Exclusive",SUMIFS(Data!$D:$D,Data!$A:$A,'Detailed - TNSP'!$C$4,Data!$B:$B,"Allowed real rate of return",Data!$C:$C,'Detailed - TNSP'!M$16),SUMIFS(Data!$D:$D,Data!$A:$A,'Detailed - TNSP'!$C$4,Data!$B:$B,"Allowed nominal rate of return",Data!$C:$C,'Detailed - TNSP'!M$16)) -> 0.03030545572
B19: Difference | C19: =C17-C18 -> 0.002834011441 | D19: 0.02264993122 | E19: 0.002381710543 | F19: -0.003530912201 | G19: -4.851510282e-05 | H19: =H17-H18 -> 0.006482750213 | I19: 0.00449023847 | J19: =J17-J18 -> 0.005896180583 | K19: =K17-K18 -> 0.002661929883 | L19: =L17-L18 -> 0.007337461361 | M19: =M17-M18 -> 0.008125727939
B21: Source: Post Tax Revenue Model - Pre-tax real WACC - 2014 to 2024
C24: 2014 | D24: 2015 | E24: 2016 | F24: 2017 | G24: 2018 | H24: 2019 | I24: 2020 | J24: 2021 | K24: 2022 | L24: 2023 | M24: 2024
B25: EBIT per Customer ($) | C25: =C71/(C88+C96) -> 133.359242 | D25: 120.3699822 | E25: 84.91438587 | F25: 73.54853301 | G25: 76.87551167 | H25: 87.52728991 | I25: 82.35371331 | J25: 81.79688211 | K25: 78.75163311 | L25: 92.96708897 | M25: 87.86547972
B27: Return on regulated equity | C27: 2014 | D27: 2015 | E27: 2016 | F27: 2017 | G27: 2018 | H27: 2019 | I27: 2020 | J27: 2021 | K27: 2022 | L27: 2023 | M27: 2024
B28: Return on regulated equity | C28: =IF(AND($C$6="Inclusive",$C$8="Inclusive",$C$10="Inclusive"),SUMIFS(Data!$D:$D,Data!$A:$A,'Detailed - TNSP'!$C$4,Data!$B:$B,Inputs!$G$11,Data!$C:$C,'Detailed - TNSP'!C$27),IF(AND($C$6="Exclusive",$C$8="Inclusive",$C$10="Inclusive"),SUMIFS(Data!$D:$D,Data!$A:$A,'Detailed - TNSP'!$C$4,Data!$B:$B,Inputs!$G$12,Data!$C:$C,'Detailed - TNSP'!C$27),IF(AND($C$6="Inclusive",$C$8="Exclusive",$C$10="Inclusive"),SUMIFS(Data!$D:$D,Data!$A:$A,'Detailed - TNSP'!$C$4,Data!$B:$B,Inputs!$G$13,Data!$C:$C,'Detailed - TNSP'!C$27),IF(AND($C$6="Exclusive",$C$8="Exclusive",$C$10="Inclusive"),SUMIFS(Data!$D:$D,Data!$A:$A,'Detailed - TNSP'!$C$4,Data!$B:$B,Inputs!$G$14,Data!$C:$C,'Detailed - TNSP'!C$27),IF(AND($C$6="Inclusive",$C$8="Exclusive",$C$10="Exclusive"),SUMIFS(Data!$D:$D,Data!$A:$A,'Detailed - TNSP'!$C$4,Data!$B:$B,Inputs!$G$25,Data!$C:$C,'Detailed - TNSP'!C$27),IF(AND($C$6="Exclusive",$C$8="Exclusive",$C$10="Exclusive"),SUMIFS(Data!$D:$D,Data!$A:$A,'Detailed - TNSP'!$C$4,Data!$B:$B,Inputs!$G$26,Data!$C:$C,'Detailed - TNSP'!C$27),IF(AND($C$6="Inclusive",$C$8="Inclusive",$C$10="Exclusive"),SUMIFS(Data!$D:$D,Data!$A:$A,'Detailed - TNSP'!$C$4,Data!$B:$B,Inputs!$G$23,Data!$C:$C,'Detailed - TNSP'!C$27),IF(AND($C$6="Exclusive",$C$8="Inclusive",$C$10="Exclusive"),SUMIFS(Data!$D:$D,Data!$A:$A,'Detailed - TNSP'!$C$4,Data!$B:$B,Inputs!$G$24,Data!$C:$C,'Detailed - TNSP'!C$27))))))))) -> 0.0982958764 | D28: =IF(AND($C$6="Inclusive",$C$8="Inclusive",$C$10="Inclusive"),SUMIFS(Data!$D:$D,Data!$A:$A,'Detailed - TNSP'!$C$4,Data!$B:$B,Inputs!$G$11,Data!$C:$C,'Detailed - TNSP'!D$27),IF(AND($C$6="Exclusive",$C$8="Inclusive",$C$10="Inclusive"),SUMIFS(Data!$D:$D,Data!$A:$A,'Detailed - TNSP'!$C$4,Data!$B:$B,Inputs!$G$12,Data!$C:$C,'Detailed - TNSP'!D$27),IF(AND($C$6="Inclusive",$C$8="Exclusive",$C$10="Inclusive"),SUMIFS(Data!$D:$D,Data!$A:$A,'Detailed - TNSP'!$C$4,Data!$B:$B,Inputs!$G$13,Data!$C:$C,'Detailed - TNSP'!D$27),IF(AND($C$6="Exclusive",$C$8="Exclusive",$C$10="Inclusive"),SUMIFS(Data!$D:$D,Data!$A:$A,'Detailed - TNSP'!$C$4,Data!$B:$B,Inputs!$G$14,Data!$C:$C,'Detailed - TNSP'!D$27),IF(AND($C$6="Inclusive",$C$8="Exclusive",$C$10="Exclusive"),SUMIFS(Data!$D:$D,Data!$A:$A,'Detailed - TNSP'!$C$4,Data!$B:$B,Inputs!$G$25,Data!$C:$C,'Detailed - TNSP'!D$27),IF(AND($C$6="Exclusive",$C$8="Exclusive",$C$10="Exclusive"),SUMIFS(Data!$D:$D,Data!$A:$A,'Detailed - TNSP'!$C$4,Data!$B:$B,Inputs!$G$26,Data!$C:$C,'Detailed - TNSP'!D$27),IF(AND($C$6="Inclusive",$C$8="Inclusive",$C$10="Exclusive"),SUMIFS(Data!$D:$D,Data!$A:$A,'Detailed - TNSP'!$C$4,Data!$B:$B,Inputs!$G$23,Data!$C:$C,'Detailed - TNSP'!D$27),IF(AND($C$6="Exclusive",$C$8="Inclusive",$C$10="Exclusive"),SUMIFS(Data!$D:$D,Data!$A:$A,'Detailed - TNSP'!$C$4,Data!$B:$B,Inputs!$G$24,Data!$C:$C,'Detailed - TNSP'!D$27))))))))) -> 0.07499518909 | E28: =IF(AND($C$6="Inclusive",$C$8="Inclusive",$C$10="Inclusive"),SUMIFS(Data!$D:$D,Data!$A:$A,'Detailed - TNSP'!$C$4,Data!$B:$B,Inputs!$G$11,Data!$C:$C,'Detailed - TNSP'!E$27),IF(AND($C$6="Exclusive",$C$8="Inclusive",$C$10="Inclusive"),SUMIFS(Data!$D:$D,Data!$A:$A,'Detailed - TNSP'!$C$4,Data!$B:$B,Inputs!$G$12,Data!$C:$C,'Detailed - TNSP'!E$27),IF(AND($C$6="Inclusive",$C$8="Exclusive",$C$10="Inclusive"),SUMIFS(Data!$D:$D,Data!$A:$A,'Detailed - TNSP'!$C$4,Data!$B:$B,Inputs!$G$13,Data!$C:$C,'Detailed - TNSP'!E$27),IF(AND($C$6="Exclusive",$C$8="Exclusive",$C$10="Inclusive"),SUMIFS(Data!$D:$D,Data!$A:$A,'Detailed - TNSP'!$C$4,Data!$B:$B,Inputs!$G$14,Data!$C:$C,'Detailed - TNSP'!E$27),IF(AND($C$6="Inclusive",$C$8="Exclusive",$C$10="Exclusive"),SUMIFS(Data!$D:$D,Data!$A:$A,'Detailed - TNSP'!$C$4,Data!$B:$B,Inputs!$G$25,Data!$C:$C,'Detailed - TNSP'!E$27),IF(AND($C$6="Exclusive",$C$8="Exclusive",$C$10="Exclusive"),SUMIFS(Data!$D:$D,Data!$A:$A,'Detailed - TNSP'!$C$4,Data!$B:$B,Inputs!$G$26,Data!$C:$C,'Detailed - TNSP'!E$27),IF(AND($C$6="Inclusive",$C$8="Inclusive",$C$10="Exclusive"),SUMIFS(Data!$D:$D,Data!$A:$A,'Detailed - TNSP'!$C$4,Data!$B:$B,Inputs!$G$23,Data!$C:$C,'Detailed - TNSP'!E$27),IF(AND($C$6="Exclusive",$C$8="Inclusive",$C$10="Exclusive"),SUMIFS(Data!$D:$D,Data!$A:$A,'Detailed - TNSP'!$C$4,Data!$B:$B,Inputs!$G$24,Data!$C:$C,'Detailed - TNSP'!E$27))))))))) -> 0.06222594231 | F28: =IF(AND($C$6="Inclusive",$C$8="Inclusive",$C$10="Inclusive"),SUMIFS(Data!$D:$D,Data!$A:$A,'Detailed - TNSP'!$C$4,Data!$B:$B,Inputs!$G$11,Data!$C:$C,'Detailed - TNSP'!F$27),IF(AND($C$6="Exclusive",$C$8="Inclusive",$C$10="Inclusive"),SUMIFS(Data!$D:$D,Data!$A:$A,'Detailed - TNSP'!$C$4,Data!$B:$B,Inputs!$G$12,Data!$C:$C,'Detailed - TNSP'!F$27),IF(AND($C$6="Inclusive",$C$8="Exclusive",$C$10="Inclusive"),SUMIFS(Data!$D:$D,Data!$A:$A,'Detailed - TNSP'!$C$4,Data!$B:$B,Inputs!$G$13,Data!$C:$C,'Detailed - TNSP'!F$27),IF(AND($C$6="Exclusive",$C$8="Exclusive",$C$10="Inclusive"),SUMIFS(Data!$D:$D,Data!$A:$A,'Detailed - TNSP'!$C$4,Data!$B:$B,Inputs!$G$14,Data!$C:$C,'Detailed - TNSP'!F$27),IF(AND($C$6="Inclusive",$C$8="Exclusive",$C$10="Exclusive"),SUMIFS(Data!$D:$D,Data!$A:$A,'Detailed - TNSP'!$C$4,Data!$B:$B,Inputs!$G$25,Data!$C:$C,'Detailed - TNSP'!F$27),IF(AND($C$6="Exclusive",$C$8="Exclusive",$C$10="Exclusive"),SUMIFS(Data!$D:$D,Data!$A:$A,'Detailed - TNSP'!$C$4,Data!$B:$B,Inputs!$G$26,Data!$C:$C,'Detailed - TNSP'!F$27),IF(AND($C$6="Inclusive",$C$8="Inclusive",$C$10="Exclusive"),SUMIFS(Data!$D:$D,Data!$A:$A,'Detailed - TNSP'!$C$4,Data!$B:$B,Inputs!$G$23,Data!$C:$C,'Detailed - TNSP'!F$27),IF(AND($C$6="Exclusive",$C$8="Inclusive",$C$10="Exclusive"),SUMIFS(Data!$D:$D,Data!$A:$A,'Detailed - TNSP'!$C$4,Data!$B:$B,Inputs!$G$24,Data!$C:$C,'Detailed - TNSP'!F$27))))))))) -> 0.06216569974 | G28: =IF(AND($C$6="Inclusive",$C$8="Inclusive",$C$10="Inclusive"),SUMIFS(Data!$D:$D,Data!$A:$A,'Detailed - TNSP'!$C$4,Data!$B:$B,Inputs!$G$11,Data!$C:$C,'Detailed - TNSP'!G$27),IF(AND($C$6="Exclusive",$C$8="Inclusive",$C$10="Inclusive"),SUMIFS(Data!$D:$D,Data!$A:$A,'Detailed - TNSP'!$C$4,Data!$B:$B,Inputs!$G$12,Data!$C:$C,'Detailed - TNSP'!G$27),IF(AND($C$6="Inclusive",$C$8="Exclusive",$C$10="Inclusive"),SUMIFS(Data!$D:$D,Data!$A:$A,'Detailed - TNSP'!$C$4,Data!$B:$B,Inputs!$G$13,Data!$C:$C,'Detailed - TNSP'!G$27),IF(AND($C$6="Exclusive",$C$8="Exclusive",$C$10="Inclusive"),SUMIFS(Data!$D:$D,Data!$A:$A,'Detailed - TNSP'!$C$4,Data!$B:$B,Inputs!$G$14,Data!$C:$C,'Detailed - TNSP'!G$27),IF(AND($C$6="Inclusive",$C$8="Exclusive",$C$10="Exclusive"),SUMIFS(Data!$D:$D,Data!$A:$A,'Detailed - TNSP'!$C$4,Data!$B:$B,Inputs!$G$25,Data!$C:$C,'Detailed - TNSP'!G$27),IF(AND($C$6="Exclusive",$C$8="Exclusive",$C$10="Exclusive"),SUMIFS(Data!$D:$D,Data!$A:$A,'Detailed - TNSP'!$C$4,Data!$B:$B,Inputs!$G$26,Data!$C:$C,'Detailed - TNSP'!G$27),IF(AND($C$6="Inclusive",$C$8="Inclusive",$C$10="Exclusive"),SUMIFS(Data!$D:$D,Data!$A:$A,'Detailed - TNSP'!$C$4,Data!$B:$B,Inputs!$G$23,Data!$C:$C,'Detailed - TNSP'!G$27),IF(AND($C$6="Exclusive",$C$8="Inclusive",$C$10="Exclusive"),SUMIFS(Data!$D:$D,Data!$A:$A,'Detailed - TNSP'!$C$4,Data!$B:$B,Inputs!$G$24,Data!$C:$C,'Detailed - TNSP'!G$27))))))))) -> 0.06588040162 | H28: =IF(AND($C$6="Inclusive",$C$8="Inclusive",$C$10="Inclusive"),SUMIFS(Data!$D:$D,Data!$A:$A,'Detailed - TNSP'!$C$4,Data!$B:$B,Inputs!$G$11,Data!$C:$C,'Detailed - TNSP'!H$27),IF(AND($C$6="Exclusive",$C$8="Inclusive",$C$10="Inclusive"),SUMIFS(Data!$D:$D,Data!$A:$A,'Detailed - TNSP'!$C$4,Data!$B:$B,Inputs!$G$12,Data!$C:$C,'Detailed - TNSP'!H$27),IF(AND($C$6="Inclusive",$C$8="Exclusive",$C$10="Inclusive"),SUMIFS(Data!$D:$D,Data!$A:$A,'Detailed - TNSP'!$C$4,Data!$B:$B,Inputs!$G$13,Data!$C:$C,'Detailed - TNSP'!H$27),IF(AND($C$6="Exclusive",$C$8="Exclusive",$C$10="Inclusive"),SUMIFS(Data!$D:$D,Data!$A:$A,'Detailed - TNSP'!$C$4,Data!$B:$B,Inputs!$G$14,Data!$C:$C,'Detailed - TNSP'!H$27),IF(AND($C$6="Inclusive",$C$8="Exclusive",$C$10="Exclusive"),SUMIFS(Data!$D:$D,Data!$A:$A,'Detailed - TNSP'!$C$4,Data!$B:$B,Inputs!$G$25,Data!$C:$C,'Detailed - TNSP'!H$27),IF(AND($C$6="Exclusive",$C$8="Exclusive",$C$10="Exclusive"),SUMIFS(Data!$D:$D,Data!$A:$A,'Detailed - TNSP'!$C$4,Data!$B:$B,Inputs!$G$26,Data!$C:$C,'Detailed - TNSP'!H$27),IF(AND($C$6="Inclusive",$C$8="Inclusive",$C$10="Exclusive"),SUMIFS(Data!$D:$D,Data!$A:$A,'Detailed - TNSP'!$C$4,Data!$B:$B,Inputs!$G$23,Data!$C:$C,'Detailed - TNSP'!H$27),IF(AND($C$6="Exclusive",$C$8="Inclusive",$C$10="Exclusive"),SUMIFS(Data!$D:$D,Data!$A:$A,'Detailed - TNSP'!$C$4,Data!$B:$B,Inputs!$G$24,Data!$C:$C,'Detailed - TNSP'!H$27))))))))) -> 0.08763100025 | I28: =IF(AND($C$6="Inclusive",$C$8="Inclusive",$C$10="Inclusive"),SUMIFS(Data!$D:$D,Data!$A:$A,'Detailed - TNSP'!$C$4,Data!$B:$B,Inputs!$G$11,Data!$C:$C,'Detailed - TNSP'!I$27),IF(AND($C$6="Exclusive",$C$8="Inclusive",$C$10="Inclusive"),SUMIFS(Data!$D:$D,Data!$A:$A,'Detailed - TNSP'!$C$4,Data!$B:$B,Inputs!$G$12,Data!$C:$C,'Detailed - TNSP'!I$27),IF(AND($C$6="Inclusive",$C$8="Exclusive",$C$10="Inclusive"),SUMIFS(Data!$D:$D,Data!$A:$A,'Detailed - TNSP'!$C$4,Data!$B:$B,Inputs!$G$13,Data!$C:$C,'Detailed - TNSP'!I$27),IF(AND($C$6="Exclusive",$C$8="Exclusive",$C$10="Inclusive"),SUMIFS(Data!$D:$D,Data!$A:$A,'Detailed - TNSP'!$C$4,Data!$B:$B,Inputs!$G$14,Data!$C:$C,'Detailed - TNSP'!I$27),IF(AND($C$6="Inclusive",$C$8="Exclusive",$C$10="Exclusive"),SUMIFS(Data!$D:$D,Data!$A:$A,'Detailed - TNSP'!$C$4,Data!$B:$B,Inputs!$G$25,Data!$C:$C,'Detailed - TNSP'!I$27),IF(AND($C$6="Exclusive",$C$8="Exclusive",$C$10="Exclusive"),SUMIFS(Data!$D:$D,Data!$A:$A,'Detailed - TNSP'!$C$4,Data!$B:$B,Inputs!$G$26,Data!$C:$C,'Detailed - TNSP'!I$27),IF(AND($C$6="Inclusive",$C$8="Inclusive",$C$10="Exclusive"),SUMIFS(Data!$D:$D,Data!$A:$A,'Detailed - TNSP'!$C$4,Data!$B:$B,Inputs!$G$23,Data!$C:$C,'Detailed - TNSP'!I$27),IF(AND($C$6="Exclusive",$C$8="Inclusive",$C$10="Exclusive"),SUMIFS(Data!$D:$D,Data!$A:$A,'Detailed - TNSP'!$C$4,Data!$B:$B,Inputs!$G$24,Data!$C:$C,'Detailed - TNSP'!I$27))))))))) -> 0.0826231832 | J28: =IF(AND($C$6="Inclusive",$C$8="Inclusive",$C$10="Inclusive"),SUMIFS(Data!$D:$D,Data!$A:$A,'Detailed - TNSP'!$C$4,Data!$B:$B,Inputs!$G$11,Data!$C:$C,'Detailed - TNSP'!J$27),IF(AND($C$6="Exclusive",$C$8="Inclusive",$C$10="Inclusive"),SUMIFS(Data!$D:$D,Data!$A:$A,'Detailed - TNSP'!$C$4,Data!$B:$B,Inputs!$G$12,Data!$C:$C,'Detailed - TNSP'!J$27),IF(AND($C$6="Inclusive",$C$8="Exclusive",$C$10="Inclusive"),SUMIFS(Data!$D:$D,Data!$A:$A,'Detailed - TNSP'!$C$4,Data!$B:$B,Inputs!$G$13,Data!$C:$C,'Detailed - TNSP'!J$27),IF(AND($C$6="Exclusive",$C$8="Exclusive",$C$10="Inclusive"),SUMIFS(Data!$D:$D,Data!$A:$A,'Detailed - TNSP'!$C$4,Data!$B:$B,Inputs!$G$14,Data!$C:$C,'Detailed - TNSP'!J$27),IF(AND($C$6="Inclusive",$C$8="Exclusive",$C$10="Exclusive"),SUMIFS(Data!$D:$D,Data!$A:$A,'Detailed - TNSP'!$C$4,Data!$B:$B,Inputs!$G$25,Data!$C:$C,'Detailed - TNSP'!J$27),IF(AND($C$6="Exclusive",$C$8="Exclusive",$C$10="Exclusive"),SUMIFS(Data!$D:$D,Data!$A:$A,'Detailed - TNSP'!$C$4,Data!$B:$B,Inputs!$G$26,Data!$C:$C,'Detailed - TNSP'!J$27),IF(AND($C$6="Inclusive",$C$8="Inclusive",$C$10="Exclusive"),SUMIFS(Data!$D:$D,Data!$A:$A,'Detailed - TNSP'!$C$4,Data!$B:$B,Inputs!$G$23,Data!$C:$C,'Detailed - TNSP'!J$27),IF(AND($C$6="Exclusive",$C$8="Inclusive",$C$10="Exclusive"),SUMIFS(Data!$D:$D,Data!$A:$A,'Detailed - TNSP'!$C$4,Data!$B:$B,Inputs!$G$24,Data!$C:$C,'Detailed - TNSP'!J$27))))))))) -> 0.06655941799 | K28: =IF(AND($C$6="Inclusive",$C$8="Inclusive",$C$10="Inclusive"),SUMIFS(Data!$D:$D,Data!$A:$A,'Detailed - TNSP'!$C$4,Data!$B:$B,Inputs!$G$11,Data!$C:$C,'Detailed - TNSP'!K$27),IF(AND($C$6="Exclusive",$C$8="Inclusive",$C$10="Inclusive"),SUMIFS(Data!$D:$D,Data!$A:$A,'Detailed - TNSP'!$C$4,Data!$B:$B,Inputs!$G$12,Data!$C:$C,'Detailed - TNSP'!K$27),IF(AND($C$6="Inclusive",$C$8="Exclusive",$C$10="Inclusive"),SUMIFS(Data!$D:$D,Data!$A:$A,'Detailed - TNSP'!$C$4,Data!$B:$B,Inputs!$G$13,Data!$C:$C,'Detailed - TNSP'!K$27),IF(AND($C$6="Exclusive",$C$8="Exclusive",$C$10="Inclusive"),SUMIFS(Data!$D:$D,Data!$A:$A,'Detailed - TNSP'!$C$4,Data!$B:$B,Inputs!$G$14,Data!$C:$C,'Detailed - TNSP'!K$27),IF(AND($C$6="Inclusive",$C$8="Exclusive",$C$10="Exclusive"),SUMIFS(Data!$D:$D,Data!$A:$A,'Detailed - TNSP'!$C$4,Data!$B:$B,Inputs!$G$25,Data!$C:$C,'Detailed - TNSP'!K$27),IF(AND($C$6="Exclusive",$C$8="Exclusive",$C$10="Exclusive"),SUMIFS(Data!$D:$D,Data!$A:$A,'Detailed - TNSP'!$C$4,Data!$B:$B,Inputs!$G$26,Data!$C:$C,'Detailed - TNSP'!K$27),IF(AND($C$6="Inclusive",$C$8="Inclusive",$C$10="Exclusive"),SUMIFS(Data!$D:$D,Data!$A:$A,'Detailed - TNSP'!$C$4,Data!$B:$B,Inputs!$G$23,Data!$C:$C,'Detailed - TNSP'!K$27),IF(AND($C$6="Exclusive",$C$8="Inclusive",$C$10="Exclusive"),SUMIFS(Data!$D:$D,Data!$A:$A,'Detailed - TNSP'!$C$4,Data!$B:$B,Inputs!$G$24,Data!$C:$C,'Detailed - TNSP'!K$27))))))))) -> 0.09111782932 | L28: =IF(AND($C$6="Inclusive",$C$8="Inclusive",$C$10="Inclusive"),SUMIFS(Data!$D:$D,Data!$A:$A,'Detailed - TNSP'!$C$4,Data!$B:$B,Inputs!$G$11,Data!$C:$C,'Detailed - TNSP'!L$27),IF(AND($C$6="Exclusive",$C$8="Inclusive",$C$10="Inclusive"),SUMIFS(Data!$D:$D,Data!$A:$A,'Detailed - TNSP'!$C$4,Data!$B:$B,Inputs!$G$12,Data!$C:$C,'Detailed - TNSP'!L$27),IF(AND($C$6="Inclusive",$C$8="Exclusive",$C$10="Inclusive"),SUMIFS(Data!$D:$D,Data!$A:$A,'Detailed - TNSP'!$C$4,Data!$B:$B,Inputs!$G$13,Data!$C:$C,'Detailed - TNSP'!L$27),IF(AND($C$6="Exclusive",$C$8="Exclusive",$C$10="Inclusive"),SUMIFS(Data!$D:$D,Data!$A:$A,'Detailed - TNSP'!$C$4,Data!$B:$B,Inputs!$G$14,Data!$C:$C,'Detailed - TNSP'!L$27),IF(AND($C$6="Inclusive",$C$8="Exclusive",$C$10="Exclusive"),SUMIFS(Data!$D:$D,Data!$A:$A,'Detailed - TNSP'!$C$4,Data!$B:$B,Inputs!$G$25,Data!$C:$C,'Detailed - TNSP'!L$27),IF(AND($C$6="Exclusive",$C$8="Exclusive",$C$10="Exclusive"),SUMIFS(Data!$D:$D,Data!$A:$A,'Detailed - TNSP'!$C$4,Data!$B:$B,Inputs!$G$26,Data!$C:$C,'Detailed - TNSP'!L$27),IF(AND($C$6="Inclusive",$C$8="Inclusive",$C$10="Exclusive"),SUMIFS(Data!$D:$D,Data!$A:$A,'Detailed - TNSP'!$C$4,Data!$B:$B,Inputs!$G$23,Data!$C:$C,'Detailed - TNSP'!L$27),IF(AND($C$6="Exclusive",$C$8="Inclusive",$C$10="Exclusive"),SUMIFS(Data!$D:$D,Data!$A:$A,'Detailed - TNSP'!$C$4,Data!$B:$B,Inputs!$G$24,Data!$C:$C,'Detailed - TNSP'!L$27))))))))) -> 0.158871996 | M28: =IF(AND($C$6="Inclusive",$C$8="Inclusive",$C$10="Inclusive"),SUMIFS(Data!$D:$D,Data!$A:$A,'Detailed - TNSP'!$C$4,Data!$B:$B,Inputs!$G$11,Data!$C:$C,'Detailed - TNSP'!M$27),IF(AND($C$6="Exclusive",$C$8="Inclusive",$C$10="Inclusive"),SUMIFS(Data!$D:$D,Data!$A:$A,'Detailed - TNSP'!$C$4,Data!$B:$B,Inputs!$G$12,Data!$C:$C,'Detailed - TNSP'!M$27),IF(AND($C$6="Inclusive",$C$8="Exclusive",$C$10="Inclusive"),SUMIFS(Data!$D:$D,Data!$A:$A,'Detailed - TNSP'!$C$4,Data!$B:$B,Inputs!$G$13,Data!$C:$C,'Detailed - TNSP'!M$27),IF(AND($C$6="Exclusive",$C$8="Exclusive",$C$10="Inclusive"),SUMIFS(Data!$D:$D,Data!$A:$A,'Detailed - TNSP'!$C$4,Data!$B:$B,Inputs!$G$14,Data!$C:$C,'Detailed - TNSP'!M$27),IF(AND($C$6="Inclusive",$C$8="Exclusive",$C$10="Exclusive"),SUMIFS(Data!$D:$D,Data!$A:$A,'Detailed - TNSP'!$C$4,Data!$B:$B,Inputs!$G$25,Data!$C:$C,'Detailed - TNSP'!M$27),IF(AND($C$6="Exclusive",$C$8="Exclusive",$C$10="Exclusive"),SUMIFS(Data!$D:$D,Data!$A:$A,'Detailed - TNSP'!$C$4,Data!$B:$B,Inputs!$G$26,Data!$C:$C,'Detailed - TNSP'!M$27),IF(AND($C$6="Inclusive",$C$8="Inclusive",$C$10="Exclusive"),SUMIFS(Data!$D:$D,Data!$A:$A,'Detailed - TNSP'!$C$4,Data!$B:$B,Inputs!$G$23,Data!$C:$C,'Detailed - TNSP'!M$27),IF(AND($C$6="Exclusive",$C$8="Inclusive",$C$10="Exclusive"),SUMIFS(Data!$D:$D,Data!$A:$A,'Detailed - TNSP'!$C$4,Data!$B:$B,Inputs!$G$24,Data!$C:$C,'Detailed - TNSP'!M$27))))))))) -> 0.07150754785
B29: Allowed return on equity | C29: =IF($C$6="Exclusive",SUMIFS(Data!$D:$D,Data!$A:$A,'Detailed - TNSP'!$C$4,Data!$B:$B,"allowed real return on equity",Data!$C:$C,'Detailed - TNSP'!C$27),SUMIFS(Data!$D:$D,Data!$A:$A,'Detailed - TNSP'!$C$4,Data!$B:$B,"allowed nominal return on equity",Data!$C:$C,'Detailed - TNSP'!C$27)) -> 0.09154355475 | D29: =IF($C$6="Exclusive",SUMIFS(Data!$D:$D,Data!$A:$A,'Detailed - TNSP'!$C$4,Data!$B:$B,"allowed real return on equity",Data!$C:$C,'Detailed - TNSP'!D$27),SUMIFS(Data!$D:$D,Data!$A:$A,'Detailed - TNSP'!$C$4,Data!$B:$B,"allowed nominal return on equity",Data!$C:$C,'Detailed - TNSP'!D$27)) -> 0.04569420035 | E29: =IF($C$6="Exclusive",SUMIFS(Data!$D:$D,Data!$A:$A,'Detailed - TNSP'!$C$4,Data!$B:$B,"allowed real return on equity",Data!$C:$C,'Detailed - TNSP'!E$27),SUMIFS(Data!$D:$D,Data!$A:$A,'Detailed - TNSP'!$C$4,Data!$B:$B,"allowed nominal return on equity",Data!$C:$C,'Detailed - TNSP'!E$27)) -> 0.04569420035 | F29: =IF($C$6="Exclusive",SUMIFS(Data!$D:$D,Data!$A:$A,'Detailed - TNSP'!$C$4,Data!$B:$B,"allowed real return on equity",Data!$C:$C,'Detailed - TNSP'!F$27),SUMIFS(Data!$D:$D,Data!$A:$A,'Detailed - TNSP'!$C$4,Data!$B:$B,"allowed nominal return on equity",Data!$C:$C,'Detailed - TNSP'!F$27)) -> 0.04569420035 | G29: =IF($C$6="Exclusive",SUMIFS(Data!$D:$D,Data!$A:$A,'Detailed - TNSP'!$C$4,Data!$B:$B,"allowed real return on equity",Data!$C:$C,'Detailed - TNSP'!G$27),SUMIFS(Data!$D:$D,Data!$A:$A,'Detailed - TNSP'!$C$4,Data!$B:$B,"allowed nominal return on equity",Data!$C:$C,'Detailed - TNSP'!G$27)) -> 0.04569420035 | H29: =IF($C$6="Exclusive",SUMIFS(Data!$D:$D,Data!$A:$A,'Detailed - TNSP'!$C$4,Data!$B:$B,"allowed real return on equity",Data!$C:$C,'Detailed - TNSP'!H$27),SUMIFS(Data!$D:$D,Data!$A:$A,'Detailed - TNSP'!$C$4,Data!$B:$B,"allowed nominal return on equity",Data!$C:$C,'Detailed - TNSP'!H$27)) -> 0.04831675171 | I29: =IF($C$6="Exclusive",SUMIFS(Data!$D:$D,Data!$A:$A,'Detailed - TNSP'!$C$4,Data!$B:$B,"allowed real return on equity",Data!$C:$C,'Detailed - TNSP'!I$27),SUMIFS(Data!$D:$D,Data!$A:$A,'Detailed - TNSP'!$C$4,Data!$B:$B,"allowed nominal return on equity",Data!$C:$C,'Detailed - TNSP'!I$27)) -> 0.04831675171 | J29: =IF($C$6="Exclusive",SUMIFS(Data!$D:$D,Data!$A:$A,'Detailed - TNSP'!$C$4,Data!$B:$B,"allowed real return on equity",Data!$C:$C,'Detailed - TNSP'!J$27),SUMIFS(Data!$D:$D,Data!$A:$A,'Detailed - TNSP'!$C$4,Data!$B:$B,"allowed nominal return on equity",Data!$C:$C,'Detailed - TNSP'!J$27)) -> 0.04831675171 | K29: =IF($C$6="Exclusive",SUMIFS(Data!$D:$D,Data!$A:$A,'Detailed - TNSP'!$C$4,Data!$B:$B,"allowed real return on equity",Data!$C:$C,'Detailed - TNSP'!K$27),SUMIFS(Data!$D:$D,Data!$A:$A,'Detailed - TNSP'!$C$4,Data!$B:$B,"allowed nominal return on equity",Data!$C:$C,'Detailed - TNSP'!K$27)) -> 0.04831675171 | L29: =IF($C$6="Exclusive",SUMIFS(Data!$D:$D,Data!$A:$A,'Detailed - TNSP'!$C$4,Data!$B:$B,"allowed real return on equity",Data!$C:$C,'Detailed - TNSP'!L$27),SUMIFS(Data!$D:$D,Data!$A:$A,'Detailed - TNSP'!$C$4,Data!$B:$B,"allowed nominal return on equity",Data!$C:$C,'Detailed - TNSP'!L$27)) -> 0.04831675171 | M29: =IF($C$6="Exclusive",SUMIFS(Data!$D:$D,Data!$A:$A,'Detailed - TNSP'!$C$4,Data!$B:$B,"allowed real return on equity",Data!$C:$C,'Detailed - TNSP'!M$27),SUMIFS(Data!$D:$D,Data!$A:$A,'Detailed - TNSP'!$C$4,Data!$B:$B,"allowed nominal return on equity",Data!$C:$C,'Detailed - TNSP'!M$27)) -> 0.04431898111
B30: Difference | C30: =C28-C29 -> 0.00675232165 | D30: 0.02930098874 | E30: 0.01653174196 | F30: 0.01647149939 | G30: 0.02018620127 | H30: =H28-H29 -> 0.03931424854 | I30: 0.0343064315 | J30: 0.01824266628 | K30: =K28-K29 -> 0.04280107761 | L30: =L28-L29 -> 0.1105552443 | M30: =M28-M29 -> 0.02718856675
B32: Source: Post Tax Revenue Model - Post tax real return on equity - 2014 to 2024
B35: Detailed calculations
B37: Revenue | C37: 2014 | D37: 2015 | E37: 2016 | F37: 2017 | G37: 2018 | H37: 2019 | I37: 2020 | J37: 2021 | K37: 2022 | L37: 2023 | M37: 2024
B38: Prescribed transmission revenue | C38: =SUMIFS(Data!$D:$D,Data!$A:$A,'Detailed - TNSP'!$C$4,Data!$B:$B,'Detailed - TNSP'!$B38,Data!$C:$C,'Detailed - TNSP'!C$37)-IF($C$8="Exclusive",C$80,0) -> 878065000 | D38: =SUMIFS(Data!$D:$D,Data!$A:$A,'Detailed - TNSP'!$C$4,Data!$B:$B,'Detailed - TNSP'!$B38,Data!$C:$C,'Detailed - TNSP'!D$37)-IF($C$8="Exclusive",D$80,0) -> 854131000 | E38: =SUMIFS(Data!$D:$D,Data!$A:$A,'Detailed - TNSP'!$C$4,Data!$B:$B,'Detailed - TNSP'!$B38,Data!$C:$C,'Detailed - TNSP'!E$37)-IF($C$8="Exclusive",E$80,0) -> 742743100 | F38: =SUMIFS(Data!$D:$D,Data!$A:$A,'Detailed - TNSP'!$C$4,Data!$B:$B,'Detailed - TNSP'!$B38,Data!$C:$C,'Detailed - TNSP'!F$37)-IF($C$8="Exclusive",F$80,0) -> 727568639 | G38: =SUMIFS(Data!$D:$D,Data!$A:$A,'Detailed - TNSP'!$C$4,Data!$B:$B,'Detailed - TNSP'!$B38,Data!$C:$C,'Detailed - TNSP'!G$37)-IF($C$8="Exclusive",G$80,0) -> 713126000 | H38: =SUMIFS(Data!$D:$D,Data!$A:$A,'Detailed - TNSP'!$C$4,Data!$B:$B,'Detailed - TNSP'!$B38,Data!$C:$C,'Detailed - TNSP'!H$37)-IF($C$8="Exclusive",H$80,0) -> 750081000 | I38: =SUMIFS(Data!$D:$D,Data!$A:$A,'Detailed - TNSP'!$C$4,Data!$B:$B,'Detailed - TNSP'!$B38,Data!$C:$C,'Detailed - TNSP'!I$37)-IF($C$8="Exclusive",I$80,0) -> 760557000 | J38: =SUMIFS(Data!$D:$D,Data!$A:$A,'Detailed - TNSP'!$C$4,Data!$B:$B,'Detailed - TNSP'!$B38,Data!$C:$C,'Detailed - TNSP'!J$37)-IF($C$8="Exclusive",J$80,0) -> 783585279.1 | K38: =SUMIFS(Data!$D:$D,Data!$A:$A,'Detailed - TNSP'!$C$4,Data!$B:$B,'Detailed - TNSP'!$B38,Data!$C:$C,'Detailed - TNSP'!K$37)-IF($C$8="Exclusive",K$80,0) -> 794968000 | L38: =SUMIFS(Data!$D:$D,Data!$A:$A,'Detailed - TNSP'!$C$4,Data!$B:$B,'Detailed - TNSP'!$B38,Data!$C:$C,'Detailed - TNSP'!L$37)-IF($C$8="Exclusive",L$80,0) -> 903390000 | M38: =SUMIFS(Data!$D:$D,Data!$A:$A,'Detailed - TNSP'!$C$4,Data!$B:$B,'Detailed - TNSP'!$B38,Data!$C:$C,'Detailed - TNSP'!M$37)-IF($C$8="Exclusive",M$80,0) -> 949535000
B39: Other Revenue | C39: =SUMIFS(Data!$D:$D,Data!$A:$A,'Detailed - TNSP'!$C$4,Data!$B:$B,'Detailed - TNSP'!$B39,Data!$C:$C,'Detailed - TNSP'!C$37) -> 0 | D39: =SUMIFS(Data!$D:$D,Data!$A:$A,'Detailed - TNSP'!$C$4,Data!$B:$B,'Detailed - TNSP'!$B39,Data!$C:$C,'Detailed - TNSP'!D$37) -> 37000 | E39: =SUMIFS(Data!$D:$D,Data!$A:$A,'Detailed - TNSP'!$C$4,Data!$B:$B,'Detailed - TNSP'!$B39,Data!$C:$C,'Detailed - TNSP'!E$37) -> 5315000 | F39: =SUMIFS(Data!$D:$D,Data!$A:$A,'Detailed - TNSP'!$C$4,Data!$B:$B,'Detailed - TNSP'!$B39,Data!$C:$C,'Detailed - TNSP'!F$37) -> 509000 | G39: =SUMIFS(Data!$D:$D,Data!$A:$A,'Detailed - TNSP'!$C$4,Data!$B:$B,'Detailed - TNSP'!$B39,Data!$C:$C,'Detailed - TNSP'!G$37) -> 312000 | H39: =SUMIFS(Data!$D:$D,Data!$A:$A,'Detailed - TNSP'!$C$4,Data!$B:$B,'Detailed - TNSP'!$B39,Data!$C:$C,'Detailed - TNSP'!H$37) -> 348000 | I39: =SUMIFS(Data!$D:$D,Data!$A:$A,'Detailed - TNSP'!$C$4,Data!$B:$B,'Detailed - TNSP'!$B39,Data!$C:$C,'Detailed - TNSP'!I$37) -> 428000 | J39: =SUMIFS(Data!$D:$D,Data!$A:$A,'Detailed - TNSP'!$C$4,Data!$B:$B,'Detailed - TNSP'!$B39,Data!$C:$C,'Detailed - TNSP'!J$37) -> 337000 | K39: =SUMIFS(Data!$D:$D,Data!$A:$A,'Detailed - TNSP'!$C$4,Data!$B:$B,'Detailed - TNSP'!$B39,Data!$C:$C,'Detailed - TNSP'!K$37) -> 385000 | L39: =SUMIFS(Data!$D:$D,Data!$A:$A,'Detailed - TNSP'!$C$4,Data!$B:$B,'Detailed - TNSP'!$B39,Data!$C:$C,'Detailed - TNSP'!L$37) -> 108000 | M39: =SUMIFS(Data!$D:$D,Data!$A:$A,'Detailed - TNSP'!$C$4,Data!$B:$B,'Detailed - TNSP'!$B39,Data!$C:$C,'Detailed - TNSP'!M$37) -> 288000
B40: Total revenue | C40: =SUM(C38:C39) -> 878065000 | D40: 854168000 | E40: 748058100 | F40: 728077639 | G40: 713438000 | H40: =SUM(H38:H39) -> 750429000 | I40: 760985000 | J40: =SUM(J38:J39) -> 783922279.1 | K40: =SUM(K38:K39) -> 795353000 | L40: =SUM(L38:L39) -> 903498000 | M40: =SUM(M38:M39) -> 949823000
B42: Source: TNSP Regulatory Accounts - 2014 to 2024
B45: Cost of Goods Sold expenditure | C45: 2014 | D45: 2015 | E45: 2016 | F45: 2017 | G45: 2018 | H45: 2019 | I45: 2020 | J45: 2021 | K45: 2022 | L45: 2023 | M45: 2024
B46: Other costs of goods sold expenditure | C46: =SUMIFS(Data!$D:$D,Data!$A:$A,'Detailed - TNSP'!$C$4,Data!$B:$B,'Detailed - TNSP'!$B46,Data!$C:$C,'Detailed - TNSP'!C$45) -> 0 | D46: =SUMIFS(Data!$D:$D,Data!$A:$A,'Detailed - TNSP'!$C$4,Data!$B:$B,'Detailed - TNSP'!$B46,Data!$C:$C,'Detailed - TNSP'!D$45) -> 0 | E46: =SUMIFS(Data!$D:$D,Data!$A:$A,'Detailed - TNSP'!$C$4,Data!$B:$B,'Detailed - TNSP'!$B46,Data!$C:$C,'Detailed - TNSP'!E$45) -> 0 | F46: =SUMIFS(Data!$D:$D,Data!$A:$A,'Detailed - TNSP'!$C$4,Data!$B:$B,'Detailed - TNSP'!$B46,Data!$C:$C,'Detailed - TNSP'!F$45) -> 0 | G46: =SUMIFS(Data!$D:$D,Data!$A:$A,'Detailed - TNSP'!$C$4,Data!$B:$B,'Detailed - TNSP'!$B46,Data!$C:$C,'Detailed - TNSP'!G$45) -> 0 | H46: =SUMIFS(Data!$D:$D,Data!$A:$A,'Detailed - TNSP'!$C$4,Data!$B:$B,'Detailed - TNSP'!$B46,Data!$C:$C,'Detailed - TNSP'!H$45) -> 0 | I46: =SUMIFS(Data!$D:$D,Data!$A:$A,'Detailed - TNSP'!$C$4,Data!$B:$B,'Detailed - TNSP'!$B46,Data!$C:$C,'Detailed - TNSP'!I$45) -> 0 | J46: =SUMIFS(Data!$D:$D,Data!$A:$A,'Detailed - TNSP'!$C$4,Data!$B:$B,'Detailed - TNSP'!$B46,Data!$C:$C,'Detailed - TNSP'!J$45) -> 0 | K46: =SUMIFS(Data!$D:$D,Data!$A:$A,'Detailed - TNSP'!$C$4,Data!$B:$B,'Detailed - TNSP'!$B46,Data!$C:$C,'Detailed - TNSP'!K$45) -> 0 | L46: =SUMIFS(Data!$D:$D,Data!$A:$A,'Detailed - TNSP'!$C$4,Data!$B:$B,'Detailed - TNSP'!$B46,Data!$C:$C,'Detailed - TNSP'!L$45) -> 0 | M46: =SUMIFS(Data!$D:$D,Data!$A:$A,'Detailed - TNSP'!$C$4,Data!$B:$B,'Detailed - TNSP'!$B46,Data!$C:$C,'Detailed - TNSP'!M$45) -> 0
B47: Total costs of goods sold expenditure | C47: =SUM(C46:C46) -> 0 | D47: 0 | E47: 0 | F47: 0 | G47: 0 | H47: =SUM(H46:H46) -> 0 | I47: 0 | J47: =SUM(J46:J46) -> 0 | K47: =SUM(K46:K46) -> 0 | L47: =SUM(L46:L46) -> 0 | M47: =SUM(M46:M46) -> 0
B49: Source: TNSP Regulatory Accounts - 2014 to 2024
B52: Total Gross Profit | C52: =C40-C47 -> 878065000 | D52: =D40-D47 -> 854168000 | E52: 748058100 | F52: 728077639 | G52: 713438000 | H52: =H40-H47 -> 750429000 | I52: 760985000 | J52: =J40-J47 -> 783922279.1 | K52: =K40-K47 -> 795353000 | L52: =L40-L47 -> 903498000 | M52: =M40-M47 -> 949823000
B54: Expenditure | C54: 2014 | D54: 2015 | E54: 2016 | F54: 2017 | G54: 2018 | H54: 2019 | I54: 2020 | J54: 2021 | K54: 2022 | L54: 2023 | M54: 2024
B55: Operating expenditure | C55: =SUMIFS(Data!$D:$D,Data!$A:$A,'Detailed - TNSP'!$C$4,Data!$B:$B,'Detailed - TNSP'!$B55,Data!$C:$C,'Detailed - TNSP'!C$54) -> 103544000 | D55: =SUMIFS(Data!$D:$D,Data!$A:$A,'Detailed - TNSP'!$C$4,Data!$B:$B,'Detailed - TNSP'!$B55,Data!$C:$C,'Detailed - TNSP'!D$54) -> 90352000 | E55: =SUMIFS(Data!$D:$D,Data!$A:$A,'Detailed - TNSP'!$C$4,Data!$B:$B,'Detailed - TNSP'!$B55,Data!$C:$C,'Detailed - TNSP'!E$54) -> 89978000 | F55: =SUMIFS(Data!$D:$D,Data!$A:$A,'Detailed - TNSP'!$C$4,Data!$B:$B,'Detailed - TNSP'!$B55,Data!$C:$C,'Detailed - TNSP'!F$54) -> 87480000 | G55: =SUMIFS(Data!$D:$D,Data!$A:$A,'Detailed - TNSP'!$C$4,Data!$B:$B,'Detailed - TNSP'!$B55,Data!$C:$C,'Detailed - TNSP'!G$54) -> 71393000 | H55: =SUMIFS(Data!$D:$D,Data!$A:$A,'Detailed - TNSP'!$C$4,Data!$B:$B,'Detailed - TNSP'!$B55,Data!$C:$C,'Detailed - TNSP'!H$54) -> 72419000 | I55: =SUMIFS(Data!$D:$D,Data!$A:$A,'Detailed - TNSP'!$C$4,Data!$B:$B,'Detailed - TNSP'!$B55,Data!$C:$C,'Detailed - TNSP'!I$54) -> 70643000 | J55: =SUMIFS(Data!$D:$D,Data!$A:$A,'Detailed - TNSP'!$C$4,Data!$B:$B,'Detailed - TNSP'!$B55,Data!$C:$C,'Detailed - TNSP'!J$54) -> 67361000 | K55: =SUMIFS(Data!$D:$D,Data!$A:$A,'Detailed - TNSP'!$C$4,Data!$B:$B,'Detailed - TNSP'!$B55,Data!$C:$C,'Detailed - TNSP'!K$54) -> 60176000 | L55: =SUMIFS(Data!$D:$D,Data!$A:$A,'Detailed - TNSP'!$C$4,Data!$B:$B,'Detailed - TNSP'!$B55,Data!$C:$C,'Detailed - TNSP'!L$54) -> 56967000 | M55: =SUMIFS(Data!$D:$D,Data!$A:$A,'Detailed - TNSP'!$C$4,Data!$B:$B,'Detailed - TNSP'!$B55,Data!$C:$C,'Detailed - TNSP'!M$54) -> 76136000
B56: Other Expenditure | C56: =SUMIFS(Data!$D:$D,Data!$A:$A,'Detailed - TNSP'!$C$4,Data!$B:$B,'Detailed - TNSP'!$B56,Data!$C:$C,'Detailed - TNSP'!C$54) -> 72093000 | D56: =SUMIFS(Data!$D:$D,Data!$A:$A,'Detailed - TNSP'!$C$4,Data!$B:$B,'Detailed - TNSP'!$B56,Data!$C:$C,'Detailed - TNSP'!D$54) -> 77877000 | E56: =SUMIFS(Data!$D:$D,Data!$A:$A,'Detailed - TNSP'!$C$4,Data!$B:$B,'Detailed - TNSP'!$B56,Data!$C:$C,'Detailed - TNSP'!E$54) -> 79557000 | F56: =SUMIFS(Data!$D:$D,Data!$A:$A,'Detailed - TNSP'!$C$4,Data!$B:$B,'Detailed - TNSP'!$B56,Data!$C:$C,'Detailed - TNSP'!F$54) -> 82886000 | G56: =SUMIFS(Data!$D:$D,Data!$A:$A,'Detailed - TNSP'!$C$4,Data!$B:$B,'Detailed - TNSP'!$B56,Data!$C:$C,'Detailed - TNSP'!G$54) -> 82163000 | H56: =SUMIFS(Data!$D:$D,Data!$A:$A,'Detailed - TNSP'!$C$4,Data!$B:$B,'Detailed - TNSP'!$B56,Data!$C:$C,'Detailed - TNSP'!H$54) -> 82029000 | I56: =SUMIFS(Data!$D:$D,Data!$A:$A,'Detailed - TNSP'!$C$4,Data!$B:$B,'Detailed - TNSP'!$B56,Data!$C:$C,'Detailed - TNSP'!I$54) -> 90809000 | J56: =SUMIFS(Data!$D:$D,Data!$A:$A,'Detailed - TNSP'!$C$4,Data!$B:$B,'Detailed - TNSP'!$B56,Data!$C:$C,'Detailed - TNSP'!J$54) -> 101183000 | K56: =SUMIFS(Data!$D:$D,Data!$A:$A,'Detailed - TNSP'!$C$4,Data!$B:$B,'Detailed - TNSP'!$B56,Data!$C:$C,'Detailed - TNSP'!K$54) -> 125388000 | L56: =SUMIFS(Data!$D:$D,Data!$A:$A,'Detailed - TNSP'!$C$4,Data!$B:$B,'Detailed - TNSP'!$B56,Data!$C:$C,'Detailed - TNSP'!L$54) -> 150568000 | M56: =SUMIFS(Data!$D:$D,Data!$A:$A,'Detailed - TNSP'!$C$4,Data!$B:$B,'Detailed - TNSP'!$B56,Data!$C:$C,'Detailed - TNSP'!M$54) -> 141134000
B57: Total Expenditure | C57: =SUM(C55:C56) -> 175637000 | D57: 168229000 | E57: 169535000 | F57: 170366000 | G57: 153556000 | H57: 154448000 | I57: 161452000 | J57: 168544000 | K57: 185564000 | L57: 207535000 | M57: 217270000
B59: Source: TNSP Regulatory Accounts - 2014 to 2024
B62: Total Earnings before Interest, Tax, Depreciation & Amortisation (EBITDA) | C62: =C52-C57 -> 702428000 | D62: 685939000 | E62: 578523100 | F62: 557711639 | G62: 559882000 | H62: 595981000 | I62: 599533000 | J62: 615378279.1 | K62: 609789000 | L62: 695963000 | M62: 732553000
B64: Depreciation | C64: 2014 | D64: 2015 | E64: 2016 | F64: 2017 | G64: 2018 | H64: 2019 | I64: 2020 | J64: 2021 | K64: 2022 | L64: 2023 | M64: 2024
B65: Nominal Straight Line Depreciation | C65: =SUMIFS(Data!$D:$D,Data!$A:$A,'Detailed - TNSP'!$C$4,Data!$B:$B,'Detailed - TNSP'!$B65,Data!$C:$C,'Detailed - TNSP'!C$64) -> 222310257.4 | D65: =SUMIFS(Data!$D:$D,Data!$A:$A,'Detailed - TNSP'!$C$4,Data!$B:$B,'Detailed - TNSP'!$B65,Data!$C:$C,'Detailed - TNSP'!D$64) -> 244163230.1 | E65: =SUMIFS(Data!$D:$D,Data!$A:$A,'Detailed - TNSP'!$C$4,Data!$B:$B,'Detailed - TNSP'!$B65,Data!$C:$C,'Detailed - TNSP'!E$64) -> 261875062.4 | F65: =SUMIFS(Data!$D:$D,Data!$A:$A,'Detailed - TNSP'!$C$4,Data!$B:$B,'Detailed - TNSP'!$B65,Data!$C:$C,'Detailed - TNSP'!F$64) -> 279708002.9 | G65: =SUMIFS(Data!$D:$D,Data!$A:$A,'Detailed - TNSP'!$C$4,Data!$B:$B,'Detailed - TNSP'!$B65,Data!$C:$C,'Detailed - TNSP'!G$64) -> 265038966.9 | H65: =SUMIFS(Data!$D:$D,Data!$A:$A,'Detailed - TNSP'!$C$4,Data!$B:$B,'Detailed - TNSP'!$B65,Data!$C:$C,'Detailed - TNSP'!H$64) -> 255967763.1 | I65: =SUMIFS(Data!$D:$D,Data!$A:$A,'Detailed - TNSP'!$C$4,Data!$B:$B,'Detailed - TNSP'!$B65,Data!$C:$C,'Detailed - TNSP'!I$64) -> 275187923.7 | J65: =SUMIFS(Data!$D:$D,Data!$A:$A,'Detailed - TNSP'!$C$4,Data!$B:$B,'Detailed - TNSP'!$B65,Data!$C:$C,'Detailed - TNSP'!J$64) -> 290061731.7 | K65: =SUMIFS(Data!$D:$D,Data!$A:$A,'Detailed - TNSP'!$C$4,Data!$B:$B,'Detailed - TNSP'!$B65,Data!$C:$C,'Detailed - TNSP'!K$64) -> 291553768.7 | L65: =SUMIFS(Data!$D:$D,Data!$A:$A,'Detailed - TNSP'!$C$4,Data!$B:$B,'Detailed - TNSP'!$B65,Data!$C:$C,'Detailed - TNSP'!L$64) -> 316749082 | M65: =SUMIFS(Data!$D:$D,Data!$A:$A,'Detailed - TNSP'!$C$4,Data!$B:$B,'Detailed - TNSP'!$B65,Data!$C:$C,'Detailed - TNSP'!M$64) -> 372809847.5
B66: Indexation of opening Regulatory Asset Base | C66: =IF(AND($C$10="exclusive",$C$6="Inclusive"),C99*C107,IF($C$6="Inclusive",C99*C106,"n/a")) -> n/a | D66: =IF(AND($C$10="exclusive",$C$6="Inclusive"),D99*D107,IF($C$6="Inclusive",D99*D106,"n/a")) -> n/a | E66: n/a | F66: n/a | G66: n/a | H66: n/a | I66: n/a | J66: n/a | K66: n/a | L66: n/a | M66: n/a
B68: Source: Roll Forward Model - Nominal straight line depreciation - 2014 to 2024 Where not available - Post Tax Revenue Model (Return on debt updates) - Nominal straight line depreciation - 2024
B71: Total Earnings before Interest & Tax (EBIT) | C71: =IF($C$6="Inclusive",C62-C65+C66,C62-C65) -> 480117742.6 | D71: =IF($C$6="Inclusive",D62-D65+D66,D62-D65) -> 441775769.9 | E71: 316648037.6 | F71: 278003636.1 | G71: 294843033.1 | H71: =IF($C$6="Inclusive",H62-H65+H66,H62-H65) -> 340013236.9 | I71: 324345076.3 | J71: =IF($C$6="Inclusive",J62-J65+J66,J62-J65) -> 325316547.5 | K71: =IF($C$6="Inclusive",K62-K65+K66,K62-K65) -> 318235231.3 | L71: =IF($C$6="Inclusive",L62-L65+L66,L62-L65) -> 379213918 | M71: =IF($C$6="Inclusive",M62-M65+M66,M62-M65) -> 359743152.5
B73: Supplementary Information
B75: Incentive Schemes | C75: 2014 | D75: 2015 | E75: 2016 | F75: 2017 | G75: 2018 | H75: 2019 | I75: 2020 | J75: 2021 | K75: 2022 | L75: 2023 | M75: 2024
B76: ebss | C76: =SUMIFS(Data!$D:$D,Data!$A:$A,'Detailed - TNSP'!$C$4,Data!$B:$B,'Detailed - TNSP'!$B76,Data!$C:$C,'Detailed - TNSP'!C$75) -> -3000000 | D76: =SUMIFS(Data!$D:$D,Data!$A:$A,'Detailed - TNSP'!$C$4,Data!$B:$B,'Detailed - TNSP'!$B76,Data!$C:$C,'Detailed - TNSP'!D$75) -> 21567504.53 | E76: =SUMIFS(Data!$D:$D,Data!$A:$A,'Detailed - TNSP'!$C$4,Data!$B:$B,'Detailed - TNSP'!$B76,Data!$C:$C,'Detailed - TNSP'!E$75) -> 13855936.09 | F76: =SUMIFS(Data!$D:$D,Data!$A:$A,'Detailed - TNSP'!$C$4,Data!$B:$B,'Detailed - TNSP'!$B76,Data!$C:$C,'Detailed - TNSP'!F$75) -> 16086683.81 | G76: =SUMIFS(Data!$D:$D,Data!$A:$A,'Detailed - TNSP'!$C$4,Data!$B:$B,'Detailed - TNSP'!$B76,Data!$C:$C,'Detailed - TNSP'!G$75) -> 12724395.12 | H76: =SUMIFS(Data!$D:$D,Data!$A:$A,'Detailed - TNSP'!$C$4,Data!$B:$B,'Detailed - TNSP'!$B76,Data!$C:$C,'Detailed - TNSP'!H$75) -> -2179253.159 | I76: =SUMIFS(Data!$D:$D,Data!$A:$A,'Detailed - TNSP'!$C$4,Data!$B:$B,'Detailed - TNSP'!$B76,Data!$C:$C,'Detailed - TNSP'!I$75) -> 11470778.06 | J76: =SUMIFS(Data!$D:$D,Data!$A:$A,'Detailed - TNSP'!$C$4,Data!$B:$B,'Detailed - TNSP'!$B76,Data!$C:$C,'Detailed - TNSP'!J$75) -> -1862762 | K76: =SUMIFS(Data!$D:$D,Data!$A:$A,'Detailed - TNSP'!$C$4,Data!$B:$B,'Detailed - TNSP'!$B76,Data!$C:$C,'Detailed - TNSP'!K$75) -> 5302241 | L76: =SUMIFS(Data!$D:$D,Data!$A:$A,'Detailed - TNSP'!$C$4,Data!$B:$B,'Detailed - TNSP'!$B76,Data!$C:$C,'Detailed - TNSP'!L$75) -> -2451019 | M76: =SUMIFS(Data!$D:$D,Data!$A:$A,'Detailed - TNSP'!$C$4,Data!$B:$B,'Detailed - TNSP'!$B76,Data!$C:$C,'Detailed - TNSP'!M$75) -> 15108553
B77: stpis | C77: =SUMIFS(Data!$D:$D,Data!$A:$A,'Detailed - TNSP'!$C$4,Data!$B:$B,'Detailed - TNSP'!$B77,Data!$C:$C,'Detailed - TNSP'!C$75) -> 8730800 | D77: =SUMIFS(Data!$D:$D,Data!$A:$A,'Detailed - TNSP'!$C$4,Data!$B:$B,'Detailed - TNSP'!$B77,Data!$C:$C,'Detailed - TNSP'!D$75) -> 8730799 | E77: =SUMIFS(Data!$D:$D,Data!$A:$A,'Detailed - TNSP'!$C$4,Data!$B:$B,'Detailed - TNSP'!$B77,Data!$C:$C,'Detailed - TNSP'!E$75) -> 12143096 | F77: =SUMIFS(Data!$D:$D,Data!$A:$A,'Detailed - TNSP'!$C$4,Data!$B:$B,'Detailed - TNSP'!$B77,Data!$C:$C,'Detailed - TNSP'!F$75) -> 12091019 | G77: =SUMIFS(Data!$D:$D,Data!$A:$A,'Detailed - TNSP'!$C$4,Data!$B:$B,'Detailed - TNSP'!$B77,Data!$C:$C,'Detailed - TNSP'!G$75) -> 15529004 | H77: =SUMIFS(Data!$D:$D,Data!$A:$A,'Detailed - TNSP'!$C$4,Data!$B:$B,'Detailed - TNSP'!$B77,Data!$C:$C,'Detailed - TNSP'!H$75) -> 15804903 | I77: =SUMIFS(Data!$D:$D,Data!$A:$A,'Detailed - TNSP'!$C$4,Data!$B:$B,'Detailed - TNSP'!$B77,Data!$C:$C,'Detailed - TNSP'!I$75) -> 16626168 | J77: =SUMIFS(Data!$D:$D,Data!$A:$A,'Detailed - TNSP'!$C$4,Data!$B:$B,'Detailed - TNSP'!$B77,Data!$C:$C,'Detailed - TNSP'!J$75) -> 13595127 | K77: =SUMIFS(Data!$D:$D,Data!$A:$A,'Detailed - TNSP'!$C$4,Data!$B:$B,'Detailed - TNSP'!$B77,Data!$C:$C,'Detailed - TNSP'!K$75) -> 8152882 | L77: =SUMIFS(Data!$D:$D,Data!$A:$A,'Detailed - TNSP'!$C$4,Data!$B:$B,'Detailed - TNSP'!$B77,Data!$C:$C,'Detailed - TNSP'!L$75) -> 10690043 | M77: =SUMIFS(Data!$D:$D,Data!$A:$A,'Detailed - TNSP'!$C$4,Data!$B:$B,'Detailed - TNSP'!$B77,Data!$C:$C,'Detailed - TNSP'!M$75) -> 8951722
B78: cess | C78: =SUMIFS(Data!$D:$D,Data!$A:$A,'Detailed - TNSP'!$C$4,Data!$B:$B,'Detailed - TNSP'!$B78,Data!$C:$C,'Detailed - TNSP'!C$75) -> 0 | D78: =SUMIFS(Data!$D:$D,Data!$A:$A,'Detailed - TNSP'!$C$4,Data!$B:$B,'Detailed - TNSP'!$B78,Data!$C:$C,'Detailed - TNSP'!D$75) -> 0 | E78: =SUMIFS(Data!$D:$D,Data!$A:$A,'Detailed - TNSP'!$C$4,Data!$B:$B,'Detailed - TNSP'!$B78,Data!$C:$C,'Detailed - TNSP'!E$75) -> 0 | F78: =SUMIFS(Data!$D:$D,Data!$A:$A,'Detailed - TNSP'!$C$4,Data!$B:$B,'Detailed - TNSP'!$B78,Data!$C:$C,'Detailed - TNSP'!F$75) -> 0 | G78: =SUMIFS(Data!$D:$D,Data!$A:$A,'Detailed - TNSP'!$C$4,Data!$B:$B,'Detailed - TNSP'!$B78,Data!$C:$C,'Detailed - TNSP'!G$75) -> 0 | H78: =SUMIFS(Data!$D:$D,Data!$A:$A,'Detailed - TNSP'!$C$4,Data!$B:$B,'Detailed - TNSP'!$B78,Data!$C:$C,'Detailed - TNSP'!H$75) -> 6890337.238 | I78: =SUMIFS(Data!$D:$D,Data!$A:$A,'Detailed - TNSP'!$C$4,Data!$B:$B,'Detailed - TNSP'!$B78,Data!$C:$C,'Detailed - TNSP'!I$75) -> 7059147.13 | J78: =SUMIFS(Data!$D:$D,Data!$A:$A,'Detailed - TNSP'!$C$4,Data!$B:$B,'Detailed - TNSP'!$B78,Data!$C:$C,'Detailed - TNSP'!J$75) -> 7232093 | K78: =SUMIFS(Data!$D:$D,Data!$A:$A,'Detailed - TNSP'!$C$4,Data!$B:$B,'Detailed - TNSP'!$B78,Data!$C:$C,'Detailed - TNSP'!K$75) -> 7409276 | L78: =SUMIFS(Data!$D:$D,Data!$A:$A,'Detailed - TNSP'!$C$4,Data!$B:$B,'Detailed - TNSP'!$B78,Data!$C:$C,'Detailed - TNSP'!L$75) -> 7590799 | M78: =SUMIFS(Data!$D:$D,Data!$A:$A,'Detailed - TNSP'!$C$4,Data!$B:$B,'Detailed - TNSP'!$B78,Data!$C:$C,'Detailed - TNSP'!M$75) -> -6640143.717
B79: other | C79: =SUMIFS(Data!$D:$D,Data!$A:$A,'Detailed - TNSP'!$C$4,Data!$B:$B,'Detailed - TNSP'!$B79,Data!$C:$C,'Detailed - TNSP'!C$75) -> 0 | D79: =SUMIFS(Data!$D:$D,Data!$A:$A,'Detailed - TNSP'!$C$4,Data!$B:$B,'Detailed - TNSP'!$B79,Data!$C:$C,'Detailed - TNSP'!D$75) -> 0 | E79: =SUMIFS(Data!$D:$D,Data!$A:$A,'Detailed - TNSP'!$C$4,Data!$B:$B,'Detailed - TNSP'!$B79,Data!$C:$C,'Detailed - TNSP'!E$75) -> 0 | F79: =SUMIFS(Data!$D:$D,Data!$A:$A,'Detailed - TNSP'!$C$4,Data!$B:$B,'Detailed - TNSP'!$B79,Data!$C:$C,'Detailed - TNSP'!F$75) -> 0 | G79: =SUMIFS(Data!$D:$D,Data!$A:$A,'Detailed - TNSP'!$C$4,Data!$B:$B,'Detailed - TNSP'!$B79,Data!$C:$C,'Detailed - TNSP'!G$75) -> 0 | H79: =SUMIFS(Data!$D:$D,Data!$A:$A,'Detailed - TNSP'!$C$4,Data!$B:$B,'Detailed - TNSP'!$B79,Data!$C:$C,'Detailed - TNSP'!H$75) -> 0 | I79: =SUMIFS(Data!$D:$D,Data!$A:$A,'Detailed - TNSP'!$C$4,Data!$B:$B,'Detailed - TNSP'!$B79,Data!$C:$C,'Detailed - TNSP'!I$75) -> 0 | J79: =SUMIFS(Data!$D:$D,Data!$A:$A,'Detailed - TNSP'!$C$4,Data!$B:$B,'Detailed - TNSP'!$B79,Data!$C:$C,'Detailed - TNSP'!J$75) -> 0 | K79: =SUMIFS(Data!$D:$D,Data!$A:$A,'Detailed - TNSP'!$C$4,Data!$B:$B,'Detailed - TNSP'!$B79,Data!$C:$C,'Detailed - TNSP'!K$75) -> 0 | L79: =SUMIFS(Data!$D:$D,Data!$A:$A,'Detailed - TNSP'!$C$4,Data!$B:$B,'Detailed - TNSP'!$B79,Data!$C:$C,'Detailed - TNSP'!L$75) -> 0 | M79: =SUMIFS(Data!$D:$D,Data!$A:$A,'Detailed - TNSP'!$C$4,Data!$B:$B,'Detailed - TNSP'!$B79,Data!$C:$C,'Detailed - TNSP'!M$75) -> 936305.019
B80: Total Revenue (penalties) allowed (deducted) through incentive schemes | C80: =SUM(C76:C79) -> 5730800 | D80: 30298303.53 | E80: 25999032.09 | F80: 28177702.81 | G80: 28253399.12 | H80: =SUM(H76:H79) -> 20515987.08 | I80: 35156093.19 | J80: =SUM(J76:J79) -> 18964458 | K80: =SUM(K76:K79) -> 20864399 | L80: =SUM(L76:L79) -> 15829823 | M80: =SUM(M76:M79) -> 18356436.3
B82: Source: Economic Benchmarking RIN - Revenue - 2014 to 2024
B85: Customer Numbers | C85: 2014 | D85: 2015 | E85: 2016 | F85: 2017 | G85: 2018 | H85: 2019 | I85: 2020 | J85: 2021 | K85: 2022 | L85: 2023 | M85: 2024
B86: Customer numbers at the start of the period | C86: =SUMIFS(Data!$D:$D,Data!$A:$A,'Detailed - TNSP'!$C$4,Data!$B:$B,'Detailed - TNSP'!$B86,Data!$C:$C,'Detailed - TNSP'!C$85) -> 3566649 | D86: =SUMIFS(Data!$D:$D,Data!$A:$A,'Detailed - TNSP'!$C$4,Data!$B:$B,'Detailed - TNSP'!$B86,Data!$C:$C,'Detailed - TNSP'!D$85) -> 3635903 | E86: =SUMIFS(Data!$D:$D,Data!$A:$A,'Detailed - TNSP'!$C$4,Data!$B:$B,'Detailed - TNSP'!$B86,Data!$C:$C,'Detailed - TNSP'!E$85) -> 3705674 | F86: =SUMIFS(Data!$D:$D,Data!$A:$A,'Detailed - TNSP'!$C$4,Data!$B:$B,'Detailed - TNSP'!$B86,Data!$C:$C,'Detailed - TNSP'!F$85) -> 3752921 | G86: =SUMIFS(Data!$D:$D,Data!$A:$A,'Detailed - TNSP'!$C$4,Data!$B:$B,'Detailed - TNSP'!$B86,Data!$C:$C,'Detailed - TNSP'!G$85) -> 3807090 | H86: =SUMIFS(Data!$D:$D,Data!$A:$A,'Detailed - TNSP'!$C$4,Data!$B:$B,'Detailed - TNSP'!$B86,Data!$C:$C,'Detailed - TNSP'!H$85) -> 3859603 | I86: =SUMIFS(Data!$D:$D,Data!$A:$A,'Detailed - TNSP'!$C$4,Data!$B:$B,'Detailed - TNSP'!$B86,Data!$C:$C,'Detailed - TNSP'!I$85) -> 3915536 | J86: =SUMIFS(Data!$D:$D,Data!$A:$A,'Detailed - TNSP'!$C$4,Data!$B:$B,'Detailed - TNSP'!$B86,Data!$C:$C,'Detailed - TNSP'!J$85) -> 3962822 | K86: =SUMIFS(Data!$D:$D,Data!$A:$A,'Detailed - TNSP'!$C$4,Data!$B:$B,'Detailed - TNSP'!$B86,Data!$C:$C,'Detailed - TNSP'!K$85) -> 4016990 | L86: =SUMIFS(Data!$D:$D,Data!$A:$A,'Detailed - TNSP'!$C$4,Data!$B:$B,'Detailed - TNSP'!$B86,Data!$C:$C,'Detailed - TNSP'!L$85) -> 4064531 | M86: =SUMIFS(Data!$D:$D,Data!$A:$A,'Detailed - TNSP'!$C$4,Data!$B:$B,'Detailed - TNSP'!$B86,Data!$C:$C,'Detailed - TNSP'!M$85) -> 4080877
B87: Customer numbers at the end of the period | C87: =SUMIFS(Data!$D:$D,Data!$A:$A,'Detailed - TNSP'!$C$4,Data!$B:$B,'Detailed - TNSP'!$B87,Data!$C:$C,'Detailed - TNSP'!C$85) -> 3633476 | D87: =SUMIFS(Data!$D:$D,Data!$A:$A,'Detailed - TNSP'!$C$4,Data!$B:$B,'Detailed - TNSP'!$B87,Data!$C:$C,'Detailed - TNSP'!D$85) -> 3704151 | E87: =SUMIFS(Data!$D:$D,Data!$A:$A,'Detailed - TNSP'!$C$4,Data!$B:$B,'Detailed - TNSP'!$B87,Data!$C:$C,'Detailed - TNSP'!E$85) -> 3752132 | F87: =SUMIFS(Data!$D:$D,Data!$A:$A,'Detailed - TNSP'!$C$4,Data!$B:$B,'Detailed - TNSP'!$B87,Data!$C:$C,'Detailed - TNSP'!F$85) -> 3806566 | G87: =SUMIFS(Data!$D:$D,Data!$A:$A,'Detailed - TNSP'!$C$4,Data!$B:$B,'Detailed - TNSP'!$B87,Data!$C:$C,'Detailed - TNSP'!G$85) -> 3863312 | H87: =SUMIFS(Data!$D:$D,Data!$A:$A,'Detailed - TNSP'!$C$4,Data!$B:$B,'Detailed - TNSP'!$B87,Data!$C:$C,'Detailed - TNSP'!H$85) -> 3909443 | I87: =SUMIFS(Data!$D:$D,Data!$A:$A,'Detailed - TNSP'!$C$4,Data!$B:$B,'Detailed - TNSP'!$B87,Data!$C:$C,'Detailed - TNSP'!I$85) -> 3961070 | J87: =SUMIFS(Data!$D:$D,Data!$A:$A,'Detailed - TNSP'!$C$4,Data!$B:$B,'Detailed - TNSP'!$B87,Data!$C:$C,'Detailed - TNSP'!J$85) -> 3991139 | K87: =SUMIFS(Data!$D:$D,Data!$A:$A,'Detailed - TNSP'!$C$4,Data!$B:$B,'Detailed - TNSP'!$B87,Data!$C:$C,'Detailed - TNSP'!K$85) -> 4064709 | L87: =SUMIFS(Data!$D:$D,Data!$A:$A,'Detailed - TNSP'!$C$4,Data!$B:$B,'Detailed - TNSP'!$B87,Data!$C:$C,'Detailed - TNSP'!L$85) -> 4093166 | M87: =SUMIFS(Data!$D:$D,Data!$A:$A,'Detailed - TNSP'!$C$4,Data!$B:$B,'Detailed - TNSP'!$B87,Data!$C:$C,'Detailed - TNSP'!M$85) -> 4107291
B88: Average Customer Numbers for regulatory year | C88: =AVERAGE(C86:C87) -> 3600062.5 | D88: 3670027 | E88: 3728903 | F88: 3779743.5 | G88: 3835201 | H88: =AVERAGE(H86:H87) -> 3884523 | I88: 3938303 | J88: =AVERAGE(J86:J87) -> 3976980.5 | K88: =AVERAGE(K86:K87) -> 4040849.5 | L88: =AVERAGE(L86:L87) -> 4078848.5 | M88: =AVERAGE(M86:M87) -> 4094084
B90: Source: This is the cumulative total of all DNSPs in the TNSP's jurisdiction. DNSP Annual RIN Non - Financial - STPIS - 2014 to 2024
B93: Connection Point | C93: 2014 | D93: 2015 | E93: 2016 | F93: 2017 | G93: 2018 | H93: 2019 | I93: 2020 | J93: 2021 | K93: 2022 | L93: 2023 | M93: 2024
B94: Number of entry points | C94: =SUMIFS(Data!$D:$D,Data!$A:$A,'Detailed - TNSP'!$C$4,Data!$B:$B,'Detailed - TNSP'!$B94,Data!$C:$C,'Detailed - TNSP'!C$85) -> 22 | D94: =SUMIFS(Data!$D:$D,Data!$A:$A,'Detailed - TNSP'!$C$4,Data!$B:$B,'Detailed - TNSP'!$B94,Data!$C:$C,'Detailed - TNSP'!D$85) -> 21 | E94: =SUMIFS(Data!$D:$D,Data!$A:$A,'Detailed - TNSP'!$C$4,Data!$B:$B,'Detailed - TNSP'!$B94,Data!$C:$C,'Detailed - TNSP'!E$85) -> 21 | F94: =SUMIFS(Data!$D:$D,Data!$A:$A,'Detailed - TNSP'!$C$4,Data!$B:$B,'Detailed - TNSP'!$B94,Data!$C:$C,'Detailed - TNSP'!F$85) -> 21 | G94: =SUMIFS(Data!$D:$D,Data!$A:$A,'Detailed - TNSP'!$C$4,Data!$B:$B,'Detailed - TNSP'!$B94,Data!$C:$C,'Detailed - TNSP'!G$85) -> 26 | H94: =SUMIFS(Data!$D:$D,Data!$A:$A,'Detailed - TNSP'!$C$4,Data!$B:$B,'Detailed - TNSP'!$B94,Data!$C:$C,'Detailed - TNSP'!H$85) -> 30 | I94: =SUMIFS(Data!$D:$D,Data!$A:$A,'Detailed - TNSP'!$C$4,Data!$B:$B,'Detailed - TNSP'!$B94,Data!$C:$C,'Detailed - TNSP'!I$85) -> 35 | J94: =SUMIFS(Data!$D:$D,Data!$A:$A,'Detailed - TNSP'!$C$4,Data!$B:$B,'Detailed - TNSP'!$B94,Data!$C:$C,'Detailed - TNSP'!J$85) -> 42 | K94: =SUMIFS(Data!$D:$D,Data!$A:$A,'Detailed - TNSP'!$C$4,Data!$B:$B,'Detailed - TNSP'!$B94,Data!$C:$C,'Detailed - TNSP'!K$85) -> 45 | L94: =SUMIFS(Data!$D:$D,Data!$A:$A,'Detailed - TNSP'!$C$4,Data!$B:$B,'Detailed - TNSP'!$B94,Data!$C:$C,'Detailed - TNSP'!L$85) -> 54 | M94: =SUMIFS(Data!$D:$D,Data!$A:$A,'Detailed - TNSP'!$C$4,Data!$B:$B,'Detailed - TNSP'!$B94,Data!$C:$C,'Detailed - TNSP'!M$85) -> 55
B95: Number of exit points | C95: =SUMIFS(Data!$D:$D,Data!$A:$A,'Detailed - TNSP'!$C$4,Data!$B:$B,'Detailed - TNSP'!$B95,Data!$C:$C,'Detailed - TNSP'!C$85) -> 99 | D95: =SUMIFS(Data!$D:$D,Data!$A:$A,'Detailed - TNSP'!$C$4,Data!$B:$B,'Detailed - TNSP'!$B95,Data!$C:$C,'Detailed - TNSP'!D$85) -> 101 | E95: =SUMIFS(Data!$D:$D,Data!$A:$A,'Detailed - TNSP'!$C$4,Data!$B:$B,'Detailed - TNSP'!$B95,Data!$C:$C,'Detailed - TNSP'!E$85) -> 103 | F95: =SUMIFS(Data!$D:$D,Data!$A:$A,'Detailed - TNSP'!$C$4,Data!$B:$B,'Detailed - TNSP'!$B95,Data!$C:$C,'Detailed - TNSP'!F$85) -> 102 | G95: =SUMIFS(Data!$D:$D,Data!$A:$A,'Detailed - TNSP'!$C$4,Data!$B:$B,'Detailed - TNSP'!$B95,Data!$C:$C,'Detailed - TNSP'!G$85) -> 104 | H95: =SUMIFS(Data!$D:$D,Data!$A:$A,'Detailed - TNSP'!$C$4,Data!$B:$B,'Detailed - TNSP'!$B95,Data!$C:$C,'Detailed - TNSP'!H$85) -> 101 | I95: =SUMIFS(Data!$D:$D,Data!$A:$A,'Detailed - TNSP'!$C$4,Data!$B:$B,'Detailed - TNSP'!$B95,Data!$C:$C,'Detailed - TNSP'!I$85) -> 101 | J95: =SUMIFS(Data!$D:$D,Data!$A:$A,'Detailed - TNSP'!$C$4,Data!$B:$B,'Detailed - TNSP'!$B95,Data!$C:$C,'Detailed - TNSP'!J$85) -> 104 | K95: =SUMIFS(Data!$D:$D,Data!$A:$A,'Detailed - TNSP'!$C$4,Data!$B:$B,'Detailed - TNSP'!$B95,Data!$C:$C,'Detailed - TNSP'!K$85) -> 104 | L95: =SUMIFS(Data!$D:$D,Data!$A:$A,'Detailed - TNSP'!$C$4,Data!$B:$B,'Detailed - TNSP'!$B95,Data!$C:$C,'Detailed - TNSP'!L$85) -> 110 | M95: =SUMIFS(Data!$D:$D,Data!$A:$A,'Detailed - TNSP'!$C$4,Data!$B:$B,'Detailed - TNSP'!$B95,Data!$C:$C,'Detailed - TNSP'!M$85) -> 110
B96: Total Connection Point | C96: =SUM(C94:C95) -> 121 | D96: =SUM(D94:D95) -> 122 | E96: 124 | F96: 123 | G96: 130 | H96: =SUM(H94:H95) -> 131 | I96: 136 | J96: =SUM(J94:J95) -> 146 | K96: =SUM(K94:K95) -> 149 | L96: =SUM(L94:L95) -> 164 | M96: =SUM(M94:M95) -> 165
C98: 2014 | D98: 2015 | E98: 2016 | F98: 2017 | G98: 2018 | H98: 2019 | I98: 2020 | J98: 2021 | K98: 2022 | L98: 2023 | M98: 2024
B99: Opening Regulatory Asset Base (Nominal) | C99: =IF($F$6="Yes",#REF!,SUMIFS(Data!$D:$D,Data!$A:$A,'Detailed - TNSP'!$C$4,Data!$B:$B,'Detailed - TNSP'!$B99,Data!$C:$C,'Detailed - TNSP'!C$98)) -> 5607223635 | D99: =IF($F$6="Yes",#REF!,SUMIFS(Data!$D:$D,Data!$A:$A,'Detailed - TNSP'!$C$4,Data!$B:$B,'Detailed - TNSP'!$B99,Data!$C:$C,'Detailed - TNSP'!D$98)) -> 6075834269 | E99: =IF($F$6="Yes",#REF!,SUMIFS(Data!$D:$D,Data!$A:$A,'Detailed - TNSP'!$C$4,Data!$B:$B,'Detailed - TNSP'!$B99,Data!$C:$C,'Detailed - TNSP'!E$98)) -> 6190608896 | F99: =IF($F$6="Yes",#REF!,SUMIFS(Data!$D:$D,Data!$A:$A,'Detailed - TNSP'!$C$4,Data!$B:$B,'Detailed - TNSP'!$B99,Data!$C:$C,'Detailed - TNSP'!F$98)) -> 6284920315 | G99: =IF($F$6="Yes",#REF!,SUMIFS(Data!$D:$D,Data!$A:$A,'Detailed - TNSP'!$C$4,Data!$B:$B,'Detailed - TNSP'!$B99,Data!$C:$C,'Detailed - TNSP'!G$98)) -> 6285975680 | H99: =IF($F$6="Yes",#REF!,SUMIFS(Data!$D:$D,Data!$A:$A,'Detailed - TNSP'!$C$4,Data!$B:$B,'Detailed - TNSP'!$B99,Data!$C:$C,'Detailed - TNSP'!H$98)) -> 6371225245 | I99: =IF($F$6="Yes",#REF!,SUMIFS(Data!$D:$D,Data!$A:$A,'Detailed - TNSP'!$C$4,Data!$B:$B,'Detailed - TNSP'!$B99,Data!$C:$C,'Detailed - TNSP'!I$98)) -> 6463915221 | J99: =IF($F$6="Yes",#REF!,SUMIFS(Data!$D:$D,Data!$A:$A,'Detailed - TNSP'!$C$4,Data!$B:$B,'Detailed - TNSP'!$B99,Data!$C:$C,'Detailed - TNSP'!J$98)) -> 6638694869 | K99: =IF($F$6="Yes",#REF!,SUMIFS(Data!$D:$D,Data!$A:$A,'Detailed - TNSP'!$C$4,Data!$B:$B,'Detailed - TNSP'!$B99,Data!$C:$C,'Detailed - TNSP'!K$98)) -> 7201087663 | L99: =IF($F$6="Yes",#REF!,SUMIFS(Data!$D:$D,Data!$A:$A,'Detailed - TNSP'!$C$4,Data!$B:$B,'Detailed - TNSP'!$B99,Data!$C:$C,'Detailed - TNSP'!L$98)) -> 7710900976 | M99: =IF($F$6="Yes",#REF!,SUMIFS(Data!$D:$D,Data!$A:$A,'Detailed - TNSP'!$C$4,Data!$B:$B,'Detailed - TNSP'!$B99,Data!$C:$C,'Detailed - TNSP'!M$98)) -> 8996185340
B100: Opening RAB in common real dollar terms (for calculating real returns on assets) | C100: =C99*(1+C106) -> 5771497765 | D100: 6180190201 | E100: 6295140754 | F100: 6377686667 | G100: 6405980670 | H100: 6484895633 | I100: 6582882986 | J100: 6695826495 | K100: 7453002845 | L100: 8314805010 | M100: 9360709670
B102: Source: Roll Forward Model - Opening Regulatory Asset Base - 2014 to 2024 Where not available - Post Tax Revenue Model (Return on debt updates) - Opening Regulatory Asset Base - 2024
B105: Consumer price index | C105: 2014 | D105: 2015 | E105: 2016 | F105: 2017 | G105: 2018 | H105: 2019 | I105: 2020 | J105: 2021 | K105: 2022 | L105: 2023 | M105: 2024
B106: Inflation Rate | C106: =SUMIFS(Data!$D:$D,Data!$A:$A,'Detailed - TNSP'!$C$4,Data!$B:$B,'Detailed - TNSP'!$B106,Data!$C:$C,'Detailed - TNSP'!C$105) -> 0.029296875 | D106: =SUMIFS(Data!$D:$D,Data!$A:$A,'Detailed - TNSP'!$C$4,Data!$B:$B,'Detailed - TNSP'!$B106,Data!$C:$C,'Detailed - TNSP'!D$105) -> 0.01717557252 | E106: =SUMIFS(Data!$D:$D,Data!$A:$A,'Detailed - TNSP'!$C$4,Data!$B:$B,'Detailed - TNSP'!$B106,Data!$C:$C,'Detailed - TNSP'!E$105) -> 0.01688555347 | F106: =SUMIFS(Data!$D:$D,Data!$A:$A,'Detailed - TNSP'!$C$4,Data!$B:$B,'Detailed - TNSP'!$B106,Data!$C:$C,'Detailed - TNSP'!F$105) -> 0.0147601476 | G106: =SUMIFS(Data!$D:$D,Data!$A:$A,'Detailed - TNSP'!$C$4,Data!$B:$B,'Detailed - TNSP'!$B106,Data!$C:$C,'Detailed - TNSP'!G$105) -> 0.01909090909 | H106: =SUMIFS(Data!$D:$D,Data!$A:$A,'Detailed - TNSP'!$C$4,Data!$B:$B,'Detailed - TNSP'!$B106,Data!$C:$C,'Detailed - TNSP'!H$105) -> 0.0178412132 | I106: =SUMIFS(Data!$D:$D,Data!$A:$A,'Detailed - TNSP'!$C$4,Data!$B:$B,'Detailed - TNSP'!$B106,Data!$C:$C,'Detailed - TNSP'!I$105) -> 0.01840490798 | J106: =SUMIFS(Data!$D:$D,Data!$A:$A,'Detailed - TNSP'!$C$4,Data!$B:$B,'Detailed - TNSP'!$B106,Data!$C:$C,'Detailed - TNSP'!J$105) -> 0.008605851979 | K106: =SUMIFS(Data!$D:$D,Data!$A:$A,'Detailed - TNSP'!$C$4,Data!$B:$B,'Detailed - TNSP'!$B106,Data!$C:$C,'Detailed - TNSP'!K$105) -> 0.03498293515 | L106: =SUMIFS(Data!$D:$D,Data!$A:$A,'Detailed - TNSP'!$C$4,Data!$B:$B,'Detailed - TNSP'!$B106,Data!$C:$C,'Detailed - TNSP'!L$105) -> 0.07831821929 | M106: =SUMIFS(Data!$D:$D,Data!$A:$A,'Detailed - TNSP'!$C$4,Data!$B:$B,'Detailed - TNSP'!$B106,Data!$C:$C,'Detailed - TNSP'!M$105) -> 0.04051987768
B107: Forecast inflation | C107: =SUMIFS(Data!$D:$D,Data!$A:$A,'Detailed - TNSP'!$C$4,Data!$B:$B,'Detailed - TNSP'!$B107,Data!$C:$C,'Detailed - TNSP'!C$105) -> 0.02474850298 | D107: =SUMIFS(Data!$D:$D,Data!$A:$A,'Detailed - TNSP'!$C$4,Data!$B:$B,'Detailed - TNSP'!$B107,Data!$C:$C,'Detailed - TNSP'!D$105) -> 0.0242 | E107: =SUMIFS(Data!$D:$D,Data!$A:$A,'Detailed - TNSP'!$C$4,Data!$B:$B,'Detailed - TNSP'!$B107,Data!$C:$C,'Detailed - TNSP'!E$105) -> 0.0242 | F107: =SUMIFS(Data!$D:$D,Data!$A:$A,'Detailed - TNSP'!$C$4,Data!$B:$B,'Detailed - TNSP'!$B107,Data!$C:$C,'Detailed - TNSP'!F$105) -> 0.0242 | G107: =SUMIFS(Data!$D:$D,Data!$A:$A,'Detailed - TNSP'!$C$4,Data!$B:$B,'Detailed - TNSP'!$B107,Data!$C:$C,'Detailed - TNSP'!G$105) -> 0.0242 | H107: =SUMIFS(Data!$D:$D,Data!$A:$A,'Detailed - TNSP'!$C$4,Data!$B:$B,'Detailed - TNSP'!$B107,Data!$C:$C,'Detailed - TNSP'!H$105) -> 0.02449951148 | I107: =SUMIFS(Data!$D:$D,Data!$A:$A,'Detailed - TNSP'!$C$4,Data!$B:$B,'Detailed - TNSP'!$B107,Data!$C:$C,'Detailed - TNSP'!I$105) -> 0.02449951148 | J107: =SUMIFS(Data!$D:$D,Data!$A:$A,'Detailed - TNSP'!$C$4,Data!$B:$B,'Detailed - TNSP'!$B107,Data!$C:$C,'Detailed - TNSP'!J$105) -> 0.02449951148 | K107: =SUMIFS(Data!$D:$D,Data!$A:$A,'Detailed - TNSP'!$C$4,Data!$B:$B,'Detailed - TNSP'!$B107,Data!$C:$C,'Detailed - TNSP'!K$105) -> 0.02449951148 | L107: =SUMIFS(Data!$D:$D,Data!$A:$A,'Detailed - TNSP'!$C$4,Data!$B:$B,'Detailed - TNSP'!$B107,Data!$C:$C,'Detailed - TNSP'!L$105) -> 0.02449951148 | M107: =SUMIFS(Data!$D:$D,Data!$A:$A,'Detailed - TNSP'!$C$4,Data!$B:$B,'Detailed - TNSP'!$B107,Data!$C:$C,'Detailed - TNSP'!M$105) -> 0.02919304851
B109: Source: Roll Forward Model - Inflation Rate - 2014 to 2024 Where not available - Australian Bureau of Statistics - Inflation Rate - 2024 Post Tax Revenue Model - Forecast inflation rate - 2014 to 2024
